{"text_format":"1","workbook":"xlsx","n_sheets":6,"sheets":["INSTRUCTIVO DE USO","DRAGADOS","OBLIGACIONES APLICABLES","Asuntos radicación","Temp","Hoja2"],"not_rendered":{"charts":0,"images":2,"macros":1,"external_links":0,"defined_names":3,"comments":1,"pivot_tables":0},"unopened":[],"bounds":{"document_bytes":16777216,"sheet_cells":100000,"rows_first":2000,"rows_last":500,"rows_between":2000,"halvings":0,"cell_chars":16384,"cell_head_chars":4096},"cells_cut":0,"cells_raw":0,"read":"whole","date_system":"1900"}

{"sheet":"INSTRUCTIVO DE USO","index":0,"n_rows":11,"n_cols":3,"rows_kept":11,"cut":false,"hidden":true,"merged":[[10,0,10,12],[0,0,0,1],[0,2,0,12],[2,0,2,12],[4,0,5,12],[7,0,8,12]]}
[null,null,"INSTRUCTIVO DE USO DEL INSTRUMENTO DE OBLIGACIONES MÍNIMAS "]
[]
["1. INTRODUCCIÓN\n\nLas Obligaciones Mínimas son un instrumento interno de la Autoridad Nacional de Licencias Ambientales – ANLA formulado con el fin de unificar criterios por parte de los profesionales que realizan la evaluación y seguimiento de proyectos, obras o actividades sujetos al trámite de licenciamiento ambiental, mediante la estandarización de obligaciones mínimas asociadas al acto administrativo a través del cual se otorga o modifica la licencia ambiental, se actualizan los planes de manejo ambiental y se imponen medidas adicionales, de tal manera que se asegure que en cada tipo de proyecto se impongan las mismas obligaciones estandarizadas bajo requerimientos legales y directrices institucionales, así como con condiciones unificadas y claramente definidas de modo, tiempo y lugar.\n\nEs importante resaltar que, este instrumento al ser interno facilita la labor de esta autoridad en la imposición de obligaciones mínimas en los procesos de evaluación y seguimiento (este último en los casos estrictamente aplicables), y en la verificación del cumplimiento de las mismas en el seguimiento. Sin embargo, al ser puesto a disposición de los usuarios o solicitantes de licencias ambientales servirá como herramienta de planeación de los proyectos, obras o actividades sujetos a licenciamiento, de tal manera que previo a la radicación de los estudios ambientales frente a esta autoridad, las obligaciones puedan ser incorporadas por los usuarios en la formulación de los Planes de Manejo Ambiental - PMA\n\nPor lo anterior, a continuación se realizan algunas precisiones a los solicitantes de licencias ambientales cuando estos deseen consultar y hacer uso de este instrumento durante el proceso de formulación de sus PMA."]
[]
["2. DEFINICIONES\n\nCondición de lugar: (dónde) lugares o puntos en los que debe desarrollarse la actividad según experticia del evaluador o según protocolos, guías, normativa en general, etc.\nCondición de modo: (cómo) descripción de las características o circunstancias en las que se deben realizar las actividades autorizadas, según protocolos, guías, normativa en general y aspectos administrativos que se definan.\nCondición de tiempo: (cuándo) periodicidad para la ejecución de monitoreos, tiempos de realización de actividades, tiempos de presentación de la información, etc.\nObligaciones mínimas: Describen las condiciones mínimas de modo, tiempo y lugar a través de las cuales la Autoridad Ambiental, autoriza la ejecución de un proyecto, obra o actividad sujeto legalmente al trámite de Licenciamiento Ambiental, identificando los permisos, autorizaciones y/o concesiones cuando sea el caso, de conformidad con cada subsector (tipo de proyecto). En razón a lo anterior, se clasifican las obligaciones mínimas, de conformidad con las características de las condiciones reglamentadas, de la siguiente manera: obligaciones de uso, aprovechamiento y/o afectación de recursos naturales, obligaciones asociadas a componentes y actividades, obligaciones asociadas a planes, obligaciones socioeconómicas, obligaciones generales y requisitos del acto administrativo. \nObligaciones de uso, aprovechamiento y/o afectación de recursos naturales: están relacionadas con las autorizaciones y/o permisos otorgados para el uso, aprovechamiento y/o afectación de los recursos naturales, tales como: emisiones atmosféricas, ruido, aprovechamiento forestal, concesión aguas subterráneas, exploración de aguas subterráneas, concesión aguas superficiales, ocupación de cauce, vertimiento en agua superficial, vertimiento en suelo, entre otras.\nObligaciones asociadas a componentes y actividades: contiene obligaciones relacionadas con algunos componentes y actividades propias del proyecto, obra o actividad, tales como: adecuación / construcción de vías existentes de apoyo al proyecto, almacenamiento de materiales de construcción, almacenamiento de combustibles y productos químicos, compra de agua, recirculación de agua residual, entrega de aguas residuales para reúso, entrega de aguas residuales a terceros, materiales de construcción, gestión de residuos, zonas de disposición de material sobrante de excavaciones, entre otras.\nObligaciones asociadas a Planes: contiene obligaciones relacionadas con la ejecución y cumplimiento de algunos planes definidos en la licencia ambiental de un proyecto, tales como: plan de compensación del medio biótico, plan de gestión del riesgo, plan de desmantelamiento y abandono y plan de inversión de no menos del 1%.\nObligaciones socioeconómicas: contienen obligaciones relacionadas con temas, tales como: gestión social y valoración económica.\nObligaciones generales: agrupa diferentes aspectos relacionados con cumplimiento de parámetros normativos, presentación de Informes de Cumplimiento Ambiental – ICA, notificaciones de cambios menores, solicitudes de modificación de licencia ambiental y demás condiciones generales a ser tenidas en cuenta por parte del titular de la licencia. La inclusión por parte de los profesionales jurídicos de este tipo de obligaciones, deberá realizarse en todas las licencias ambientales, sin importar el tipo de proyecto. En caso de que el solicitante de la licencia ambiental haga uso de este instrumento durante el proceso de formulación de su PMA, no deberá tener en cuenta este tipo de obligaciones dada la naturaleza de las mismas.\nRequisitos del acto administrativo: corresponde a aquellas obligaciones de la ANLA frente a cada licencia ambiental. La inclusión por parte de los profesionales jurídicos de este tipo de obligaciones deberá realizarse en todas las licencias ambientales, sin importar el tipo de proyecto. No tienen relación alguna con las fases de desarrollo del proyecto y no son objeto de seguimiento. Algunas de las obligaciones, contienen textos en rojo que deberán ser diligenciados directamente en el acto administrativo por el profesional jurídico, como: nombre y NIT del titular del proyecto. En caso de que el solicitante de la licencia ambiental haga uso de este instrumento durante el proceso de formulación de su PMA, no deberá tenerl en cuenta este tipo de obligaciones dada la naturaleza de las mismas."]
[]
[]
["3. DESARROLLO\n\nEste instrumento representa una estandarización mínima a la luz de las necesidades de cada sector y tipos de proyectos, obras o actividades en todas las regiones, por lo cual, tanto los profesionales de la Autoridad como los usuarios o solicitantes de licencias ambientales, con fundamento en el conocimiento de las condiciones ambientales propias del área (hídricas, climáticas, geomorfológicas, de suelos, etc.) y de las actividades a desarrollar por parte del proyecto, deberán hacer uso de las obligaciones específicas a que haya lugar y en los casos estrictamente necesarios y técnicamente justificados se podrán adaptar aquellas obligaciones mínimas que así lo requieran. \n\nCada archivo contiene tres pestañas u hojas de cálculo. La primera pestaña, hace referencia al tipo de proyecto para el cual se estandarizaron obligaciones asociadas a permisos, autorizaciones y aspectos generales. Esta pestaña cuenta con un encabezado indicando el tipo de proyecto para el cual se estandarizaron obligaciones y con 3 secciones y 10 subsecciones.\n\nLa SECCIÓN 1. PERMISOS, AUTORIZACIONES Y ASPECTOS GENERALES agrupa 5 subsecciones que son descritas a continuación:\n\nSubsección 1. ID (Columna A): corresponde a la numeración de las obligaciones, la cual se encuentra en orden consecutivo.\nSubsección 2. Temática (Columna B): corresponde a la temática abordada en cada uno de los grupos de obligaciones mínimas (obligaciones de uso, aprovechamiento y/o afectación de recursos naturales, obligaciones asociadas a componentes y actividades, obligaciones asociadas a planes, obligaciones socioeconómicas, obligaciones generales y requisitos del acto administrativo).\nSubsección 3. Aspecto a tratar (Columna C): comprende los elementos a los que hace referencia cada obligación, p.e: monitoreo y seguimiento a la calidad del cuerpo de agua donde se realiza la ocupación de cauce, manejo de zonas de disposición de material sobrante de excavación, reporte de actividades de aprovechamiento forestal de arboles aislados, etc.\nSubsección 4. Aspecto a tratar (Columna D): permite seleccionar la aplicabilidad ( √ ) o no ( X ) de una obligación mediante un doble clic en la celda, según el contexto del proyecto que se esté evaluando, es decir, si se le otorga un determinado permiso, se le autoriza alguna obra o actividad o le aplica de acuerdo con los permisos y actividades desarrolladas por le proyecto.\nSubsección 5. Obligación (Columna E): conjunto de obligaciones mínimas establecidas para cada temática y aspecto a tratar.\n\nPor otra parte, la SECCIÓN 2. FASES DEL PROYECTO PARA EL CUMPLIMIENTO Y SEGUIMIENTO A OBLIGACIONES indica la fase en la cual deberán ejecutarse las acciones asociadas a una determinada obligación para el cumplimiento por parte del titular de la licencia y el seguimiento por parte de la Autoridad: 1) Fase de pre construcción, 2) Fase de construcción, 3) Fase de operación y mantenimiento, y 4) Fase de desmantelamiento y abandono. \n\nFinalmente, la SECCIÓN 3. TEMPORALIDAD establece si la obligación debe ser de cumplimiento permanente o temporal por parte de los titulares de las licencias.\n\nUna vez se revisen todas las obligaciones mínimas y se indique si aplican o no, los usuarios de este instrumento deberán dirigirse a la segunda pestaña denominada OBLIGACIONES APLICABLES para generar el listado final de obligaciones mínimas que pueden establecerse a cada proyecto. Para generar este listado, se deberá dar clic en el botón de “Actualizar Anexo”.\n\nLa aplicabilidad de las obligaciones en las diferentes fases del proyecto, así como su temporalidad deberá asociarse al final de cada obligación en el respectivo documento (Concepto Técnico y acto administratico para el caso de la Autoridad o PMA para el caso de los usuarios o solicitantes de licencias ambientales).\n\nLa tercera pestaña denominada Asuntos radicación es de uso exclusivo de la Autoridad, dado que es donde se encuentran los asuntos de radicación relacionados con la Obligación General \"Estrategia de recepción de información de los resultados de los monitoreos del uso y aprovechamiento de los recursos naturales\", tabla que se debe copiar y pegar en la mencionada obligación."]
[]
[]
["4. ANEXOS\n\nEl instrumento cuenta con formatos y plantillas asociados a algunas obligaciones mínimas que son de uso transversal a cualquier proyecto, los cuales son:\n\n1. Formatos de hoja de vida de pozo de observación y hoja de vida de pozo de captación: Estos formatos deben ser diligenciados por parte del usuario y ser allegados en los respectivos Informes de Cumplimiento Ambiental – ICA. El diligenciamiento de dichos formatos responde a algunas obligaciones asociadas a los permisos de vertimiento en suelo, exploración de aguas subterráneas y concesión de aguas subterráneas.\n2. Plantillas de avisos informativos: Estas plantillas están asociadas al permiso de concesión de aguas superficiales y subterráneas y permiso de vertimientos a cuerpos de agua superficial y en suelos, los cuales deben ser diligenciados e instalados por parte del usuario en el lugar donde se haya autorizado la realización de dichos permisos.\n3. Plantilla de seguimiento a la gestión de residuos peligrosos y Plantilla de seguimiento a la gestión de residuos no peligrosos: En esta plantilla se consolidará la información asociada a la generación y gestión (tratamiento, aprovechamiento y/o disposición final) de residuos peligros y no peligrosos realizada por parte del generador o de terceros autorizados, la cual deberá ser allegada en los respectivos Informes de Cumplimiento Ambiental – ICA.\n\nDichos anexos, se encuentran disponibles en la página web de la ANLA."]

{"sheet":"DRAGADOS","index":1,"n_rows":116,"n_cols":10,"rows_kept":116,"cut":false,"hidden":false,"merged":[[0,0,4,1],[0,2,4,4],[0,5,1,5],[0,6,1,9],[2,5,3,5],[2,6,3,9],[4,6,4,9],[10,9,11,9],[5,0,5,4],[5,5,5,8],[10,0,11,0],[10,1,11,1],[10,2,11,2],[10,4,11,4],[10,5,11,5],[10,6,11,6],[10,7,11,7],[10,8,11,8],[34,6,35,6],[34,7,35,7],[34,8,35,8],[34,9,35,9],[34,0,35,0],[34,1,35,1],[34,2,35,2],[34,4,35,4],[34,5,35,5]]}
[null,null,"OBLIGACIONES MÍNIMAS DRAGADOS\nRecuerde completar los textos en rojo directamente en el CTE.\nNOTA: Dar doble clic en cada celda de la columna Aplica para indicar si la obligación será impuesta R o no T",null,null,"Fecha:","31-08-2023"]
[]
[null,null,null,null,null,"Versión:",1]
[]
[null,null,null,null,null,"Código:","EL-FO-64"]
["SECCIÓN 1. PERMISOS, AUTORIZACIONES Y ASPECTOS GENERALES",null,null,null,null,"SECCIÓN 2. FASE DEL PROYECTO PARA EL CUMPLIMIENTO Y SEGUIMIENTO A OBLIGACIONES",null,null,null,"SECCIÓN 3. TEMPORALIDAD"]
["ID","Temática","Aspecto a tratar","Aplica (SI / NO)","Obligación","Pre construcción","Construcción","Operación y mantenimiento","Desmantelamiento y abandono","Temporal  / \nPermanente"]
[1,"AIRE","Monitoreos de calidad del aire. \n\nNota 1: Revisar previamente las condiciones establecidas por el proyecto en el PSM en relación con estos monitoreos, con el fin de ser consecuentes con las obligaciones impuestas y las propuestas en el plan (no duplicar, no contrariar y tomar las condiciones más estrictas entre las obligaciones mínimas y el PSM). Específicamente, la frecuencia del monitoreo se evaluará dentro del programa de monitoreo propuesto por el usuario en el EIA, lo cual se deberá ajustar de acuerdo con los criterios de evaluación, en caso de ser necesario.\n\nNota 2: Aplica en fase de desmantelamiento y abandono cuando implique el desmantelamiento de obras duras. ",null,"Realizar monitoreos de calidad del aire con los criterios establecidos para un (Sistema de Vigilancia de Calidad de Aire Industrial Fijo / Indicativo - SVCAI. Seleccionar el sistema de acuerdo con la complejidad del proyecto) según el Protocolo para el Monitoreo y Seguimiento de la Calidad del Aire del MAVDT del 2010 (adoptado por la Resolución 650 de 2010, y ajustado por la Resolución 2154 de 2010, o la norma que la modifique, derogue o sustituya), y entregar los respectivos soportes en los Informes de Cumplimiento Ambiental - ICA, teniendo en cuenta lo siguiente:\n\na) Documento donde se argumente la selección de la localización de las estaciones que conformen el Sistema de Vigilancia de Calidad de Aire, teniendo en cuenta los criterios establecidos en el Protocolo para el Monitoreo y Seguimiento de la Calidad del Aire del MAVDT (2010). Esta obligación se presentará en el primer Informe de Cumplimiento Ambiental - ICA.\nb) Información meteorológica: debe hacer referencia al año calendario inmediatamente anterior al estudio, la cual debe ser previamente validada de acuerdo a los estándares establecidos por la EPA, de igual forma se deberá entregar la información meteorológica de la campaña de monitoreo (Quality Assurance Handbook for Air Pollution Measurement Systems Volumen IV: Meteorological Measurement Versión 2.0 EPA-454/B-08-002). Anexar los archivos georreferenciados de acuerdo con el modelo de almacenamiento geográfico establecido en la Resolución 2182 de 2016 del MADS, o la que la modifique, derogue o sustituya.\nc) Reportes de laboratorio (que incluya datos diarios u horarios dependiendo de la tecnología de la estación de monitoreo - manual o automática).\nd) Comparación de las mediciones con los niveles máximos permisibles establecidos en la Resolución 2254 de 2017 del MADS, o aquella que la modifique, derogue o sustituya, y con la línea base presentada en el EIA para los contaminantes evaluados. Los contaminantes a registrar serán los establecidos en la Resolución  2254 de 2017 del MADS, o aquella que la modifique o sustituya, aplicables según la actividad industrial desarrollada y las fuentes de emisión identificadas. \ne) Informe de las acciones implementadas para garantizar el cumplimiento de los estándares en caso de sobrepasar los límites de inmisión para cada contaminante.\nf) Informe que incluya como mínimo los contenidos establecidos en el Protocolo para el Monitoreo y Seguimiento de la Calidad del Aire del MAVDT (2010) - Manual de operación, según el sistema de vigilancia de calidad del aire aplicable.","N/A","Aplica","N/A","N/A","Permanente"]
[2,"AIRE","Presentación del plan de riego en vías \n\nNota: Ajustar la presente obligación de acuerdo con la propuesta realizada por usuario en su plan de riego, Programa de Uso Eficiente y Ahorro de Agua - PUEAA y/o programa de seguimiento y monitoreo.",null,"Presentar en el primer Informe de Cumplimiento Ambiental - ICA de la fase constructiva / antes del inicio de las actividades de construcción (seleccionar momento de entrega del plan de acuerdo con la duración del proyecto) el plan de riego asociado a la humectación de vías de acceso y zonas descubiertas sin pavimentar (internas del proyecto), el cual debe incluir lo siguiente:\n\na) Rutas y zonas por regar. \nb) Métodos de riego empleados, los cuales deberán garantizar la mayor área de humectación y el menor consumo de agua. \nc) Agua a emplear en las actividades de humectación, la cual deberá dar cumplimiento a lo establecido en la normatividad vigente, y las obligaciones establecidas sobre (Espacio para indicar los permisos/autorizaciones respectivas que se hayan autorizado al proyecto y que estén relacionados con el agua que será empleada para la humectación de vías: vertimientos al suelo, concesión de aguas, compra de agua, aguas lluvias, recirculación en suelo soporte de infraestructura, entre otras).\nd) En caso de emplear aditivos u otros materiales, deberán ser inocuos y no presentar problemas de compactación u otros impactos al suelo superficial, por infiltración o escorrentía ante eventuales precipitaciones. \ne) Indicadores asociados con las actividades de humectación en función del área regada, las cantidades de agua empleadas y la cantidad de material particulado mitigado.","Aplica","Aplica","N/A","N/A","Temporal"]
[3,"AIRE","Reporte de implementación del plan de riego en vías",null,"Presentar los soportes de implementación del plan de riego en vías en los respectivos Informes de Cumplimiento Ambiental - ICA, incluyendo: i) evidencias de la ejecución de las medidas con los volúmenes de agua empleados, su origen, métodos de riego empleados, áreas y vías en las cuales fue realizado y ii) análisis de la información meteorológica para el balance hídrico de evaporación-precipitación en los periodos de riego.","N/A","Aplica","N/A","N/A","Permanente"]
[4,"CAMBIO CLIMÁTICO","Plan Integral de Gestión de Cambio Climático\n\nNota 1:  Definir el momento de la entrega del PIGCCp teniendo en cuenta la duración del proyecto.\n\nNota 2: Tener en cuenta en el considerando del acto administrativo que la obligación se impondrá con fundamento en la Contribución Determinada a Nivel Nacional de Colombia (NDC) de diciembre de 2020, la Ley 2169 de diciembre de 2021 de Acción Climática y la meta nacional de la carbono neutralidad E2050, ",null,"Presentar el Plan Integral de Gestión de Cambio Climático del proyecto (PIGCCp) y los anexos correspondientes en el Informe de Cumplimiento Ambiental – ICA, a (los seis meses, al año, etc., definir la frecuencia teniendo en cuenta la duración del proyecto) de la ejecutoria del acto administrativo que acoja esta obligación / antes del inicio de las actividades de construcción (ajustar según aplique para otorgamiento de licencia, modificación de licencia o ajuste vía seguimiento),  el cual contendrá como mínimo lo siguiente: \n\n1. Objetivos y metas orientados a establecer las acciones de gestión al cambio climático. \n2. La metodología seleccionada para las estimaciones de emisiones y/o remociones GEI del proyecto teniendo en cuenta los criterios que defina el Ministerio de Ambiente y Desarrollo Sostenible (MinAmbiente) y, en caso de que no estén establecidos los criterios metodológicos del inventario GEI por el MinAmbiente, se deberá presentar la metodología o modelo de cuantificación acorde con la Norma Técnica Colombiana NTC-ISO 14064-1 en su versión más reciente o del estándar de reporte de inventario GEI que la Sociedad considere acorde para el proyecto, justificando la selección del estándar y describiendo la metodología o modelo de cuantificación. \n3. La cuantificación del inventario de las emisiones y remociones directas e indirectas de gases efecto invernadero (GEI), teniendo en cuenta:\n\na) Las sustancias dióxido de carbono (CO2), óxido nitroso (N2O), metano (CH4), hidrofluorocarbonos (HFC), perfluorocarbonos (PFC), Trifluoruro de nitrógeno (NF3) y Hexafluoruro de Azufre (SF6), u otras sustancias con potencial de calentamiento global que sean identificadas, en toneladas de CO2eq.\nb) El informe del inventario contemplando los criterios que defina el Ministerio de Ambiente y Desarrollo Sostenible (MinAmbiente), la Norma Técnica Colombiana NTC-ISO 14064-1 en su versión más reciente o el estándar de reporte de inventario GEI que el titular del instrumento de manejo y control ambiental haya seleccionado. \nc) En caso de que por la naturaleza del proyecto no se requiera de la estimación de alguna(s) de las sustancias, alcances o categorías de acuerdo con el estándar del inventario seleccionado, justificar técnicamente. \nd) Los resultados del inventario en hoja de cálculo (Excel editable), junto con su respectivo análisis, la cual deberá contemplar como mínimo: puntos de emisión ID, alcance o categoría según el estándar del inventario seleccionado, tipo de fuente generadora GEI, nombre fuente de emisión GEI, características de la fuente de GEI, categoría IPCC equivalente, Nombre de la sustancia, método de determinación de la emisión, emisión (carga emitida) determinada (kg/año), potencial de calentamiento global, emisión (tonelada de CO2e/año), fuentes de información de los datos empleados y trazabilidad de los cálculos realizados y tipo de verificación GEI (primera, segunda o tercera parte).\n\n4. Las acciones de mitigación y estimado de reducción de GEI proyectadas en el tiempo de vida útil del proyecto autorizado, en hoja de cálculo (Excel editable), contemplando como mínimo: Nombre de la medida, objetivo, descripción de la medida y acciones a seguir, potencial de mitigación de la medida (toneladas de CO2 eq), indicador propuesto, fuentes de información de los datos empleados y trazabilidad de los cálculos realizados, fecha de inicio y fin de implementación. \n5. Las acciones de mitigación de GEI deberán contar con indicadores cuantitativos y cualitativos, de cumplimiento, eficacia y efectividad, que contengan como mínimo lo siguiente: nombre de cada indicador, unidad de medida, frecuencia de medición o de cálculo, definición, fórmula y metodología de medición o cálculo, describiendo los procedimientos utilizados para la medición y relacionando los instrumentos necesarios, fuentes de información de las variables que requiere, responsable de la medición o cálculo (sección, dependencia o persona) y criterios para el análisis e interpretación de resultados. Estos indicadores se presentarán para cada etapa del proyecto de acuerdo con el tiempo de vida útil del proyecto autorizado.\n8. Cronograma y localización de la aplicación de las acciones de gestión de cambio climático. ","Aplica","Aplica","N/A","N/A","Temporal"]
[]
[5,"CAMBIO CLIMÁTICO","Reporte de implementación del Plan Integral de Gestión de Cambio Climático",null,"Presentar en los Informes de Cumplimiento Ambiental - ICA por cada periodo reportado, de acuerdo con la implementación del Plan Integral de Gestión de Cambio Climático del Proyecto (PIGCCp) presentado bajo el articulo XXX (relacionar el numeral corresponda de acuerdo como se enumeró en el acto administrativo), lo siguiente:\n\na) La actualización del inventario de las emisiones y remociones directas e indirectas de gases efecto invernadero (GEI).\nb) El informe de avance de la implementación y/o actualización de las acciones de mitigación y estimado de reducción de GEI con la hoja de cálculo (Excel editable).","N/A","Aplica","N/A","N/A","Permanente"]
[6,"CAMBIO CLIMÁTICO","Actualización del Plan Integral de Gestión de Cambio Climático\n\nNota 1: Aplica para proyectos que soliciten modificación de su licencia ambiental y cuenten previamente con la obligación del PIGCC en términos del proyecto, no a nivel empresarial, dentro de su instrumento de manejo y control.\n\nNota 2: Cuando se aplique esta obligación en una modificación, incluir de manera adicional la obligación denominada \"Reporte de implementación del Plan Integral de Gestión de Cambio Climático\".",null,"Complementar y/o actualizar el Plan integral de gestión de Cambio Climático del proyecto (PIGCCp) requerido mediante Artículo XXX de la Resolución XXX del dd-mm-aaa (relacionar el acto administrativo bajo el cual se impuso la obligación de cambio climático por primera vez) incluyendo las actividades y obras objeto de la presente modificación, de acuerdo con las especificaciones del contenido mínimo establecido para este Plan. Esta información, debe ser presentada en el Informe de Cumplimiento Ambiental - ICA posterior a la expedición del presente acto administrativo que aprueba a modificación del proyecto.","N/A","Aplica","N/A","N/A","Temporal"]
[7,"RUIDO","Monitoreos de ruido ambiental\n\nNota 1: La decisión de realizar monitoreo 1 h / jornada / día o 24 h / jornada / día dependerá del carácter continuo o intermitente de la zona a caracterizar. Incluir el periodo de monitoreo en la nota roja del literal b). \n\nNota 2: Revisar previamente las condiciones establecidas por el proyecto en el PSM en relación con esta actividad, con el fin de ser consecuentes con las obligaciones impuestas y las propuestas en el plan (no duplicar, no contrariar y tomar las condiciones más estrictas entre las obligaciones mínimas y el PSM).",null,"Realizar los monitoreos de ruido ambiental y entregar los respectivos soportes en los Informes de Cumplimiento Ambiental - ICA, teniendo en cuenta lo siguiente:\n\na) Los monitoreos de ruido deben cumplir con los parámetros y procedimientos establecidos en la Resolución 0627 de 2006 del MAVDT y el estándar internacional ISO 1996 incluyendo el análisis de bajas frecuencias, o aquellas que la modifiquen, deroguen o sustituyan.\nb) Durante las etapas de construcción, operación y desmantelamiento, realizar monitoreos de ruido ambiental durante dos (2) días a la semana, garantizando que uno de estos días sea dominical, durante (relacionar la duración del monitoreo de acuerdo con la nota 1). La periodicidad del monitoreo será semestral para la fase constructiva y de desmantelamiento y abandono y anual para la fase operativa. Los puntos de monitoreo deben tener una adecuada micro localización evitando obstáculos entre la fuente y el punto de muestreo. La ubicación de los equipos debe permitir en lo posible una relación señal ruido que permita la identificación de la fuente objeto de estudio sobre el ruido ambiente. \nc) Los puntos de monitoreo deberán coincidir con los puntos monitoreados en la línea base presentada en el EIA, y en caso de que se presenten nuevos potenciales receptores de interés, considerar puntos adicionales de monitoreo, los cuales se localizarán estratégicamente respecto a la ubicación de estos receptores.\nd) Los niveles de presión sonora de cada uno de los puntos de monitoreo, deben ser presentados con el nivel total y discriminados en bandas de tercios de octava para cada hora de medición.\ne) Los monitoreos deben caracterizar los periodos de operación más representativos dentro de cada periodo de reporte, en este sentido se debe considerar la medición de manera simultánea en todos los puntos a fin de tener una trazabilidad en el tiempo y espacio de cada escenario evaluado. Se deberá contar tantos equipos como puntos de muestreo para realizar las mediciones simultáneas y continuas durante todo el desarrollo del monitoreo.\nf) Los monitoreos de ruido deben aportar las correcciones de ruido asociadas al tipo de fuente, así como incertidumbre de medida de acuerdo con lo estipulado en la Resolución 0627 del MADS e ISO 1996 a fin de estimar los efectos que puedan generarse por la operación de la fuente objeto de estudio para todas y cada una de las etapas del proyecto.\ng) Presentar en los respectivos Informes de Cumplimiento Ambiental - ICA los informes de los monitoreos de ruido, incluyendo la información requerida en el Artículo 21 de la Resolución 0627 de 2006. Incluir en el informe la comparación de las mediciones con los estándares máximos permisibles establecidos en la Resolución 0627 de 2006 (o la que la modifique, derogue o sustituya), con la línea base presentada en el instrumento de manejo y control ambiental para ruido ambiental y con las mediciones de emisión de ruido para cada hora monitoreada.\nh) Georreferenciar en mapas temáticos los puntos de monitoreo sobre la información de uso actual de suelo (Capa UsoActualSuelo - V1403 del Modelo de almacenamiento geográfico establecido en la Resolución 2182 de 2016 del MADS, o la que la modifique o sustituya) y de los instrumentos de ordenamiento territorial del área de influencia con la respectiva justificación de la selección de los sectores de ruido establecidos en la Resolución 627 de 2006, cada que se actualice la información de uso actual de suelo (Capa UsoActualSuelo del MAG) y de los instrumentos de ordenamiento territorial y/o se incluyan nuevos puntos de monitoreo. Presentar esta información en los respectivos Informes de Cumplimiento Ambiental - ICA.\ni) Actualizar el inventario de potenciales receptores de interés (asentamientos poblacionales, viviendas, infraestructura social y ecosistemas estratégicos) del proyecto y presentarlo cuando se presenten cambios.","N/A","Aplica","N/A","N/A","Permanente"]
[8,"APROVECHAMIENTO FORESTAL","Reporte de actividades de aprovechamiento forestal en ICA\n\nNota: En el marco del artículo 2.2.1.1.10.4.3 del Decreto 1076 del 2015, la autoridad ambiental otorga o niega el aprovechamiento forestal de productos maderables y el manejo sostenible de la flora silvestre y de los productos forestales no maderables.",null,"Reportar en los informes de cumplimiento ambiental - ICA - el inventario forestal e informe detallado del aprovechamiento forestal adelantado durante el periodo a ser reportado. Presentar la información documental conforme a los lineamientos establecidos en el Manual de Seguimiento Ambiental de Proyectos y bajo el modelo de almacenamiento geográfico adoptado en la Resolución 2182 del 23 de diciembre de 2016, o aquella que la modifique, derogue o sustituya. Detallar en cada informe volúmenes totales y comerciales de aprovechamiento forestal efectivamente removidos por tipo de obra y tipo de cobertura, volúmenes acumulados (Cuando el aprovechamiento forestal se reporta en varios ICA´s), individuos arbóreos aprovechados (nombre común, nombre científico y familia de la especie) con la respectiva ubicación en coordenadas planas con datum y origen, y el área de aprovechamiento (municipio, vereda, predio y polígono de aprovechamiento).","N/A","Aplica","N/A","N/A","Permanente"]
[9,"APROVECHAMIENTO FORESTAL","Reporte de actividades de aprovechamiento forestal de arboles aislados.",null,"Cuando se requiera de la remoción de árboles aislados en un volumen igual o menor a veinte metros cúbicos (20 m³) de conformidad con el articulo 2.2.1.1.9.6. del decreto 1076 de 2015, la sociedad XXX reportará las actividades adelantadas en el respectivo informe de cumplimiento ambiental y no podrá superar el volumen mencionado durante el desarrollo de todas las actividades contempladas en el proyecto.","N/A","Aplica","N/A","N/A","Temporal"]
[10,"APROVECHAMIENTO FORESTAL","Manejo de residuos del aprovechamiento forestal",null,"Disponer los residuos vegetales resultantes de las actividades de aprovechamiento forestal (hojas, ramas, raíces) de tal forma que no se intervenga en la dinámica natural de ecosistemas estratégicos o drenajes naturales, dando cumplimiento a lo establecido en las medidas del Plan de Manejo Ambiental y documentando su implementación y georreferenciación en los Informes de Cumplimiento Ambiental - ICA respectivos.","N/A","Aplica","N/A","N/A","Temporal"]
[11,"APROVECHAMIENTO FORESTAL","Se prohíbe la realización de quemas",null,"No realizar quemas a cielo abierto de los productos, subproductos y/o residuos vegetales resultantes del aprovechamiento forestal.","N/A","Aplica","N/A","N/A","Permanente"]
[12,"APROVECHAMIENTO FORESTAL","Manejo de especies endémicas, en veda o en alguna categoría de amenaza.",null,"Dar cumplimiento a lo establecido en las medidas de manejo aprobadas en el presente acto administrativo, tendientes a garantizar la protección y conservación, mediante las alternativas existentes para tal fin, de las especies endémicas, en veda nacional o regional o en alguna categoría de amenaza de acuerdo con la lista roja de la UICN, los libros rojos de los institutos de investigación Humboldt y SINCHI, la Resolución 1912 del 15 de septiembre de 2017 o aquellas normas que la modifiquen, deroguen o sustituyan, o que se encuentren en algún apéndice del CITES (Convenio sobre el comercio internacional de especies amenazadas). Documentar y presentar su implementación en los informes de cumplimiento ambiental - ICA-, incluyendo la respectiva georreferenciación y registro fotográfico.","N/A","Aplica","N/A","N/A","Permanente"]
[13,"APROVECHAMIENTO FORESTAL","Manejo de los productos obtenidos del aprovechamiento forestal ",null,"Los productos obtenidos del aprovechamiento forestal no podrán ser comercializados y solo podrán ser utilizados en las actividades propias del proyecto y/o entregarse a titulo de donación, determinando de manera prevalente como titular al propietario del predio o a las comunidades, organizaciones sociales y/o autoridades territoriales del área de influencia. Presentar en los Informes de Cumplimiento Ambiental - ICA- respectivos, el destino de los productos (donación y/o uso), el cual estará soportado mediante actas de donación o reportes de su uso en actividades del proyecto, según corresponda, volúmenes obtenidos del aprovechamiento, volúmenes donados y/o usados en las actividades del proyecto y registro fotográfico.","N/A","Aplica","N/A","N/A","Temporal"]
[14,"RECOLECCIÓN DE ESPECÍMENES DE ESPECIES SILVESTRES DE LA\nBIODIVERSIDAD","Reporte de actividades de recolección de especímenes",null,"Presentar en el respectivo informe de cumplimiento ambiental - ICA - las actividades realizadas de recolección, incluyendo la relación del material recolectado, removido o extraído temporal o definitivamente del medio silvestre y la metodología implementada. Presentar la información documental conforme a los lineamientos establecidos en el Manual de Seguimiento Ambiental de Proyectos y de acuerdo con el modelo de almacenamiento geográfico establecido en la Resolución 2182 de 2016 del MADS, o la que la modifique, deroguen o sustituya.","N/A","Aplica","N/A","N/A","Permanente"]
[15,"FAUNA","Seguimiento a ecosistemas marino costeros \n\nNota 1: Ajustar la frecuencia de los monitoreo durante la construcción teniendo en cuenta el tipo de obra, su magnitud y duración.",null,"Realizar monitoreos a las comunidades marino costeras del área de influencia del proyecto, teniendo en cuenta las siguientes condiciones:\n\na) Llevar a cabo i) un monitoreo en un periodo no mayor a un mes antes de iniciar las obras constructivas, [ii) mínimo un monitoreo durante la construcción de la obras marítimas], iii) un monitoreo en un periodo no mayor a un mes después de finalizar las obras, y iv) un monitoreo seis meses después de la finalización de las obras. En caso de que, una vez obtenida la licencia ambiental, el proyecto demore más de 1 año en iniciar la fase constructiva del mismo, deberá realizar tres meses antes del inicio de esta fase los monitoreos a las comunidades marino costeras, con e fin de tener una caracterización más actualizada para poder realizar las comparaciones a las que hay a lugar.\nb) Monitorear las comunidades de flora y fauna asociada a los ecosistemas pelágicos, litoral rocoso y arenoso, fondos blandos, duros y macroalgas, praderas de pastos marinos, manglares, corales de aguas someras y profundas, incluyendo especies de importancia de interés ecológico y económico, así como aquellos que se encuentren en alguna categoría de amenaza o en la lista roja.\nc) El monitoreo debe garantizar que la recolección de información sea representativa en términos espaciales, temporales, de composición y estructura para cada uno de las comunidades presentes.\nd)  Los puntos de monitoreo deben ser los mismos empleados en la caracterización ambiental y de preferencia que coincidan con los mismos puntos de los monitoreos fisicoquímicos y microbiológicos de agua y sedimentos, en caso de adicionar nuevos puntos se debe justificar su representatividad. Garantizar que existan puntos de monitoreo en áreas de alta sensibilidad según la zonificación ambiental del área de influencia del proyecto, que se encuentren adyacentes a las áreas puntuales de intervención que, si bien no se van a intervenir, se deben monitorear para determinar que los impactos generados por el proyecto no afecten su estructura, composición y función durante su vida útil.\ne) Realizar la comparación de los resultados obtenidos con la línea base y con los monitoreos que se vayan realizando conforme el avance de las obras para analizar la tendencia del medio, a través de índices ecológicos y análisis estadísticos, que permitan conocer las variaciones de la composición y estructura de las comunidades. Así mismo, correlacionar los resultados de los datos obtenidos en el muestreo de los parámetros fisicoquímicos y microbiológicos. \nf) Georreferenciar los puntos donde se realiza el monitoreo, y almacenar la información obtenida de los monitoreos, de acuerdo con modelo de almacenamiento geográfico establecido en la Resolución 2182 de 2016 de Minambiente, o la que la modifique o sustituya.\ng) Presentar los resultados y análisis en los Informes de Cumplimiento Ambiental - ICA-, incluyendo el registro fílmico y/o fotográfico.","Aplica","Aplica","Aplica","N/A","Permanente"]
[16,"FAUNA","Seguimiento a ecosistemas terrestres\n\nNota 1: Ajustar la frecuencia de los monitoreo durante la construcción teniendo en cuenta el tipo de obra, su magnitud y duración.\n\nNota 2: Hacer uso de la presente obligación en el caso de que en el área de influencia del proyecto se hayan identificado ecosistemas terrestres y cuando el impacto en la fauna silvestre sea significativo y el profesional evaluador considere su aplicabilidad de acuerdo con impactos adicionales relacionados con la conectividad,  fragmentación de hábitat, entre otros. ",null,"Realizar monitoreos a las comunidades de flora y fauna de los ecosistemas terrestres del área de influencia del proyecto, teniendo en cuenta las siguientes condiciones:\n\na) Llevar a cabo i) un monitoreo en un periodo no mayor a un mes antes de iniciar las obras constructivas, [ii) mínimo un monitoreo durante la construcción de la obras marítimas], iii) un monitoreo en un periodo no mayor a un mes después de finalizar las obras, y iv) un monitoreo seis meses después de la finalización de las obras. En caso de que, una vez obtenida la licencia ambiental, el proyecto demore más de 1 año en iniciar la fase constructiva del mismo, deberá realizar tres meses antes del inicio de esta fase los monitoreos a las comunidades de ecosistemas terrestres, con e fin de tener una caracterización más actualizada para poder realizar las comparaciones a las que hay a lugar.\nb) El monitoreo debe garantizar que la recolección de información sea representativa en términos espaciales, temporales, de composición y estructura para cada uno de las comunidades presentes.\nc) Los puntos de monitoreo deben ser los mismos empleados en la caracterización ambiental, en caso de adicionar nuevos puntos se debe justificar su representatividad. Garantizar que existan puntos de monitoreo en áreas de alta sensibilidad según la zonificación ambiental del área de influencia del proyecto, que se encuentren adyacentes a las áreas puntuales de intervención que, si bien no se van a intervenir, se deben monitorear para determinar que los impactos generados por el proyecto no afecten su estructura, composición y función durante su vida útil.\nd) Realizar la comparación de los resultados obtenidos con la línea base y con los monitoreos que se vayan realizando conforme el avance de las obras para analizar la tendencia del medio, a través de índices ecológicos y análisis estadísticos, que permitan conocer las variaciones de la composición y estructura de las comunidades.\ne) Georreferenciar los puntos donde se realiza el monitoreo, y almacenar la información obtenida de los monitoreos, de acuerdo con modelo de almacenamiento geográfico establecido en la Resolución 2182 de 2016 de Minambiente, o la que la modifique o sustituya.\nf) Presentar los resultados y análisis en los Informes de Cumplimiento Ambiental - ICA-, incluyendo el registro fílmico y/o fotográfico.","Aplica","Aplica","Aplica","N/A","Permanente"]
[17,"FAUNA","Seguimiento a ecosistemas acuáticos continentales\n\nNota 1: Ajustar la frecuencia de los monitoreo durante la construcción teniendo en cuenta el tipo de obra, su magnitud y duración.\n\nNota 2: Hacer uso de la presente obligación en el caso de que en el área de influencia del proyecto se hayan identificado ecosistemas acuáticos continentales y cuando el impacto en la fauna silvestre sea significativo.",null,"Realizar monitoreos a las comunidades de los ecosistemas acuáticos continentales del área de influencia del proyecto, teniendo en cuenta las siguientes condiciones:\n\na) Llevar a cabo i) un monitoreo en un periodo no mayor a un mes antes de iniciar las obras constructivas, [ii) mínimo un monitoreo durante la construcción de la obras marítimas], iii) un monitoreo en un periodo no mayor a un mes después de finalizar las obras, y iv) un monitoreo seis meses después de la finalización de las obras. En caso de que, una vez obtenida la licencia ambiental, el proyecto demore más de 1 año en iniciar la fase constructiva del mismo, deberá realizar tres meses antes del inicio de esta fase los monitoreos a las comunidades de ecosistemas acuáticos continentales, con e fin de tener una caracterización más actualizada para poder realizar las comparaciones a las que hay a lugar.\nb) El monitoreo debe garantizar que la recolección de información sea representativa en términos espaciales, temporales, de composición y estructura para cada uno de las comunidades presentes.\nc) Los puntos de monitoreo deben ser los mismos empleados en la caracterización ambiental y de preferencia que coincidan con los mismos puntos de los monitoreos fisicoquímicos y microbiológicos de agua y sedimentos, en caso de adicionar nuevos puntos se debe justificar su representatividad. Garantizar que existan puntos de monitoreo en áreas de alta sensibilidad según la zonificación ambiental del área de influencia del proyecto, que se encuentren adyacentes a las áreas puntuales de intervención que, si bien no se van a intervenir, se deben monitorear para determinar que los impactos generados por el proyecto no afecten su estructura, composición y función durante su vida útil.\nd) Realizar la comparación de los resultados obtenidos con la línea base y con los monitoreos que se vayan realizando conforme el avance de las obras para analizar la tendencia del medio, a través de índices ecológicos y análisis estadísticos, que permitan conocer las variaciones de la composición y estructura de las comunidades. Así mismo, correlacionar los resultados de los datos obtenidos en el muestreo de los parámetros fisicoquímicos y microbiológicos. \ne) Georreferenciar los puntos donde se realiza el monitoreo, y almacenar la información obtenida de los monitoreos, de acuerdo con modelo de almacenamiento geográfico establecido en la Resolución 2182 de 2016 de Minambiente, o la que la modifique o sustituya.\nf) Presentar los resultados y análisis en los Informes de Cumplimiento Ambiental - ICA-, incluyendo el registro fílmico y/o fotográfico.","Aplica","Aplica","Aplica","N/A","Permanente"]
[18,"FAUNA","Rescate y reubicación de fauna y flora silvestre",null,"En caso de requerir realizar actividades de rescate y reubicación de los diferentes individuos de especies de fauna y flora silvestre presentes en áreas intervenidas por el proyecto, documentar en los respectivos Informes de Cumplimiento Ambiental - ICA:\n\na) Especies reubicadas y actividades ejecutadas, incluyendo metodologías empleadas de rescate y liberación.\nb) Localización de los sitios de reubicación de fauna y flora, haciendo uso del modelo de almacenamiento geográfico establecido en la Resolución 2182 de 2016 del MADS, o aquella norma que la modifique o sustituya.\nc) Seguimiento y monitoreo de las especies reubicadas y un análisis de su condición, que permita corroborar la efectividad de la reubicación. \nd) Para fauna marina con movimiento propio, se deberá reportar la información fílmica y fotográfica que acredite su reubicación desde las áreas afectadas hasta las áreas de recepción. \ne) Garantizar la reubicación del 100% de los individuos pertenecientes a especies con alguna categoría de amenaza, según la Resolución 1912 de 2017 de Minambiente, o aquella norma que la modifique o sustituya, libros rojos de Colombia y la Unión Internacional para la Conservación de la Naturaleza - IUCN.\nd) Coordinación de las actividades realizadas con personal de las autoridades ambientales locales y/o regionales respectivas.","N/A","Aplica","N/A","N/A","Permanente"]
[19,"VEDAS","Rescate y sobrevivencia de especies vasculares en veda (Bromelias,  Orquídeas, especies herbáceas o arbustivas)\n\nNota 1: Seleccionar de los instrumentos de “Porcentaje de rescate y sobrevivencia de bromelias según estado de conservación” y \"Porcentaje de rescate y sobrevivencia de orquídeas según estado de conservación” adoptados en GESPRO, los porcentajes para cada una de las especies registradas en el proyecto.\n\nNota 2: En los casos en que la especie no se encuentre listada en el instrumento, se deberá imponer un porcentaje de rescate del 100% y de sobrevivencia entre el 70 y 80%, hasta que se determine a nivel de especie, esto no aplica para especies con carácter invasor o introducida.",null,"Rescatar las especies de orquídeas y bromelias en veda nacional  según la Res.0213 de 1977 del INDERENA, u otra que modifique o sustituya; y las especies herbáceas o arbustivas en condición de veda regional, se deberá garantizar un rescate y sobrevivencia porcentual por especie de conformidad con lo establecido en la siguiente tabla. Dichos porcentajes responden a características intrínsecas de cada especie (botánicas, fisiológicas, ecológicas, de distribución, grado de amenaza, endemismo y/o usos locales).\n\n[Incluir tabla de porcentajes por especies]\n\n\nEn los casos cuya determinación se haya realizado a nivel de familia, género o “confertus” y “affín”, se debe rescatar el 100% de los individuos o agregados, aplicando el principio de precaución, dadas las condiciones de riqueza, endemismo y amenaza de estos grupos taxonómicos en el país y el desconocimiento de la identidad taxonómica de la especie registrada en el proyecto; por lo tanto, el porcentaje de sobrevivencia será diferencial, dado que depende principalmente de la capacidad de adaptación del género específico y de los requerimientos de hábitat puntuales, se debe garantizar una sobrevivencia del [establecer el porcentaje, entre el 70% y 80%].\n\nReportar en los respectivos Informes de Cumplimiento Ambiental - ICA, los avances o la totalidad del rescate (s) ejecutados, entregando de manera detallada la totalidad (100%) de individuos o agregados registrados en el área de intervención y las actividades de seguimiento para estas especies vasculares rescatadas bajo el “Modelo base de datos de rescate de especies vasculares en veda nacional y preferencia de forofitos”, disponible en el sitio web: https://www.anla.gov.co/01_anla/proyectos/nuevo-licenciamiento-ambiental/elaboracion-ica-y-control-y-seguimiento . ","N/A","Aplica","N/A","N/A","Permanente"]
[20,"VEDAS","Seguimiento, monitoreo y mantenimiento de especies vasculares en veda",null,"Reportar en los respectivos Informes de Cumplimiento Ambiental - ICA, las actividades de seguimiento a la totalidad de individuos o agregados de especies vasculares trasladadas y reubicadas bajo el \"Modelo base de datos consolidada de seguimiento, monitoreo y mantenimiento de especies vasculares trasladadas y reubicadas”, disponible en el sitio web: https://www.anla.gov.co/01_anla/proyectos/nuevo-licenciamiento-ambiental/elaboracion-ica-y-control-y-seguimiento; así como, el cumplimiento del plan de mantenimiento y monitoreo para el tiempo de implementación de la medida de manejo, y el seguimiento a los indicadores y metas para lograr la sobrevivencia y adaptabilidad de los individuos o agregados de la especies en las áreas receptoras para estas poblaciones. ","N/A","Aplica","Aplica","N/A","Permanente"]
[21,"VEDAS","Rescate y sobrevivencia de especies vasculares en veda de tamaño brinzal y helechos arborescentes.\n\nNota: Se debe evaluar si la propuesta del usuario con respecto al porcentaje de sobrevivencia para las especies sujetas a rescate, es acorde a las características intrínsecas de la especie, de los contrario se deberá imponer un porcentaje de sobrevivencia no menor al 70% y debe corresponder al análisis realizado por el evaluador.\nNota 2: En los casos cuya morfoespecie se haya reportado a nivel de familia o género, se debe evaluar el porcentaje de reposición y sobrevivencia de acuerdo a la capacidad de adaptación del género específico y de los requerimientos de hábitat puntuales. Para los casos de taxones a nivel de “confertus” y “affín” se determinará e impondrá el (Fr) acorde a la circular u otro acto administrativo regional.",null,"Rescatar al 100% las especies vasculares en veda nacional y regional de especies arbóreas (brinzal) y helechos arborescentes (≤ 2 metros), garantizando la sobrevivencia porcentual para los individuos de conformidad con las características intrínsecas de cada especie (botánicas, fisiológicas, ecológicas, de distribución, grado de amenaza, endemismo y/o usos locales). Reportar en los respectivos Informes de Cumplimiento Ambiental - ICA, los avances o la totalidad del rescate (s) ejecutado(s), entregando de manera detallada la totalidad (100%) de individuos  registrados en el área de intervención, las actividades de mantenimiento, seguimiento y monitoreo para estas especies rescatadas y trasladadas, así como el cumplimiento y el análisis del comportamiento de la sobrevivencia y adaptabilidad de los individuos en las áreas receptoras de estas poblaciones.\n\n[Incluir tabla de porcentajes de sobrevivencia por especie]\n","N/A","Aplica","N/A","N/A","Permanente"]
[22,"VEDAS","Reposición y sobrevivencia para especies vasculares en veda de tamaño fustal, latizal y helechos arborescentes\nNota 1: Si el factor de reposición para las especies reportadas no se encuentran en la lista de la circular u otro acto administrativo regional, se deberá analizar e imponer acorde a las características intrínsecas de la especie. \nNota 2: La imposición del porcentaje de sobrevivencia debe corresponder al análisis realizado por el evaluador acorde a las características intrínsecas de la especie, y no ser menor al 70%.\nNota 3: En los casos cuya morfoespecie se haya reportado a nivel de familia o género, se debe evaluar el porcentaje de reposición y sobrevivencia de acuerdo a la capacidad de adaptación del género específico y de los requerimientos de hábitat puntuales. Para los casos de taxones a nivel de “confertus” y “affín” se determinará e impondrá el (Fr) acorde a la circular u otro acto administrativo regional.",null,"Realizar la reposición de acuerdo con los criterios establecidos en los lineamientos técnicos de Circular 820-2-808 de 2019 del MADS, o aquella que la modifique o sustituya  y/o las condiciones puntuales de los actos administrativos respectivos de cada autoridad ambiental, como base para determinar el factor de reposición (Fr) para la especie arbórea (fustal y latizal) y helechos arborescentes (˃ 2 metros) en veda que se reporten en el área de intervención del proyecto, garantizando la sobrevivencia porcentual para los individuos de conformidad con las características intrínsecas de cada especie (botánicas, fisiológicas, ecológicas, de distribución, grado de amenaza, endemismo y/o usos locales). Reportar en los respectivos Informes de Cumplimiento Ambiental - ICA, los avances o la totalidad del censo realizado, entregando de manera detallada la totalidad (100%) de individuos registrados por especie en el área de intervención, el análisis definitivo de la aplicación de los factores de reposición por especie para generar la cantidad de individuos a sembrar, las actividades de mantenimiento, seguimiento y monitoreo, así como el cumplimiento y el análisis del comportamiento de la sobrevivencia y adaptabilidad de los individuos en las áreas receptoras de estas poblaciones.  \n\n[Incluir tabla de porcentajes de sobrevivencia por especie]","N/A","Aplica","Aplica","N/A","Permanente"]
[23,"VEDAS","Descripción de las áreas destinadas para el traslado de especies vasculares en veda",null,"Presentar una caracterización florística de los áreas de reubicación y reposición definitivas para especies vasculares en veda (orquídeas, bromelias, helechos arborescentes, especies herbáceas y arbóreas) en el primer Informe de Cumplimiento Ambiental - ICA de la fase constructiva, que incluya:\na. Localización de estas dentro del área de influencia del proyecto, garantizando que las especies reubicadas no sean afectadas por los impactos de la ejecución del proyecto. En caso de que no sea posible, justificar las razones de la selección en sitios fuera de la misma, manteniendo condiciones similares para garantizar la sobrevivencia de la flora trasladada.\nb. Descripción de los ecosistemas receptores, estos deben contar con características físico-bióticas similares a los ecosistemas impactados por las obras y actividades de donde serán extraídos los individuos o agregados de estas especies.\nc. Evaluar y analizar la capacidad de recepción de estas poblaciones de flora en sus diferentes hábitos de crecimiento, teniendo en cuenta la potencialidad de diversos sustratos (árboles receptores-forofitos y otros). \nd. Georreferenciar y almacenar la localización de las áreas, puntos de reubicación y reposición específicos (forofitos, diseños florísticos, siembras puntuales, parcelas de siembra, entre otros) conforme el modelo de almacenamiento geográfico establecido en la Resolución 2182 de 2016 del MADS, o la norma que la modifique o sustituya.","N/A","Aplica","Aplica","N/A","Permanente"]
[24,"VEDAS","Cálculo del (las) área (s) de retribución por afectación al hábitat de especies no vasculares y líquenes en veda",null,"Realizar el cálculo del área de retribución por afectación a los hábitats de especies no vasculares y líquenes en veda bajo el instrumento de “Cálculo del área de retribución por afectación a especies no vasculares y líquenes en veda y sus criterios de evaluación”, disponible en el sitio web: https://www.anla.gov.co/01_anla/proyectos/nuevo-licenciamiento-ambiental/elaboracion-ica-y-control-y-seguimiento. ","N/A","Aplica","N/A","N/A","Permanente"]
[25,"VEDAS","Descripción del (las) área (s) retribución por afectación al hábitat de especies no vasculares y líquenes en veda",null,"Para el (las) área (s) de retribución definitiva por afectación a los hábitats de especies no vasculares y líquenes en veda, se debe entregar y relacionar en el primer Informe de Cumplimiento Ambiental - ICA de la fase constructiva\n\na. Localización de estas dentro del área de influencia del proyecto. En caso de que no sea posible, justificar las razones de la selección en sitios fuera de la misma, y garantizar el tiempo de implementación de la medida en todas sus fases en el (las) área (s) seleccionada(s).\nb. El plan de rehabilitación ecológica, bajo criterios y metas definidas de restauración para propender el restablecimiento de hábitats para estas especies, que contenga objetivos, metas, diagnóstico del área (físico-biótica), planeación de actividades, gestión adaptativa, plan de seguimiento y monitoreo con metas e indicadores.","N/A","Aplica","N/A","N/A","Permanente"]
[26,"VEDAS","Seguimiento y monitoreo al (las) área (s) retribución por afectación al hábitat de especies no vasculares y líquenes en veda",null,"Reportar en los respectivos Informes de Cumplimiento Ambiental - ICA, el avance de las actividades de restauración ejecutadas en áreas de retribución para definir el progreso de la colonización de la especies de briofitos y líquenes, el cumplimiento del plan de mantenimiento y monitoreo, el seguimiento a los indicadores y metas para lograr la sobrevivencia y adaptabilidad de los individuos sembrados, y demás estrategias.","N/A","Aplica","Aplica","N/A","Permanente"]
[27,"CALIDAD AGUA MARINA","Monitoreos de calidad de aguas marinas\n\nNota 1: Dependiendo de la duración de la fase constructiva del proyecto, se podrá ajustar la frecuencia de monitoreo en dicha fase.\n\nNota 2: Las profundidades y tipo de monitoreo, se evaluará dentro del programa de monitoreo propuesto por el usuario en el EIA, lo cual se deberá ajustar de acuerdo con los criterios de evaluación, en caso de ser necesario.",null,"Realizar monitoreos en área y profundidad de las características fisicoquímicas y microbiológicas del agua marina, siguiendo los lineamientos establecidos en la Guía para el Monitoreo y Seguimiento del Agua, elaborada por el IDEAM (2004) y las recomendaciones previstas en el Manual de Técnicas Analíticas para la Determinación de Parámetros Fisicoquímicos y Contaminantes Marinos del INVEMAR (2003), o aquellos que los modifiquen o sustituyan, dando cumplimiento a las siguientes condiciones:\n\na) Llevar a cabo i) un monitoreo en un periodo no mayor a un mes antes de iniciar las obras constructivas, [ii) mínimo un muestreo durante la construcción de la obras marítimas], iii) un monitoreo en un periodo no mayor a un mes después de finalizar las obras, y iv) un monitoreo seis meses después de la finalización de las obras. En caso de que, una vez obtenida la licencia ambiental, el proyecto demore más de 1 año en iniciar la fase constructiva del mismo, deberá realizar tres meses antes del inicio de esta fase los monitoreos de las características de calidad de agua marina, con el fin de tener una caracterización más actualizada para poder realizar las comparaciones a las que hay a lugar.\nb) Los parámetros a determinar son, físicos: temperatura, color, sólidos suspendidos totales, sólidos disueltos totales, sólidos sedimentables, conductividad eléctrica, pH, turbidez; químicos: salinidad, oxígeno disuelto (OD), conductividad, demanda química de oxígeno (DQO), demanda biológica de oxígeno (DBO), carbono orgánico total, nitritos, nitratos, nitrógeno total Kjeldahl, fenoles, fosfatos, grasa y aceites, fosforo total, tensoactivos (SAAM), fenoles, hidrocarburos totales, hidrocarburos aromáticos policíclicos, hidrocarburos disueltos dispersos, alcalinidad y acidez, dureza cálcica y total, metales y metaloides (arsénico, bario, cadmio, cinc, cromo, cobre, mercurio, níquel, plata, plomo, selenio), clorofila a y b; microbiológicos: coliformes totales, coliformes termotolerantes y E. Coli.\nc) Las mediciones en el perfil de la columna de agua deben priorizar la mayor estratificación posible (temperatura, densidad, oxígeno disuelto). La determinación de los parámetros establecidos debe realizarse en por lo menos 2 puntos de la columna de agua y complementar con puntos superficiales y de profundidad, de tal forma que se pueda describir de forma adecuada los parámetros que se estén midiendo.\nd) Los puntos de monitoreo deben corresponder a los mismos monitoreados en la caracterización ambiental, en caso de adicionar nuevos puntos se debe justificar su representatividad. Si el proyecto realiza vertimientos al mar, se deben incluir puntos adicionales de monitoreo para el seguimiento de la calidad del agua marina en áreas próximas a las descargas.\ne) A partir de los resultados de los monitoreos establecer los perfiles verticales de temperatura (termoclina), oxígeno disuelto (oxiclina) y de la salinidad (haloclina), analizando su cambio en el transcurso del proyecto.\nf) Los monitoreos de calidad de agua marina deberán realizarse simultáneamente con los monitoreos de calidad de sedimentos marinos y monitoreos hidrobiológicos.\ng) Presentar en los respectivos Informes de Cumplimiento Ambiental - ICA los reportes de laboratorio, las cadenas de custodia originales y el respectivo análisis.\nh) El análisis deberá incluir: i) la comparación con la caracterización ambiental presentada en el EIA y los monitoreos que se vayan realizando conforme el avance de las obras para determinar la tendencia de la calidad del agua marina; ii) la comparación de los resultados de los parámetros medidos con aquellos que se encuentren dentro de los criterios de calidad establecidos en el artículo 18 del Decreto 703 del 2018 y con criterios de referencia para sustancias orgánicas e inorgánicas en el agua utilizados por la Agencia para la Administración de Océanos y Atmósfera de los Estados Unidos - NOAA (https://response.restoration.noaa.gov/environmental-restoration/environmental-assessment-tools/squirt-cards.html); iii) la correlación de los resultados obtenidos en el muestreo con los parámetros de sedimentos marino y los hidrobiológicos; y iv) el análisis de las condiciones ambientales (climáticas y oceanográficas) predominantes en el momento de la realización de los monitoreos, así como la descripción de las obras constructivas que se estén ejecutando, que permitan indagar si estas tienen alguna incidencia en los resultados.\ni) Calcular y analizar para cada caracterización fisicoquímica el índice de calidad de aguas para la preservación de flora y fauna marina ICAMPFF del INVEMAR. En caso de evidenciar cambios en el tiempo de este indicador, realizar el análisis e identificar la causa y la fuente o fuentes del cambio del ICAMPFF.\nj) Los puntos donde se realice el monitoreo y la información obtenida de estos debe georreferenciarse y almacenarse conforme el modelo de almacenamiento geográfico establecido en la Resolución 2182 de 2016 del MADS, o la norma que la modifique o sustituya.","Aplica","Aplica","Aplica","N/A","Permanente"]
[]
[28,"CALIDAD DE SEDIMENTO MARINO","Monitoreos en sedimentos marinos\n\nNota: Dependiendo de la duración de la fase constructiva del proyecto, se podrá ajustar la frecuencia de monitoreo en dicha fase.",null,"Realizar monitoreos de las características fisicoquímicas de los sedimentos del área de influencia del proyecto, siguiendo las recomendaciones previstas en el Manual de Técnicas Analíticas para la Determinación de Parámetros Fisicoquímicos y Contaminantes Marinos del INVEMAR (2003) o aquellos que los modifiquen o sustituyan, dando cumplimiento a las siguientes condiciones:\n\na) Llevar a cabo i) un monitoreo en un periodo no mayor a un mes antes de iniciar las obras constructivas, [ii) mínimo un muestreo durante la construcción de la obras marítimas], iii) un monitoreo en un periodo no mayor a un mes después de finalizar las obras, y iv) un monitoreo seis meses después de la finalización de las obras. En caso de que, una vez obtenida la licencia ambiental, el proyecto demore más de 1 año en iniciar la fase constructiva del mismo, deberá realizar tres meses antes del inicio de esta fase los monitoreos de las características fisicoquímicas de los sedimentos marinos, con e fin de tener una caracterización más actualizada para poder realizar las comparaciones a las que hay a lugar.\nb) Los parámetros a determinar son: temperatura, pH, granulometría, Hidrocarburos aromáticos policíclicos, Carbono orgánico total (COT), Hidrocarburos totales, fenoles, sulfuro ácido volátil, fósforo total y nitrógeno total, grasas y aceites, metales y metaloides (arsénico, bario, cadmio, cinc, cromo, cobre, mercurio, níquel, plata, plomo, selenio), materia orgánica total. \nc) Presentar en los respectivos Informes de Cumplimiento Ambiental - ICA los reportes de laboratorio, las cadenas de custodia originales y el respectivo análisis.\nd) El análisis deberá incluir: i) la comparación con la caracterización ambiental presentada en el EIA y los monitoreos que se vayan realizando conforme el avance de las obras para determinar la tendencia de la calidad de los sedimentos marinos; ii) la comparación de los resultados de los parámetros medidos con aquellos que se encuentren dentro de los niveles de impacto potencial y probable (TEL y PEL) utilizados por la Agencia para la Administración de Océanos y Atmósfera de los Estados Unidos - NOAA (https://response.restoration.noaa.gov/environmental-restoration/environmental-assessment-tools/squirt-cards.html); iii) la correlación de los resultados obtenidos en el muestreo con los parámetros fisicoquímicos del agua marina y los hidrobiológicos; y iv) descripción de las obras constructivas que se estén ejecutando, que permitan indagar si estas tienen alguna incidencia en los resultados.\nd) Los puntos de monitoreo deben corresponder a los mismos monitoreados en la caracterización ambiental, en caso de adicionar nuevos puntos se debe justificar su representatividad. \ne) Los puntos donde se realice el monitoreo y la información obtenida de estos debe georreferenciarse y almacenarse conforme el modelo de almacenamiento geográfico establecido en la Resolución 2182 de 2016 del MADS, o la norma que la modifique o sustituya.","Aplica","Aplica","Aplica","N/A","Permanente"]
[29,"BATIMETRÍAS","Batimetrías en áreas de dragado y zonas de disposición\n\nNota 1: Ajustar la frecuencia de los monitoreo durante la construcción teniendo en cuenta el tipo de obra, su magnitud y duración.",null,"Realizar batimetrías en áreas de dragado y zonas de disposición marítima del proyecto, teniendo en cuenta una distancia adicional a los límites de las áreas de intervención, de tal forma que permita identificar si se presentan cambios en el fondo marino alrededor de estas áreas. La frecuencia de los levantamientos batimétricos se realizará: i) un muestreo en un periodo no mayor a un mes antes de iniciar las obras constructivas, [ii) muestreos mensuales durante la construcción de la obras marítimas] y iii) un muestreo en un periodo no mayor a un mes después de finalizar las actividades de dragado, que permita verificar los volúmenes de material dragados y las profundidades alcanzadas. Presentar dicha información en los Informes de Cumplimiento Ambiental - ICA, con la identificación de procesos de erosión / sedimentación, el análisis de los posibles impactos en el área de influencia y las correspondientes medidas de manejo en caso de evidenciarse efectos negativos. ","Aplica","Aplica","Aplica","N/A","Permanente"]
[30,"DRAGADO","Volúmenes de material dragado, dispuesto y/o aprovechado / reutilizado\n\nNota: En caso de que el proyecto no haya solicitado aprovechamiento / reutilización del material de dragado, eliminar el numeral iii) de la obligación.",null,"Presentar en los respectivos Informes de Cumplimiento Ambiental - ICA el acumulado de volúmenes de: i) material dragado, ii) material dispuesto en el área autorizada, iii) material aprovechado o reutilizado.","N/A","Aplica","N/A","N/A","Permanente"]
[31,"AGUAS DE ESCORRENTÍA","Manejo de aguas de escorrentía superficial\n\nNota 1: Evaluar la propuesta realizada por el proyecto en relación con el sitio donde serán entregadas las aguas de escorrentía y las obras asociadas a la descarga. En caso de que no cumplan con las condiciones establecidas en la presente obligación, deberá requerir ajuste de la medida acorde con los criterios del literal b).\n\nNota 2: No se permite la descarga directa a suelo sin ningún tipo de control en la velocidad y manejo de sedimentos, lo cual será objeto de análisis por parte del profesional evaluador.",null,"Implementar sistemas de control y manejo de escorrentía dando cumplimiento a lo siguiente:\n\na) Contar con una pendiente que favorezca su conducción a los sistemas de control y manejo de escorrentía, de tal forma que la escorrentía fluya libremente hacia ellas.\nb) De acuerdo con las características de pendiente y tipo de sistemas de control y manejo, deberá contar con disipadores de energía o cualquier otro sistema, que garantice que las aguas lluvias lleguen a una baja velocidad al sitio donde serán entregadas, el cual deberá contar con la capacidad para recibir dichas descargas (el sitio corresponderá a superficies de agua lénticas, lóticas, estructuras de almacenamiento y drenaje artificiales - canales de vías existentes o proyectados, o reservorios- y zonas inundables que eviten la generación de procesos erosivos).\nc) El agua de escorrentía recogida a través de dicho sistema deberá pasar por un sistema de remoción de sólidos antes de ser entregada y podrá contar con tratamientos adicionales, dependiendo de las características del medio por el cual se transporte.\nd) Presentar los soportes de la construcción de estos sistemas y del mantenimiento rutinario, o de entrega a terceros a través de los respectivos Informes de Cumplimiento Ambiental - ICA.","N/A","Aplica","N/A","N/A","Permanente"]
[32,"COMPRA DE AGUA","Compra de agua a terceros autorizados",null,"Desarrollar la actividad de compra de agua (uso industrial y/o consumo humano) con terceros debidamente autorizados, y presentar en los Informes de Cumplimiento Ambiental - ICA:\n\na) Copia de los permisos y/o autorizaciones ambientales vigentes de los proveedores de agua.\nb) Documento que soporte el tipo de uso del agua suministrada por el proveedor, el cual debe estar expedido por la autoridad ambiental competente.\nc) Facturas de compra del agua y/o copia de contratos de suministro de agua, que incluyan como mínimo: nombre y NIT del tercero, volúmenes de agua suministrados (uso industrial y/o consumo humano) y fecha/ periodo de compra, por cada periodo reportado.\nd) Actividades y volúmenes en las que fue empleada el agua en el proyecto, según el periodo reportado.","N/A","Aplica","N/A","N/A","Permanente"]
[33,"ENTREGA DE AGUAS RESIDUALES A TERCEROS","Entrega de agua residual doméstica y no domésticas a gestor externo autorizado",null,"Realizar la entrega de agua residual doméstica y no doméstica (no incluye las de producción) a un gestor externo autorizado, y presentar en los respectivos Informes de Cumplimiento Ambiental - ICA:\n\na) Certificados de recolección y transporte emitido por la empresa respectiva, que indiquen: nombre de empresa que recolectó y transportó las aguas residuales, fechas de entrega, volúmenes de entrega, tipo de agua residual, sitio de recolección y destino de las aguas. \nb) Actas de recibo, tratamiento y disposición final de las aguas residuales, que incluya: empresa que entrega, fecha, volumen, origen y tipo de agua residual.\nc) Copia de los permisos y/o licencias vigentes de las respectivas empresas que prestarán el servicio de recolección, transporte y disposición final de las aguas residuales.","N/A","Aplica","N/A","N/A","Permanente"]
[34,"GESTIÓN INTEGRAL DE AGUAS","Reporte semanal de los volúmenes y caudales de agua residual gestionada según el permiso respectivo o la actividad autorizada",null,"Llevar un registro (base de datos) mensual y acumulado de los volúmenes y caudales de las aguas gestionadas [Espacio para indicar la actividad autorizada: compra de agua, entrega de aguas residuales a terceros, etc.], lo cual se soportará mediante un balance de masa, en términos de volumen, que se presentará en cada Informe de Cumplimiento Ambiental - ICA, según el periodo reportado.","N/A","Aplica","N/A","N/A","Permanente"]
[35,"RECURSO PESQUERO","Manejo del recurso pesquero\n\nNota: En caso de que el proyecto cuente con caracterización de la actividad pesquera, se deberá ajustar el subliteral i) del literal a), en el sentido de disminuir el tiempo de monitoreo previo al inicio de la actividad de dragado (1 mes).",null,"Realizar el monitoreo de la actividad pesquera  (artesanal e industrial) en las zonas de desembarque del área de influencia del proyecto, considerando los siguientes aspectos:\n\na) Llevar a cabo i) monitoreos diarios durante un mes antes de iniciar las actividades de dragado, ii) monitoreos cada dos meses de al menos 15 días durante las actividades de dragado y iii) monitoreos diarios durante dos meses posteriores a las actividades de dragado, de tal manera que se verifique la efectividad de las medidas de manejo.\nb) Identificar en los monitoreos la dinámica de la pesca en el área de influencia del proyecto, involucrando como mínimo:\n - Captura por unidad de esfuerzo.\n - Número de pescadores activos dependientes de la pesca.\n - Métodos de captura o artes de pesca usados y sus especificaciones técnicas, incluyendo los costos de inversión y de operación para cada arte y faena.\n - Número y tipo de embarcaciones empleadas.\n - Rutas de navegación.\n - Especies capturadas por tipo de arte (incluyendo una estimación de la captura por especie y arte para una faena de pesca).\n - Esfuerzo de pesca aplicado por arte (duración de la faena).\n - Tallas promedio de captura por especie y por arte.\n - Sitios de desembarco.\n - Estacionalidad de las capturas.\n - Precios de venta por especie.\n - Información relativa a las alternativas económicas de los pescadores diferentes a la pesca.\n - Organizaciones o cooperativas a las que pertenecen los pescadores.\nc) Tener como referente las metodologías oficiales de la Autoridad Nacional de Acuicultura y Pesca - AUNAP para colectar y analizar la información.\nd) El levantamiento de dicha información, puede ser complementada con aquella disponible en las bases de datos del Servicio Estadístico Pesquero Colombiano – SEPEC de la Autoridad Nacional de Acuicultura y Pesca - AUNAP, DIMAR, Ministerio de Agricultura y Desarrollo Rural, Instituto Humboldt, Corporaciones Ambientales Regionales, INVEMAR, entre otras.\ne) La información deberá presentarse de manera acumulada en los respectivos Informes de Cumplimiento Ambiental -ICA, con el análisis de tendencia, comparando los resultados del periodo reportado con los obtenidos en los periodos previos desde la caracterización ambiental.","N/A","Aplica ","Aplica ","N/A","Permanente"]
[36,"CONSTRUCCIÓN Y/O ADECUACIÓN DE VÍAS DE APOYO AL PROYECTO","Gestión de autorizaciones y/o permisos para realizar las obras de construcción y/o adecuación de vías",null,"Anexar, previo al inicio de la fase constructiva del proyecto mediante oficio radicado a esta Autoridad, las autorizaciones y/o permisos necesarios para realizar las obras de construcción y/o adecuación de las vías que servirán de apoyo al proyecto.","Aplica","N/A","N/A","N/A","Temporal"]
[37,"CONSTRUCCIÓN Y/O ADECUACIÓN DE VÍAS DE APOYO AL PROYECTO","Reporte de las actividades de  mantenimiento, rehabilitación y/o mejoramiento",null,"Remitir en los Informes de Cumplimiento Ambiental - ICA, un informe en el que se especifique y reporten las actividades de construcción y/o adecuación realizadas sobre las vías que servirán de apoyo al proyecto, y sus zonas aledañas incluidas en el derecho de vía - DDV, para cada periodo reportado, incluyendo los soportes técnicos y registros fílmicos y/o fotográficos en los que se evidencie fecha y coordenadas. ","N/A","Aplica","N/A","N/A","Permanente"]
[38,"CONSTRUCCIÓN Y/O ADECUACIÓN DE VÍAS DE APOYO AL PROYECTO","Informe del estado de las vías de apoyo al proyecto, al finalizar la fase constructiva del proyecto",null,"Al finalizar la fase constructiva del proyecto, presentar en el respectivo Informe de Cumplimiento Ambiental - ICA, un informe que incluya el estado final de las vías que sirvieron de apoyo al proyecto, y sus zonas aledañas incluidas en el derecho de vía - DDV, garantizando que las mismas sean entregadas en iguales o mejores condiciones. Incluir en dicho informe un registro fílmico y/o fotográfico en el que se evidencie fecha y coordenadas. ","N/A","Aplica","N/A","N/A","Temporal"]
[39,"MATERIALES DE CONSTRUCCIÓN","Adquisición de materiales de construcción a través de terceros",null,"Para el desarrollo de las actividades del proyecto, realizar la adquisición de materiales de construcción con terceros que cuenten con los correspondientes permisos o autorizaciones ante la autoridad minera y ambiental competente, y reportar en los respectivos Informes de Cumplimiento Ambiental - ICA lo siguiente:\n\na)  Copias de los títulos mineros y licencias y/o permisos ambientales vigentes para el periodo reportado de las empresas proveedoras de materiales de construcción utilizados durante el periodo. En caso de cambio de proveedores diferentes a los reportados en el EIA y/o modificación o renovación de las licencias y/o permisos ambientales de las empresas proveedoras, presentar los soportes correspondientes.\nb) Las certificaciones/facturas de compra de material en las que se discrimine la fuente u origen, tipo de material, cantidad adquirida (expresada en unidades de volumen o masa) y fecha o periodo de compra.\nc) Reporte en el que se evidencie el uso/destino del material, discriminando las cantidades (unidades de volumen o masa).","N/A","Aplica","N/A","N/A","Permanente"]
[40,"ALMACENAMIENTO DE COMBUSTIBLES Y PRODUCTOS QUÍMICOS","Características de los sitios de almacenamiento y manejo de combustible y productos químicos",null,"Instalar en los sitios donde se almacene, manipule y/o utilice crudo, aceites, combustibles, productos químicos, residuos aceitosos u otro material potencialmente contaminante, los elementos y/o la infraestructura necesaria que garantice la contención en caso de derrames y la no contaminación del suelo, de acuerdo al Título 6, Parte 2, Libro 2 del Decreto 1076 de 2015 y demás normativa vigente en la materia, tales como:\n\na) Diques de contención con base y muros impermeabilizados que permitan contener como mínimo el 110% del volumen almacenado.\nb) Sistema de cunetas perimetrales, que descolen en cajas de inspección o tanques ciegos para su contención, recolección y posterior tratamiento como residuo peligroso.\nc) Condiciones óptimas o sistemas que permitan la ventilación e iluminación.\nd) Sistemas de prevención y control de incendios.\ne) Kit antiderrames.\nf) Señalización.\ng) Hojas de seguridad de los productos químicos almacenados con la matriz de compatibilidad.","N/A","Aplica","N/A","N/A","Permanente"]
[41,"ALMACENAMIENTO DE MATERIALES DE CONSTRUCCIÓN","Características de los sitios de almacenamiento de materiales de construcción",null,"El almacenamiento de materiales de construcción cumplirá con las siguientes condiciones:\n\na) Ubicarse en áreas aptas de acuerdo con la zonificación de manejo ambiental establecida para el proyecto.\nb) Ubicarse en una zona libre, plana en lo posible y de fácil acceso.\nc) Realizar el descapote del área previo al almacenamiento del material.\nd) Implementar medidas de retención de sedimentos en la zona de acopio, que garanticen la no afectación de los cuerpos hídricos cercanos.\ne) Todo material de construcción acopiado a cielo abierto dentro de los frentes de obra y que no pueda ser utilizado durante la jornada laboral, será cubierto y señalizado.","N/A","Aplica","N/A","N/A","Permanente"]
[42,"RESIDUOS","Registro de residuos generados, aprovechados, tratados y/o dispuestos (Base de datos)",null,"Llevar un registro (base de datos) mensual acumulada de la cantidad de residuos sólidos convencionales (aprovechables y no aprovechables), residuos peligrosos (sólidos y líquidos), residuos posconsumo y residuos de construcción y demolición (RCD) generados, aprovechados, tratados y/o dispuestos, que indique como mínimo: tipo de residuo, cantidad de residuos generados, cantidad de residuos aprovechados, tratados y/o dispuestos por parte de terceros o del titular de la licencia, tipo de aprovechamiento, tratamiento y disposición. Presentar dicho registro, en los respectivos Informes de Cumplimiento Ambiental - ICA a través del formato \"Plantilla de Seguimiento a la Gestión de Residuos\".","N/A","Aplica","N/A","N/A","Permanente"]
[43,"RESIDUOS","Características de los sitios de almacenamiento temporal de residuos",null,"Contar con sitios de almacenamiento temporal de residuos sólidos convencionales (aprovechables y no aprovechables) y de residuos peligrosos (líquidos y sólidos), en cumplimiento del Decreto 1077 de 2015 (Compila Decreto 2981 de 2013 del Ministerio de Vivienda, Ciudad y Territorio) y del Reglamento Técnico del Sector de Agua Potable y Saneamiento Básico - RAS, los cuales deberán ser independientes y contar con:\n\na) Base impermeabilizada para evitar una posible contaminación del suelo.\nb) Cubierta para evitar el contacto con el agua.\nc) Sistema de diques y cunetas perimetrales para los residuos líquidos.\nd) Condiciones óptimas o sistemas que permitan la ventilación e iluminación.\ne) Sistemas de prevención y control de incendios.\nf) Kit antiderrames (para el almacenamiento de residuos líquidos peligrosos)\ng) Señalización.\nh) Los recipientes empleados para el almacenamiento de los residuos deberán ser identificados por tipo de residuo y permitir su fácil limpieza.","N/A","Aplica","N/A","N/A","Permanente"]
[44,"RESIDUOS","Manejo de residuos sólidos convencionales (aprovechables y no aprovechables) a través de terceros autorizados",null,"Realizar el manejo de residuos sólidos convencionales (aprovechables y no aprovechables) a través de terceros debidamente autorizados para su transporte, almacenamiento, aprovechamiento, tratamiento y/o disposición final, y presentar en los respectivos Informes de Cumplimiento Ambiental – ICA:\n\na) Copia de las autorizaciones, permisos y/o licencias de las respectivas empresas encargadas de la gestión de los residuos.\nb) Actas de entrega para el transporte, almacenamiento, aprovechamiento, tratamiento y/o disposición final, que indiquen: nombre de empresa, fecha de entrega, sitio de entrega, tipo de residuos, cantidad, tratamiento y/o aprovechamiento a implementar (para el caso de residuos aprovechables).\nc) Relacionar los volúmenes generados de residuos tanto aprovechables como no aprovechables en  el registro (base de datos) solicitada por esta Autoridad.","N/A","Aplica","N/A","N/A","Permanente"]
[45,"RESIDUOS","Manejo de residuos peligrosos (líquidos y sólidos) a través de terceros autorizados",null,"Realizar el manejo de residuos peligrosos (líquidos y sólidos) a través de terceros debidamente autorizados para su transporte, almacenamiento, aprovechamiento, tratamiento y/o disposición final, y presentar en los respectivos Informes de Cumplimiento Ambiental – ICA:\n\na) Copia de las autorizaciones, permisos y/o licencias de las respectivas empresas encargadas de la gestión de los residuos.\nb) Actas de entrega para el transporte, almacenamiento, aprovechamiento, tratamiento y/o disposición final, que indiquen: nombre de empresa, fecha de entrega, sitio de entrega, tipo de residuos y cantidad.\nc) Certificados de tratamiento, aprovechamiento y/o disposición final, que indiquen: nombre de empresa que gestionó los residuos, nombre de empresa que entregó los residuos, fechas de recepción y gestión de residuos, tipo de residuo, cantidad, tipo de tratamiento realizado  y/o alternativa de disposición final y sitio donde se gestionó el residuo.\nd) Relacionar los volúmenes generados, aprovechados, tratados y/o dispuestos en el registro (base de datos) solicitada por esta Autoridad.","N/A","Aplica","N/A","N/A","Permanente"]
[46,"RESIDUOS","Registro RESPEL para  cantidad igual o mayor a 10 kg/mes de residuos sólidos peligrosos",null,"Para cantidades iguales o superiores a 10 kg/mes de residuos sólidos peligrosos, dar cumplimiento a lo establecido en la Resolución 1362 del 2007 del Ministerio de Ambiente, Vivienda y Desarrollo Territorial, o aquella que la modifique, derogue o sustituya, por la cual se establecen los requisitos y el procedimiento para el Registro de Generadores de Residuos o Desechos Peligrosos, a que hacen referencia los artículos 2.2.6.1.6.1 y 2.2.6.1.6.2 del Decreto 1076 de 2015. ","N/A","Aplica","N/A","N/A","Permanente"]
[47,"RESIDUOS","Almacenamiento temporal de los residuos peligrosos y especiales",null,"De conformidad con el establecido en el artículo 2.2.6.1.3.1. del Título 6, Parte 2, Libro 2 del Decreto 1076 de 2015 o aquella que la modifique, derogue o sustituya, no se podrá realizar el almacenamiento temporal de residuos peligrosos por más de doce (12) meses; en los casos debidamente sustentados y justificados, se podrá solicitar ante esta autoridad, una extensión de dicho periodo. ","N/A","Aplica","N/A","N/A","Permanente"]
[48,"DESMANTELAMIENTO Y ABANDONO","Entrega del estudio del que trata el artículo 2.2.2.3.9.2 del Decreto 1076 del 26 de 2015.",null,"Presentar mediante oficio dirigido a la Subdirección de Seguimiento de Licencias Ambientales por lo menos con tres (3) meses de anticipación al inicio del desmantelamiento y abandono del proyecto, el estudio del que trata el artículo 2.2.2.3.9.2 del Decreto 1076 del 2015, o la norma que lo modifique y/o sustituya.","N/A","Aplica","N/A","N/A","Temporal"]
[49,"DESMANTELAMIENTO Y ABANDONO","Desmonte y cierre de instalaciones temporales y retiro de equipos, materiales y escombros",null,"Al finalizar la fase constructiva, realizar el desmonte y cierre de las instalaciones temporales como campamentos, plantas de triturado, concreto, mezcla asfáltica, fuentes de material y demás áreas utilizadas para la construcción del proyecto, así como el retiro de los equipos de construcción, materiales sobrantes y escombros. Documentar y reportar las medidas y acciones implementadas en los Informes de Cumplimiento Ambiental - ICA.","N/A","Aplica","N/A","N/A","Temporal"]
[50,"COMPENSACIONES DEL MEDIO BIÓTICO","No generar impactos adicionales en el desarrollo de las actividades de compensación",null,"En ningún caso las actividades de compensación podrán generar impactos adicionales a los ya identificados por el proyecto; en este sentido, para la implementación de las actividades de compensación no se podrá hacer uso y/o aprovechamiento de recursos naturales adicionales a los ya aprobados para las actividades en el presente acto administrativo.","N/A","Aplica","Aplica","N/A","Permanente"]
[51,"COMPENSACIONES DEL MEDIO BIÓTICO","Inicio de actividades aprobadas de compensación",null,"Dar inicio a las actividades de compensación en un periodo máximo de 6 meses una vez iniciada la actividad que da origen al impacto y a la respectiva compensación, incluyendo las consideraciones de adicionalidad y/u obligaciones específicas del acto administrativo, de conformidad con el articulo 3 de la Resolución 256 del 22 de febrero de 2018, o aquella norma que la modifique, derogue o sustituya, e informar a esta autoridad mediante oficio dirigido a la Subdirección de Seguimiento de Licencias Ambientales el inicio de las  actividades de compensación.","N/A","Aplica","Aplica","N/A","Temporal"]
[52,"COMPENSACIONES DEL MEDIO BIÓTICO","Presentación del cumplimiento de las formas de implementación\n\nNota 1: Este parágrafo aplica cuando el proyecto tenga formas agrupadas de las obligaciones. Incluir parágrafo en la obligación anterior \"Inicio de actividades aprobadas de compensación\".\nNota 2: En caso de que solo se agrupen obligaciones de compensación, eliminar las obligaciones de inversión de 1% de la obligación.\nNota 3: En caso de que el proyecto agrupe obligaciones de compensaciones e inversión del 1%, se deberá incluir este parágrafo una única vez (verificar que no esté duplicada con las obligaciones de inversión de 1%).",null,"Parágrafo 1: El cumplimiento de objetivos y obligaciones asociadas a las formas agrupadas de implementación de los planes de compensación del medio biótico e inversión forzosa de no menos del 1% a las que se refiere el Manual de Compensaciones del Componente Biótico y el Articulo  2.2.9.3.1.12. del Decreto 1076 de 2015, o aquella norma que la modifique, derogue o sustituya, se presentarán de manera independiente en los Informes de Cumplimiento Ambiental de cada proyecto y de cada obligación correspondiente, bajo el modelo de almacenamiento geográfico establecido en la Resolución 2182 de 2016 del MADS, o la que la modifique, derogue o sustituya."," -"," -"," -"," -"," -"]
[53,"COMPENSACIONES DEL MEDIO BIÓTICO","No superposiciones entre áreas de compensación e inversión del 1%\n\nNota 1: Incluir parágrafo en la obligación anterior \"Inicio de actividades aprobadas de compensación\".",null,"Parágrafo 2: No se deberán presentar superposiciones entre las áreas destinadas para el cumplimiento de las obligaciones de compensación o de inversión forzosa de no menos del 1%, así como tampoco con áreas destinadas al cumplimiento de obligaciones impuestas a cualquier otro expediente, máxime cuando se trate de la misma actividad propuesta para el cumplimiento de la obligación."," -"," -"," -"," -"," -"]
[54,"COMPENSACIONES DEL MEDIO BIÓTICO","Presentación de cronograma de áreas definitivas de compensación",null,"Entregar mediante oficio dirigido a la Subdirección de Seguimiento de Licencias Ambientales - SSLA, el cronograma con las fechas de presentación de las áreas definitivas de compensación a esta Autoridad para su aprobación, previo al inicio de las actividades que generan el impacto, contemplando la condición del inicio de la implementación de las acciones de compensación en un máximo de seis meses después del inicio de las actividades que generan el impacto. Cualquier modificación deberá ser informada y autorizada por la autoridad, quien se pronunciará sobre la pertinencia de las modificaciones solicitadas.","N/A","Aplica","N/A","N/A","Puntual"]
[55,"COMPENSACIONES DEL MEDIO BIÓTICO","Informar ajustes de área a compensar en el plan de compensación",null,"En caso de identificar que, una vez finalizada la actividad que genera la compensación, se incurre en una compensación de menor o mayor área a la aprobada mediante el presente acto administrativo, el titular de la licencia informará a esta autoridad los ajustes al plan de compensación para que en el marco del seguimiento ambiental sea objeto de análisis y aprobación.","N/A","Aplica","Aplica","N/A","Permanente"]
[56,"COMPENSACIONES DEL MEDIO BIÓTICO","Informar ajustes de localización de áreas de compensación",null,"Las áreas definitivas para el desarrollo de las actividades aprobadas de compensación deberán estar inmersas en las áreas preliminares aprobadas mediante el presente acto administrativo, en caso contrario, deberán ser debidamente justificadas garantizando la adicionalidad y las mismas condiciones de modo, tiempo y lugar que fueron objeto de aprobación, con el fin de ser presentadas a esta autoridad para que en el marco del seguimiento ambiental sea objeto de análisis y aprobación de conformidad con lo dispuesto en el articulo 4 de la Resolución 256 del 22 de febrero de 2018 o aquella norma que la modifique, derogue o sustituya.","N/A","Aplica","Aplica","N/A","Permanente"]
[57,"COMPENSACIONES DEL MEDIO BIÓTICO","Cambio en las acciones, modos, mecanismos y/o formas de compensación aprobada",null,"En caso de cambio en las acciones, sitios, modos, mecanismos y/o formas de compensación aprobadas, presentarlos a esta autoridad para que en el marco del seguimiento ambiental sea objeto de análisis y aprobación, de conformidad con lo dispuesto en el articulo 4 de la Resolución 256 del 22 de febrero de 2018 o aquella norma que la modifique, derogue o sustituya.","N/A","Aplica","Aplica","N/A","Permanente"]
[58,"COMPENSACIONES DEL MEDIO BIÓTICO","Presentación del informe de avance del plan de compensación",null,"El titular de la licencia ambiental, deberá presentar en los respectivos Informes de Cumplimiento Ambiental - ICA, un informe de avance, el cual debe contener como mínimo: \n\na) Comparación de la caracterización detallada de los polígonos elegidos para llevar a cabo las acciones de compensación del medio biótico, respecto a los resultados obtenidos durante el seguimiento y monitoreo propuesto, para cada uno de los indicadores y realizar el análisis de efectividad respectivo, así como la propuesta de ajuste en caso de resultados desfavorables. \nb) Información geográfica del área compensada a la fecha de presentación del informe de avance, incluyendo la respectiva discriminación por acción de compensación, y porcentaje de avance con respecto al área total a compensar. \nc) Estado de los ecosistemas del área de compensación propuestas para las acciones de restauración, preservación y/o uso sostenible, las cuales deberán ser coherentes con las necesidades del territorio frente a procesos de conservación y restauración ecológica, así como los instrumentos de planificación y ordenamiento territorial.\nd) En caso de proponerse acciones de restauración ecológica bajo el enfoque de restauración, se debe presentar un análisis, a través de los indicadores propuestos, que permitan establecer la trayectoria sucesional del área intervenida y si esta es acorde a la referencia elegida. De ser necesario, se debe proponer el ajuste de las medidas para ser implementadas en el siguiente periodo.\ne) Descripción de las actividades ejecutadas, que incluya los soportes y registro fotográfico que evidencien cada una de las actividades propuestas en la fase de implementación, seguimiento y monitoreo para las acciones aprobadas, señalando: i) el área efectivamente intervenida durante el periodo y ii) el progreso en la implementación del plan de compensación por ecosistema.\nf) Porcentaje de avance de acuerdo al cronograma.\n\nParágrafo: La compensación se dará por cumplida una vez se logre el cumplimiento de los objetivos y metas propuestos por la sociedad en términos ecológicos, biológicos y/o ecosistémicos. ","N/A","Aplica","Aplica","N/A","Permanente"]
[59,"COMPENSACIONES DEL MEDIO BIÓTICO","No pérdida neta de biodiversidad con respecto a ecosistema de referencia",null,"El titular de la licencia ambiental evidenciará y cuantificará la no pérdida neta de biodiversidad de la que trata el \"Manual de compensaciones del componente biótico\", utilizando como ecosistema de referencia las áreas de afectación que generan las obligaciones de compensación, para lo cual deberá presentar en el primer Informe de Cumplimiento Ambiental - ICA de la fase constructiva, con base en los datos de línea base del estudio de impacto ambiental: \n\na) El cálculo de los indicadores contenidos en el documento \"Indicadores de impacto para el seguimiento de las obligaciones de compensación y planes de inversión del 1%\" para los ecosistemas de referencia. \nb) Las metas actualizadas del plan de compensación en términos de composición, estructura y función de las acciones a implementar, de acuerdo con los resultados de los atributos ecológicos obtenidos de la aplicación de los indicadores en los ecosistemas de referencia.\n\nEn los siguientes Informes de Cumplimiento Ambiental - ICA se deberá presentar el cálculo de los indicadores de impacto para las áreas de compensación, con el fin de establecer el cumplimiento de las metas en términos de la efectividad de las medidas de compensación asociadas a la no pérdida neta de biodiversidad. \n\nParágrafo: En caso de cambios en las áreas u acciones de compensación, las metas deberán ser actualizadas de acuerdo con el resultados de los indicadores de impacto para la composición, estructura y función de los ecosistemas de referencia.","N/A","Aplica","Aplica","N/A","Permanente"]
[60,"COMPENSACIONES DEL MEDIO BIÓTICO","Exclusividad de las acciones de compensación",null,"Al titular de la licencia en ningún caso le será posible atribuir el cumplimiento de los objetivos de compensación a un tercero.","N/A","Aplica","Aplica","N/A","Permanente"]
[61,"INVERSIÓN DEL 1%","Informar inicio del uso del recurso hídrico autorizado en el permiso de concesión de aguas",null,"Informar a la ANLA por medio de oficio dirigido a la Subdirección de Seguimiento de Licencias Ambientales, la fecha de inicio del uso del recurso hídrico autorizado en el permiso de concesión de aguas y si a esa fecha se han ejecutado alguna o algunas de los ítems (actividades) enmarcados en el artículo 321 de la ley 1955 del 2019, o aquella que la modifique, derogue o sustituya.","N/A","Aplica","N/A","N/A","Temporal"]
[62,"INVERSIÓN DEL 1%","Presentar las inversiones base de liquidación incurridas en el año inmediatamente anterior",null,"Presentar dentro de los tres meses siguientes a cada vigencia fiscal (plazo máximo a 31 de marzo), certificado de revisor fiscal o contador público, informando las inversiones base de liquidación incurridas en el año inmediatamente anterior una vez se haya iniciado el uso del recurso hídrico autorizado en el permiso de concesión de aguas y la ejecución de alguna o algunas de los ítems (actividades) enmarcados en el artículo 321 de la ley 1955 del 2019, o la ley que la modifique, derogue o sustituya, para ajustar el monto base de liquidación de la inversión forzosa de no menos el 1%, con los montos efectivamente ejecutados y registrados en los libros de contabilidad del proyecto. La certificación debe incluir los costos, gastos y valores capitalizados, y deberá ser detallada de conformidad a los ítems establecidos en el artículo 321 de la Ley 1955 de 2019.\n\nSi las inversiones se efectuaron en dólares informar la TRM utilizada para la conversión a pesos COP para cada año de ejecución del proyecto.","N/A","Aplica","Aplica","N/A","Permanente"]
[63,"INVERSIÓN DEL 1%","Inicio del plan de inversión del 1%",null,"Iniciar el plan de inversión forzosa de no menos del 1% aprobado en un periodo de tiempo no superior de seis (6) meses posteriores a la presentación del primer certificado de revisor fiscal o contador público.","N/A","Aplica","Aplica","N/A","Temporal"]
[64,"INVERSIÓN DEL 1%","Actualización de la liquidación de las inversiones\n\nNota: Incluir parágrafo en la obligación anterior \"Inicio del plan de inversión del 1%\".",null,"Parágrafo: En caso de no ejecutar las inversiones del cronograma por un tiempo superior a un año fiscal, presentar por medio de oficio dirigido a la Subdirección de Seguimiento de Licencias Ambientales de esta autoridad, la actualización del valor de la liquidación de la inversión, de acuerdo con la fórmula señalada en el parágrafo 1 del artículo 321 de la ley 1955 del 25 de mayo de 2019, con plazo máximo de 31 de marzo del año siguiente."," -"," -"," -"," -"," -"]
[65,"INVERSIÓN DEL 1%","Presentar informes de avance del Plan de inversión forzosa de no menos del 1%\n\nNota: Ajustar obligación en caso de que no se haya presentado cronograma de ejecución.",null,"Presentar en los respectivos Informes de Cumplimiento Ambiental - ICA informes de avance de las actividades, los cuales deben incluir como mínimo lo siguiente:\n\na) Descripción de las acciones y actividades desarrolladas respecto al plan de inversión forzosa del 1%, de acuerdo con las líneas de destinación aprobadas.\nb) Avance en la ejecución de las actividades conforme con el cronograma para las acciones y actividades de las líneas de destinación aprobadas.\nc) Descripción del avance detallado del proyecto, indicando cantidades y valores efectivamente ejecutados anexando los soportes técnicos y financieros (factura, contrato o documento equivalente).\nd) Modelo de almacenamiento geográfico según lo establecido en la Resolución 2182 de 2016 de Minambiente, o la que la modifique, derogue o sustituya.","N/A","Aplica","Aplica","N/A","Permanente"]
[66,"INVERSIÓN DEL 1%","Presentación del cumplimiento de las formas de implementación\n\nNota: Este parágrafo aplica cuando el proyecto tenga formas agrupadas de las obligaciones. Incluir parágrafo en la obligación \"Presentar informes de avance\".",null,"Parágrafo: El cumplimiento de objetivos y obligaciones asociadas a las formas agrupadas de implementación de los planes de compensación del medio biótico e inversión de no menos del 1% a las que se refiere el Manual de Compensaciones del Componente Biótico y el Articulo  2.2.9.3.1.12. del Decreto 1076 de 2015, o aquella norma que la modifique, derogue o sustituya, se presentarán de manera independiente en los Informes de Cumplimiento Ambiental de cada proyecto y de cada obligación correspondiente, incluyendo la información asociada al modelo de almacenamiento geográfico establecido en la Resolución 2182 de 2016 del MADS, o la que la modifique, derogue o sustituya."," -"," -"," -"," -"," -"]
[67,"INVERSIÓN DEL 1%","Seguimiento a la flora en ecosistemas terrestres en áreas de inversión de menos del 1% \n\nNota: Aplica cuando dentro de las líneas de inversión se incluyan acciones de conservación.",null,"Realizar los monitoreos semestrales de flora en áreas de inversión de no menos del 1% (acciones de conservación) para evidenciar el cumplimiento de la línea de inversión propuesta dependiendo de las metas e indicadores establecidos en el plan de seguimiento y monitoreo. Para ello, se puede emplear parcelas permanentes con la forma y tamaño apropiado que sea representativo para el área y ecosistema terrestre sujeto a monitoreo, o cualquier otra metodología que esté debidamente justificada. Los datos obtenidos deben brindar información que permita analizar la estructura, composición y riqueza, entre otras variables. El tiempo de implementación de los monitoreos deberá realizarse hasta que se demuestre el cumplimiento de la meta propuesta de la obligación. La información deberá presentarse de manera acumulada en los respectivos Informes de Cumplimiento Ambiental -ICA, con el análisis de tendencia, comparando los resultados del periodo reportado con los obtenidos en los periodos previos desde la caracterización ambiental.","N/A","Aplica","Aplica","N/A","Permanente"]
[68,"PLAN DE CONTINGENCIA","Actualización del Plan de Contingencia",null,"Presentar en los Informes de Cumplimiento Ambiental – ICA, la revisión y/o complemento del Plan de Contingencia siguiendo los lineamientos descritos en el Decreto 1081 del 2015 adicionado por el Decreto 2157 de 2017 en el Artículo 2.3.1.5.2.1.1, Numeral 3.1.2, Literal f y el Decreto 1076 de 2015 en el Artículo 2.2.2.3.5.1, Numeral 9 y el Artículo 2.2.2.3.9.3 o aquellos que los modifiquen o sustituyan y en caso de no presentarse un ajuste en el documento, indicar las razones por las cuales no se realiza:\n\na. Ante nuevas exigencias o cambios en la legislación nacional referente al plan de contingencia, en los plazos establecidos en las mismas.\nb. Cuando se introduzcan cambios en los procesos que aumenten la probabilidad de ocurrencia de una contingencia ambiental y/o consecuencia de la materialización del riesgo.  \nc. Ante cambios en las valoraciones de los escenarios de riesgo presentes en el proyecto.\nd. Ante la ocurrencia de una contingencia que evidencie la necesidad de ajuste del plan.\ne. Ante evidencias producto del proceso de seguimiento y control efectuado por la Autoridad Ambiental Competente.","N/A","Aplica","N/A","N/A","Permanente"]
[69,"PLAN DE CONTINGENCIA","Reporte de eventos",null,"Reportar los eventos de contingencia a través de la plataforma VITAL de conformidad con lo establecido en el artículo 2do de la Resolución 1767 de 2016 o aquellos que los modifiquen o sustituyan, ya sea que los eventos sean generados del proyecto hacia el medio o del medio hacia el proyecto, presentando en cada uno de los avances (reportes parciales, de recuperación ambiental y final, según corresponda) las medidas, monitoreos, protocolos y/o acciones ejecutadas en el marco de la atención.","N/A","Aplica","N/A","N/A","Temporal"]
[70,"PLAN DE CONTINGENCIA","Soportes del monitoreo del riesgo ",null,"Presentar en los Informes de Cumplimiento Ambiental – ICA, los resultados, el análisis y conclusiones de los monitoreos del riesgo asociados al seguimiento de los eventos de origen natural, socio natural y operacional, en donde se involucren los parámetros y frecuencia definidos, así como la articulación con entidades oficiales (SGC, IDEAM, entre otros) y de acuerdo con los resultados, complementar la valoración del riesgo, según corresponda. En caso de no presentar resultados de los monitoreos del riesgo, remitir las razones y soportarlo con las evidencias correspondientes a través de oficios, informes, actas, registros fotográficos, entre otros.","N/A","Aplica","N/A","N/A","Permanente"]
[71,"PLAN DE CONTINGENCIA","Monitoreo del riesgo después de eventos de contingencia",null,"Implementar las medidas de monitoreo asociado a las actividades de atención y seguimiento de los eventos de contingencia que sean necesarias, con el objeto de identificar cambios o afectaciones sobre los medios abiótico, biótico y socioeconómico. ","N/A","Aplica","N/A","N/A","Temporal"]
[72,"PLAN DE CONTINGENCIA","Soportes de ejecución medidas de reducción del riesgo",null,"Presentar en los Informes de Cumplimiento Ambiental – ICA, los soportes de la ejecución de las actividades definidas para las intervenciones correctivas y prospectivas de las medidas de reducción del riesgo. En caso de no presentarse, remitir las razones y soportarlo con evidencias correspondientes a través de informes, cronogramas, actas, registros fotográficos, entre otros. ","N/A","Aplica","N/A","N/A","Permanente"]
[73,"PLAN DE CONTINGENCIA","Capacitación, divulgaciones, socialización, simulaciones y simulacros ",null,"Presentar en los Informes de Cumplimiento Ambiental – ICA, los soportes de las capacitaciones dirigidas al personal del proyecto y las divulgaciones, socializaciones, simulaciones y simulacros sobre el plan de contingencia involucrando las entidades de los Consejos Municipales de Gestión de Riesgo de Desastres (CMGRD) y los Consejos Departamentales de Gestión de Riesgo de Desastres (CDGRD) y las comunidades del área de influencia, según corresponda. En caso de no presentarse algunos de los convocados, remitir las razones y soportarlo con las evidencias correspondientes a través de oficios, informes, actas, registros fotográficos, entre otros.","N/A","Aplica","N/A","N/A","Permanente"]
[74,"GESTIÓN SOCIAL","Información sobre las  competencias de las entidades con funciones de control y seguimiento del proyecto",null,"El titular de la Licencia Ambiental comunicará como mínimo una vez al año a través de canales idóneos a las autoridades municipales, comunidades y demás grupos de interés presentes en el área de Influencia a partir de la notificación del presente acto administrativo: i) los datos del proyecto, obra  o actividad, acto administrativo que otorga licencia para el desarrollo del proyecto, especificando las actividades que autoriza, datos de contacto; ii) las entidades ​que ejercen funciones de control y seguimiento sobre el proyecto, obra o actividad y sus competencias, tanto en temas ambientales como como administrativos. Se deberán presentar las evidencias del cumplimiento de esta obligación de manera anual en los Informes de Cumplimiento Ambiental - ICA.","N/A","Aplica","Aplica","N/A","Permanente"]
[75,"GESTIÓN SOCIAL","Informar a contratistas y personal del proyecto sobre las obligaciones, prohibiciones y medidas de control de la Resolución que otorga Licencia Ambiental para el proyecto.",null,"Previo al inicio de cada fase del proyecto, informar a todos sus contratistas y a todo el personal del proyecto sobre las obligaciones, prohibiciones y medidas de control de la presente resolución, el Estudio de Impacto Ambiental, el Plan de Manejo Ambiental y la normativa vigente, y exigir el estricto cumplimiento de las mismas. Presentar en los Informes de Cumplimiento Ambiental - ICA, los soportes que evidencien las actividades de información adelantadas, en los que deberá quedar explícito el contenido de la información brindada al personal del proyecto, y demás soportes correspondientes. Lo anterior sin perjuicio a lo establecido en la medidas de manejo ambiental del PMA aprobado.","N/A","Aplica","Aplica","N/A","Permanente"]
[76,"GESTIÓN SOCIAL","Dar a conocer la presente resolución y las obras y/o actividades que en ella se autorizan a las autoridades municipales, comunidades y demás grupos de interés presentes  en el área de influencia del proyecto.",null,"Previo al inicio de cada una de las fases del proyecto el titular de la licencia ambiental deberá realizar reuniones con cada una de las comunidades del área de influencia del proyecto, garantizando la participación de las organizaciones de la sociedad civil, con el fin de dar a conocer la presente resolución, las obras que en ella se autorizan, los principales impactos, medidas de manejo y de seguimiento y monitoreo y resolver las dudas que se puedan presentar al respecto; de igual manera, se deberán realizar reuniones en los casos de autoridades locales y dignatarios de las JAC que asuman funciones en razón de períodos de cambio de administración. Las convocatorias a estas reuniones se deberán efectuar con suficiente antelación, garantizando el principio de publicidad a través de los diferentes medios de difusión y comunicación oficiales y comunitarios. Se deberá presentar a esta Autoridad mediante los respectivos Informes de Cumplimiento Ambiental - ICA, las constancias de recibido de las convocatorias y las copias de los soportes de estas reuniones en las que se evidencie el proceso, incluyendo listados de asistencia, temáticas desarrolladas, registro fílmico y/o fotográfico, entre otros.","N/A","Aplica","Aplica","N/A","Permanente"]
[77,"GESTIÓN SOCIAL","Informar a comunidades y autoridades sobre canales de recepción de PQRSDF.",null,"El titular de la presente licencia ambiental deberá informar como mínimo una vez al año a las comunidades, a las organizaciones de la sociedad civil si las hubiere, y autoridades del área de influencia del proyecto, los canales de recepción de PQRSDF (peticiones, quejas, reclamos, sugerencias, denuncias, felicitaciones). De lo anterior, se deberán entregar los respectivos soportes de manera anual en los Informes de Cumplimiento Ambiental - ICA. ","N/A","Aplica","Aplica","N/A","Permanente"]
[78,"GESTIÓN SOCIAL","Informe de reporte de quejas e inquietudes presentadas.",null,"El titular de la presente licencia ambiental contará con un formato de recepción de PQRSDF (peticiones, quejas, reclamos, sugerencias, denuncias, felicitaciones) y elaborará un informe donde se reporten las quejas e inquietudes presentadas, especificando: municipio, vereda, nombre o comunidad que la interpone, datos de contacto del peticionario, fecha, descripción del caso, a qué tipo de actividad está asociada respecto a la Licencia Ambiental, tipo de queja, zona(s) donde se concentra el mayor número de casos y georreferenciación del sitio o lugar en donde se reporta la PQRSDF. Presentar en los Informes de Cumplimiento Ambiental - ICA, este informe en formato de Excel, o que sea compatible con Sistemas de Información Geográfica, así como, los soportes que evidencien el registro, atención, seguimiento del caso y publicidad de la información.","N/A","Aplica","Aplica","N/A","Permanente"]
[79,"GESTIÓN SOCIAL","Cumplimiento de las directrices definidas en la Directiva Presidencial 08 del 2020.\n\nNota: Aplica en caso de haberse llevado a cabo un proceso de consulta previa. ",null,"Presentar en los respectivos Informes de Cumplimiento Ambiental - ICA y según las directrices definidas en la Directiva Presidencial 08 del 2020, los soportes que den cuenta del cumplimiento de las medidas de manejo acordadas entre el titular de la licencia ambiental y la comunidad étnica, o aquellas establecidas por la Dirección de la Autoridad Nacional de Consulta Previa - DANCP del Ministerio del Interior, o quien haga sus veces, en el marco de la aplicación del test de proporcionalidad.","N/A","Aplica","Aplica","N/A","Permanente"]
[80,"VALORACIÓN ECONÓMICA","Análisis de internalización de los impactos ambientales\n\nNota: Aplica para proyectos en los que se propone el análisis de internalización de impactos.",null,"Presentar en cada ICA el seguimiento al análisis de internalización de los impactos ambientales reportando el estado de avance en los indicadores (eficiencia y eficacia) y la medida de manejo propuesta para dicho análisis.","N/A","Aplica","N/A","N/A","Permanente"]
[81,"VALORACIÓN ECONÓMICA","Ajuste del análisis costo / beneficio\n\nNota: Aplica para aquellos proyectos que cuenten con obligaciones en el análisis costo beneficio, desde el acto administrativo.",null,"Presentar en los Informes de Cumplimiento Ambiental - ICA respectivos los ajustes del análisis costo / beneficio a partir de los requerimientos pendientes en el acto administrativo o en el caso de que se presenten modificaciones asociadas al proyecto, teniendo en cuenta los lineamientos del documento Criterios técnicos para el uso de herramientas económicas en los proyectos, obras o actividades objeto de licenciamiento ambiental.","N/A","Aplica","N/A","N/A","Permanente"]
[82,"OBLIGACIONES GENERALES","Intervención de áreas de dragado\n\nNota: Aplica cuando en el marco de un puerto, se vaya a desarrollar la actividad de dragado.",null,"Realizar las intervenciones del dragado estrictamente en las áreas autorizadas.","N/A","Aplica ","N/A","N/A","Permanente"]
[83,"OBLIGACIONES GENERALES ","Estrategia de recepción de información de los resultados de los monitoreos del uso y aprovechamiento de los recursos naturales\n\nNota: En caso de no contar con obligaciones de transmisión en tiempo real, eliminar la opción 3.",null,"Reportar la información del resultado de los monitoreos del uso y aprovechamiento de los recursos naturales, de conformidad con las condiciones que se describen a continuación:\n\n1. La información geográfica y alfanumérica, cuya frecuencia de presentación y/o entrega se haya definido en el respectivo acto administrativo con una temporalidad superior a la diaria (semanal, quincenal, mensual, bimensual, semestral, etc.), deberá ser radicada a través del Portal de recepción de información - AGIL, el cual permitirá el almacenamiento directo en la Base de Datos Corporativa de acuerdo con el modelo de almacenamiento de datos geográficos establecido en la Resolución 2182 del 2016 de Minambiente o aquella que la modifique, derogue o sustituya.\n2. La información del resultado de los monitoreos, sobre el uso y aprovechamiento de recursos naturales, cuya frecuencia de presentación y/o entrega se haya definido en el respectivo acto administrativo con una temporalidad igual o menor a la diaria (diaria, horaria o minutal), deberá radicarse diariamente de forma consolidada a través de las plantillas de textos plano tipo .txt o .csv (disponibles en la página web de la entidad) por medio del correo electrónico licencias@anla.gov.co con copia a centromonitoreo@anla.gov.co, indicando el asunto del correo, conforme con la siguiente tabla:\n\n(Ver tabla en pestaña 3. Asuntos de radicación, la cual se debe copiar en este espacio)\n\n3. La información que requiera la transmisión continua de datos, cuya frecuencia esté definida en el respectivo acto administrativo en tiempo real o cuasi real, se reportará a través de VPN Site to Site, API REST, o según sea definido conforme con los lineamientos de la Oficina de Tecnologías de la Información - OTI de la Entidad y las posibilidades tecnológicas del titular de la Licencia Ambiental. \n\nParágrafo: La demás información generada por los proyectos deberá entregarse a través del instrumento de seguimiento ambiental habitual (Informe de Cumplimiento Ambiental - ICA) y el mecanismo de recepción disponible (Ventanilla Integral de Trámites Ambientales en Línea - VITAL). ","N/A","Aplica","N/A","N/A","Permanente"]
[84,"OBLIGACIONES GENERALES ","Codificación asociada a permisos y obligaciones\n\nNota: El profesional que se encuentre evaluando o haciendo seguimiento al proyecto, deberá solicitar la codificación de permisos y obligaciones al centro de monitoreo a través de correo electrónico centromonitoreo@anla.gov.co una vez definidos los permisos y obligaciones de monitoreo y planes a solicitar en el marco del acto administrativo.",null,"Utilizar la codificación de la ANLA (campo \"ID ANLA\") asignada a los permisos de uso y aprovechamiento de recursos naturales y a las obligaciones impuestas en el presente acto administrativo para la presentación de la información asociada al seguimiento del proyecto.","N/A","Aplica","N/A","N/A","Permanente"]
[85,"OBLIGACIONES GENERALES ","Informar sobre la conformación del Departamento de Gestión Ambiental",null,"Presentar en el primer Informe de Cumplimiento Ambiental - ICA copia del documento donde conste la conformación del Departamento de Gestión Ambiental, que incluya funciones y responsabilidades asignadas, en cumplimiento al artículo 2.2.8.11.1.7. del Decreto 1076 de 2015, o aquella que la modifique, derogue o sustituya.","N/A","Aplica","N/A","N/A","Temporal"]
[86,"OBLIGACIONES GENERALES ","Modificación de la Licencia Ambiental, cuando se configure alguna de las causales mencionadas en el Decreto 1076 de 2015",null,"El titular de la presente Licencia Ambiental solicitará a la ANLA la modificación de la licencia ambiental, previa a la ejecución de actividades que configuren alguna de las causales señaladas en el Artículo 2.2.2.3.7.1 del Decreto 1076 de 2015. ","N/A","Aplica","N/A","N/A","Permanente"]
[87,"OBLIGACIONES GENERALES ","Cambios menores ",null,"Informar a la ANLA, de manera previa a realizar las actividades consideradas como cambios menores o de ajuste normal dentro del giro ordinario, de conformidad con lo dispuesto en el Capítulo 6, Título 2 , Parte 2, Libro 2 del Decreto 1076 de 2015, o aquella norma que lo modifique o sustituya, actividades que serán objeto de seguimiento. En caso de que las actividades a ejecutar  no se incluyan en el mencionado Decreto, el titular de la licencia solicitará por escrito pronunciamiento de esta autoridad, sobre su viabilidad bajo la modalidad de cambio menor, concepto que se remitirá con destino al expediente.","N/A","Aplica","N/A","N/A","Permanente"]
[88,"OBLIGACIONES GENERALES ","Retirar y/o disponer todas las evidencias de los elementos y materiales sobrantes, en todas las áreas intervenidas por el proyecto",null,"Una vez finalizados los trabajos propios de cada obra o actividad parcial, el titular de la presente licencia ambiental retirará y/o dispondrá todas las evidencias de los elementos y materiales sobrantes, en todas las áreas intervenidas por el proyecto, de manera que no se generen impactos ambientales adicionales, se altere el paisaje ni se contribuya al deterioro ambiental.","N/A","Aplica","N/A","N/A","Permanente"]
[89,"OBLIGACIONES GENERALES ","Uso de fibras naturales",null,"Cumplir lo establecido en la Resolución 1083 de 1996, del hoy Ministerio de Ambiente y Desarrollo Sostenible, para las actividades listadas en su artículo 1°. Con tal fin, el titular de la licencia presentará en los Informes de Cumplimiento Ambiental -ICA- la siguiente información: \n\na) Localización de la actividad, obra o proyecto en la que se hizo uso de las fibras naturales. \nb) La fibra natural utilizada, el tipo de actividad en la que fue usada y la cantidad medida en Kg. \nc) Indicar el estado de integridad física y de funcionamiento de las obras con este tipo de fibras. \n\nParágrafo: El titular de la licencia ambiental justificará fundadamente, en el Informe de Cumplimiento Ambiental -ICA- correspondiente, las razones técnicas del por qué consideró inviable el uso de fibras naturales en esas actividades. (Uso de fibras naturales). ","N/A","Aplica","N/A","N/A","Permanente"]
[90,"OBLIGACIONES GENERALES ","Informar a la ANLA y a las demás Autoridades Ambientales competentes la fecha de iniciación de actividades",null,"Dentro de los diez (10) días calendario previos al inicio de cada una de las fases del proyecto, el titular de la presente licencia ambiental informará a la ANLA, mediante oficio dirigido a la Subdirección de Seguimiento de Licencias Ambientales, y a las demás Autoridades Ambientales regionales y locales en la jurisdicción del proyecto, la fecha de inicio de actividades. En caso de que no se pueda dar inicio al proyecto en la fecha previamente informada, se notificará inmediatamente a esta Autoridad la justificación, así como la nueva fecha de inicio. Enviar a la ANLA copia de los oficios radicados ante las demás autoridades ambientales competentes.","N/A","Aplica","N/A","N/A","Permanente"]
[91,"OBLIGACIONES GENERALES ","Presentación de ICA de acuerdo con lo establecido en el Manual de Seguimiento Ambiental de Proyectos y la Resolución 077 de 2019.",null,"El titular de la presente licencia ambiental presentará los Informes de Cumplimiento Ambiental -ICA de manera [Espacio para definir periodicidad de ICA de cada fase del proyecto (trimestral, semestral o anual, o cualquier otra frecuencia / condición de acuerdo con la duración de las obras constructivas)] de acuerdo con lo establecido en el Manual de Seguimiento Ambiental de Proyectos y lo dispuesto en la Resolución 077 de 2019, modificada por la Resolución 0549 de 2020, o aquellas que las que las modifiquen, deroguen o sustituyan.","N/A","Aplica","N/A","N/A","Permanente"]
[92,"OBLIGACIONES GENERALES ","Monitoreos a través de laboratorios acreditados",null,"Realizar los monitoreos a través de laboratorios acreditados por el IDEAM, tanto para la toma de la muestra, como para el análisis de los parámetros monitoreados. Dichos laboratorios, deberán contar con las técnicas de medición que cuenten con los límites de detección de los diferentes parámetros que permitan verificar el cumplimiento normativo de los mismos. En caso de que no existan laboratorios nacionales acreditados para el análisis de algún(os) parámetro(s), los laboratorios acreditados por el IDEAM podrán enviar la muestra a un laboratorio internacional acreditado en su país de origen o por un estándar internacional, mientras se surte el proceso de acreditación en los laboratorios nacionales. Presentar los soportes de la acreditación de todos los laboratorios empleados para la realización de los monitoreos del proyecto en los Informes de Cumplimiento Ambiental - ICA.","N/A","Aplica","N/A","N/A","Permanente"]
[93,"REQUISITOS DEL ACTO ADMINISTRATIVO","Patrimonio arqueológico",null,"Previo al inicio de las obras se deberá remitir a esta Autoridad copia de la constancia de aprobación del Plan de Manejo Arqueológico. \n\nParágrafo: La intervención de áreas arqueológicas protegidas de sitios arqueológicos u otras categorías establecidas en la normativa que protege el patrimonio cultural de la Nación son de competencia exclusiva del Instituto Colombiano de Antropología e Historia -ICANH-. En consecuencia, la Licencia Ambiental no autoriza la intervención de dichas áreas."," -"," -"," -"," -"," -"]
[94,"REQUISITOS DEL ACTO ADMINISTRATIVO","Patrimonio arqueológico",null,"Si durante el desarrollo del proyecto, se evidencian sitios o vestigios de interés arqueológico dentro del área de influencia, se deberá dar aviso por escrito al Instituto Colombiano de Antropología e Historia -ICANH- (con copia a la ANLA), de conformidad con el numeral 1.4 del artículo 7 de la Ley 1185 de 2008, el Decreto 138 de 2019 y el numeral 1.6. del artículo 11 de la Ley 397 de 1997, modificado por el artículo 131 del Decreto 2106 de 2019, para lo de su competencia."," -"," -"," -"," -"," -"]
[95,"REQUISITOS DEL ACTO ADMINISTRATIVO","La Licencia Ambiental no confiere derechos reales sobre los predios a ser afectados.\n\nNota: El presente texto debe ser usado a manera de parágrafo del articulo en el que se otorga la licencia.",null,"Parágrafo: La Licencia Ambiental que se otorga, no confiere derechos reales sobre los bienes inmuebles que puedan intervenirse o afectarse en la ejecución del proyecto, obra o actividad. Lo anterior, sin perjuicio a lo dispuesto por la Ley 1448 de 2011 o aquella norma que la modifique, deroguen o sustituya, en lo relacionado con restitución de tierras."," -"," -"," -"," -"," -"]
[96,"REQUISITOS DEL ACTO ADMINISTRATIVO","ANLA supervisará la ejecución de las obras y podrá verificar en cualquier momento el cumplimiento de lo dispuesto en la presente Resolución",null,"La ANLA hará control y seguimiento ambiental a la ejecución de proyectos, obras y actividades en los términos del artículo 2.2.2.3.9.1 del Decreto 1076 del 2015, y verificará el cumplimiento de la presente Resolución. "," -"," -"," -"," -"," -"]
[97,"REQUISITOS DEL ACTO ADMINISTRATIVO","Notificar el contenido de la presente Resolución al Representante Legal",null,"Por la Autoridad Nacional de Licencias Ambientales - ANLA, notificar el presente acto administrativo al representante legal o apoderado, o a la persona autorizada por la sociedad XXXXX, de conformidad con los artículos 67 y siguientes del Código de Procedimiento Administrativo y de lo Contencioso Administrativo. \n\nParágrafo: El expediente queda a disposición para su consulta en medio físico o digital. "," -"," -"," -"," -"," -"]
[98,"REQUISITOS DEL ACTO ADMINISTRATIVO","Notificar el contenido de la presente Resolución a terceros intervinientes que lo hayan solicitado expresamente",null,"Por la Autoridad Nacional de Licencias Ambientales - ANLA, notificar el presente acto administrativo a el/la señor(a) XXXXX en su condición de tercer(os) interviniente(s) reconocido(s) dentro de la presente actuación de ser el caso a través del representante legal o apoderado, o a la persona debidamente autorizada, de conformidad con el artículo 71 de la Ley 99 de 1993 y los artículos 67 y siguientes del Código de Procedimiento Administrativo y de lo Contencioso Administrativo. \n\nParágrafo: El expediente queda a disposición para su consulta en medio físico o digital. "," -"," -"," -"," -"," -"]
[99,"REQUISITOS DEL ACTO ADMINISTRATIVO","Comunicar el contenido de la presente Resolución a terceros intervinientes que no hayan solicitado expresamente ser notificados",null,"Por la Autoridad Nacional de Licencias Ambientales - ANLA, comunicar el presente acto administrativo a el/la señor(a) XXXXX en su condición de tercer(os) interviniente(s) reconocido(s) dentro de la presente actuación de ser el caso a través del representante legal o apoderado, o a la persona debidamente autorizada, de conformidad con el artículo 71 de la Ley 99 de 1993."," -"," -"," -"," -"," -"]
[100,"REQUISITOS DEL ACTO ADMINISTRATIVO","Remitir copia de la presente resolución a autoridades y/o entidades que deban ser informadas.",null,"Por la Autoridad Nacional de Licencias Ambientales - ANLA, comunicar el contenido del presente acto administrativo a [Espacio para listar entidades que deban recibir copia de la presente resolución tales como: alcaldías municipales, autoridades ambientales de orden regional y/o local, gobernaciones, procuradurías delegadas para asuntos ambientales, personerías municipales, entre otros]. "," -"," -"," -"," -"," -"]
[101,"REQUISITOS DEL ACTO ADMINISTRATIVO","Publicar  la presente Resolución en la Gaceta Ambiental ",null,"Por la Autoridad Nacional de Licencias Ambientales - ANLA publicar  la presente Resolución en la Gaceta Ambiental de esta Entidad, de conformidad con el artículo 71 de la Ley 99 de 1993. "," -"," -"," -"," -"," -"]
[102,"REQUISITOS DEL ACTO ADMINISTRATIVO","Contra la presente Resolución procede el recurso de reposición",null,"Contra el presente acto administrativo procede el recurso de reposición en los términos establecidos en los artículos 74 y siguientes del Código de Procedimiento Administrativo y de lo Contencioso Administrativo, o la norma que lo modifique, derogue o sustituya."," -"," -"," -"," -"," -"]
[103,"REQUISITOS DEL ACTO ADMINISTRATIVO","Vigencia de la licencia ambiental",null,"La presente Licencia Ambiental, se otorga por el tiempo de duración del proyecto que se autoriza en la presente resolución."," -"," -"," -"," -"," -"]
[104,"REQUISITOS DEL ACTO ADMINISTRATIVO","Pérdida de vigencia de la licencia ambiental",null,"En el caso que, el titular de la licencia ambiental en el término de cinco (5) años contados a partir de la firmeza del presente acto administrativo, no haya dado inicio a la ejecución del proyecto, se procederá a dar aplicación a lo establecido en el artículo 2.2.2.3.8.7. Decreto 1076 de 2015, en relación con la declaratoria de pérdida de vigencia de la licencia ambiental. "," -"," -"," -"," -"," -"]
[105,"REQUISITOS DEL ACTO ADMINISTRATIVO","Aplicación de la Ley 1333 del 2009",null,"El incumplimiento de las obligaciones contenidas en el presente acto administrativo y en las normas ambientales vigentes dará lugar a la imposición y ejecución de las medidas preventivas y sanciones que sean aplicables según el caso, de conformidad con lo establecido en la Ley 1333 del 21 de julio de 2009, o la que modifique, derogue o sustituya."," -"," -"," -"," -"," -"]
[106,"REQUISITOS DEL ACTO ADMINISTRATIVO","Modificar los tiempos de cumplimiento de las obligaciones, sin que ello signifique una novación",null,"En el seguimiento, la Autoridad Nacional de Licencias Ambientales -ANLA- podrá  conceder, por solicitud justificada del titular, nuevos plazos para el cumplimiento de obligaciones, sin que esto implique modificación de la Licencia Ambiental. La modificación del plazo siempre deberá estar técnica y jurídicamente sustentada, previa coordinación ante el Grupo de Actuaciones Sancionatorias ambientales de la Oficina Asesora Jurídica o la dependencia que haga sus veces."," -"," -"," -"," -"," -"]
[107,"REQUISITOS DEL ACTO ADMINISTRATIVO","Informar a la ANLA cuando la empresa y/o sociedad entre en proceso de disolución o régimen de insolvencia o liquidación",null,"En el evento en que el titular de la licencia ambiental entre en proceso de disolución o régimen de insolvencia o liquidación regulados por las normas vigentes, informará inmediatamente de esta situación a esta Autoridad, con fundamento, entre otros, en los artículos 8, 58, 79, 80, 81, 95 numeral 8 de la Constitución Política de 1991, en las Leyes 43 de 1990, 222 de 1995, 1333 de 2009, demás normas vigentes, y en la jurisprudencia aplicable. La sociedad deberá aprovisionar contablemente las obligaciones contingentes que se deriven de la existencia de un procedimiento ambiental sancionatorio conforme con el artículo 40 de la Ley 1333 de 2009 o la norma que la modifique, derogue o sustituya. "," -"," -"," -"," -"," -"]

{"sheet":"OBLIGACIONES APLICABLES","index":2,"n_rows":111,"n_cols":8,"rows_kept":111,"cut":false,"hidden":false,"merged":[[0,1,0,7],[5,2,6,2],[5,1,6,1],[5,3,6,3],[5,4,6,4],[5,5,6,5],[5,6,6,6],[5,7,6,7],[29,6,30,6],[29,7,30,7],[29,1,30,1],[29,2,30,2],[29,3,30,3],[29,4,30,4],[29,5,30,5]]}
[null,"OBLIGACIONES MÍNIMAS APLICABLES AL PROYECTO, OBRA O ACTIVIDAD EN EVALUACIÓN / SEGUIMIENTO\nNota: Dar clic en el botón de Actualizar Anexo y usar el texto de esta hoja para construir el concepto técnico y acto administrativo (Copiar y pegar en cada documento a construir)"]
["Aplica (si / no)","TEMÁTICA","OBLIGACIÓN ESTANDARIZADA","Pre construcción","Construcción","Operación y mantenimiento","Desmantelamiento y abandono","Temporalidad"]
[{"$f":"DRAGADOS!D8","v":0},{"$f":"DRAGADOS!B8","v":"AIRE"},{"$f":"DRAGADOS!E8","v":"Realizar monitoreos de calidad del aire con los criterios establecidos para un (Sistema de Vigilancia de Calidad de Aire Industrial Fijo / Indicativo - SVCAI. Seleccionar el sistema de acuerdo con la complejidad del proyecto) según el Protocolo para el Monitoreo y Seguimiento de la Calidad del Aire del MAVDT del 2010 (adoptado por la Resolución 650 de 2010, y ajustado por la Resolución 2154 de 2010, o la norma que la modifique, derogue o sustituya), y entregar los respectivos soportes en los Informes de Cumplimiento Ambiental - ICA, teniendo en cuenta lo siguiente:\n\na) Documento donde se argumente la selección de la localización de las estaciones que conformen el Sistema de Vigilancia de Calidad de Aire, teniendo en cuenta los criterios establecidos en el Protocolo para el Monitoreo y Seguimiento de la Calidad del Aire del MAVDT (2010). Esta obligación se presentará en el primer Informe de Cumplimiento Ambiental - ICA.\nb) Información meteorológica: debe hacer referencia al año calendario inmediatamente anterior al estudio, la cual debe ser previamente validada de acuerdo a los estándares establecidos por la EPA, de igual forma se deberá entregar la información meteorológica de la campaña de monitoreo (Quality Assurance Handbook for Air Pollution Measurement Systems Volumen IV: Meteorological Measurement Versión 2.0 EPA-454/B-08-002). Anexar los archivos georreferenciados de acuerdo con el modelo de almacenamiento geográfico establecido en la Resolución 2182 de 2016 del MADS, o la que la modifique, derogue o sustituya.\nc) Reportes de laboratorio (que incluya datos diarios u horarios dependiendo de la tecnología de la estación de monitoreo - manual o automática).\nd) Comparación de las mediciones con los niveles máximos permisibles establecidos en la Resolución 2254 de 2017 del MADS, o aquella que la modifique, derogue o sustituya, y con la línea base presentada en el EIA para los contaminantes evaluados. Los contaminantes a registrar serán los establecidos en la Resolución  2254 de 2017 del MADS, o aquella que la modifique o sustituya, aplicables según la actividad industrial desarrollada y las fuentes de emisión identificadas. \ne) Informe de las acciones implementadas para garantizar el cumplimiento de los estándares en caso de sobrepasar los límites de inmisión para cada contaminante.\nf) Informe que incluya como mínimo los contenidos establecidos en el Protocolo para el Monitoreo y Seguimiento de la Calidad del Aire del MAVDT (2010) - Manual de operación, según el sistema de vigilancia de calidad del aire aplicable."},{"$f":"DRAGADOS!F8","v":"N/A"},{"$f":"DRAGADOS!G8","v":"Aplica"},{"$f":"DRAGADOS!H8","v":"N/A"},{"$f":"DRAGADOS!I8","v":"N/A"},{"$f":"DRAGADOS!J8","v":"Permanente"}]
[{"$f":"DRAGADOS!D9","v":0},{"$f":"DRAGADOS!B9","v":"AIRE"},{"$f":"DRAGADOS!E9","v":"Presentar en el primer Informe de Cumplimiento Ambiental - ICA de la fase constructiva / antes del inicio de las actividades de construcción (seleccionar momento de entrega del plan de acuerdo con la duración del proyecto) el plan de riego asociado a la humectación de vías de acceso y zonas descubiertas sin pavimentar (internas del proyecto), el cual debe incluir lo siguiente:\n\na) Rutas y zonas por regar. \nb) Métodos de riego empleados, los cuales deberán garantizar la mayor área de humectación y el menor consumo de agua. \nc) Agua a emplear en las actividades de humectación, la cual deberá dar cumplimiento a lo establecido en la normatividad vigente, y las obligaciones establecidas sobre (Espacio para indicar los permisos/autorizaciones respectivas que se hayan autorizado al proyecto y que estén relacionados con el agua que será empleada para la humectación de vías: vertimientos al suelo, concesión de aguas, compra de agua, aguas lluvias, recirculación en suelo soporte de infraestructura, entre otras).\nd) En caso de emplear aditivos u otros materiales, deberán ser inocuos y no presentar problemas de compactación u otros impactos al suelo superficial, por infiltración o escorrentía ante eventuales precipitaciones. \ne) Indicadores asociados con las actividades de humectación en función del área regada, las cantidades de agua empleadas y la cantidad de material particulado mitigado."},{"$f":"DRAGADOS!F9","v":"Aplica"},{"$f":"DRAGADOS!G9","v":"Aplica"},{"$f":"DRAGADOS!H9","v":"N/A"},{"$f":"DRAGADOS!I9","v":"N/A"},{"$f":"DRAGADOS!J9","v":"Temporal"}]
[{"$f":"DRAGADOS!D10","v":0},{"$f":"DRAGADOS!B10","v":"AIRE"},{"$f":"DRAGADOS!E10","v":"Presentar los soportes de implementación del plan de riego en vías en los respectivos Informes de Cumplimiento Ambiental - ICA, incluyendo: i) evidencias de la ejecución de las medidas con los volúmenes de agua empleados, su origen, métodos de riego empleados, áreas y vías en las cuales fue realizado y ii) análisis de la información meteorológica para el balance hídrico de evaporación-precipitación en los periodos de riego."},{"$f":"DRAGADOS!F10","v":"N/A"},{"$f":"DRAGADOS!G10","v":"Aplica"},{"$f":"DRAGADOS!H10","v":"N/A"},{"$f":"DRAGADOS!I10","v":"N/A"},{"$f":"DRAGADOS!J10","v":"Permanente"}]
[{"$f":"DRAGADOS!D11","v":0},{"$f":"DRAGADOS!B11","v":"CAMBIO CLIMÁTICO"},{"$f":"DRAGADOS!E11","v":"Presentar el Plan Integral de Gestión de Cambio Climático del proyecto (PIGCCp) y los anexos correspondientes en el Informe de Cumplimiento Ambiental – ICA, a (los seis meses, al año, etc., definir la frecuencia teniendo en cuenta la duración del proyecto) de la ejecutoria del acto administrativo que acoja esta obligación / antes del inicio de las actividades de construcción (ajustar según aplique para otorgamiento de licencia, modificación de licencia o ajuste vía seguimiento),  el cual contendrá como mínimo lo siguiente: \n\n1. Objetivos y metas orientados a establecer las acciones de gestión al cambio climático. \n2. La metodología seleccionada para las estimaciones de emisiones y/o remociones GEI del proyecto teniendo en cuenta los criterios que defina el Ministerio de Ambiente y Desarrollo Sostenible (MinAmbiente) y, en caso de que no estén establecidos los criterios metodológicos del inventario GEI por el MinAmbiente, se deberá presentar la metodología o modelo de cuantificación acorde con la Norma Técnica Colombiana NTC-ISO 14064-1 en su versión más reciente o del estándar de reporte de inventario GEI que la Sociedad considere acorde para el proyecto, justificando la selección del estándar y describiendo la metodología o modelo de cuantificación. \n3. La cuantificación del inventario de las emisiones y remociones directas e indirectas de gases efecto invernadero (GEI), teniendo en cuenta:\n\na) Las sustancias dióxido de carbono (CO2), óxido nitroso (N2O), metano (CH4), hidrofluorocarbonos (HFC), perfluorocarbonos (PFC), Trifluoruro de nitrógeno (NF3) y Hexafluoruro de Azufre (SF6), u otras sustancias con potencial de calentamiento global que sean identificadas, en toneladas de CO2eq.\nb) El informe del inventario contemplando los criterios que defina el Ministerio de Ambiente y Desarrollo Sostenible (MinAmbiente), la Norma Técnica Colombiana NTC-ISO 14064-1 en su versión más reciente o el estándar de reporte de inventario GEI que el titular del instrumento de manejo y control ambiental haya seleccionado. \nc) En caso de que por la naturaleza del proyecto no se requiera de la estimación de alguna(s) de las sustancias, alcances o categorías de acuerdo con el estándar del inventario seleccionado, justificar técnicamente. \nd) Los resultados del inventario en hoja de cálculo (Excel editable), junto con su respectivo análisis, la cual deberá contemplar como mínimo: puntos de emisión ID, alcance o categoría según el estándar del inventario seleccionado, tipo de fuente generadora GEI, nombre fuente de emisión GEI, características de la fuente de GEI, categoría IPCC equivalente, Nombre de la sustancia, método de determinación de la emisión, emisión (carga emitida) determinada (kg/año), potencial de calentamiento global, emisión (tonelada de CO2e/año), fuentes de información de los datos empleados y trazabilidad de los cálculos realizados y tipo de verificación GEI (primera, segunda o tercera parte).\n\n4. Las acciones de mitigación y estimado de reducción de GEI proyectadas en el tiempo de vida útil del proyecto autorizado, en hoja de cálculo (Excel editable), contemplando como mínimo: Nombre de la medida, objetivo, descripción de la medida y acciones a seguir, potencial de mitigación de la medida (toneladas de CO2 eq), indicador propuesto, fuentes de información de los datos empleados y trazabilidad de los cálculos realizados, fecha de inicio y fin de implementación. \n5. Las acciones de mitigación de GEI deberán contar con indicadores cuantitativos y cualitativos, de cumplimiento, eficacia y efectividad, que contengan como mínimo lo siguiente: nombre de cada indicador, unidad de medida, frecuencia de medición o de cálculo, definición, fórmula y metodología de medición o cálculo, describiendo los procedimientos utilizados para la medición y relacionando los instrumentos necesarios, fuentes de información de las variables que requiere, responsable de la medición o cálculo (sección, dependencia o persona) y criterios para el análisis e interpretación de resultados. Estos indicadores se presentarán para cada etapa del proyecto de acuerdo con el tiempo de vida útil del proyecto autorizado.\n8. Cronograma y localización de la aplicación de las acciones de gestión de cambio climático. "},{"$f":"DRAGADOS!F11","v":"Aplica"},{"$f":"DRAGADOS!G11","v":"Aplica"},{"$f":"DRAGADOS!H11","v":"N/A"},{"$f":"DRAGADOS!I11","v":"N/A"},{"$f":"DRAGADOS!J11","v":"Temporal"}]
[{"$f":"DRAGADOS!D12","v":0}]
[{"$f":"DRAGADOS!D13","v":0},{"$f":"DRAGADOS!B13","v":"CAMBIO CLIMÁTICO"},{"$f":"DRAGADOS!E13","v":"Presentar en los Informes de Cumplimiento Ambiental - ICA por cada periodo reportado, de acuerdo con la implementación del Plan Integral de Gestión de Cambio Climático del Proyecto (PIGCCp) presentado bajo el articulo XXX (relacionar el numeral corresponda de acuerdo como se enumeró en el acto administrativo), lo siguiente:\n\na) La actualización del inventario de las emisiones y remociones directas e indirectas de gases efecto invernadero (GEI).\nb) El informe de avance de la implementación y/o actualización de las acciones de mitigación y estimado de reducción de GEI con la hoja de cálculo (Excel editable)."},{"$f":"DRAGADOS!F13","v":"N/A"},{"$f":"DRAGADOS!G13","v":"Aplica"},{"$f":"DRAGADOS!H13","v":"N/A"},{"$f":"DRAGADOS!I13","v":"N/A"},{"$f":"DRAGADOS!J13","v":"Permanente"}]
[{"$f":"DRAGADOS!D14","v":0},{"$f":"DRAGADOS!B14","v":"CAMBIO CLIMÁTICO"},{"$f":"DRAGADOS!E14","v":"Complementar y/o actualizar el Plan integral de gestión de Cambio Climático del proyecto (PIGCCp) requerido mediante Artículo XXX de la Resolución XXX del dd-mm-aaa (relacionar el acto administrativo bajo el cual se impuso la obligación de cambio climático por primera vez) incluyendo las actividades y obras objeto de la presente modificación, de acuerdo con las especificaciones del contenido mínimo establecido para este Plan. Esta información, debe ser presentada en el Informe de Cumplimiento Ambiental - ICA posterior a la expedición del presente acto administrativo que aprueba a modificación del proyecto."},{"$f":"DRAGADOS!F14","v":"N/A"},{"$f":"DRAGADOS!G14","v":"Aplica"},{"$f":"DRAGADOS!H14","v":"N/A"},{"$f":"DRAGADOS!I14","v":"N/A"},{"$f":"DRAGADOS!J14","v":"Temporal"}]
[{"$f":"DRAGADOS!D15","v":0},{"$f":"DRAGADOS!B15","v":"RUIDO"},{"$f":"DRAGADOS!E15","v":"Realizar los monitoreos de ruido ambiental y entregar los respectivos soportes en los Informes de Cumplimiento Ambiental - ICA, teniendo en cuenta lo siguiente:\n\na) Los monitoreos de ruido deben cumplir con los parámetros y procedimientos establecidos en la Resolución 0627 de 2006 del MAVDT y el estándar internacional ISO 1996 incluyendo el análisis de bajas frecuencias, o aquellas que la modifiquen, deroguen o sustituyan.\nb) Durante las etapas de construcción, operación y desmantelamiento, realizar monitoreos de ruido ambiental durante dos (2) días a la semana, garantizando que uno de estos días sea dominical, durante (relacionar la duración del monitoreo de acuerdo con la nota 1). La periodicidad del monitoreo será semestral para la fase constructiva y de desmantelamiento y abandono y anual para la fase operativa. Los puntos de monitoreo deben tener una adecuada micro localización evitando obstáculos entre la fuente y el punto de muestreo. La ubicación de los equipos debe permitir en lo posible una relación señal ruido que permita la identificación de la fuente objeto de estudio sobre el ruido ambiente. \nc) Los puntos de monitoreo deberán coincidir con los puntos monitoreados en la línea base presentada en el EIA, y en caso de que se presenten nuevos potenciales receptores de interés, considerar puntos adicionales de monitoreo, los cuales se localizarán estratégicamente respecto a la ubicación de estos receptores.\nd) Los niveles de presión sonora de cada uno de los puntos de monitoreo, deben ser presentados con el nivel total y discriminados en bandas de tercios de octava para cada hora de medición.\ne) Los monitoreos deben caracterizar los periodos de operación más representativos dentro de cada periodo de reporte, en este sentido se debe considerar la medición de manera simultánea en todos los puntos a fin de tener una trazabilidad en el tiempo y espacio de cada escenario evaluado. Se deberá contar tantos equipos como puntos de muestreo para realizar las mediciones simultáneas y continuas durante todo el desarrollo del monitoreo.\nf) Los monitoreos de ruido deben aportar las correcciones de ruido asociadas al tipo de fuente, así como incertidumbre de medida de acuerdo con lo estipulado en la Resolución 0627 del MADS e ISO 1996 a fin de estimar los efectos que puedan generarse por la operación de la fuente objeto de estudio para todas y cada una de las etapas del proyecto.\ng) Presentar en los respectivos Informes de Cumplimiento Ambiental - ICA los informes de los monitoreos de ruido, incluyendo la información requerida en el Artículo 21 de la Resolución 0627 de 2006. Incluir en el informe la comparación de las mediciones con los estándares máximos permisibles establecidos en la Resolución 0627 de 2006 (o la que la modifique, derogue o sustituya), con la línea base presentada en el instrumento de manejo y control ambiental para ruido ambiental y con las mediciones de emisión de ruido para cada hora monitoreada.\nh) Georreferenciar en mapas temáticos los puntos de monitoreo sobre la información de uso actual de suelo (Capa UsoActualSuelo - V1403 del Modelo de almacenamiento geográfico establecido en la Resolución 2182 de 2016 del MADS, o la que la modifique o sustituya) y de los instrumentos de ordenamiento territorial del área de influencia con la respectiva justificación de la selección de los sectores de ruido establecidos en la Resolución 627 de 2006, cada que se actualice la información de uso actual de suelo (Capa UsoActualSuelo del MAG) y de los instrumentos de ordenamiento territorial y/o se incluyan nuevos puntos de monitoreo. Presentar esta información en los respectivos Informes de Cumplimiento Ambiental - ICA.\ni) Actualizar el inventario de potenciales receptores de interés (asentamientos poblacionales, viviendas, infraestructura social y ecosistemas estratégicos) del proyecto y presentarlo cuando se presenten cambios."},{"$f":"DRAGADOS!F15","v":"N/A"},{"$f":"DRAGADOS!G15","v":"Aplica"},{"$f":"DRAGADOS!H15","v":"N/A"},{"$f":"DRAGADOS!I15","v":"N/A"},{"$f":"DRAGADOS!J15","v":"Permanente"}]
[{"$f":"DRAGADOS!D16","v":0},{"$f":"DRAGADOS!B16","v":"APROVECHAMIENTO FORESTAL"},{"$f":"DRAGADOS!E16","v":"Reportar en los informes de cumplimiento ambiental - ICA - el inventario forestal e informe detallado del aprovechamiento forestal adelantado durante el periodo a ser reportado. Presentar la información documental conforme a los lineamientos establecidos en el Manual de Seguimiento Ambiental de Proyectos y bajo el modelo de almacenamiento geográfico adoptado en la Resolución 2182 del 23 de diciembre de 2016, o aquella que la modifique, derogue o sustituya. Detallar en cada informe volúmenes totales y comerciales de aprovechamiento forestal efectivamente removidos por tipo de obra y tipo de cobertura, volúmenes acumulados (Cuando el aprovechamiento forestal se reporta en varios ICA´s), individuos arbóreos aprovechados (nombre común, nombre científico y familia de la especie) con la respectiva ubicación en coordenadas planas con datum y origen, y el área de aprovechamiento (municipio, vereda, predio y polígono de aprovechamiento)."},{"$f":"DRAGADOS!F16","v":"N/A"},{"$f":"DRAGADOS!G16","v":"Aplica"},{"$f":"DRAGADOS!H16","v":"N/A"},{"$f":"DRAGADOS!I16","v":"N/A"},{"$f":"DRAGADOS!J16","v":"Permanente"}]
[{"$f":"DRAGADOS!D17","v":0},{"$f":"DRAGADOS!B17","v":"APROVECHAMIENTO FORESTAL"},{"$f":"DRAGADOS!E17","v":"Cuando se requiera de la remoción de árboles aislados en un volumen igual o menor a veinte metros cúbicos (20 m³) de conformidad con el articulo 2.2.1.1.9.6. del decreto 1076 de 2015, la sociedad XXX reportará las actividades adelantadas en el respectivo informe de cumplimiento ambiental y no podrá superar el volumen mencionado durante el desarrollo de todas las actividades contempladas en el proyecto."},{"$f":"DRAGADOS!F17","v":"N/A"},{"$f":"DRAGADOS!G17","v":"Aplica"},{"$f":"DRAGADOS!H17","v":"N/A"},{"$f":"DRAGADOS!I17","v":"N/A"},{"$f":"DRAGADOS!J17","v":"Temporal"}]
[{"$f":"DRAGADOS!D18","v":0},{"$f":"DRAGADOS!B18","v":"APROVECHAMIENTO FORESTAL"},{"$f":"DRAGADOS!E18","v":"Disponer los residuos vegetales resultantes de las actividades de aprovechamiento forestal (hojas, ramas, raíces) de tal forma que no se intervenga en la dinámica natural de ecosistemas estratégicos o drenajes naturales, dando cumplimiento a lo establecido en las medidas del Plan de Manejo Ambiental y documentando su implementación y georreferenciación en los Informes de Cumplimiento Ambiental - ICA respectivos."},{"$f":"DRAGADOS!F18","v":"N/A"},{"$f":"DRAGADOS!G18","v":"Aplica"},{"$f":"DRAGADOS!H18","v":"N/A"},{"$f":"DRAGADOS!I18","v":"N/A"},{"$f":"DRAGADOS!J18","v":"Temporal"}]
[{"$f":"DRAGADOS!D19","v":0},{"$f":"DRAGADOS!B19","v":"APROVECHAMIENTO FORESTAL"},{"$f":"DRAGADOS!E19","v":"No realizar quemas a cielo abierto de los productos, subproductos y/o residuos vegetales resultantes del aprovechamiento forestal."},{"$f":"DRAGADOS!F19","v":"N/A"},{"$f":"DRAGADOS!G19","v":"Aplica"},{"$f":"DRAGADOS!H19","v":"N/A"},{"$f":"DRAGADOS!I19","v":"N/A"},{"$f":"DRAGADOS!J19","v":"Permanente"}]
[{"$f":"DRAGADOS!D20","v":0},{"$f":"DRAGADOS!B20","v":"APROVECHAMIENTO FORESTAL"},{"$f":"DRAGADOS!E20","v":"Dar cumplimiento a lo establecido en las medidas de manejo aprobadas en el presente acto administrativo, tendientes a garantizar la protección y conservación, mediante las alternativas existentes para tal fin, de las especies endémicas, en veda nacional o regional o en alguna categoría de amenaza de acuerdo con la lista roja de la UICN, los libros rojos de los institutos de investigación Humboldt y SINCHI, la Resolución 1912 del 15 de septiembre de 2017 o aquellas normas que la modifiquen, deroguen o sustituyan, o que se encuentren en algún apéndice del CITES (Convenio sobre el comercio internacional de especies amenazadas). Documentar y presentar su implementación en los informes de cumplimiento ambiental - ICA-, incluyendo la respectiva georreferenciación y registro fotográfico."},{"$f":"DRAGADOS!F20","v":"N/A"},{"$f":"DRAGADOS!G20","v":"Aplica"},{"$f":"DRAGADOS!H20","v":"N/A"},{"$f":"DRAGADOS!I20","v":"N/A"},{"$f":"DRAGADOS!J20","v":"Permanente"}]
[{"$f":"DRAGADOS!D21","v":0},{"$f":"DRAGADOS!B21","v":"APROVECHAMIENTO FORESTAL"},{"$f":"DRAGADOS!E21","v":"Los productos obtenidos del aprovechamiento forestal no podrán ser comercializados y solo podrán ser utilizados en las actividades propias del proyecto y/o entregarse a titulo de donación, determinando de manera prevalente como titular al propietario del predio o a las comunidades, organizaciones sociales y/o autoridades territoriales del área de influencia. Presentar en los Informes de Cumplimiento Ambiental - ICA- respectivos, el destino de los productos (donación y/o uso), el cual estará soportado mediante actas de donación o reportes de su uso en actividades del proyecto, según corresponda, volúmenes obtenidos del aprovechamiento, volúmenes donados y/o usados en las actividades del proyecto y registro fotográfico."},{"$f":"DRAGADOS!F21","v":"N/A"},{"$f":"DRAGADOS!G21","v":"Aplica"},{"$f":"DRAGADOS!H21","v":"N/A"},{"$f":"DRAGADOS!I21","v":"N/A"},{"$f":"DRAGADOS!J21","v":"Temporal"}]
[{"$f":"DRAGADOS!D22","v":0},{"$f":"DRAGADOS!B22","v":"RECOLECCIÓN DE ESPECÍMENES DE ESPECIES SILVESTRES DE LA\nBIODIVERSIDAD"},{"$f":"DRAGADOS!E22","v":"Presentar en el respectivo informe de cumplimiento ambiental - ICA - las actividades realizadas de recolección, incluyendo la relación del material recolectado, removido o extraído temporal o definitivamente del medio silvestre y la metodología implementada. Presentar la información documental conforme a los lineamientos establecidos en el Manual de Seguimiento Ambiental de Proyectos y de acuerdo con el modelo de almacenamiento geográfico establecido en la Resolución 2182 de 2016 del MADS, o la que la modifique, deroguen o sustituya."},{"$f":"DRAGADOS!F22","v":"N/A"},{"$f":"DRAGADOS!G22","v":"Aplica"},{"$f":"DRAGADOS!H22","v":"N/A"},{"$f":"DRAGADOS!I22","v":"N/A"},{"$f":"DRAGADOS!J22","v":"Permanente"}]
[{"$f":"DRAGADOS!D23","v":0},{"$f":"DRAGADOS!B23","v":"FAUNA"},{"$f":"DRAGADOS!E23","v":"Realizar monitoreos a las comunidades marino costeras del área de influencia del proyecto, teniendo en cuenta las siguientes condiciones:\n\na) Llevar a cabo i) un monitoreo en un periodo no mayor a un mes antes de iniciar las obras constructivas, [ii) mínimo un monitoreo durante la construcción de la obras marítimas], iii) un monitoreo en un periodo no mayor a un mes después de finalizar las obras, y iv) un monitoreo seis meses después de la finalización de las obras. En caso de que, una vez obtenida la licencia ambiental, el proyecto demore más de 1 año en iniciar la fase constructiva del mismo, deberá realizar tres meses antes del inicio de esta fase los monitoreos a las comunidades marino costeras, con e fin de tener una caracterización más actualizada para poder realizar las comparaciones a las que hay a lugar.\nb) Monitorear las comunidades de flora y fauna asociada a los ecosistemas pelágicos, litoral rocoso y arenoso, fondos blandos, duros y macroalgas, praderas de pastos marinos, manglares, corales de aguas someras y profundas, incluyendo especies de importancia de interés ecológico y económico, así como aquellos que se encuentren en alguna categoría de amenaza o en la lista roja.\nc) El monitoreo debe garantizar que la recolección de información sea representativa en términos espaciales, temporales, de composición y estructura para cada uno de las comunidades presentes.\nd)  Los puntos de monitoreo deben ser los mismos empleados en la caracterización ambiental y de preferencia que coincidan con los mismos puntos de los monitoreos fisicoquímicos y microbiológicos de agua y sedimentos, en caso de adicionar nuevos puntos se debe justificar su representatividad. Garantizar que existan puntos de monitoreo en áreas de alta sensibilidad según la zonificación ambiental del área de influencia del proyecto, que se encuentren adyacentes a las áreas puntuales de intervención que, si bien no se van a intervenir, se deben monitorear para determinar que los impactos generados por el proyecto no afecten su estructura, composición y función durante su vida útil.\ne) Realizar la comparación de los resultados obtenidos con la línea base y con los monitoreos que se vayan realizando conforme el avance de las obras para analizar la tendencia del medio, a través de índices ecológicos y análisis estadísticos, que permitan conocer las variaciones de la composición y estructura de las comunidades. Así mismo, correlacionar los resultados de los datos obtenidos en el muestreo de los parámetros fisicoquímicos y microbiológicos. \nf) Georreferenciar los puntos donde se realiza el monitoreo, y almacenar la información obtenida de los monitoreos, de acuerdo con modelo de almacenamiento geográfico establecido en la Resolución 2182 de 2016 de Minambiente, o la que la modifique o sustituya.\ng) Presentar los resultados y análisis en los Informes de Cumplimiento Ambiental - ICA-, incluyendo el registro fílmico y/o fotográfico."},{"$f":"DRAGADOS!F23","v":"Aplica"},{"$f":"DRAGADOS!G23","v":"Aplica"},{"$f":"DRAGADOS!H23","v":"Aplica"},{"$f":"DRAGADOS!I23","v":"N/A"},{"$f":"DRAGADOS!J23","v":"Permanente"}]
[{"$f":"DRAGADOS!D24","v":0},{"$f":"DRAGADOS!B24","v":"FAUNA"},{"$f":"DRAGADOS!E24","v":"Realizar monitoreos a las comunidades de flora y fauna de los ecosistemas terrestres del área de influencia del proyecto, teniendo en cuenta las siguientes condiciones:\n\na) Llevar a cabo i) un monitoreo en un periodo no mayor a un mes antes de iniciar las obras constructivas, [ii) mínimo un monitoreo durante la construcción de la obras marítimas], iii) un monitoreo en un periodo no mayor a un mes después de finalizar las obras, y iv) un monitoreo seis meses después de la finalización de las obras. En caso de que, una vez obtenida la licencia ambiental, el proyecto demore más de 1 año en iniciar la fase constructiva del mismo, deberá realizar tres meses antes del inicio de esta fase los monitoreos a las comunidades de ecosistemas terrestres, con e fin de tener una caracterización más actualizada para poder realizar las comparaciones a las que hay a lugar.\nb) El monitoreo debe garantizar que la recolección de información sea representativa en términos espaciales, temporales, de composición y estructura para cada uno de las comunidades presentes.\nc) Los puntos de monitoreo deben ser los mismos empleados en la caracterización ambiental, en caso de adicionar nuevos puntos se debe justificar su representatividad. Garantizar que existan puntos de monitoreo en áreas de alta sensibilidad según la zonificación ambiental del área de influencia del proyecto, que se encuentren adyacentes a las áreas puntuales de intervención que, si bien no se van a intervenir, se deben monitorear para determinar que los impactos generados por el proyecto no afecten su estructura, composición y función durante su vida útil.\nd) Realizar la comparación de los resultados obtenidos con la línea base y con los monitoreos que se vayan realizando conforme el avance de las obras para analizar la tendencia del medio, a través de índices ecológicos y análisis estadísticos, que permitan conocer las variaciones de la composición y estructura de las comunidades.\ne) Georreferenciar los puntos donde se realiza el monitoreo, y almacenar la información obtenida de los monitoreos, de acuerdo con modelo de almacenamiento geográfico establecido en la Resolución 2182 de 2016 de Minambiente, o la que la modifique o sustituya.\nf) Presentar los resultados y análisis en los Informes de Cumplimiento Ambiental - ICA-, incluyendo el registro fílmico y/o fotográfico."},{"$f":"DRAGADOS!F24","v":"Aplica"},{"$f":"DRAGADOS!G24","v":"Aplica"},{"$f":"DRAGADOS!H24","v":"Aplica"},{"$f":"DRAGADOS!I24","v":"N/A"},{"$f":"DRAGADOS!J24","v":"Permanente"}]
[{"$f":"DRAGADOS!D25","v":0},{"$f":"DRAGADOS!B25","v":"FAUNA"},{"$f":"DRAGADOS!E25","v":"Realizar monitoreos a las comunidades de los ecosistemas acuáticos continentales del área de influencia del proyecto, teniendo en cuenta las siguientes condiciones:\n\na) Llevar a cabo i) un monitoreo en un periodo no mayor a un mes antes de iniciar las obras constructivas, [ii) mínimo un monitoreo durante la construcción de la obras marítimas], iii) un monitoreo en un periodo no mayor a un mes después de finalizar las obras, y iv) un monitoreo seis meses después de la finalización de las obras. En caso de que, una vez obtenida la licencia ambiental, el proyecto demore más de 1 año en iniciar la fase constructiva del mismo, deberá realizar tres meses antes del inicio de esta fase los monitoreos a las comunidades de ecosistemas acuáticos continentales, con e fin de tener una caracterización más actualizada para poder realizar las comparaciones a las que hay a lugar.\nb) El monitoreo debe garantizar que la recolección de información sea representativa en términos espaciales, temporales, de composición y estructura para cada uno de las comunidades presentes.\nc) Los puntos de monitoreo deben ser los mismos empleados en la caracterización ambiental y de preferencia que coincidan con los mismos puntos de los monitoreos fisicoquímicos y microbiológicos de agua y sedimentos, en caso de adicionar nuevos puntos se debe justificar su representatividad. Garantizar que existan puntos de monitoreo en áreas de alta sensibilidad según la zonificación ambiental del área de influencia del proyecto, que se encuentren adyacentes a las áreas puntuales de intervención que, si bien no se van a intervenir, se deben monitorear para determinar que los impactos generados por el proyecto no afecten su estructura, composición y función durante su vida útil.\nd) Realizar la comparación de los resultados obtenidos con la línea base y con los monitoreos que se vayan realizando conforme el avance de las obras para analizar la tendencia del medio, a través de índices ecológicos y análisis estadísticos, que permitan conocer las variaciones de la composición y estructura de las comunidades. Así mismo, correlacionar los resultados de los datos obtenidos en el muestreo de los parámetros fisicoquímicos y microbiológicos. \ne) Georreferenciar los puntos donde se realiza el monitoreo, y almacenar la información obtenida de los monitoreos, de acuerdo con modelo de almacenamiento geográfico establecido en la Resolución 2182 de 2016 de Minambiente, o la que la modifique o sustituya.\nf) Presentar los resultados y análisis en los Informes de Cumplimiento Ambiental - ICA-, incluyendo el registro fílmico y/o fotográfico."},{"$f":"DRAGADOS!F25","v":"Aplica"},{"$f":"DRAGADOS!G25","v":"Aplica"},{"$f":"DRAGADOS!H25","v":"Aplica"},{"$f":"DRAGADOS!I25","v":"N/A"},{"$f":"DRAGADOS!J25","v":"Permanente"}]
[{"$f":"DRAGADOS!D26","v":0},{"$f":"DRAGADOS!B26","v":"FAUNA"},{"$f":"DRAGADOS!E26","v":"En caso de requerir realizar actividades de rescate y reubicación de los diferentes individuos de especies de fauna y flora silvestre presentes en áreas intervenidas por el proyecto, documentar en los respectivos Informes de Cumplimiento Ambiental - ICA:\n\na) Especies reubicadas y actividades ejecutadas, incluyendo metodologías empleadas de rescate y liberación.\nb) Localización de los sitios de reubicación de fauna y flora, haciendo uso del modelo de almacenamiento geográfico establecido en la Resolución 2182 de 2016 del MADS, o aquella norma que la modifique o sustituya.\nc) Seguimiento y monitoreo de las especies reubicadas y un análisis de su condición, que permita corroborar la efectividad de la reubicación. \nd) Para fauna marina con movimiento propio, se deberá reportar la información fílmica y fotográfica que acredite su reubicación desde las áreas afectadas hasta las áreas de recepción. \ne) Garantizar la reubicación del 100% de los individuos pertenecientes a especies con alguna categoría de amenaza, según la Resolución 1912 de 2017 de Minambiente, o aquella norma que la modifique o sustituya, libros rojos de Colombia y la Unión Internacional para la Conservación de la Naturaleza - IUCN.\nd) Coordinación de las actividades realizadas con personal de las autoridades ambientales locales y/o regionales respectivas."},{"$f":"DRAGADOS!F26","v":"N/A"},{"$f":"DRAGADOS!G26","v":"Aplica"},{"$f":"DRAGADOS!H26","v":"N/A"},{"$f":"DRAGADOS!I26","v":"N/A"},{"$f":"DRAGADOS!J26","v":"Permanente"}]
[{"$f":"DRAGADOS!D27","v":0},{"$f":"DRAGADOS!B27","v":"VEDAS"},{"$f":"DRAGADOS!E27","v":"Rescatar las especies de orquídeas y bromelias en veda nacional  según la Res.0213 de 1977 del INDERENA, u otra que modifique o sustituya; y las especies herbáceas o arbustivas en condición de veda regional, se deberá garantizar un rescate y sobrevivencia porcentual por especie de conformidad con lo establecido en la siguiente tabla. Dichos porcentajes responden a características intrínsecas de cada especie (botánicas, fisiológicas, ecológicas, de distribución, grado de amenaza, endemismo y/o usos locales).\n\n[Incluir tabla de porcentajes por especies]\n\n\nEn los casos cuya determinación se haya realizado a nivel de familia, género o “confertus” y “affín”, se debe rescatar el 100% de los individuos o agregados, aplicando el principio de precaución, dadas las condiciones de riqueza, endemismo y amenaza de estos grupos taxonómicos en el país y el desconocimiento de la identidad taxonómica de la especie registrada en el proyecto; por lo tanto, el porcentaje de sobrevivencia será diferencial, dado que depende principalmente de la capacidad de adaptación del género específico y de los requerimientos de hábitat puntuales, se debe garantizar una sobrevivencia del [establecer el porcentaje, entre el 70% y 80%].\n\nReportar en los respectivos Informes de Cumplimiento Ambiental - ICA, los avances o la totalidad del rescate (s) ejecutados, entregando de manera detallada la totalidad (100%) de individuos o agregados registrados en el área de intervención y las actividades de seguimiento para estas especies vasculares rescatadas bajo el “Modelo base de datos de rescate de especies vasculares en veda nacional y preferencia de forofitos”, disponible en el sitio web: https://www.anla.gov.co/01_anla/proyectos/nuevo-licenciamiento-ambiental/elaboracion-ica-y-control-y-seguimiento . "},{"$f":"DRAGADOS!F27","v":"N/A"},{"$f":"DRAGADOS!G27","v":"Aplica"},{"$f":"DRAGADOS!H27","v":"N/A"},{"$f":"DRAGADOS!I27","v":"N/A"},{"$f":"DRAGADOS!J27","v":"Permanente"}]
[{"$f":"DRAGADOS!D28","v":0},{"$f":"DRAGADOS!B28","v":"VEDAS"},{"$f":"DRAGADOS!E28","v":"Reportar en los respectivos Informes de Cumplimiento Ambiental - ICA, las actividades de seguimiento a la totalidad de individuos o agregados de especies vasculares trasladadas y reubicadas bajo el \"Modelo base de datos consolidada de seguimiento, monitoreo y mantenimiento de especies vasculares trasladadas y reubicadas”, disponible en el sitio web: https://www.anla.gov.co/01_anla/proyectos/nuevo-licenciamiento-ambiental/elaboracion-ica-y-control-y-seguimiento; así como, el cumplimiento del plan de mantenimiento y monitoreo para el tiempo de implementación de la medida de manejo, y el seguimiento a los indicadores y metas para lograr la sobrevivencia y adaptabilidad de los individuos o agregados de la especies en las áreas receptoras para estas poblaciones. "},{"$f":"DRAGADOS!F28","v":"N/A"},{"$f":"DRAGADOS!G28","v":"Aplica"},{"$f":"DRAGADOS!H28","v":"Aplica"},{"$f":"DRAGADOS!I28","v":"N/A"},{"$f":"DRAGADOS!J28","v":"Permanente"}]
[{"$f":"DRAGADOS!D29","v":0},{"$f":"DRAGADOS!B29","v":"VEDAS"},{"$f":"DRAGADOS!E29","v":"Rescatar al 100% las especies vasculares en veda nacional y regional de especies arbóreas (brinzal) y helechos arborescentes (≤ 2 metros), garantizando la sobrevivencia porcentual para los individuos de conformidad con las características intrínsecas de cada especie (botánicas, fisiológicas, ecológicas, de distribución, grado de amenaza, endemismo y/o usos locales). Reportar en los respectivos Informes de Cumplimiento Ambiental - ICA, los avances o la totalidad del rescate (s) ejecutado(s), entregando de manera detallada la totalidad (100%) de individuos  registrados en el área de intervención, las actividades de mantenimiento, seguimiento y monitoreo para estas especies rescatadas y trasladadas, así como el cumplimiento y el análisis del comportamiento de la sobrevivencia y adaptabilidad de los individuos en las áreas receptoras de estas poblaciones.\n\n[Incluir tabla de porcentajes de sobrevivencia por especie]\n"},{"$f":"DRAGADOS!F29","v":"N/A"},{"$f":"DRAGADOS!G29","v":"Aplica"},{"$f":"DRAGADOS!H29","v":"N/A"},{"$f":"DRAGADOS!I29","v":"N/A"},{"$f":"DRAGADOS!J29","v":"Permanente"}]
[{"$f":"DRAGADOS!D30","v":0},{"$f":"DRAGADOS!B30","v":"VEDAS"},{"$f":"DRAGADOS!E30","v":"Realizar la reposición de acuerdo con los criterios establecidos en los lineamientos técnicos de Circular 820-2-808 de 2019 del MADS, o aquella que la modifique o sustituya  y/o las condiciones puntuales de los actos administrativos respectivos de cada autoridad ambiental, como base para determinar el factor de reposición (Fr) para la especie arbórea (fustal y latizal) y helechos arborescentes (˃ 2 metros) en veda que se reporten en el área de intervención del proyecto, garantizando la sobrevivencia porcentual para los individuos de conformidad con las características intrínsecas de cada especie (botánicas, fisiológicas, ecológicas, de distribución, grado de amenaza, endemismo y/o usos locales). Reportar en los respectivos Informes de Cumplimiento Ambiental - ICA, los avances o la totalidad del censo realizado, entregando de manera detallada la totalidad (100%) de individuos registrados por especie en el área de intervención, el análisis definitivo de la aplicación de los factores de reposición por especie para generar la cantidad de individuos a sembrar, las actividades de mantenimiento, seguimiento y monitoreo, así como el cumplimiento y el análisis del comportamiento de la sobrevivencia y adaptabilidad de los individuos en las áreas receptoras de estas poblaciones.  \n\n[Incluir tabla de porcentajes de sobrevivencia por especie]"},{"$f":"DRAGADOS!F30","v":"N/A"},{"$f":"DRAGADOS!G30","v":"Aplica"},{"$f":"DRAGADOS!H30","v":"Aplica"},{"$f":"DRAGADOS!I30","v":"N/A"},{"$f":"DRAGADOS!J30","v":"Permanente"}]
[{"$f":"DRAGADOS!D31","v":0},{"$f":"DRAGADOS!B31","v":"VEDAS"},{"$f":"DRAGADOS!E31","v":"Presentar una caracterización florística de los áreas de reubicación y reposición definitivas para especies vasculares en veda (orquídeas, bromelias, helechos arborescentes, especies herbáceas y arbóreas) en el primer Informe de Cumplimiento Ambiental - ICA de la fase constructiva, que incluya:\na. Localización de estas dentro del área de influencia del proyecto, garantizando que las especies reubicadas no sean afectadas por los impactos de la ejecución del proyecto. En caso de que no sea posible, justificar las razones de la selección en sitios fuera de la misma, manteniendo condiciones similares para garantizar la sobrevivencia de la flora trasladada.\nb. Descripción de los ecosistemas receptores, estos deben contar con características físico-bióticas similares a los ecosistemas impactados por las obras y actividades de donde serán extraídos los individuos o agregados de estas especies.\nc. Evaluar y analizar la capacidad de recepción de estas poblaciones de flora en sus diferentes hábitos de crecimiento, teniendo en cuenta la potencialidad de diversos sustratos (árboles receptores-forofitos y otros). \nd. Georreferenciar y almacenar la localización de las áreas, puntos de reubicación y reposición específicos (forofitos, diseños florísticos, siembras puntuales, parcelas de siembra, entre otros) conforme el modelo de almacenamiento geográfico establecido en la Resolución 2182 de 2016 del MADS, o la norma que la modifique o sustituya."},{"$f":"DRAGADOS!F31","v":"N/A"},{"$f":"DRAGADOS!G31","v":"Aplica"},{"$f":"DRAGADOS!H31","v":"Aplica"},{"$f":"DRAGADOS!I31","v":"N/A"},{"$f":"DRAGADOS!J31","v":"Permanente"}]
[{"$f":"DRAGADOS!D32","v":0},{"$f":"DRAGADOS!B32","v":"VEDAS"},{"$f":"DRAGADOS!E32","v":"Realizar el cálculo del área de retribución por afectación a los hábitats de especies no vasculares y líquenes en veda bajo el instrumento de “Cálculo del área de retribución por afectación a especies no vasculares y líquenes en veda y sus criterios de evaluación”, disponible en el sitio web: https://www.anla.gov.co/01_anla/proyectos/nuevo-licenciamiento-ambiental/elaboracion-ica-y-control-y-seguimiento. "},{"$f":"DRAGADOS!F32","v":"N/A"},{"$f":"DRAGADOS!G32","v":"Aplica"},{"$f":"DRAGADOS!H32","v":"N/A"},{"$f":"DRAGADOS!I32","v":"N/A"},{"$f":"DRAGADOS!J32","v":"Permanente"}]
[{"$f":"DRAGADOS!D33","v":0},{"$f":"DRAGADOS!B33","v":"VEDAS"},{"$f":"DRAGADOS!E33","v":"Para el (las) área (s) de retribución definitiva por afectación a los hábitats de especies no vasculares y líquenes en veda, se debe entregar y relacionar en el primer Informe de Cumplimiento Ambiental - ICA de la fase constructiva\n\na. Localización de estas dentro del área de influencia del proyecto. En caso de que no sea posible, justificar las razones de la selección en sitios fuera de la misma, y garantizar el tiempo de implementación de la medida en todas sus fases en el (las) área (s) seleccionada(s).\nb. El plan de rehabilitación ecológica, bajo criterios y metas definidas de restauración para propender el restablecimiento de hábitats para estas especies, que contenga objetivos, metas, diagnóstico del área (físico-biótica), planeación de actividades, gestión adaptativa, plan de seguimiento y monitoreo con metas e indicadores."},{"$f":"DRAGADOS!F33","v":"N/A"},{"$f":"DRAGADOS!G33","v":"Aplica"},{"$f":"DRAGADOS!H33","v":"N/A"},{"$f":"DRAGADOS!I33","v":"N/A"},{"$f":"DRAGADOS!J33","v":"Permanente"}]
[{"$f":"DRAGADOS!D34","v":0},{"$f":"DRAGADOS!B34","v":"VEDAS"},{"$f":"DRAGADOS!E34","v":"Reportar en los respectivos Informes de Cumplimiento Ambiental - ICA, el avance de las actividades de restauración ejecutadas en áreas de retribución para definir el progreso de la colonización de la especies de briofitos y líquenes, el cumplimiento del plan de mantenimiento y monitoreo, el seguimiento a los indicadores y metas para lograr la sobrevivencia y adaptabilidad de los individuos sembrados, y demás estrategias."},{"$f":"DRAGADOS!F34","v":"N/A"},{"$f":"DRAGADOS!G34","v":"Aplica"},{"$f":"DRAGADOS!H34","v":"Aplica"},{"$f":"DRAGADOS!I34","v":"N/A"},{"$f":"DRAGADOS!J34","v":"Permanente"}]
[{"$f":"DRAGADOS!D35","v":0},{"$f":"DRAGADOS!B35","v":"CALIDAD AGUA MARINA"},{"$f":"DRAGADOS!E35","v":"Realizar monitoreos en área y profundidad de las características fisicoquímicas y microbiológicas del agua marina, siguiendo los lineamientos establecidos en la Guía para el Monitoreo y Seguimiento del Agua, elaborada por el IDEAM (2004) y las recomendaciones previstas en el Manual de Técnicas Analíticas para la Determinación de Parámetros Fisicoquímicos y Contaminantes Marinos del INVEMAR (2003), o aquellos que los modifiquen o sustituyan, dando cumplimiento a las siguientes condiciones:\n\na) Llevar a cabo i) un monitoreo en un periodo no mayor a un mes antes de iniciar las obras constructivas, [ii) mínimo un muestreo durante la construcción de la obras marítimas], iii) un monitoreo en un periodo no mayor a un mes después de finalizar las obras, y iv) un monitoreo seis meses después de la finalización de las obras. En caso de que, una vez obtenida la licencia ambiental, el proyecto demore más de 1 año en iniciar la fase constructiva del mismo, deberá realizar tres meses antes del inicio de esta fase los monitoreos de las características de calidad de agua marina, con el fin de tener una caracterización más actualizada para poder realizar las comparaciones a las que hay a lugar.\nb) Los parámetros a determinar son, físicos: temperatura, color, sólidos suspendidos totales, sólidos disueltos totales, sólidos sedimentables, conductividad eléctrica, pH, turbidez; químicos: salinidad, oxígeno disuelto (OD), conductividad, demanda química de oxígeno (DQO), demanda biológica de oxígeno (DBO), carbono orgánico total, nitritos, nitratos, nitrógeno total Kjeldahl, fenoles, fosfatos, grasa y aceites, fosforo total, tensoactivos (SAAM), fenoles, hidrocarburos totales, hidrocarburos aromáticos policíclicos, hidrocarburos disueltos dispersos, alcalinidad y acidez, dureza cálcica y total, metales y metaloides (arsénico, bario, cadmio, cinc, cromo, cobre, mercurio, níquel, plata, plomo, selenio), clorofila a y b; microbiológicos: coliformes totales, coliformes termotolerantes y E. Coli.\nc) Las mediciones en el perfil de la columna de agua deben priorizar la mayor estratificación posible (temperatura, densidad, oxígeno disuelto). La determinación de los parámetros establecidos debe realizarse en por lo menos 2 puntos de la columna de agua y complementar con puntos superficiales y de profundidad, de tal forma que se pueda describir de forma adecuada los parámetros que se estén midiendo.\nd) Los puntos de monitoreo deben corresponder a los mismos monitoreados en la caracterización ambiental, en caso de adicionar nuevos puntos se debe justificar su representatividad. Si el proyecto realiza vertimientos al mar, se deben incluir puntos adicionales de monitoreo para el seguimiento de la calidad del agua marina en áreas próximas a las descargas.\ne) A partir de los resultados de los monitoreos establecer los perfiles verticales de temperatura (termoclina), oxígeno disuelto (oxiclina) y de la salinidad (haloclina), analizando su cambio en el transcurso del proyecto.\nf) Los monitoreos de calidad de agua marina deberán realizarse simultáneamente con los monitoreos de calidad de sedimentos marinos y monitoreos hidrobiológicos.\ng) Presentar en los respectivos Informes de Cumplimiento Ambiental - ICA los reportes de laboratorio, las cadenas de custodia originales y el respectivo análisis.\nh) El análisis deberá incluir: i) la comparación con la caracterización ambiental presentada en el EIA y los monitoreos que se vayan realizando conforme el avance de las obras para determinar la tendencia de la calidad del agua marina; ii) la comparación de los resultados de los parámetros medidos con aquellos que se encuentren dentro de los criterios de calidad establecidos en el artículo 18 del Decreto 703 del 2018 y con criterios de referencia para sustancias orgánicas e inorgánicas en el agua utilizados por la Agencia para la Administración de Océanos y Atmósfera de los Estados Unidos - NOAA (https://response.restoration.noaa.gov/environmental-restoration/environmental-assessment-tools/squirt-cards.html); iii) la correlación de los resultados obtenidos en el muestreo con los parámetros de sedimentos marino y los hidrobiológicos; y iv) el análisis de las condiciones ambientales (climáticas y oceanográficas) predominantes en el momento de la realización de los monitoreos, así como la descripción de las obras constructivas que se estén ejecutando, que permitan indagar si estas tienen alguna incidencia en los resultados.\ni) Calcular y analizar para cada caracterización fisicoquímica el índice de calidad de aguas para la preservación de flora y fauna marina ICAMPFF del INVEMAR. En caso de evidenciar cambios en el tiempo de este indicador, realizar el análisis e identificar la causa y la fuente o fuentes del cambio del ICAMPFF.\nj) Los puntos donde se realice el monitoreo y la información obtenida de estos debe georreferenciarse y almacenarse conforme el modelo de almacenamiento geográfico establecido en la Resolución 2182 de 2016 del MADS, o la norma que la modifique o sustituya."},{"$f":"DRAGADOS!F35","v":"Aplica"},{"$f":"DRAGADOS!G35","v":"Aplica"},{"$f":"DRAGADOS!H35","v":"Aplica"},{"$f":"DRAGADOS!I35","v":"N/A"},{"$f":"DRAGADOS!J35","v":"Permanente"}]
[{"$f":"DRAGADOS!D36","v":0}]
[{"$f":"DRAGADOS!D37","v":0},{"$f":"DRAGADOS!B37","v":"CALIDAD DE SEDIMENTO MARINO"},{"$f":"DRAGADOS!E37","v":"Realizar monitoreos de las características fisicoquímicas de los sedimentos del área de influencia del proyecto, siguiendo las recomendaciones previstas en el Manual de Técnicas Analíticas para la Determinación de Parámetros Fisicoquímicos y Contaminantes Marinos del INVEMAR (2003) o aquellos que los modifiquen o sustituyan, dando cumplimiento a las siguientes condiciones:\n\na) Llevar a cabo i) un monitoreo en un periodo no mayor a un mes antes de iniciar las obras constructivas, [ii) mínimo un muestreo durante la construcción de la obras marítimas], iii) un monitoreo en un periodo no mayor a un mes después de finalizar las obras, y iv) un monitoreo seis meses después de la finalización de las obras. En caso de que, una vez obtenida la licencia ambiental, el proyecto demore más de 1 año en iniciar la fase constructiva del mismo, deberá realizar tres meses antes del inicio de esta fase los monitoreos de las características fisicoquímicas de los sedimentos marinos, con e fin de tener una caracterización más actualizada para poder realizar las comparaciones a las que hay a lugar.\nb) Los parámetros a determinar son: temperatura, pH, granulometría, Hidrocarburos aromáticos policíclicos, Carbono orgánico total (COT), Hidrocarburos totales, fenoles, sulfuro ácido volátil, fósforo total y nitrógeno total, grasas y aceites, metales y metaloides (arsénico, bario, cadmio, cinc, cromo, cobre, mercurio, níquel, plata, plomo, selenio), materia orgánica total. \nc) Presentar en los respectivos Informes de Cumplimiento Ambiental - ICA los reportes de laboratorio, las cadenas de custodia originales y el respectivo análisis.\nd) El análisis deberá incluir: i) la comparación con la caracterización ambiental presentada en el EIA y los monitoreos que se vayan realizando conforme el avance de las obras para determinar la tendencia de la calidad de los sedimentos marinos; ii) la comparación de los resultados de los parámetros medidos con aquellos que se encuentren dentro de los niveles de impacto potencial y probable (TEL y PEL) utilizados por la Agencia para la Administración de Océanos y Atmósfera de los Estados Unidos - NOAA (https://response.restoration.noaa.gov/environmental-restoration/environmental-assessment-tools/squirt-cards.html); iii) la correlación de los resultados obtenidos en el muestreo con los parámetros fisicoquímicos del agua marina y los hidrobiológicos; y iv) descripción de las obras constructivas que se estén ejecutando, que permitan indagar si estas tienen alguna incidencia en los resultados.\nd) Los puntos de monitoreo deben corresponder a los mismos monitoreados en la caracterización ambiental, en caso de adicionar nuevos puntos se debe justificar su representatividad. \ne) Los puntos donde se realice el monitoreo y la información obtenida de estos debe georreferenciarse y almacenarse conforme el modelo de almacenamiento geográfico establecido en la Resolución 2182 de 2016 del MADS, o la norma que la modifique o sustituya."},{"$f":"DRAGADOS!F37","v":"Aplica"},{"$f":"DRAGADOS!G37","v":"Aplica"},{"$f":"DRAGADOS!H37","v":"Aplica"},{"$f":"DRAGADOS!I37","v":"N/A"},{"$f":"DRAGADOS!J37","v":"Permanente"}]
[{"$f":"DRAGADOS!D38","v":0},{"$f":"DRAGADOS!B38","v":"BATIMETRÍAS"},{"$f":"DRAGADOS!E38","v":"Realizar batimetrías en áreas de dragado y zonas de disposición marítima del proyecto, teniendo en cuenta una distancia adicional a los límites de las áreas de intervención, de tal forma que permita identificar si se presentan cambios en el fondo marino alrededor de estas áreas. La frecuencia de los levantamientos batimétricos se realizará: i) un muestreo en un periodo no mayor a un mes antes de iniciar las obras constructivas, [ii) muestreos mensuales durante la construcción de la obras marítimas] y iii) un muestreo en un periodo no mayor a un mes después de finalizar las actividades de dragado, que permita verificar los volúmenes de material dragados y las profundidades alcanzadas. Presentar dicha información en los Informes de Cumplimiento Ambiental - ICA, con la identificación de procesos de erosión / sedimentación, el análisis de los posibles impactos en el área de influencia y las correspondientes medidas de manejo en caso de evidenciarse efectos negativos. "},{"$f":"DRAGADOS!F38","v":"Aplica"},{"$f":"DRAGADOS!G38","v":"Aplica"},{"$f":"DRAGADOS!H38","v":"Aplica"},{"$f":"DRAGADOS!I38","v":"N/A"},{"$f":"DRAGADOS!J38","v":"Permanente"}]
[{"$f":"DRAGADOS!D39","v":0},{"$f":"DRAGADOS!B39","v":"DRAGADO"},{"$f":"DRAGADOS!E39","v":"Presentar en los respectivos Informes de Cumplimiento Ambiental - ICA el acumulado de volúmenes de: i) material dragado, ii) material dispuesto en el área autorizada, iii) material aprovechado o reutilizado."},{"$f":"DRAGADOS!F39","v":"N/A"},{"$f":"DRAGADOS!G39","v":"Aplica"},{"$f":"DRAGADOS!H39","v":"N/A"},{"$f":"DRAGADOS!I39","v":"N/A"},{"$f":"DRAGADOS!J39","v":"Permanente"}]
[{"$f":"DRAGADOS!D40","v":0},{"$f":"DRAGADOS!B40","v":"AGUAS DE ESCORRENTÍA"},{"$f":"DRAGADOS!E40","v":"Implementar sistemas de control y manejo de escorrentía dando cumplimiento a lo siguiente:\n\na) Contar con una pendiente que favorezca su conducción a los sistemas de control y manejo de escorrentía, de tal forma que la escorrentía fluya libremente hacia ellas.\nb) De acuerdo con las características de pendiente y tipo de sistemas de control y manejo, deberá contar con disipadores de energía o cualquier otro sistema, que garantice que las aguas lluvias lleguen a una baja velocidad al sitio donde serán entregadas, el cual deberá contar con la capacidad para recibir dichas descargas (el sitio corresponderá a superficies de agua lénticas, lóticas, estructuras de almacenamiento y drenaje artificiales - canales de vías existentes o proyectados, o reservorios- y zonas inundables que eviten la generación de procesos erosivos).\nc) El agua de escorrentía recogida a través de dicho sistema deberá pasar por un sistema de remoción de sólidos antes de ser entregada y podrá contar con tratamientos adicionales, dependiendo de las características del medio por el cual se transporte.\nd) Presentar los soportes de la construcción de estos sistemas y del mantenimiento rutinario, o de entrega a terceros a través de los respectivos Informes de Cumplimiento Ambiental - ICA."},{"$f":"DRAGADOS!F40","v":"N/A"},{"$f":"DRAGADOS!G40","v":"Aplica"},{"$f":"DRAGADOS!H40","v":"N/A"},{"$f":"DRAGADOS!I40","v":"N/A"},{"$f":"DRAGADOS!J40","v":"Permanente"}]
[{"$f":"DRAGADOS!D41","v":0},{"$f":"DRAGADOS!B41","v":"COMPRA DE AGUA"},{"$f":"DRAGADOS!E41","v":"Desarrollar la actividad de compra de agua (uso industrial y/o consumo humano) con terceros debidamente autorizados, y presentar en los Informes de Cumplimiento Ambiental - ICA:\n\na) Copia de los permisos y/o autorizaciones ambientales vigentes de los proveedores de agua.\nb) Documento que soporte el tipo de uso del agua suministrada por el proveedor, el cual debe estar expedido por la autoridad ambiental competente.\nc) Facturas de compra del agua y/o copia de contratos de suministro de agua, que incluyan como mínimo: nombre y NIT del tercero, volúmenes de agua suministrados (uso industrial y/o consumo humano) y fecha/ periodo de compra, por cada periodo reportado.\nd) Actividades y volúmenes en las que fue empleada el agua en el proyecto, según el periodo reportado."},{"$f":"DRAGADOS!F41","v":"N/A"},{"$f":"DRAGADOS!G41","v":"Aplica"},{"$f":"DRAGADOS!H41","v":"N/A"},{"$f":"DRAGADOS!I41","v":"N/A"},{"$f":"DRAGADOS!J41","v":"Permanente"}]
[{"$f":"DRAGADOS!D42","v":0},{"$f":"DRAGADOS!B42","v":"ENTREGA DE AGUAS RESIDUALES A TERCEROS"},{"$f":"DRAGADOS!E42","v":"Realizar la entrega de agua residual doméstica y no doméstica (no incluye las de producción) a un gestor externo autorizado, y presentar en los respectivos Informes de Cumplimiento Ambiental - ICA:\n\na) Certificados de recolección y transporte emitido por la empresa respectiva, que indiquen: nombre de empresa que recolectó y transportó las aguas residuales, fechas de entrega, volúmenes de entrega, tipo de agua residual, sitio de recolección y destino de las aguas. \nb) Actas de recibo, tratamiento y disposición final de las aguas residuales, que incluya: empresa que entrega, fecha, volumen, origen y tipo de agua residual.\nc) Copia de los permisos y/o licencias vigentes de las respectivas empresas que prestarán el servicio de recolección, transporte y disposición final de las aguas residuales."},{"$f":"DRAGADOS!F42","v":"N/A"},{"$f":"DRAGADOS!G42","v":"Aplica"},{"$f":"DRAGADOS!H42","v":"N/A"},{"$f":"DRAGADOS!I42","v":"N/A"},{"$f":"DRAGADOS!J42","v":"Permanente"}]
[{"$f":"DRAGADOS!D43","v":0},{"$f":"DRAGADOS!B43","v":"GESTIÓN INTEGRAL DE AGUAS"},{"$f":"DRAGADOS!E43","v":"Llevar un registro (base de datos) mensual y acumulado de los volúmenes y caudales de las aguas gestionadas [Espacio para indicar la actividad autorizada: compra de agua, entrega de aguas residuales a terceros, etc.], lo cual se soportará mediante un balance de masa, en términos de volumen, que se presentará en cada Informe de Cumplimiento Ambiental - ICA, según el periodo reportado."},{"$f":"DRAGADOS!F43","v":"N/A"},{"$f":"DRAGADOS!G43","v":"Aplica"},{"$f":"DRAGADOS!H43","v":"N/A"},{"$f":"DRAGADOS!I43","v":"N/A"},{"$f":"DRAGADOS!J43","v":"Permanente"}]
[{"$f":"DRAGADOS!D44","v":0},{"$f":"DRAGADOS!B44","v":"RECURSO PESQUERO"},{"$f":"DRAGADOS!E44","v":"Realizar el monitoreo de la actividad pesquera  (artesanal e industrial) en las zonas de desembarque del área de influencia del proyecto, considerando los siguientes aspectos:\n\na) Llevar a cabo i) monitoreos diarios durante un mes antes de iniciar las actividades de dragado, ii) monitoreos cada dos meses de al menos 15 días durante las actividades de dragado y iii) monitoreos diarios durante dos meses posteriores a las actividades de dragado, de tal manera que se verifique la efectividad de las medidas de manejo.\nb) Identificar en los monitoreos la dinámica de la pesca en el área de influencia del proyecto, involucrando como mínimo:\n - Captura por unidad de esfuerzo.\n - Número de pescadores activos dependientes de la pesca.\n - Métodos de captura o artes de pesca usados y sus especificaciones técnicas, incluyendo los costos de inversión y de operación para cada arte y faena.\n - Número y tipo de embarcaciones empleadas.\n - Rutas de navegación.\n - Especies capturadas por tipo de arte (incluyendo una estimación de la captura por especie y arte para una faena de pesca).\n - Esfuerzo de pesca aplicado por arte (duración de la faena).\n - Tallas promedio de captura por especie y por arte.\n - Sitios de desembarco.\n - Estacionalidad de las capturas.\n - Precios de venta por especie.\n - Información relativa a las alternativas económicas de los pescadores diferentes a la pesca.\n - Organizaciones o cooperativas a las que pertenecen los pescadores.\nc) Tener como referente las metodologías oficiales de la Autoridad Nacional de Acuicultura y Pesca - AUNAP para colectar y analizar la información.\nd) El levantamiento de dicha información, puede ser complementada con aquella disponible en las bases de datos del Servicio Estadístico Pesquero Colombiano – SEPEC de la Autoridad Nacional de Acuicultura y Pesca - AUNAP, DIMAR, Ministerio de Agricultura y Desarrollo Rural, Instituto Humboldt, Corporaciones Ambientales Regionales, INVEMAR, entre otras.\ne) La información deberá presentarse de manera acumulada en los respectivos Informes de Cumplimiento Ambiental -ICA, con el análisis de tendencia, comparando los resultados del periodo reportado con los obtenidos en los periodos previos desde la caracterización ambiental."},{"$f":"DRAGADOS!F44","v":"N/A"},{"$f":"DRAGADOS!G44","v":"Aplica "},{"$f":"DRAGADOS!H44","v":"Aplica "},{"$f":"DRAGADOS!I44","v":"N/A"},{"$f":"DRAGADOS!J44","v":"Permanente"}]
[{"$f":"DRAGADOS!D45","v":0},{"$f":"DRAGADOS!B45","v":"CONSTRUCCIÓN Y/O ADECUACIÓN DE VÍAS DE APOYO AL PROYECTO"},{"$f":"DRAGADOS!E45","v":"Anexar, previo al inicio de la fase constructiva del proyecto mediante oficio radicado a esta Autoridad, las autorizaciones y/o permisos necesarios para realizar las obras de construcción y/o adecuación de las vías que servirán de apoyo al proyecto."},{"$f":"DRAGADOS!F45","v":"Aplica"},{"$f":"DRAGADOS!G45","v":"N/A"},{"$f":"DRAGADOS!H45","v":"N/A"},{"$f":"DRAGADOS!I45","v":"N/A"},{"$f":"DRAGADOS!J45","v":"Temporal"}]
[{"$f":"DRAGADOS!D46","v":0},{"$f":"DRAGADOS!B46","v":"CONSTRUCCIÓN Y/O ADECUACIÓN DE VÍAS DE APOYO AL PROYECTO"},{"$f":"DRAGADOS!E46","v":"Remitir en los Informes de Cumplimiento Ambiental - ICA, un informe en el que se especifique y reporten las actividades de construcción y/o adecuación realizadas sobre las vías que servirán de apoyo al proyecto, y sus zonas aledañas incluidas en el derecho de vía - DDV, para cada periodo reportado, incluyendo los soportes técnicos y registros fílmicos y/o fotográficos en los que se evidencie fecha y coordenadas. "},{"$f":"DRAGADOS!F46","v":"N/A"},{"$f":"DRAGADOS!G46","v":"Aplica"},{"$f":"DRAGADOS!H46","v":"N/A"},{"$f":"DRAGADOS!I46","v":"N/A"},{"$f":"DRAGADOS!J46","v":"Permanente"}]
[{"$f":"DRAGADOS!D47","v":0},{"$f":"DRAGADOS!B47","v":"CONSTRUCCIÓN Y/O ADECUACIÓN DE VÍAS DE APOYO AL PROYECTO"},{"$f":"DRAGADOS!E47","v":"Al finalizar la fase constructiva del proyecto, presentar en el respectivo Informe de Cumplimiento Ambiental - ICA, un informe que incluya el estado final de las vías que sirvieron de apoyo al proyecto, y sus zonas aledañas incluidas en el derecho de vía - DDV, garantizando que las mismas sean entregadas en iguales o mejores condiciones. Incluir en dicho informe un registro fílmico y/o fotográfico en el que se evidencie fecha y coordenadas. "},{"$f":"DRAGADOS!F47","v":"N/A"},{"$f":"DRAGADOS!G47","v":"Aplica"},{"$f":"DRAGADOS!H47","v":"N/A"},{"$f":"DRAGADOS!I47","v":"N/A"},{"$f":"DRAGADOS!J47","v":"Temporal"}]
[{"$f":"DRAGADOS!D48","v":0},{"$f":"DRAGADOS!B48","v":"MATERIALES DE CONSTRUCCIÓN"},{"$f":"DRAGADOS!E48","v":"Para el desarrollo de las actividades del proyecto, realizar la adquisición de materiales de construcción con terceros que cuenten con los correspondientes permisos o autorizaciones ante la autoridad minera y ambiental competente, y reportar en los respectivos Informes de Cumplimiento Ambiental - ICA lo siguiente:\n\na)  Copias de los títulos mineros y licencias y/o permisos ambientales vigentes para el periodo reportado de las empresas proveedoras de materiales de construcción utilizados durante el periodo. En caso de cambio de proveedores diferentes a los reportados en el EIA y/o modificación o renovación de las licencias y/o permisos ambientales de las empresas proveedoras, presentar los soportes correspondientes.\nb) Las certificaciones/facturas de compra de material en las que se discrimine la fuente u origen, tipo de material, cantidad adquirida (expresada en unidades de volumen o masa) y fecha o periodo de compra.\nc) Reporte en el que se evidencie el uso/destino del material, discriminando las cantidades (unidades de volumen o masa)."},{"$f":"DRAGADOS!F48","v":"N/A"},{"$f":"DRAGADOS!G48","v":"Aplica"},{"$f":"DRAGADOS!H48","v":"N/A"},{"$f":"DRAGADOS!I48","v":"N/A"},{"$f":"DRAGADOS!J48","v":"Permanente"}]
[{"$f":"DRAGADOS!D49","v":0},{"$f":"DRAGADOS!B49","v":"ALMACENAMIENTO DE COMBUSTIBLES Y PRODUCTOS QUÍMICOS"},{"$f":"DRAGADOS!E49","v":"Instalar en los sitios donde se almacene, manipule y/o utilice crudo, aceites, combustibles, productos químicos, residuos aceitosos u otro material potencialmente contaminante, los elementos y/o la infraestructura necesaria que garantice la contención en caso de derrames y la no contaminación del suelo, de acuerdo al Título 6, Parte 2, Libro 2 del Decreto 1076 de 2015 y demás normativa vigente en la materia, tales como:\n\na) Diques de contención con base y muros impermeabilizados que permitan contener como mínimo el 110% del volumen almacenado.\nb) Sistema de cunetas perimetrales, que descolen en cajas de inspección o tanques ciegos para su contención, recolección y posterior tratamiento como residuo peligroso.\nc) Condiciones óptimas o sistemas que permitan la ventilación e iluminación.\nd) Sistemas de prevención y control de incendios.\ne) Kit antiderrames.\nf) Señalización.\ng) Hojas de seguridad de los productos químicos almacenados con la matriz de compatibilidad."},{"$f":"DRAGADOS!F49","v":"N/A"},{"$f":"DRAGADOS!G49","v":"Aplica"},{"$f":"DRAGADOS!H49","v":"N/A"},{"$f":"DRAGADOS!I49","v":"N/A"},{"$f":"DRAGADOS!J49","v":"Permanente"}]
[{"$f":"DRAGADOS!D50","v":0},{"$f":"DRAGADOS!B50","v":"ALMACENAMIENTO DE MATERIALES DE CONSTRUCCIÓN"},{"$f":"DRAGADOS!E50","v":"El almacenamiento de materiales de construcción cumplirá con las siguientes condiciones:\n\na) Ubicarse en áreas aptas de acuerdo con la zonificación de manejo ambiental establecida para el proyecto.\nb) Ubicarse en una zona libre, plana en lo posible y de fácil acceso.\nc) Realizar el descapote del área previo al almacenamiento del material.\nd) Implementar medidas de retención de sedimentos en la zona de acopio, que garanticen la no afectación de los cuerpos hídricos cercanos.\ne) Todo material de construcción acopiado a cielo abierto dentro de los frentes de obra y que no pueda ser utilizado durante la jornada laboral, será cubierto y señalizado."},{"$f":"DRAGADOS!F50","v":"N/A"},{"$f":"DRAGADOS!G50","v":"Aplica"},{"$f":"DRAGADOS!H50","v":"N/A"},{"$f":"DRAGADOS!I50","v":"N/A"},{"$f":"DRAGADOS!J50","v":"Permanente"}]
[{"$f":"DRAGADOS!D51","v":0},{"$f":"DRAGADOS!B51","v":"RESIDUOS"},{"$f":"DRAGADOS!E51","v":"Llevar un registro (base de datos) mensual acumulada de la cantidad de residuos sólidos convencionales (aprovechables y no aprovechables), residuos peligrosos (sólidos y líquidos), residuos posconsumo y residuos de construcción y demolición (RCD) generados, aprovechados, tratados y/o dispuestos, que indique como mínimo: tipo de residuo, cantidad de residuos generados, cantidad de residuos aprovechados, tratados y/o dispuestos por parte de terceros o del titular de la licencia, tipo de aprovechamiento, tratamiento y disposición. Presentar dicho registro, en los respectivos Informes de Cumplimiento Ambiental - ICA a través del formato \"Plantilla de Seguimiento a la Gestión de Residuos\"."},{"$f":"DRAGADOS!F51","v":"N/A"},{"$f":"DRAGADOS!G51","v":"Aplica"},{"$f":"DRAGADOS!H51","v":"N/A"},{"$f":"DRAGADOS!I51","v":"N/A"},{"$f":"DRAGADOS!J51","v":"Permanente"}]
[{"$f":"DRAGADOS!D52","v":0},{"$f":"DRAGADOS!B52","v":"RESIDUOS"},{"$f":"DRAGADOS!E52","v":"Contar con sitios de almacenamiento temporal de residuos sólidos convencionales (aprovechables y no aprovechables) y de residuos peligrosos (líquidos y sólidos), en cumplimiento del Decreto 1077 de 2015 (Compila Decreto 2981 de 2013 del Ministerio de Vivienda, Ciudad y Territorio) y del Reglamento Técnico del Sector de Agua Potable y Saneamiento Básico - RAS, los cuales deberán ser independientes y contar con:\n\na) Base impermeabilizada para evitar una posible contaminación del suelo.\nb) Cubierta para evitar el contacto con el agua.\nc) Sistema de diques y cunetas perimetrales para los residuos líquidos.\nd) Condiciones óptimas o sistemas que permitan la ventilación e iluminación.\ne) Sistemas de prevención y control de incendios.\nf) Kit antiderrames (para el almacenamiento de residuos líquidos peligrosos)\ng) Señalización.\nh) Los recipientes empleados para el almacenamiento de los residuos deberán ser identificados por tipo de residuo y permitir su fácil limpieza."},{"$f":"DRAGADOS!F52","v":"N/A"},{"$f":"DRAGADOS!G52","v":"Aplica"},{"$f":"DRAGADOS!H52","v":"N/A"},{"$f":"DRAGADOS!I52","v":"N/A"},{"$f":"DRAGADOS!J52","v":"Permanente"}]
[{"$f":"DRAGADOS!D53","v":0},{"$f":"DRAGADOS!B53","v":"RESIDUOS"},{"$f":"DRAGADOS!E53","v":"Realizar el manejo de residuos sólidos convencionales (aprovechables y no aprovechables) a través de terceros debidamente autorizados para su transporte, almacenamiento, aprovechamiento, tratamiento y/o disposición final, y presentar en los respectivos Informes de Cumplimiento Ambiental – ICA:\n\na) Copia de las autorizaciones, permisos y/o licencias de las respectivas empresas encargadas de la gestión de los residuos.\nb) Actas de entrega para el transporte, almacenamiento, aprovechamiento, tratamiento y/o disposición final, que indiquen: nombre de empresa, fecha de entrega, sitio de entrega, tipo de residuos, cantidad, tratamiento y/o aprovechamiento a implementar (para el caso de residuos aprovechables).\nc) Relacionar los volúmenes generados de residuos tanto aprovechables como no aprovechables en  el registro (base de datos) solicitada por esta Autoridad."},{"$f":"DRAGADOS!F53","v":"N/A"},{"$f":"DRAGADOS!G53","v":"Aplica"},{"$f":"DRAGADOS!H53","v":"N/A"},{"$f":"DRAGADOS!I53","v":"N/A"},{"$f":"DRAGADOS!J53","v":"Permanente"}]
[{"$f":"DRAGADOS!D54","v":0},{"$f":"DRAGADOS!B54","v":"RESIDUOS"},{"$f":"DRAGADOS!E54","v":"Realizar el manejo de residuos peligrosos (líquidos y sólidos) a través de terceros debidamente autorizados para su transporte, almacenamiento, aprovechamiento, tratamiento y/o disposición final, y presentar en los respectivos Informes de Cumplimiento Ambiental – ICA:\n\na) Copia de las autorizaciones, permisos y/o licencias de las respectivas empresas encargadas de la gestión de los residuos.\nb) Actas de entrega para el transporte, almacenamiento, aprovechamiento, tratamiento y/o disposición final, que indiquen: nombre de empresa, fecha de entrega, sitio de entrega, tipo de residuos y cantidad.\nc) Certificados de tratamiento, aprovechamiento y/o disposición final, que indiquen: nombre de empresa que gestionó los residuos, nombre de empresa que entregó los residuos, fechas de recepción y gestión de residuos, tipo de residuo, cantidad, tipo de tratamiento realizado  y/o alternativa de disposición final y sitio donde se gestionó el residuo.\nd) Relacionar los volúmenes generados, aprovechados, tratados y/o dispuestos en el registro (base de datos) solicitada por esta Autoridad."},{"$f":"DRAGADOS!F54","v":"N/A"},{"$f":"DRAGADOS!G54","v":"Aplica"},{"$f":"DRAGADOS!H54","v":"N/A"},{"$f":"DRAGADOS!I54","v":"N/A"},{"$f":"DRAGADOS!J54","v":"Permanente"}]
[{"$f":"DRAGADOS!D55","v":0},{"$f":"DRAGADOS!B55","v":"RESIDUOS"},{"$f":"DRAGADOS!E55","v":"Para cantidades iguales o superiores a 10 kg/mes de residuos sólidos peligrosos, dar cumplimiento a lo establecido en la Resolución 1362 del 2007 del Ministerio de Ambiente, Vivienda y Desarrollo Territorial, o aquella que la modifique, derogue o sustituya, por la cual se establecen los requisitos y el procedimiento para el Registro de Generadores de Residuos o Desechos Peligrosos, a que hacen referencia los artículos 2.2.6.1.6.1 y 2.2.6.1.6.2 del Decreto 1076 de 2015. "},{"$f":"DRAGADOS!F55","v":"N/A"},{"$f":"DRAGADOS!G55","v":"Aplica"},{"$f":"DRAGADOS!H55","v":"N/A"},{"$f":"DRAGADOS!I55","v":"N/A"},{"$f":"DRAGADOS!J55","v":"Permanente"}]
[{"$f":"DRAGADOS!D56","v":0},{"$f":"DRAGADOS!B56","v":"RESIDUOS"},{"$f":"DRAGADOS!E56","v":"De conformidad con el establecido en el artículo 2.2.6.1.3.1. del Título 6, Parte 2, Libro 2 del Decreto 1076 de 2015 o aquella que la modifique, derogue o sustituya, no se podrá realizar el almacenamiento temporal de residuos peligrosos por más de doce (12) meses; en los casos debidamente sustentados y justificados, se podrá solicitar ante esta autoridad, una extensión de dicho periodo. "},{"$f":"DRAGADOS!F56","v":"N/A"},{"$f":"DRAGADOS!G56","v":"Aplica"},{"$f":"DRAGADOS!H56","v":"N/A"},{"$f":"DRAGADOS!I56","v":"N/A"},{"$f":"DRAGADOS!J56","v":"Permanente"}]
[{"$f":"DRAGADOS!D57","v":0},{"$f":"DRAGADOS!B57","v":"DESMANTELAMIENTO Y ABANDONO"},{"$f":"DRAGADOS!E57","v":"Presentar mediante oficio dirigido a la Subdirección de Seguimiento de Licencias Ambientales por lo menos con tres (3) meses de anticipación al inicio del desmantelamiento y abandono del proyecto, el estudio del que trata el artículo 2.2.2.3.9.2 del Decreto 1076 del 2015, o la norma que lo modifique y/o sustituya."},{"$f":"DRAGADOS!F57","v":"N/A"},{"$f":"DRAGADOS!G57","v":"Aplica"},{"$f":"DRAGADOS!H57","v":"N/A"},{"$f":"DRAGADOS!I57","v":"N/A"},{"$f":"DRAGADOS!J57","v":"Temporal"}]
[{"$f":"DRAGADOS!D58","v":0},{"$f":"DRAGADOS!B58","v":"DESMANTELAMIENTO Y ABANDONO"},{"$f":"DRAGADOS!E58","v":"Al finalizar la fase constructiva, realizar el desmonte y cierre de las instalaciones temporales como campamentos, plantas de triturado, concreto, mezcla asfáltica, fuentes de material y demás áreas utilizadas para la construcción del proyecto, así como el retiro de los equipos de construcción, materiales sobrantes y escombros. Documentar y reportar las medidas y acciones implementadas en los Informes de Cumplimiento Ambiental - ICA."},{"$f":"DRAGADOS!F58","v":"N/A"},{"$f":"DRAGADOS!G58","v":"Aplica"},{"$f":"DRAGADOS!H58","v":"N/A"},{"$f":"DRAGADOS!I58","v":"N/A"},{"$f":"DRAGADOS!J58","v":"Temporal"}]
[{"$f":"DRAGADOS!D59","v":0},{"$f":"DRAGADOS!B59","v":"COMPENSACIONES DEL MEDIO BIÓTICO"},{"$f":"DRAGADOS!E59","v":"En ningún caso las actividades de compensación podrán generar impactos adicionales a los ya identificados por el proyecto; en este sentido, para la implementación de las actividades de compensación no se podrá hacer uso y/o aprovechamiento de recursos naturales adicionales a los ya aprobados para las actividades en el presente acto administrativo."},{"$f":"DRAGADOS!F59","v":"N/A"},{"$f":"DRAGADOS!G59","v":"Aplica"},{"$f":"DRAGADOS!H59","v":"Aplica"},{"$f":"DRAGADOS!I59","v":"N/A"},{"$f":"DRAGADOS!J59","v":"Permanente"}]
[{"$f":"DRAGADOS!D60","v":0},{"$f":"DRAGADOS!B60","v":"COMPENSACIONES DEL MEDIO BIÓTICO"},{"$f":"DRAGADOS!E60","v":"Dar inicio a las actividades de compensación en un periodo máximo de 6 meses una vez iniciada la actividad que da origen al impacto y a la respectiva compensación, incluyendo las consideraciones de adicionalidad y/u obligaciones específicas del acto administrativo, de conformidad con el articulo 3 de la Resolución 256 del 22 de febrero de 2018, o aquella norma que la modifique, derogue o sustituya, e informar a esta autoridad mediante oficio dirigido a la Subdirección de Seguimiento de Licencias Ambientales el inicio de las  actividades de compensación."},{"$f":"DRAGADOS!F60","v":"N/A"},{"$f":"DRAGADOS!G60","v":"Aplica"},{"$f":"DRAGADOS!H60","v":"Aplica"},{"$f":"DRAGADOS!I60","v":"N/A"},{"$f":"DRAGADOS!J60","v":"Temporal"}]
[{"$f":"DRAGADOS!D61","v":0},{"$f":"DRAGADOS!B61","v":"COMPENSACIONES DEL MEDIO BIÓTICO"},{"$f":"DRAGADOS!E61","v":"Parágrafo 1: El cumplimiento de objetivos y obligaciones asociadas a las formas agrupadas de implementación de los planes de compensación del medio biótico e inversión forzosa de no menos del 1% a las que se refiere el Manual de Compensaciones del Componente Biótico y el Articulo  2.2.9.3.1.12. del Decreto 1076 de 2015, o aquella norma que la modifique, derogue o sustituya, se presentarán de manera independiente en los Informes de Cumplimiento Ambiental de cada proyecto y de cada obligación correspondiente, bajo el modelo de almacenamiento geográfico establecido en la Resolución 2182 de 2016 del MADS, o la que la modifique, derogue o sustituya."},{"$f":"DRAGADOS!F61","v":" -"},{"$f":"DRAGADOS!G61","v":" -"},{"$f":"DRAGADOS!H61","v":" -"},{"$f":"DRAGADOS!I61","v":" -"},{"$f":"DRAGADOS!J61","v":" -"}]
[{"$f":"DRAGADOS!D62","v":0},{"$f":"DRAGADOS!B62","v":"COMPENSACIONES DEL MEDIO BIÓTICO"},{"$f":"DRAGADOS!E62","v":"Parágrafo 2: No se deberán presentar superposiciones entre las áreas destinadas para el cumplimiento de las obligaciones de compensación o de inversión forzosa de no menos del 1%, así como tampoco con áreas destinadas al cumplimiento de obligaciones impuestas a cualquier otro expediente, máxime cuando se trate de la misma actividad propuesta para el cumplimiento de la obligación."},{"$f":"DRAGADOS!F62","v":" -"},{"$f":"DRAGADOS!G62","v":" -"},{"$f":"DRAGADOS!H62","v":" -"},{"$f":"DRAGADOS!I62","v":" -"},{"$f":"DRAGADOS!J62","v":" -"}]
[{"$f":"DRAGADOS!D63","v":0},{"$f":"DRAGADOS!B63","v":"COMPENSACIONES DEL MEDIO BIÓTICO"},{"$f":"DRAGADOS!E63","v":"Entregar mediante oficio dirigido a la Subdirección de Seguimiento de Licencias Ambientales - SSLA, el cronograma con las fechas de presentación de las áreas definitivas de compensación a esta Autoridad para su aprobación, previo al inicio de las actividades que generan el impacto, contemplando la condición del inicio de la implementación de las acciones de compensación en un máximo de seis meses después del inicio de las actividades que generan el impacto. Cualquier modificación deberá ser informada y autorizada por la autoridad, quien se pronunciará sobre la pertinencia de las modificaciones solicitadas."},{"$f":"DRAGADOS!F63","v":"N/A"},{"$f":"DRAGADOS!G63","v":"Aplica"},{"$f":"DRAGADOS!H63","v":"N/A"},{"$f":"DRAGADOS!I63","v":"N/A"},{"$f":"DRAGADOS!J63","v":"Puntual"}]
[{"$f":"DRAGADOS!D64","v":0},{"$f":"DRAGADOS!B64","v":"COMPENSACIONES DEL MEDIO BIÓTICO"},{"$f":"DRAGADOS!E64","v":"En caso de identificar que, una vez finalizada la actividad que genera la compensación, se incurre en una compensación de menor o mayor área a la aprobada mediante el presente acto administrativo, el titular de la licencia informará a esta autoridad los ajustes al plan de compensación para que en el marco del seguimiento ambiental sea objeto de análisis y aprobación."},{"$f":"DRAGADOS!F64","v":"N/A"},{"$f":"DRAGADOS!G64","v":"Aplica"},{"$f":"DRAGADOS!H64","v":"Aplica"},{"$f":"DRAGADOS!I64","v":"N/A"},{"$f":"DRAGADOS!J64","v":"Permanente"}]
[{"$f":"DRAGADOS!D65","v":0},{"$f":"DRAGADOS!B65","v":"COMPENSACIONES DEL MEDIO BIÓTICO"},{"$f":"DRAGADOS!E65","v":"Las áreas definitivas para el desarrollo de las actividades aprobadas de compensación deberán estar inmersas en las áreas preliminares aprobadas mediante el presente acto administrativo, en caso contrario, deberán ser debidamente justificadas garantizando la adicionalidad y las mismas condiciones de modo, tiempo y lugar que fueron objeto de aprobación, con el fin de ser presentadas a esta autoridad para que en el marco del seguimiento ambiental sea objeto de análisis y aprobación de conformidad con lo dispuesto en el articulo 4 de la Resolución 256 del 22 de febrero de 2018 o aquella norma que la modifique, derogue o sustituya."},{"$f":"DRAGADOS!F65","v":"N/A"},{"$f":"DRAGADOS!G65","v":"Aplica"},{"$f":"DRAGADOS!H65","v":"Aplica"},{"$f":"DRAGADOS!I65","v":"N/A"},{"$f":"DRAGADOS!J65","v":"Permanente"}]
[{"$f":"DRAGADOS!D66","v":0},{"$f":"DRAGADOS!B66","v":"COMPENSACIONES DEL MEDIO BIÓTICO"},{"$f":"DRAGADOS!E66","v":"En caso de cambio en las acciones, sitios, modos, mecanismos y/o formas de compensación aprobadas, presentarlos a esta autoridad para que en el marco del seguimiento ambiental sea objeto de análisis y aprobación, de conformidad con lo dispuesto en el articulo 4 de la Resolución 256 del 22 de febrero de 2018 o aquella norma que la modifique, derogue o sustituya."},{"$f":"DRAGADOS!F66","v":"N/A"},{"$f":"DRAGADOS!G66","v":"Aplica"},{"$f":"DRAGADOS!H66","v":"Aplica"},{"$f":"DRAGADOS!I66","v":"N/A"},{"$f":"DRAGADOS!J66","v":"Permanente"}]
[{"$f":"DRAGADOS!D67","v":0},{"$f":"DRAGADOS!B67","v":"COMPENSACIONES DEL MEDIO BIÓTICO"},{"$f":"DRAGADOS!E67","v":"El titular de la licencia ambiental, deberá presentar en los respectivos Informes de Cumplimiento Ambiental - ICA, un informe de avance, el cual debe contener como mínimo: \n\na) Comparación de la caracterización detallada de los polígonos elegidos para llevar a cabo las acciones de compensación del medio biótico, respecto a los resultados obtenidos durante el seguimiento y monitoreo propuesto, para cada uno de los indicadores y realizar el análisis de efectividad respectivo, así como la propuesta de ajuste en caso de resultados desfavorables. \nb) Información geográfica del área compensada a la fecha de presentación del informe de avance, incluyendo la respectiva discriminación por acción de compensación, y porcentaje de avance con respecto al área total a compensar. \nc) Estado de los ecosistemas del área de compensación propuestas para las acciones de restauración, preservación y/o uso sostenible, las cuales deberán ser coherentes con las necesidades del territorio frente a procesos de conservación y restauración ecológica, así como los instrumentos de planificación y ordenamiento territorial.\nd) En caso de proponerse acciones de restauración ecológica bajo el enfoque de restauración, se debe presentar un análisis, a través de los indicadores propuestos, que permitan establecer la trayectoria sucesional del área intervenida y si esta es acorde a la referencia elegida. De ser necesario, se debe proponer el ajuste de las medidas para ser implementadas en el siguiente periodo.\ne) Descripción de las actividades ejecutadas, que incluya los soportes y registro fotográfico que evidencien cada una de las actividades propuestas en la fase de implementación, seguimiento y monitoreo para las acciones aprobadas, señalando: i) el área efectivamente intervenida durante el periodo y ii) el progreso en la implementación del plan de compensación por ecosistema.\nf) Porcentaje de avance de acuerdo al cronograma.\n\nParágrafo: La compensación se dará por cumplida una vez se logre el cumplimiento de los objetivos y metas propuestos por la sociedad en términos ecológicos, biológicos y/o ecosistémicos. "},{"$f":"DRAGADOS!F67","v":"N/A"},{"$f":"DRAGADOS!G67","v":"Aplica"},{"$f":"DRAGADOS!H67","v":"Aplica"},{"$f":"DRAGADOS!I67","v":"N/A"},{"$f":"DRAGADOS!J67","v":"Permanente"}]
[{"$f":"DRAGADOS!D68","v":0},{"$f":"DRAGADOS!B68","v":"COMPENSACIONES DEL MEDIO BIÓTICO"},{"$f":"DRAGADOS!E68","v":"El titular de la licencia ambiental evidenciará y cuantificará la no pérdida neta de biodiversidad de la que trata el \"Manual de compensaciones del componente biótico\", utilizando como ecosistema de referencia las áreas de afectación que generan las obligaciones de compensación, para lo cual deberá presentar en el primer Informe de Cumplimiento Ambiental - ICA de la fase constructiva, con base en los datos de línea base del estudio de impacto ambiental: \n\na) El cálculo de los indicadores contenidos en el documento \"Indicadores de impacto para el seguimiento de las obligaciones de compensación y planes de inversión del 1%\" para los ecosistemas de referencia. \nb) Las metas actualizadas del plan de compensación en términos de composición, estructura y función de las acciones a implementar, de acuerdo con los resultados de los atributos ecológicos obtenidos de la aplicación de los indicadores en los ecosistemas de referencia.\n\nEn los siguientes Informes de Cumplimiento Ambiental - ICA se deberá presentar el cálculo de los indicadores de impacto para las áreas de compensación, con el fin de establecer el cumplimiento de las metas en términos de la efectividad de las medidas de compensación asociadas a la no pérdida neta de biodiversidad. \n\nParágrafo: En caso de cambios en las áreas u acciones de compensación, las metas deberán ser actualizadas de acuerdo con el resultados de los indicadores de impacto para la composición, estructura y función de los ecosistemas de referencia."},{"$f":"DRAGADOS!F68","v":"N/A"},{"$f":"DRAGADOS!G68","v":"Aplica"},{"$f":"DRAGADOS!H68","v":"Aplica"},{"$f":"DRAGADOS!I68","v":"N/A"},{"$f":"DRAGADOS!J68","v":"Permanente"}]
[{"$f":"DRAGADOS!D69","v":0},{"$f":"DRAGADOS!B69","v":"COMPENSACIONES DEL MEDIO BIÓTICO"},{"$f":"DRAGADOS!E69","v":"Al titular de la licencia en ningún caso le será posible atribuir el cumplimiento de los objetivos de compensación a un tercero."},{"$f":"DRAGADOS!F69","v":"N/A"},{"$f":"DRAGADOS!G69","v":"Aplica"},{"$f":"DRAGADOS!H69","v":"Aplica"},{"$f":"DRAGADOS!I69","v":"N/A"},{"$f":"DRAGADOS!J69","v":"Permanente"}]
[{"$f":"DRAGADOS!D70","v":0},{"$f":"DRAGADOS!B70","v":"INVERSIÓN DEL 1%"},{"$f":"DRAGADOS!E70","v":"Informar a la ANLA por medio de oficio dirigido a la Subdirección de Seguimiento de Licencias Ambientales, la fecha de inicio del uso del recurso hídrico autorizado en el permiso de concesión de aguas y si a esa fecha se han ejecutado alguna o algunas de los ítems (actividades) enmarcados en el artículo 321 de la ley 1955 del 2019, o aquella que la modifique, derogue o sustituya."},{"$f":"DRAGADOS!F70","v":"N/A"},{"$f":"DRAGADOS!G70","v":"Aplica"},{"$f":"DRAGADOS!H70","v":"N/A"},{"$f":"DRAGADOS!I70","v":"N/A"},{"$f":"DRAGADOS!J70","v":"Temporal"}]
[{"$f":"DRAGADOS!D71","v":0},{"$f":"DRAGADOS!B71","v":"INVERSIÓN DEL 1%"},{"$f":"DRAGADOS!E71","v":"Presentar dentro de los tres meses siguientes a cada vigencia fiscal (plazo máximo a 31 de marzo), certificado de revisor fiscal o contador público, informando las inversiones base de liquidación incurridas en el año inmediatamente anterior una vez se haya iniciado el uso del recurso hídrico autorizado en el permiso de concesión de aguas y la ejecución de alguna o algunas de los ítems (actividades) enmarcados en el artículo 321 de la ley 1955 del 2019, o la ley que la modifique, derogue o sustituya, para ajustar el monto base de liquidación de la inversión forzosa de no menos el 1%, con los montos efectivamente ejecutados y registrados en los libros de contabilidad del proyecto. La certificación debe incluir los costos, gastos y valores capitalizados, y deberá ser detallada de conformidad a los ítems establecidos en el artículo 321 de la Ley 1955 de 2019.\n\nSi las inversiones se efectuaron en dólares informar la TRM utilizada para la conversión a pesos COP para cada año de ejecución del proyecto."},{"$f":"DRAGADOS!F71","v":"N/A"},{"$f":"DRAGADOS!G71","v":"Aplica"},{"$f":"DRAGADOS!H71","v":"Aplica"},{"$f":"DRAGADOS!I71","v":"N/A"},{"$f":"DRAGADOS!J71","v":"Permanente"}]
[{"$f":"DRAGADOS!D72","v":0},{"$f":"DRAGADOS!B72","v":"INVERSIÓN DEL 1%"},{"$f":"DRAGADOS!E72","v":"Iniciar el plan de inversión forzosa de no menos del 1% aprobado en un periodo de tiempo no superior de seis (6) meses posteriores a la presentación del primer certificado de revisor fiscal o contador público."},{"$f":"DRAGADOS!F72","v":"N/A"},{"$f":"DRAGADOS!G72","v":"Aplica"},{"$f":"DRAGADOS!H72","v":"Aplica"},{"$f":"DRAGADOS!I72","v":"N/A"},{"$f":"DRAGADOS!J72","v":"Temporal"}]
[{"$f":"DRAGADOS!D73","v":0},{"$f":"DRAGADOS!B73","v":"INVERSIÓN DEL 1%"},{"$f":"DRAGADOS!E73","v":"Parágrafo: En caso de no ejecutar las inversiones del cronograma por un tiempo superior a un año fiscal, presentar por medio de oficio dirigido a la Subdirección de Seguimiento de Licencias Ambientales de esta autoridad, la actualización del valor de la liquidación de la inversión, de acuerdo con la fórmula señalada en el parágrafo 1 del artículo 321 de la ley 1955 del 25 de mayo de 2019, con plazo máximo de 31 de marzo del año siguiente."},{"$f":"DRAGADOS!F73","v":" -"},{"$f":"DRAGADOS!G73","v":" -"},{"$f":"DRAGADOS!H73","v":" -"},{"$f":"DRAGADOS!I73","v":" -"},{"$f":"DRAGADOS!J73","v":" -"}]
[{"$f":"DRAGADOS!D74","v":0},{"$f":"DRAGADOS!B74","v":"INVERSIÓN DEL 1%"},{"$f":"DRAGADOS!E74","v":"Presentar en los respectivos Informes de Cumplimiento Ambiental - ICA informes de avance de las actividades, los cuales deben incluir como mínimo lo siguiente:\n\na) Descripción de las acciones y actividades desarrolladas respecto al plan de inversión forzosa del 1%, de acuerdo con las líneas de destinación aprobadas.\nb) Avance en la ejecución de las actividades conforme con el cronograma para las acciones y actividades de las líneas de destinación aprobadas.\nc) Descripción del avance detallado del proyecto, indicando cantidades y valores efectivamente ejecutados anexando los soportes técnicos y financieros (factura, contrato o documento equivalente).\nd) Modelo de almacenamiento geográfico según lo establecido en la Resolución 2182 de 2016 de Minambiente, o la que la modifique, derogue o sustituya."},{"$f":"DRAGADOS!F74","v":"N/A"},{"$f":"DRAGADOS!G74","v":"Aplica"},{"$f":"DRAGADOS!H74","v":"Aplica"},{"$f":"DRAGADOS!I74","v":"N/A"},{"$f":"DRAGADOS!J74","v":"Permanente"}]
[{"$f":"DRAGADOS!D75","v":0},{"$f":"DRAGADOS!B75","v":"INVERSIÓN DEL 1%"},{"$f":"DRAGADOS!E75","v":"Parágrafo: El cumplimiento de objetivos y obligaciones asociadas a las formas agrupadas de implementación de los planes de compensación del medio biótico e inversión de no menos del 1% a las que se refiere el Manual de Compensaciones del Componente Biótico y el Articulo  2.2.9.3.1.12. del Decreto 1076 de 2015, o aquella norma que la modifique, derogue o sustituya, se presentarán de manera independiente en los Informes de Cumplimiento Ambiental de cada proyecto y de cada obligación correspondiente, incluyendo la información asociada al modelo de almacenamiento geográfico establecido en la Resolución 2182 de 2016 del MADS, o la que la modifique, derogue o sustituya."},{"$f":"DRAGADOS!F75","v":" -"},{"$f":"DRAGADOS!G75","v":" -"},{"$f":"DRAGADOS!H75","v":" -"},{"$f":"DRAGADOS!I75","v":" -"},{"$f":"DRAGADOS!J75","v":" -"}]
[{"$f":"DRAGADOS!D76","v":0},{"$f":"DRAGADOS!B76","v":"INVERSIÓN DEL 1%"},{"$f":"DRAGADOS!E76","v":"Realizar los monitoreos semestrales de flora en áreas de inversión de no menos del 1% (acciones de conservación) para evidenciar el cumplimiento de la línea de inversión propuesta dependiendo de las metas e indicadores establecidos en el plan de seguimiento y monitoreo. Para ello, se puede emplear parcelas permanentes con la forma y tamaño apropiado que sea representativo para el área y ecosistema terrestre sujeto a monitoreo, o cualquier otra metodología que esté debidamente justificada. Los datos obtenidos deben brindar información que permita analizar la estructura, composición y riqueza, entre otras variables. El tiempo de implementación de los monitoreos deberá realizarse hasta que se demuestre el cumplimiento de la meta propuesta de la obligación. La información deberá presentarse de manera acumulada en los respectivos Informes de Cumplimiento Ambiental -ICA, con el análisis de tendencia, comparando los resultados del periodo reportado con los obtenidos en los periodos previos desde la caracterización ambiental."},{"$f":"DRAGADOS!F76","v":"N/A"},{"$f":"DRAGADOS!G76","v":"Aplica"},{"$f":"DRAGADOS!H76","v":"Aplica"},{"$f":"DRAGADOS!I76","v":"N/A"},{"$f":"DRAGADOS!J76","v":"Permanente"}]
[{"$f":"DRAGADOS!D77","v":0},{"$f":"DRAGADOS!B77","v":"PLAN DE CONTINGENCIA"},{"$f":"DRAGADOS!E77","v":"Presentar en los Informes de Cumplimiento Ambiental – ICA, la revisión y/o complemento del Plan de Contingencia siguiendo los lineamientos descritos en el Decreto 1081 del 2015 adicionado por el Decreto 2157 de 2017 en el Artículo 2.3.1.5.2.1.1, Numeral 3.1.2, Literal f y el Decreto 1076 de 2015 en el Artículo 2.2.2.3.5.1, Numeral 9 y el Artículo 2.2.2.3.9.3 o aquellos que los modifiquen o sustituyan y en caso de no presentarse un ajuste en el documento, indicar las razones por las cuales no se realiza:\n\na. Ante nuevas exigencias o cambios en la legislación nacional referente al plan de contingencia, en los plazos establecidos en las mismas.\nb. Cuando se introduzcan cambios en los procesos que aumenten la probabilidad de ocurrencia de una contingencia ambiental y/o consecuencia de la materialización del riesgo.  \nc. Ante cambios en las valoraciones de los escenarios de riesgo presentes en el proyecto.\nd. Ante la ocurrencia de una contingencia que evidencie la necesidad de ajuste del plan.\ne. Ante evidencias producto del proceso de seguimiento y control efectuado por la Autoridad Ambiental Competente."},{"$f":"DRAGADOS!F77","v":"N/A"},{"$f":"DRAGADOS!G77","v":"Aplica"},{"$f":"DRAGADOS!H77","v":"N/A"},{"$f":"DRAGADOS!I77","v":"N/A"},{"$f":"DRAGADOS!J77","v":"Permanente"}]
[{"$f":"DRAGADOS!D78","v":0},{"$f":"DRAGADOS!B78","v":"PLAN DE CONTINGENCIA"},{"$f":"DRAGADOS!E78","v":"Reportar los eventos de contingencia a través de la plataforma VITAL de conformidad con lo establecido en el artículo 2do de la Resolución 1767 de 2016 o aquellos que los modifiquen o sustituyan, ya sea que los eventos sean generados del proyecto hacia el medio o del medio hacia el proyecto, presentando en cada uno de los avances (reportes parciales, de recuperación ambiental y final, según corresponda) las medidas, monitoreos, protocolos y/o acciones ejecutadas en el marco de la atención."},{"$f":"DRAGADOS!F78","v":"N/A"},{"$f":"DRAGADOS!G78","v":"Aplica"},{"$f":"DRAGADOS!H78","v":"N/A"},{"$f":"DRAGADOS!I78","v":"N/A"},{"$f":"DRAGADOS!J78","v":"Temporal"}]
[{"$f":"DRAGADOS!D79","v":0},{"$f":"DRAGADOS!B79","v":"PLAN DE CONTINGENCIA"},{"$f":"DRAGADOS!E79","v":"Presentar en los Informes de Cumplimiento Ambiental – ICA, los resultados, el análisis y conclusiones de los monitoreos del riesgo asociados al seguimiento de los eventos de origen natural, socio natural y operacional, en donde se involucren los parámetros y frecuencia definidos, así como la articulación con entidades oficiales (SGC, IDEAM, entre otros) y de acuerdo con los resultados, complementar la valoración del riesgo, según corresponda. En caso de no presentar resultados de los monitoreos del riesgo, remitir las razones y soportarlo con las evidencias correspondientes a través de oficios, informes, actas, registros fotográficos, entre otros."},{"$f":"DRAGADOS!F79","v":"N/A"},{"$f":"DRAGADOS!G79","v":"Aplica"},{"$f":"DRAGADOS!H79","v":"N/A"},{"$f":"DRAGADOS!I79","v":"N/A"},{"$f":"DRAGADOS!J79","v":"Permanente"}]
[{"$f":"DRAGADOS!D80","v":0},{"$f":"DRAGADOS!B80","v":"PLAN DE CONTINGENCIA"},{"$f":"DRAGADOS!E80","v":"Implementar las medidas de monitoreo asociado a las actividades de atención y seguimiento de los eventos de contingencia que sean necesarias, con el objeto de identificar cambios o afectaciones sobre los medios abiótico, biótico y socioeconómico. "},{"$f":"DRAGADOS!F80","v":"N/A"},{"$f":"DRAGADOS!G80","v":"Aplica"},{"$f":"DRAGADOS!H80","v":"N/A"},{"$f":"DRAGADOS!I80","v":"N/A"},{"$f":"DRAGADOS!J80","v":"Temporal"}]
[{"$f":"DRAGADOS!D81","v":0},{"$f":"DRAGADOS!B81","v":"PLAN DE CONTINGENCIA"},{"$f":"DRAGADOS!E81","v":"Presentar en los Informes de Cumplimiento Ambiental – ICA, los soportes de la ejecución de las actividades definidas para las intervenciones correctivas y prospectivas de las medidas de reducción del riesgo. En caso de no presentarse, remitir las razones y soportarlo con evidencias correspondientes a través de informes, cronogramas, actas, registros fotográficos, entre otros. "},{"$f":"DRAGADOS!F81","v":"N/A"},{"$f":"DRAGADOS!G81","v":"Aplica"},{"$f":"DRAGADOS!H81","v":"N/A"},{"$f":"DRAGADOS!I81","v":"N/A"},{"$f":"DRAGADOS!J81","v":"Permanente"}]
[{"$f":"DRAGADOS!D82","v":0},{"$f":"DRAGADOS!B82","v":"PLAN DE CONTINGENCIA"},{"$f":"DRAGADOS!E82","v":"Presentar en los Informes de Cumplimiento Ambiental – ICA, los soportes de las capacitaciones dirigidas al personal del proyecto y las divulgaciones, socializaciones, simulaciones y simulacros sobre el plan de contingencia involucrando las entidades de los Consejos Municipales de Gestión de Riesgo de Desastres (CMGRD) y los Consejos Departamentales de Gestión de Riesgo de Desastres (CDGRD) y las comunidades del área de influencia, según corresponda. En caso de no presentarse algunos de los convocados, remitir las razones y soportarlo con las evidencias correspondientes a través de oficios, informes, actas, registros fotográficos, entre otros."},{"$f":"DRAGADOS!F82","v":"N/A"},{"$f":"DRAGADOS!G82","v":"Aplica"},{"$f":"DRAGADOS!H82","v":"N/A"},{"$f":"DRAGADOS!I82","v":"N/A"},{"$f":"DRAGADOS!J82","v":"Permanente"}]
[{"$f":"DRAGADOS!D83","v":0},{"$f":"DRAGADOS!B83","v":"GESTIÓN SOCIAL"},{"$f":"DRAGADOS!E83","v":"El titular de la Licencia Ambiental comunicará como mínimo una vez al año a través de canales idóneos a las autoridades municipales, comunidades y demás grupos de interés presentes en el área de Influencia a partir de la notificación del presente acto administrativo: i) los datos del proyecto, obra  o actividad, acto administrativo que otorga licencia para el desarrollo del proyecto, especificando las actividades que autoriza, datos de contacto; ii) las entidades ​que ejercen funciones de control y seguimiento sobre el proyecto, obra o actividad y sus competencias, tanto en temas ambientales como como administrativos. Se deberán presentar las evidencias del cumplimiento de esta obligación de manera anual en los Informes de Cumplimiento Ambiental - ICA."},{"$f":"DRAGADOS!F83","v":"N/A"},{"$f":"DRAGADOS!G83","v":"Aplica"},{"$f":"DRAGADOS!H83","v":"Aplica"},{"$f":"DRAGADOS!I83","v":"N/A"},{"$f":"DRAGADOS!J83","v":"Permanente"}]
[{"$f":"DRAGADOS!D84","v":0},{"$f":"DRAGADOS!B84","v":"GESTIÓN SOCIAL"},{"$f":"DRAGADOS!E84","v":"Previo al inicio de cada fase del proyecto, informar a todos sus contratistas y a todo el personal del proyecto sobre las obligaciones, prohibiciones y medidas de control de la presente resolución, el Estudio de Impacto Ambiental, el Plan de Manejo Ambiental y la normativa vigente, y exigir el estricto cumplimiento de las mismas. Presentar en los Informes de Cumplimiento Ambiental - ICA, los soportes que evidencien las actividades de información adelantadas, en los que deberá quedar explícito el contenido de la información brindada al personal del proyecto, y demás soportes correspondientes. Lo anterior sin perjuicio a lo establecido en la medidas de manejo ambiental del PMA aprobado."},{"$f":"DRAGADOS!F84","v":"N/A"},{"$f":"DRAGADOS!G84","v":"Aplica"},{"$f":"DRAGADOS!H84","v":"Aplica"},{"$f":"DRAGADOS!I84","v":"N/A"},{"$f":"DRAGADOS!J84","v":"Permanente"}]
[{"$f":"DRAGADOS!D85","v":0},{"$f":"DRAGADOS!B85","v":"GESTIÓN SOCIAL"},{"$f":"DRAGADOS!E85","v":"Previo al inicio de cada una de las fases del proyecto el titular de la licencia ambiental deberá realizar reuniones con cada una de las comunidades del área de influencia del proyecto, garantizando la participación de las organizaciones de la sociedad civil, con el fin de dar a conocer la presente resolución, las obras que en ella se autorizan, los principales impactos, medidas de manejo y de seguimiento y monitoreo y resolver las dudas que se puedan presentar al respecto; de igual manera, se deberán realizar reuniones en los casos de autoridades locales y dignatarios de las JAC que asuman funciones en razón de períodos de cambio de administración. Las convocatorias a estas reuniones se deberán efectuar con suficiente antelación, garantizando el principio de publicidad a través de los diferentes medios de difusión y comunicación oficiales y comunitarios. Se deberá presentar a esta Autoridad mediante los respectivos Informes de Cumplimiento Ambiental - ICA, las constancias de recibido de las convocatorias y las copias de los soportes de estas reuniones en las que se evidencie el proceso, incluyendo listados de asistencia, temáticas desarrolladas, registro fílmico y/o fotográfico, entre otros."},{"$f":"DRAGADOS!F85","v":"N/A"},{"$f":"DRAGADOS!G85","v":"Aplica"},{"$f":"DRAGADOS!H85","v":"Aplica"},{"$f":"DRAGADOS!I85","v":"N/A"},{"$f":"DRAGADOS!J85","v":"Permanente"}]
[{"$f":"DRAGADOS!D86","v":0},{"$f":"DRAGADOS!B86","v":"GESTIÓN SOCIAL"},{"$f":"DRAGADOS!E86","v":"El titular de la presente licencia ambiental deberá informar como mínimo una vez al año a las comunidades, a las organizaciones de la sociedad civil si las hubiere, y autoridades del área de influencia del proyecto, los canales de recepción de PQRSDF (peticiones, quejas, reclamos, sugerencias, denuncias, felicitaciones). De lo anterior, se deberán entregar los respectivos soportes de manera anual en los Informes de Cumplimiento Ambiental - ICA. "},{"$f":"DRAGADOS!F86","v":"N/A"},{"$f":"DRAGADOS!G86","v":"Aplica"},{"$f":"DRAGADOS!H86","v":"Aplica"},{"$f":"DRAGADOS!I86","v":"N/A"},{"$f":"DRAGADOS!J86","v":"Permanente"}]
[{"$f":"DRAGADOS!D87","v":0},{"$f":"DRAGADOS!B87","v":"GESTIÓN SOCIAL"},{"$f":"DRAGADOS!E87","v":"El titular de la presente licencia ambiental contará con un formato de recepción de PQRSDF (peticiones, quejas, reclamos, sugerencias, denuncias, felicitaciones) y elaborará un informe donde se reporten las quejas e inquietudes presentadas, especificando: municipio, vereda, nombre o comunidad que la interpone, datos de contacto del peticionario, fecha, descripción del caso, a qué tipo de actividad está asociada respecto a la Licencia Ambiental, tipo de queja, zona(s) donde se concentra el mayor número de casos y georreferenciación del sitio o lugar en donde se reporta la PQRSDF. Presentar en los Informes de Cumplimiento Ambiental - ICA, este informe en formato de Excel, o que sea compatible con Sistemas de Información Geográfica, así como, los soportes que evidencien el registro, atención, seguimiento del caso y publicidad de la información."},{"$f":"DRAGADOS!F87","v":"N/A"},{"$f":"DRAGADOS!G87","v":"Aplica"},{"$f":"DRAGADOS!H87","v":"Aplica"},{"$f":"DRAGADOS!I87","v":"N/A"},{"$f":"DRAGADOS!J87","v":"Permanente"}]
[{"$f":"DRAGADOS!D88","v":0},{"$f":"DRAGADOS!B88","v":"GESTIÓN SOCIAL"},{"$f":"DRAGADOS!E88","v":"Presentar en los respectivos Informes de Cumplimiento Ambiental - ICA y según las directrices definidas en la Directiva Presidencial 08 del 2020, los soportes que den cuenta del cumplimiento de las medidas de manejo acordadas entre el titular de la licencia ambiental y la comunidad étnica, o aquellas establecidas por la Dirección de la Autoridad Nacional de Consulta Previa - DANCP del Ministerio del Interior, o quien haga sus veces, en el marco de la aplicación del test de proporcionalidad."},{"$f":"DRAGADOS!F88","v":"N/A"},{"$f":"DRAGADOS!G88","v":"Aplica"},{"$f":"DRAGADOS!H88","v":"Aplica"},{"$f":"DRAGADOS!I88","v":"N/A"},{"$f":"DRAGADOS!J88","v":"Permanente"}]
[{"$f":"DRAGADOS!D89","v":0},{"$f":"DRAGADOS!B89","v":"VALORACIÓN ECONÓMICA"},{"$f":"DRAGADOS!E89","v":"Presentar en cada ICA el seguimiento al análisis de internalización de los impactos ambientales reportando el estado de avance en los indicadores (eficiencia y eficacia) y la medida de manejo propuesta para dicho análisis."},{"$f":"DRAGADOS!F89","v":"N/A"},{"$f":"DRAGADOS!G89","v":"Aplica"},{"$f":"DRAGADOS!H89","v":"N/A"},{"$f":"DRAGADOS!I89","v":"N/A"},{"$f":"DRAGADOS!J89","v":"Permanente"}]
[{"$f":"DRAGADOS!D90","v":0},{"$f":"DRAGADOS!B90","v":"VALORACIÓN ECONÓMICA"},{"$f":"DRAGADOS!E90","v":"Presentar en los Informes de Cumplimiento Ambiental - ICA respectivos los ajustes del análisis costo / beneficio a partir de los requerimientos pendientes en el acto administrativo o en el caso de que se presenten modificaciones asociadas al proyecto, teniendo en cuenta los lineamientos del documento Criterios técnicos para el uso de herramientas económicas en los proyectos, obras o actividades objeto de licenciamiento ambiental."},{"$f":"DRAGADOS!F90","v":"N/A"},{"$f":"DRAGADOS!G90","v":"Aplica"},{"$f":"DRAGADOS!H90","v":"N/A"},{"$f":"DRAGADOS!I90","v":"N/A"},{"$f":"DRAGADOS!J90","v":"Permanente"}]
[{"$f":"DRAGADOS!D91","v":0},{"$f":"DRAGADOS!B91","v":"OBLIGACIONES GENERALES"},{"$f":"DRAGADOS!E91","v":"Realizar las intervenciones del dragado estrictamente en las áreas autorizadas."},{"$f":"DRAGADOS!F91","v":"N/A"},{"$f":"DRAGADOS!G91","v":"Aplica "},{"$f":"DRAGADOS!H91","v":"N/A"},{"$f":"DRAGADOS!I91","v":"N/A"},{"$f":"DRAGADOS!J91","v":"Permanente"}]
[{"$f":"DRAGADOS!D92","v":0},{"$f":"DRAGADOS!B92","v":"OBLIGACIONES GENERALES "},{"$f":"DRAGADOS!E92","v":"Reportar la información del resultado de los monitoreos del uso y aprovechamiento de los recursos naturales, de conformidad con las condiciones que se describen a continuación:\n\n1. La información geográfica y alfanumérica, cuya frecuencia de presentación y/o entrega se haya definido en el respectivo acto administrativo con una temporalidad superior a la diaria (semanal, quincenal, mensual, bimensual, semestral, etc.), deberá ser radicada a través del Portal de recepción de información - AGIL, el cual permitirá el almacenamiento directo en la Base de Datos Corporativa de acuerdo con el modelo de almacenamiento de datos geográficos establecido en la Resolución 2182 del 2016 de Minambiente o aquella que la modifique, derogue o sustituya.\n2. La información del resultado de los monitoreos, sobre el uso y aprovechamiento de recursos naturales, cuya frecuencia de presentación y/o entrega se haya definido en el respectivo acto administrativo con una temporalidad igual o menor a la diaria (diaria, horaria o minutal), deberá radicarse diariamente de forma consolidada a través de las plantillas de textos plano tipo .txt o .csv (disponibles en la página web de la entidad) por medio del correo electrónico licencias@anla.gov.co con copia a centromonitoreo@anla.gov.co, indicando el asunto del correo, conforme con la siguiente tabla:\n\n(Ver tabla en pestaña 3. Asuntos de radicación, la cual se debe copiar en este espacio)\n\n3. La información que requiera la transmisión continua de datos, cuya frecuencia esté definida en el respectivo acto administrativo en tiempo real o cuasi real, se reportará a través de VPN Site to Site, API REST, o según sea definido conforme con los lineamientos de la Oficina de Tecnologías de la Información - OTI de la Entidad y las posibilidades tecnológicas del titular de la Licencia Ambiental. \n\nParágrafo: La demás información generada por los proyectos deberá entregarse a través del instrumento de seguimiento ambiental habitual (Informe de Cumplimiento Ambiental - ICA) y el mecanismo de recepción disponible (Ventanilla Integral de Trámites Ambientales en Línea - VITAL). "},{"$f":"DRAGADOS!F92","v":"N/A"},{"$f":"DRAGADOS!G92","v":"Aplica"},{"$f":"DRAGADOS!H92","v":"N/A"},{"$f":"DRAGADOS!I92","v":"N/A"},{"$f":"DRAGADOS!J92","v":"Permanente"}]
[{"$f":"DRAGADOS!D93","v":0},{"$f":"DRAGADOS!B93","v":"OBLIGACIONES GENERALES "},{"$f":"DRAGADOS!E93","v":"Utilizar la codificación de la ANLA (campo \"ID ANLA\") asignada a los permisos de uso y aprovechamiento de recursos naturales y a las obligaciones impuestas en el presente acto administrativo para la presentación de la información asociada al seguimiento del proyecto."},{"$f":"DRAGADOS!F93","v":"N/A"},{"$f":"DRAGADOS!G93","v":"Aplica"},{"$f":"DRAGADOS!H93","v":"N/A"},{"$f":"DRAGADOS!I93","v":"N/A"},{"$f":"DRAGADOS!J93","v":"Permanente"}]
[{"$f":"DRAGADOS!D94","v":0},{"$f":"DRAGADOS!B94","v":"OBLIGACIONES GENERALES "},{"$f":"DRAGADOS!E94","v":"Presentar en el primer Informe de Cumplimiento Ambiental - ICA copia del documento donde conste la conformación del Departamento de Gestión Ambiental, que incluya funciones y responsabilidades asignadas, en cumplimiento al artículo 2.2.8.11.1.7. del Decreto 1076 de 2015, o aquella que la modifique, derogue o sustituya."},{"$f":"DRAGADOS!F94","v":"N/A"},{"$f":"DRAGADOS!G94","v":"Aplica"},{"$f":"DRAGADOS!H94","v":"N/A"},{"$f":"DRAGADOS!I94","v":"N/A"},{"$f":"DRAGADOS!J94","v":"Temporal"}]
[{"$f":"DRAGADOS!D95","v":0},{"$f":"DRAGADOS!B95","v":"OBLIGACIONES GENERALES "},{"$f":"DRAGADOS!E95","v":"El titular de la presente Licencia Ambiental solicitará a la ANLA la modificación de la licencia ambiental, previa a la ejecución de actividades que configuren alguna de las causales señaladas en el Artículo 2.2.2.3.7.1 del Decreto 1076 de 2015. "},{"$f":"DRAGADOS!F95","v":"N/A"},{"$f":"DRAGADOS!G95","v":"Aplica"},{"$f":"DRAGADOS!H95","v":"N/A"},{"$f":"DRAGADOS!I95","v":"N/A"},{"$f":"DRAGADOS!J95","v":"Permanente"}]
[{"$f":"DRAGADOS!D96","v":0},{"$f":"DRAGADOS!B96","v":"OBLIGACIONES GENERALES "},{"$f":"DRAGADOS!E96","v":"Informar a la ANLA, de manera previa a realizar las actividades consideradas como cambios menores o de ajuste normal dentro del giro ordinario, de conformidad con lo dispuesto en el Capítulo 6, Título 2 , Parte 2, Libro 2 del Decreto 1076 de 2015, o aquella norma que lo modifique o sustituya, actividades que serán objeto de seguimiento. En caso de que las actividades a ejecutar  no se incluyan en el mencionado Decreto, el titular de la licencia solicitará por escrito pronunciamiento de esta autoridad, sobre su viabilidad bajo la modalidad de cambio menor, concepto que se remitirá con destino al expediente."},{"$f":"DRAGADOS!F96","v":"N/A"},{"$f":"DRAGADOS!G96","v":"Aplica"},{"$f":"DRAGADOS!H96","v":"N/A"},{"$f":"DRAGADOS!I96","v":"N/A"},{"$f":"DRAGADOS!J96","v":"Permanente"}]
[{"$f":"DRAGADOS!D97","v":0},{"$f":"DRAGADOS!B97","v":"OBLIGACIONES GENERALES "},{"$f":"DRAGADOS!E97","v":"Una vez finalizados los trabajos propios de cada obra o actividad parcial, el titular de la presente licencia ambiental retirará y/o dispondrá todas las evidencias de los elementos y materiales sobrantes, en todas las áreas intervenidas por el proyecto, de manera que no se generen impactos ambientales adicionales, se altere el paisaje ni se contribuya al deterioro ambiental."},{"$f":"DRAGADOS!F97","v":"N/A"},{"$f":"DRAGADOS!G97","v":"Aplica"},{"$f":"DRAGADOS!H97","v":"N/A"},{"$f":"DRAGADOS!I97","v":"N/A"},{"$f":"DRAGADOS!J97","v":"Permanente"}]
[{"$f":"DRAGADOS!D98","v":0},{"$f":"DRAGADOS!B98","v":"OBLIGACIONES GENERALES "},{"$f":"DRAGADOS!E98","v":"Cumplir lo establecido en la Resolución 1083 de 1996, del hoy Ministerio de Ambiente y Desarrollo Sostenible, para las actividades listadas en su artículo 1°. Con tal fin, el titular de la licencia presentará en los Informes de Cumplimiento Ambiental -ICA- la siguiente información: \n\na) Localización de la actividad, obra o proyecto en la que se hizo uso de las fibras naturales. \nb) La fibra natural utilizada, el tipo de actividad en la que fue usada y la cantidad medida en Kg. \nc) Indicar el estado de integridad física y de funcionamiento de las obras con este tipo de fibras. \n\nParágrafo: El titular de la licencia ambiental justificará fundadamente, en el Informe de Cumplimiento Ambiental -ICA- correspondiente, las razones técnicas del por qué consideró inviable el uso de fibras naturales en esas actividades. (Uso de fibras naturales). "},{"$f":"DRAGADOS!F98","v":"N/A"},{"$f":"DRAGADOS!G98","v":"Aplica"},{"$f":"DRAGADOS!H98","v":"N/A"},{"$f":"DRAGADOS!I98","v":"N/A"},{"$f":"DRAGADOS!J98","v":"Permanente"}]
[{"$f":"DRAGADOS!D99","v":0},{"$f":"DRAGADOS!B99","v":"OBLIGACIONES GENERALES "},{"$f":"DRAGADOS!E99","v":"Dentro de los diez (10) días calendario previos al inicio de cada una de las fases del proyecto, el titular de la presente licencia ambiental informará a la ANLA, mediante oficio dirigido a la Subdirección de Seguimiento de Licencias Ambientales, y a las demás Autoridades Ambientales regionales y locales en la jurisdicción del proyecto, la fecha de inicio de actividades. En caso de que no se pueda dar inicio al proyecto en la fecha previamente informada, se notificará inmediatamente a esta Autoridad la justificación, así como la nueva fecha de inicio. Enviar a la ANLA copia de los oficios radicados ante las demás autoridades ambientales competentes."},{"$f":"DRAGADOS!F99","v":"N/A"},{"$f":"DRAGADOS!G99","v":"Aplica"},{"$f":"DRAGADOS!H99","v":"N/A"},{"$f":"DRAGADOS!I99","v":"N/A"},{"$f":"DRAGADOS!J99","v":"Permanente"}]
[{"$f":"DRAGADOS!D100","v":0},{"$f":"DRAGADOS!B100","v":"OBLIGACIONES GENERALES "},{"$f":"DRAGADOS!E100","v":"El titular de la presente licencia ambiental presentará los Informes de Cumplimiento Ambiental -ICA de manera [Espacio para definir periodicidad de ICA de cada fase del proyecto (trimestral, semestral o anual, o cualquier otra frecuencia / condición de acuerdo con la duración de las obras constructivas)] de acuerdo con lo establecido en el Manual de Seguimiento Ambiental de Proyectos y lo dispuesto en la Resolución 077 de 2019, modificada por la Resolución 0549 de 2020, o aquellas que las que las modifiquen, deroguen o sustituyan."},{"$f":"DRAGADOS!F100","v":"N/A"},{"$f":"DRAGADOS!G100","v":"Aplica"},{"$f":"DRAGADOS!H100","v":"N/A"},{"$f":"DRAGADOS!I100","v":"N/A"},{"$f":"DRAGADOS!J100","v":"Permanente"}]
[{"$f":"DRAGADOS!D101","v":0},{"$f":"DRAGADOS!B101","v":"OBLIGACIONES GENERALES "},{"$f":"DRAGADOS!E101","v":"Realizar los monitoreos a través de laboratorios acreditados por el IDEAM, tanto para la toma de la muestra, como para el análisis de los parámetros monitoreados. Dichos laboratorios, deberán contar con las técnicas de medición que cuenten con los límites de detección de los diferentes parámetros que permitan verificar el cumplimiento normativo de los mismos. En caso de que no existan laboratorios nacionales acreditados para el análisis de algún(os) parámetro(s), los laboratorios acreditados por el IDEAM podrán enviar la muestra a un laboratorio internacional acreditado en su país de origen o por un estándar internacional, mientras se surte el proceso de acreditación en los laboratorios nacionales. Presentar los soportes de la acreditación de todos los laboratorios empleados para la realización de los monitoreos del proyecto en los Informes de Cumplimiento Ambiental - ICA."},{"$f":"DRAGADOS!F101","v":"N/A"},{"$f":"DRAGADOS!G101","v":"Aplica"},{"$f":"DRAGADOS!H101","v":"N/A"},{"$f":"DRAGADOS!I101","v":"N/A"},{"$f":"DRAGADOS!J101","v":"Permanente"}]
[{"$f":"DRAGADOS!D102","v":0},{"$f":"DRAGADOS!B102","v":"REQUISITOS DEL ACTO ADMINISTRATIVO"},{"$f":"DRAGADOS!E102","v":"Previo al inicio de las obras se deberá remitir a esta Autoridad copia de la constancia de aprobación del Plan de Manejo Arqueológico. \n\nParágrafo: La intervención de áreas arqueológicas protegidas de sitios arqueológicos u otras categorías establecidas en la normativa que protege el patrimonio cultural de la Nación son de competencia exclusiva del Instituto Colombiano de Antropología e Historia -ICANH-. En consecuencia, la Licencia Ambiental no autoriza la intervención de dichas áreas."},{"$f":"DRAGADOS!F102","v":" -"},{"$f":"DRAGADOS!G102","v":" -"},{"$f":"DRAGADOS!H102","v":" -"},{"$f":"DRAGADOS!I102","v":" -"},{"$f":"DRAGADOS!J102","v":" -"}]
[{"$f":"DRAGADOS!D103","v":0},{"$f":"DRAGADOS!B103","v":"REQUISITOS DEL ACTO ADMINISTRATIVO"},{"$f":"DRAGADOS!E103","v":"Si durante el desarrollo del proyecto, se evidencian sitios o vestigios de interés arqueológico dentro del área de influencia, se deberá dar aviso por escrito al Instituto Colombiano de Antropología e Historia -ICANH- (con copia a la ANLA), de conformidad con el numeral 1.4 del artículo 7 de la Ley 1185 de 2008, el Decreto 138 de 2019 y el numeral 1.6. del artículo 11 de la Ley 397 de 1997, modificado por el artículo 131 del Decreto 2106 de 2019, para lo de su competencia."},{"$f":"DRAGADOS!F103","v":" -"},{"$f":"DRAGADOS!G103","v":" -"},{"$f":"DRAGADOS!H103","v":" -"},{"$f":"DRAGADOS!I103","v":" -"},{"$f":"DRAGADOS!J103","v":" -"}]
[{"$f":"DRAGADOS!D104","v":0},{"$f":"DRAGADOS!B104","v":"REQUISITOS DEL ACTO ADMINISTRATIVO"},{"$f":"DRAGADOS!E104","v":"Parágrafo: La Licencia Ambiental que se otorga, no confiere derechos reales sobre los bienes inmuebles que puedan intervenirse o afectarse en la ejecución del proyecto, obra o actividad. Lo anterior, sin perjuicio a lo dispuesto por la Ley 1448 de 2011 o aquella norma que la modifique, deroguen o sustituya, en lo relacionado con restitución de tierras."},{"$f":"DRAGADOS!F104","v":" -"},{"$f":"DRAGADOS!G104","v":" -"},{"$f":"DRAGADOS!H104","v":" -"},{"$f":"DRAGADOS!I104","v":" -"},{"$f":"DRAGADOS!J104","v":" -"}]
[{"$f":"DRAGADOS!D105","v":0},{"$f":"DRAGADOS!B105","v":"REQUISITOS DEL ACTO ADMINISTRATIVO"},{"$f":"DRAGADOS!E105","v":"La ANLA hará control y seguimiento ambiental a la ejecución de proyectos, obras y actividades en los términos del artículo 2.2.2.3.9.1 del Decreto 1076 del 2015, y verificará el cumplimiento de la presente Resolución. "},{"$f":"DRAGADOS!F105","v":" -"},{"$f":"DRAGADOS!G105","v":" -"},{"$f":"DRAGADOS!H105","v":" -"},{"$f":"DRAGADOS!I105","v":" -"},{"$f":"DRAGADOS!J105","v":" -"}]
[{"$f":"DRAGADOS!D106","v":0},{"$f":"DRAGADOS!B106","v":"REQUISITOS DEL ACTO ADMINISTRATIVO"},{"$f":"DRAGADOS!E106","v":"Por la Autoridad Nacional de Licencias Ambientales - ANLA, notificar el presente acto administrativo al representante legal o apoderado, o a la persona autorizada por la sociedad XXXXX, de conformidad con los artículos 67 y siguientes del Código de Procedimiento Administrativo y de lo Contencioso Administrativo. \n\nParágrafo: El expediente queda a disposición para su consulta en medio físico o digital. "},{"$f":"DRAGADOS!F106","v":" -"},{"$f":"DRAGADOS!G106","v":" -"},{"$f":"DRAGADOS!H106","v":" -"},{"$f":"DRAGADOS!I106","v":" -"},{"$f":"DRAGADOS!J106","v":" -"}]
[{"$f":"DRAGADOS!D107","v":0},{"$f":"DRAGADOS!B107","v":"REQUISITOS DEL ACTO ADMINISTRATIVO"},{"$f":"DRAGADOS!E107","v":"Por la Autoridad Nacional de Licencias Ambientales - ANLA, notificar el presente acto administrativo a el/la señor(a) XXXXX en su condición de tercer(os) interviniente(s) reconocido(s) dentro de la presente actuación de ser el caso a través del representante legal o apoderado, o a la persona debidamente autorizada, de conformidad con el artículo 71 de la Ley 99 de 1993 y los artículos 67 y siguientes del Código de Procedimiento Administrativo y de lo Contencioso Administrativo. \n\nParágrafo: El expediente queda a disposición para su consulta en medio físico o digital. "},{"$f":"DRAGADOS!F107","v":" -"},{"$f":"DRAGADOS!G107","v":" -"},{"$f":"DRAGADOS!H107","v":" -"},{"$f":"DRAGADOS!I107","v":" -"},{"$f":"DRAGADOS!J107","v":" -"}]
[{"$f":"DRAGADOS!D108","v":0},{"$f":"DRAGADOS!B108","v":"REQUISITOS DEL ACTO ADMINISTRATIVO"},{"$f":"DRAGADOS!E108","v":"Por la Autoridad Nacional de Licencias Ambientales - ANLA, comunicar el presente acto administrativo a el/la señor(a) XXXXX en su condición de tercer(os) interviniente(s) reconocido(s) dentro de la presente actuación de ser el caso a través del representante legal o apoderado, o a la persona debidamente autorizada, de conformidad con el artículo 71 de la Ley 99 de 1993."},{"$f":"DRAGADOS!F108","v":" -"},{"$f":"DRAGADOS!G108","v":" -"},{"$f":"DRAGADOS!H108","v":" -"},{"$f":"DRAGADOS!I108","v":" -"},{"$f":"DRAGADOS!J108","v":" -"}]
[{"$f":"DRAGADOS!D109","v":0},{"$f":"DRAGADOS!B109","v":"REQUISITOS DEL ACTO ADMINISTRATIVO"},{"$f":"DRAGADOS!E109","v":"Por la Autoridad Nacional de Licencias Ambientales - ANLA, comunicar el contenido del presente acto administrativo a [Espacio para listar entidades que deban recibir copia de la presente resolución tales como: alcaldías municipales, autoridades ambientales de orden regional y/o local, gobernaciones, procuradurías delegadas para asuntos ambientales, personerías municipales, entre otros]. "},{"$f":"DRAGADOS!F109","v":" -"},{"$f":"DRAGADOS!G109","v":" -"},{"$f":"DRAGADOS!H109","v":" -"},{"$f":"DRAGADOS!I109","v":" -"},{"$f":"DRAGADOS!J109","v":" -"}]
[{"$f":"DRAGADOS!D110","v":0},{"$f":"DRAGADOS!B110","v":"REQUISITOS DEL ACTO ADMINISTRATIVO"},{"$f":"DRAGADOS!E110","v":"Por la Autoridad Nacional de Licencias Ambientales - ANLA publicar  la presente Resolución en la Gaceta Ambiental de esta Entidad, de conformidad con el artículo 71 de la Ley 99 de 1993. "},{"$f":"DRAGADOS!F110","v":" -"},{"$f":"DRAGADOS!G110","v":" -"},{"$f":"DRAGADOS!H110","v":" -"},{"$f":"DRAGADOS!I110","v":" -"},{"$f":"DRAGADOS!J110","v":" -"}]
[{"$f":"DRAGADOS!D111","v":0},{"$f":"DRAGADOS!B111","v":"REQUISITOS DEL ACTO ADMINISTRATIVO"},{"$f":"DRAGADOS!E111","v":"Contra el presente acto administrativo procede el recurso de reposición en los términos establecidos en los artículos 74 y siguientes del Código de Procedimiento Administrativo y de lo Contencioso Administrativo, o la norma que lo modifique, derogue o sustituya."},{"$f":"DRAGADOS!F111","v":" -"},{"$f":"DRAGADOS!G111","v":" -"},{"$f":"DRAGADOS!H111","v":" -"},{"$f":"DRAGADOS!I111","v":" -"},{"$f":"DRAGADOS!J111","v":" -"}]
[{"$f":"DRAGADOS!D112","v":0},{"$f":"DRAGADOS!B112","v":"REQUISITOS DEL ACTO ADMINISTRATIVO"},{"$f":"DRAGADOS!E112","v":"La presente Licencia Ambiental, se otorga por el tiempo de duración del proyecto que se autoriza en la presente resolución."},{"$f":"DRAGADOS!F112","v":" -"},{"$f":"DRAGADOS!G112","v":" -"},{"$f":"DRAGADOS!H112","v":" -"},{"$f":"DRAGADOS!I112","v":" -"},{"$f":"DRAGADOS!J112","v":" -"}]
[{"$f":"DRAGADOS!D113","v":0},{"$f":"DRAGADOS!B113","v":"REQUISITOS DEL ACTO ADMINISTRATIVO"},{"$f":"DRAGADOS!E113","v":"En el caso que, el titular de la licencia ambiental en el término de cinco (5) años contados a partir de la firmeza del presente acto administrativo, no haya dado inicio a la ejecución del proyecto, se procederá a dar aplicación a lo establecido en el artículo 2.2.2.3.8.7. Decreto 1076 de 2015, en relación con la declaratoria de pérdida de vigencia de la licencia ambiental. "},{"$f":"DRAGADOS!F113","v":" -"},{"$f":"DRAGADOS!G113","v":" -"},{"$f":"DRAGADOS!H113","v":" -"},{"$f":"DRAGADOS!I113","v":" -"},{"$f":"DRAGADOS!J113","v":" -"}]
[{"$f":"DRAGADOS!D114","v":0},{"$f":"DRAGADOS!B114","v":"REQUISITOS DEL ACTO ADMINISTRATIVO"},{"$f":"DRAGADOS!E114","v":"El incumplimiento de las obligaciones contenidas en el presente acto administrativo y en las normas ambientales vigentes dará lugar a la imposición y ejecución de las medidas preventivas y sanciones que sean aplicables según el caso, de conformidad con lo establecido en la Ley 1333 del 21 de julio de 2009, o la que modifique, derogue o sustituya."},{"$f":"DRAGADOS!F114","v":" -"},{"$f":"DRAGADOS!G114","v":" -"},{"$f":"DRAGADOS!H114","v":" -"},{"$f":"DRAGADOS!I114","v":" -"},{"$f":"DRAGADOS!J114","v":" -"}]
[{"$f":"DRAGADOS!D115","v":0},{"$f":"DRAGADOS!B115","v":"REQUISITOS DEL ACTO ADMINISTRATIVO"},{"$f":"DRAGADOS!E115","v":"En el seguimiento, la Autoridad Nacional de Licencias Ambientales -ANLA- podrá  conceder, por solicitud justificada del titular, nuevos plazos para el cumplimiento de obligaciones, sin que esto implique modificación de la Licencia Ambiental. La modificación del plazo siempre deberá estar técnica y jurídicamente sustentada, previa coordinación ante el Grupo de Actuaciones Sancionatorias ambientales de la Oficina Asesora Jurídica o la dependencia que haga sus veces."},{"$f":"DRAGADOS!F115","v":" -"},{"$f":"DRAGADOS!G115","v":" -"},{"$f":"DRAGADOS!H115","v":" -"},{"$f":"DRAGADOS!I115","v":" -"},{"$f":"DRAGADOS!J115","v":" -"}]
[{"$f":"DRAGADOS!D116","v":0},{"$f":"DRAGADOS!B116","v":"REQUISITOS DEL ACTO ADMINISTRATIVO"},{"$f":"DRAGADOS!E116","v":"En el evento en que el titular de la licencia ambiental entre en proceso de disolución o régimen de insolvencia o liquidación regulados por las normas vigentes, informará inmediatamente de esta situación a esta Autoridad, con fundamento, entre otros, en los artículos 8, 58, 79, 80, 81, 95 numeral 8 de la Constitución Política de 1991, en las Leyes 43 de 1990, 222 de 1995, 1333 de 2009, demás normas vigentes, y en la jurisprudencia aplicable. La sociedad deberá aprovisionar contablemente las obligaciones contingentes que se deriven de la existencia de un procedimiento ambiental sancionatorio conforme con el artículo 40 de la Ley 1333 de 2009 o la norma que la modifique, derogue o sustituya. "},{"$f":"DRAGADOS!F116","v":" -"},{"$f":"DRAGADOS!G116","v":" -"},{"$f":"DRAGADOS!H116","v":" -"},{"$f":"DRAGADOS!I116","v":" -"},{"$f":"DRAGADOS!J116","v":" -"}]

{"sheet":"Asuntos radicación","index":3,"n_rows":63,"n_cols":5,"rows_kept":63,"cut":false,"hidden":false,"merged":[[0,1,0,4],[25,1,27,1],[28,1,29,1],[31,1,32,1],[34,1,38,1],[7,4,9,4],[39,1,47,1],[54,1,55,1],[4,1,5,1],[7,1,9,1],[7,3,9,3],[20,1,21,1],[22,1,23,1]]}
[null,"Asuntos de radicación relacionados con la Obligación General \"Estrategia de recepción de información de los resultados de los monitoreos del uso y aprovechamiento de los recursos naturales\":"]
[]
[null,"ASPECTO","TIPO","ABREVIATURA","ASUNTO"]
[null,"OCUPACION DE CAUCE","NA","OCA",{"$f":"D4&\"-LAM/LAVXXXX-XX-XXXX\"","v":"OCA-LAM/LAVXXXX-XX-XXXX"}]
[null,"CAPTACIÓN","SUPERFICIAL","CSP",{"$f":"D5&\"-LAM/LAVXXXX-XX-XXXX\"","v":"CSP-LAM/LAVXXXX-XX-XXXX"}]
[null,null,"SUBTERRANEA","CSB","CSB-LAM/LAVXXXX-XX-XXXX"]
[null,"PERMISO EXPLORACIÓN DE AGUA SUBTERRÁNEO","NA","ESB","ESB-LAM/LAVXXXX-XX-XXXX"]
[null,"VERTIMIENTO","CUERPO AGUA","VER","VER-LAM/LAVXXXX-XX-XXXX"]
[null,null,"SUELO",null,"-LAM/LAVXXXX-XX-XXXX"]
[null,null,"INYECCIÓN",null,"-LAM/LAVXXXX-XX-XXXX"]
[null,"GESTION DE RESIDUOS LIQUIDOS (RIEGO, VIA, ENTREGA A TERCERO)","NA","GRL","GRL-LAM/LAVXXXX-XX-XXXX"]
[null,"GESTIÓN DE RESIDUOS SOLIDOS","NA","GIR","GIR-LAM/LAVXXXX-XX-XXXX"]
[null,"MATERIALES DE CONSTRUCCIÓN","NA","AMC","AMC-LAM/LAVXXXX-XX-XXXX"]
[null,"INFRAESTRUCTURA LINEAL","NA","INL","INL-LAM/LAVXXXX-XX-XXXX"]
[null,"INFRAESTRUCTURA PUNTUAL","NA","INP","INP-LAM/LAVXXXX-XX-XXXX"]
[null,"INFRAESTRUCTURA TIPO POLIGONO","NA","INA","INA-LAM/LAVXXXX-XX-XXXX"]
[null,"ZONA DE PRESTAMO LATERAL","NA","ZPL","ZPL-LAM/LAVXXXX-XX-XXXX"]
[null,"ZODME","NA","ZOD","ZOD-LAM/LAVXXXX-XX-XXXX"]
[null,"AREA DE APROVECHAMIENTO FORESTAL","NA","AAF","AAF-LAM/LAVXXXX-XX-XXXX"]
[null,"APROVECHAMIENTO POR INDIVIDUOS","NA","IND","IND-LAM/LAVXXXX-XX-XXXX"]
[null,"FUENTE DE EMISIÓN AIRE","FIJA","FAF","FAF-LAM/LAVXXXX-XX-XXXX"]
[null,null,"DISPERSA","FAD","FAD-LAM/LAVXXXX-XX-XXXX"]
[null,"FUENTE DE EMISIÓN DE OLORES","FIJA","FOF","FOF-LAM/LAVXXXX-XX-XXXX"]
[null,null,"DISPERSA","FOD","FOD-LAM/LAVXXXX-XX-XXXX"]
[null,"FUENTE DE EMISIÓN DE RUIDO","NA","FER","FER-LAM/LAVXXXX-XX-XXXX"]
[null,"MONITOREO DE AGUA","SUPERFICIAL","MSP","MSP-LAM/LAVXXXX-XX-XXXX"]
[null,null,"SUBTERRANEA","MSB","MSB-LAM/LAVXXXX-XX-XXXX"]
[null,null,"MARINO","MAM","MAM-LAM/LAVXXXX-XX-XXXX"]
[null,"MONITOREO DE CALIDAD DE AIRE","CALIDAD DE AIRE","MCA","MCA-LAM/LAVXXXX-XX-XXXX"]
[null,null,"EMISIONES ATMOSFERICAS","MEA","MEA-LAM/LAVXXXX-XX-XXXX"]
[null,"MONITOREO DE OLORES","NA","MEO","MEO-LAM/LAVXXXX-XX-XXXX"]
[null,"MONITOREO DE RUIDO","RUIDO AMBIENTAL","MRA","MRA-LAM/LAVXXXX-XX-XXXX"]
[null,null,"EMISION DE RUIDO","MER","MER-LAM/LAVXXXX-XX-XXXX"]
[null,"MONITOREO DE SUELO","NA","MSU","MSU-LAM/LAVXXXX-XX-XXXX"]
[null,"MONITOREO FAUNA","MUESTREO","MUT","MUT-LAM/LAVXXXX-XX-XXXX"]
[null,null,"ATROPELLADA","ATR","ATR-LAM/LAVXXXX-XX-XXXX"]
[null,null,"AHUYENTADA","AHU","AHU-LAM/LAVXXXX-XX-XXXX"]
[null,null,"PASO DE FAUNA","MPF","MPF-LAM/LAVXXXX-XX-XXXX"]
[null,null,"RESCATADA","REC","REC-LAM/LAVXXXX-XX-XXXX"]
[null,"MUESTREO FLORA","MUESTREO","MVG","MVG-LAM/LAVXXXX-XX-XXXX"]
[null,null,"INVENTARIO FORESTAL","INV","INV-LAM/LAVXXXX-XX-XXXX"]
[null,null,"REGENERACIÓN","REG","REG-LAM/LAVXXXX-XX-XXXX"]
[null,null,"FORÓFITO","FOR","FOR-LAM/LAVXXXX-XX-XXXX"]
[null,null,"REUBICADO","REU","REU-LAM/LAVXXXX-XX-XXXX"]
[null,null,"VASCULARES","MVS","MVS-LAM/LAVXXXX-XX-XXXX"]
[null,null,"NO VASCULARES","NVS","NVS-LAM/LAVXXXX-XX-XXXX"]
[null,null,"PARCELA PERMANENTE","PPF","PPF-LAM/LAVXXXX-XX-XXXX"]
[null,null,"LÍQUENES","LIQ","LIQ-LAM/LAVXXXX-XX-XXXX"]
[null,"VEDA","NA","VDA","VDA-LAM/LAVXXXX-XX-XXXX"]
[null,"MONITOREO PARAMETRO RESISTENCIA","NA","MPR","MPR-LAM/LAVXXXX-XX-XXXX"]
[null,"MONITOREO VIBRACIONES","NA","MVB","MVB-LAM/LAVXXXX-XX-XXXX"]
[null,"ESTACION METEOROLOGICA","NA","MET","MET-LAM/LAVXXXX-XX-XXXX"]
[null,"MUESTREO OCEANOGRAFICO","NA","MCN","MCN-LAM/LAVXXXX-XX-XXXX"]
[null,"MUESTREO FLORA MARINA","NA","FLM","FLM-LAM/LAVXXXX-XX-XXXX"]
[null,"MONITOREO DE FAUNA MARINA","MUESTREO DE FAUNA MARINA","FAM","FAM-LAM/LAVXXXX-XX-XXXX"]
[null,null,"PUNTO DE OBSERVACIÓN DE FAUNA MARINA","PFM","PFM-LAM/LAVXXXX-XX-XXXX"]
[null,"DRAGADO","NA","DRA","DRA-LAM/LAVXXXX-XX-XXXX"]
[null,"DISPOSICIÓN DRAGADO","NA","DMD","DMD-LAM/LAVXXXX-XX-XXXX"]
[null,"CARACTERIZACIÓN DE DRAGADO","NA","CRD","CRD-LAM/LAVXXXX-XX-XXXX"]
[null,"INVERSION 1%","NA","IUP","IUP-LAM/LAVXXXX-XX-XXXX"]
[null,"COMPENSACION BIODIVERSIDAD","NA","CPB","CPB-LAM/LAVXXXX-XX-XXXX"]
[null,"OTRAS COMPENSACIONES","NA","COT","COT-LAM/LAVXXXX-XX-XXXX"]
[null,"MONITOREO CAMPO ELECTROMAGNETICO","NA","MCE","MCE-LAM/LAVXXXX-XX-XXXX"]

{"sheet":"Temp","index":4,"n_rows":170,"n_cols":4,"rows_kept":170,"cut":false,"hidden":true,"merged":[[0,0,0,3]]}
["ANEXO - OBLIGACIONES MÍNIMAS PARA [COLOCAR NOMBRE DEL PROYECTO]"]
["COMPONENTE","Fase de construcción","Fase de operación y mantenimiento","Fase de desmantelamiento y abandono"]
[{"$f":"IF(#REF!=\"SI\",#REF!,NA())","v":{"$error":"#REF!"}},{"$f":"IF(#REF!=\"SI\",#REF!,NA())","v":{"$error":"#REF!"}},{"$f":"IF(#REF!=\"SI\",#REF!,NA())","v":{"$error":"#REF!"}},{"$f":"IF(#REF!=\"SI\",'OBLIGACIONES APLICABLES'!G3,NA())","v":{"$error":"#REF!"}}]
[{"$f":"IF(#REF!=\"SI\",#REF!,NA())","v":{"$error":"#REF!"}},{"$f":"IF(#REF!=\"SI\",#REF!,NA())","v":{"$error":"#REF!"}},{"$f":"IF(#REF!=\"SI\",'OBLIGACIONES APLICABLES'!F4,NA())","v":{"$error":"#REF!"}},{"$f":"IF(#REF!=\"SI\",'OBLIGACIONES APLICABLES'!G4,NA())","v":{"$error":"#REF!"}}]
[{"$f":"IF(#REF!=\"SI\",#REF!,NA())","v":{"$error":"#REF!"}},{"$f":"IF(#REF!=\"SI\",#REF!,NA())","v":{"$error":"#REF!"}},{"$f":"IF(#REF!=\"SI\",'OBLIGACIONES APLICABLES'!F5,NA())","v":{"$error":"#REF!"}},{"$f":"IF(#REF!=\"SI\",'OBLIGACIONES APLICABLES'!G5,NA())","v":{"$error":"#REF!"}}]
[{"$f":"IF(#REF!=\"SI\",#REF!,NA())","v":{"$error":"#REF!"}},{"$f":"IF(#REF!=\"SI\",#REF!,NA())","v":{"$error":"#REF!"}},{"$f":"IF(#REF!=\"SI\",'OBLIGACIONES APLICABLES'!#REF!,NA())","v":{"$error":"#REF!"}},{"$f":"IF(#REF!=\"SI\",'OBLIGACIONES APLICABLES'!#REF!,NA())","v":{"$error":"#REF!"}}]
[{"$f":"IF(#REF!=\"SI\",#REF!,NA())","v":{"$error":"#REF!"}},{"$f":"IF(#REF!=\"SI\",#REF!,NA())","v":{"$error":"#REF!"}},{"$f":"IF(#REF!=\"SI\",'OBLIGACIONES APLICABLES'!#REF!,NA())","v":{"$error":"#REF!"}},{"$f":"IF(#REF!=\"SI\",'OBLIGACIONES APLICABLES'!#REF!,NA())","v":{"$error":"#REF!"}}]
[{"$f":"IF(#REF!=\"SI\",#REF!,NA())","v":{"$error":"#REF!"}},{"$f":"IF(#REF!=\"SI\",#REF!,NA())","v":{"$error":"#REF!"}},{"$f":"IF(#REF!=\"SI\",'OBLIGACIONES APLICABLES'!F6,NA())","v":{"$error":"#REF!"}},{"$f":"IF(#REF!=\"SI\",'OBLIGACIONES APLICABLES'!G6,NA())","v":{"$error":"#REF!"}}]
[{"$f":"IF(#REF!=\"SI\",#REF!,NA())","v":{"$error":"#REF!"}},{"$f":"IF(#REF!=\"SI\",#REF!,NA())","v":{"$error":"#REF!"}},{"$f":"IF(#REF!=\"SI\",'OBLIGACIONES APLICABLES'!#REF!,NA())","v":{"$error":"#REF!"}},{"$f":"IF(#REF!=\"SI\",'OBLIGACIONES APLICABLES'!#REF!,NA())","v":{"$error":"#REF!"}}]
[{"$f":"IF(#REF!=\"SI\",#REF!,NA())","v":{"$error":"#REF!"}},{"$f":"IF(#REF!=\"SI\",#REF!,NA())","v":{"$error":"#REF!"}},{"$f":"IF(#REF!=\"SI\",'OBLIGACIONES APLICABLES'!#REF!,NA())","v":{"$error":"#REF!"}},{"$f":"IF(#REF!=\"SI\",'OBLIGACIONES APLICABLES'!#REF!,NA())","v":{"$error":"#REF!"}}]
[{"$f":"IF(#REF!=\"SI\",#REF!,NA())","v":{"$error":"#REF!"}},{"$f":"IF(#REF!=\"SI\",#REF!,NA())","v":{"$error":"#REF!"}},{"$f":"IF(#REF!=\"SI\",'OBLIGACIONES APLICABLES'!#REF!,NA())","v":{"$error":"#REF!"}},{"$f":"IF(#REF!=\"SI\",'OBLIGACIONES APLICABLES'!#REF!,NA())","v":{"$error":"#REF!"}}]
[{"$f":"IF(#REF!=\"SI\",#REF!,NA())","v":{"$error":"#REF!"}},{"$f":"IF(#REF!=\"SI\",#REF!,NA())","v":{"$error":"#REF!"}},{"$f":"IF(#REF!=\"SI\",'OBLIGACIONES APLICABLES'!#REF!,NA())","v":{"$error":"#REF!"}},{"$f":"IF(#REF!=\"SI\",'OBLIGACIONES APLICABLES'!#REF!,NA())","v":{"$error":"#REF!"}}]
[{"$f":"IF(#REF!=\"SI\",#REF!,NA())","v":{"$error":"#REF!"}},{"$f":"IF(#REF!=\"SI\",#REF!,NA())","v":{"$error":"#REF!"}},{"$f":"IF(#REF!=\"SI\",'OBLIGACIONES APLICABLES'!#REF!,NA())","v":{"$error":"#REF!"}},{"$f":"IF(#REF!=\"SI\",'OBLIGACIONES APLICABLES'!#REF!,NA())","v":{"$error":"#REF!"}}]
[{"$f":"IF(#REF!=\"SI\",#REF!,NA())","v":{"$error":"#REF!"}},{"$f":"IF(#REF!=\"SI\",#REF!,NA())","v":{"$error":"#REF!"}},{"$f":"IF(#REF!=\"SI\",'OBLIGACIONES APLICABLES'!#REF!,NA())","v":{"$error":"#REF!"}},{"$f":"IF(#REF!=\"SI\",'OBLIGACIONES APLICABLES'!#REF!,NA())","v":{"$error":"#REF!"}}]
[{"$f":"IF(#REF!=\"SI\",#REF!,NA())","v":{"$error":"#REF!"}},{"$f":"IF(#REF!=\"SI\",#REF!,NA())","v":{"$error":"#REF!"}},{"$f":"IF(#REF!=\"SI\",'OBLIGACIONES APLICABLES'!#REF!,NA())","v":{"$error":"#REF!"}},{"$f":"IF(#REF!=\"SI\",'OBLIGACIONES APLICABLES'!#REF!,NA())","v":{"$error":"#REF!"}}]
[{"$f":"IF(#REF!=\"SI\",#REF!,NA())","v":{"$error":"#REF!"}},{"$f":"IF(#REF!=\"SI\",#REF!,NA())","v":{"$error":"#REF!"}},{"$f":"IF(#REF!=\"SI\",'OBLIGACIONES APLICABLES'!#REF!,NA())","v":{"$error":"#REF!"}},{"$f":"IF(#REF!=\"SI\",'OBLIGACIONES APLICABLES'!#REF!,NA())","v":{"$error":"#REF!"}}]
[{"$f":"IF(#REF!=\"SI\",#REF!,NA())","v":{"$error":"#REF!"}},{"$f":"IF(#REF!=\"SI\",#REF!,NA())","v":{"$error":"#REF!"}},{"$f":"IF(#REF!=\"SI\",'OBLIGACIONES APLICABLES'!#REF!,NA())","v":{"$error":"#REF!"}},{"$f":"IF(#REF!=\"SI\",'OBLIGACIONES APLICABLES'!#REF!,NA())","v":{"$error":"#REF!"}}]
[{"$f":"IF(#REF!=\"SI\",#REF!,NA())","v":{"$error":"#REF!"}},{"$f":"IF(#REF!=\"SI\",#REF!,NA())","v":{"$error":"#REF!"}},{"$f":"IF(#REF!=\"SI\",'OBLIGACIONES APLICABLES'!#REF!,NA())","v":{"$error":"#REF!"}},{"$f":"IF(#REF!=\"SI\",'OBLIGACIONES APLICABLES'!#REF!,NA())","v":{"$error":"#REF!"}}]
[{"$f":"IF(#REF!=\"SI\",#REF!,NA())","v":{"$error":"#REF!"}},{"$f":"IF(#REF!=\"SI\",#REF!,NA())","v":{"$error":"#REF!"}},{"$f":"IF(#REF!=\"SI\",'OBLIGACIONES APLICABLES'!F8,NA())","v":{"$error":"#REF!"}},{"$f":"IF(#REF!=\"SI\",'OBLIGACIONES APLICABLES'!G8,NA())","v":{"$error":"#REF!"}}]
[{"$f":"IF(#REF!=\"SI\",#REF!,NA())","v":{"$error":"#REF!"}},{"$f":"IF(#REF!=\"SI\",#REF!,NA())","v":{"$error":"#REF!"}},{"$f":"IF(#REF!=\"SI\",'OBLIGACIONES APLICABLES'!#REF!,NA())","v":{"$error":"#REF!"}},{"$f":"IF(#REF!=\"SI\",'OBLIGACIONES APLICABLES'!#REF!,NA())","v":{"$error":"#REF!"}}]
[{"$f":"IF(#REF!=\"SI\",#REF!,NA())","v":{"$error":"#REF!"}},{"$f":"IF(#REF!=\"SI\",#REF!,NA())","v":{"$error":"#REF!"}},{"$f":"IF(#REF!=\"SI\",'OBLIGACIONES APLICABLES'!F9,NA())","v":{"$error":"#REF!"}},{"$f":"IF(#REF!=\"SI\",'OBLIGACIONES APLICABLES'!G9,NA())","v":{"$error":"#REF!"}}]
[{"$f":"IF(#REF!=\"SI\",#REF!,NA())","v":{"$error":"#REF!"}},{"$f":"IF(#REF!=\"SI\",#REF!,NA())","v":{"$error":"#REF!"}},{"$f":"IF(#REF!=\"SI\",'OBLIGACIONES APLICABLES'!F10,NA())","v":{"$error":"#REF!"}},{"$f":"IF(#REF!=\"SI\",'OBLIGACIONES APLICABLES'!G10,NA())","v":{"$error":"#REF!"}}]
[{"$f":"IF(#REF!=\"SI\",#REF!,NA())","v":{"$error":"#REF!"}},{"$f":"IF(#REF!=\"SI\",#REF!,NA())","v":{"$error":"#REF!"}},{"$f":"IF(#REF!=\"SI\",'OBLIGACIONES APLICABLES'!F11,NA())","v":{"$error":"#REF!"}},{"$f":"IF(#REF!=\"SI\",'OBLIGACIONES APLICABLES'!G11,NA())","v":{"$error":"#REF!"}}]
[{"$f":"IF(#REF!=\"SI\",#REF!,NA())","v":{"$error":"#REF!"}},{"$f":"IF(#REF!=\"SI\",#REF!,NA())","v":{"$error":"#REF!"}},{"$f":"IF(#REF!=\"SI\",'OBLIGACIONES APLICABLES'!#REF!,NA())","v":{"$error":"#REF!"}},{"$f":"IF(#REF!=\"SI\",'OBLIGACIONES APLICABLES'!#REF!,NA())","v":{"$error":"#REF!"}}]
[{"$f":"IF(#REF!=\"SI\",#REF!,NA())","v":{"$error":"#REF!"}},{"$f":"IF(#REF!=\"SI\",#REF!,NA())","v":{"$error":"#REF!"}},{"$f":"IF(#REF!=\"SI\",'OBLIGACIONES APLICABLES'!F15,NA())","v":{"$error":"#REF!"}},{"$f":"IF(#REF!=\"SI\",'OBLIGACIONES APLICABLES'!G15,NA())","v":{"$error":"#REF!"}}]
[{"$f":"IF(#REF!=\"SI\",#REF!,NA())","v":{"$error":"#REF!"}},{"$f":"IF(#REF!=\"SI\",#REF!,NA())","v":{"$error":"#REF!"}},{"$f":"IF(#REF!=\"SI\",'OBLIGACIONES APLICABLES'!F16,NA())","v":{"$error":"#REF!"}},{"$f":"IF(#REF!=\"SI\",'OBLIGACIONES APLICABLES'!G16,NA())","v":{"$error":"#REF!"}}]
[{"$f":"IF(#REF!=\"SI\",#REF!,NA())","v":{"$error":"#REF!"}},{"$f":"IF(#REF!=\"SI\",#REF!,NA())","v":{"$error":"#REF!"}},{"$f":"IF(#REF!=\"SI\",'OBLIGACIONES APLICABLES'!#REF!,NA())","v":{"$error":"#REF!"}},{"$f":"IF(#REF!=\"SI\",'OBLIGACIONES APLICABLES'!#REF!,NA())","v":{"$error":"#REF!"}}]
[{"$f":"IF(#REF!=\"SI\",#REF!,NA())","v":{"$error":"#REF!"}},{"$f":"IF(#REF!=\"SI\",#REF!,NA())","v":{"$error":"#REF!"}},{"$f":"IF(#REF!=\"SI\",'OBLIGACIONES APLICABLES'!F17,NA())","v":{"$error":"#REF!"}},{"$f":"IF(#REF!=\"SI\",'OBLIGACIONES APLICABLES'!G17,NA())","v":{"$error":"#REF!"}}]
[{"$f":"IF(#REF!=\"SI\",#REF!,NA())","v":{"$error":"#REF!"}},{"$f":"IF(#REF!=\"SI\",#REF!,NA())","v":{"$error":"#REF!"}},{"$f":"IF(#REF!=\"SI\",'OBLIGACIONES APLICABLES'!F18,NA())","v":{"$error":"#REF!"}},{"$f":"IF(#REF!=\"SI\",'OBLIGACIONES APLICABLES'!G18,NA())","v":{"$error":"#REF!"}}]
[{"$f":"IF(#REF!=\"SI\",#REF!,NA())","v":{"$error":"#REF!"}},{"$f":"IF(#REF!=\"SI\",#REF!,NA())","v":{"$error":"#REF!"}},{"$f":"IF(#REF!=\"SI\",'OBLIGACIONES APLICABLES'!#REF!,NA())","v":{"$error":"#REF!"}},{"$f":"IF(#REF!=\"SI\",'OBLIGACIONES APLICABLES'!#REF!,NA())","v":{"$error":"#REF!"}}]
[{"$f":"IF(#REF!=\"SI\",#REF!,NA())","v":{"$error":"#REF!"}},{"$f":"IF(#REF!=\"SI\",#REF!,NA())","v":{"$error":"#REF!"}},{"$f":"IF(#REF!=\"SI\",'OBLIGACIONES APLICABLES'!F19,NA())","v":{"$error":"#REF!"}},{"$f":"IF(#REF!=\"SI\",'OBLIGACIONES APLICABLES'!G19,NA())","v":{"$error":"#REF!"}}]
[{"$f":"IF(#REF!=\"SI\",#REF!,NA())","v":{"$error":"#REF!"}},{"$f":"IF(#REF!=\"SI\",#REF!,NA())","v":{"$error":"#REF!"}},{"$f":"IF(#REF!=\"SI\",'OBLIGACIONES APLICABLES'!#REF!,NA())","v":{"$error":"#REF!"}},{"$f":"IF(#REF!=\"SI\",'OBLIGACIONES APLICABLES'!#REF!,NA())","v":{"$error":"#REF!"}}]
[{"$f":"IF(#REF!=\"SI\",#REF!,NA())","v":{"$error":"#REF!"}},{"$f":"IF(#REF!=\"SI\",#REF!,NA())","v":{"$error":"#REF!"}},{"$f":"IF(#REF!=\"SI\",'OBLIGACIONES APLICABLES'!F26,NA())","v":{"$error":"#REF!"}},{"$f":"IF(#REF!=\"SI\",'OBLIGACIONES APLICABLES'!G26,NA())","v":{"$error":"#REF!"}}]
[{"$f":"IF(#REF!=\"SI\",#REF!,NA())","v":{"$error":"#REF!"}},{"$f":"IF(#REF!=\"SI\",#REF!,NA())","v":{"$error":"#REF!"}},{"$f":"IF(#REF!=\"SI\",'OBLIGACIONES APLICABLES'!F27,NA())","v":{"$error":"#REF!"}},{"$f":"IF(#REF!=\"SI\",'OBLIGACIONES APLICABLES'!G27,NA())","v":{"$error":"#REF!"}}]
[{"$f":"IF(#REF!=\"SI\",#REF!,NA())","v":{"$error":"#REF!"}},{"$f":"IF(#REF!=\"SI\",#REF!,NA())","v":{"$error":"#REF!"}},{"$f":"IF(#REF!=\"SI\",'OBLIGACIONES APLICABLES'!F32,NA())","v":{"$error":"#REF!"}},{"$f":"IF(#REF!=\"SI\",'OBLIGACIONES APLICABLES'!G32,NA())","v":{"$error":"#REF!"}}]
[{"$f":"IF(#REF!=\"SI\",#REF!,NA())","v":{"$error":"#REF!"}},{"$f":"IF(#REF!=\"SI\",#REF!,NA())","v":{"$error":"#REF!"}},{"$f":"IF(#REF!=\"SI\",'OBLIGACIONES APLICABLES'!F34,NA())","v":{"$error":"#REF!"}},{"$f":"IF(#REF!=\"SI\",'OBLIGACIONES APLICABLES'!G34,NA())","v":{"$error":"#REF!"}}]
[{"$f":"IF(#REF!=\"SI\",#REF!,NA())","v":{"$error":"#REF!"}},{"$f":"IF(#REF!=\"SI\",#REF!,NA())","v":{"$error":"#REF!"}},{"$f":"IF(#REF!=\"SI\",'OBLIGACIONES APLICABLES'!F35,NA())","v":{"$error":"#REF!"}},{"$f":"IF(#REF!=\"SI\",'OBLIGACIONES APLICABLES'!G35,NA())","v":{"$error":"#REF!"}}]
[{"$f":"IF(#REF!=\"SI\",#REF!,NA())","v":{"$error":"#REF!"}},{"$f":"IF(#REF!=\"SI\",#REF!,NA())","v":{"$error":"#REF!"}},{"$f":"IF(#REF!=\"SI\",'OBLIGACIONES APLICABLES'!#REF!,NA())","v":{"$error":"#REF!"}},{"$f":"IF(#REF!=\"SI\",'OBLIGACIONES APLICABLES'!#REF!,NA())","v":{"$error":"#REF!"}}]
[{"$f":"IF(#REF!=\"SI\",#REF!,NA())","v":{"$error":"#REF!"}},{"$f":"IF(#REF!=\"SI\",#REF!,NA())","v":{"$error":"#REF!"}},{"$f":"IF(#REF!=\"SI\",'OBLIGACIONES APLICABLES'!F36,NA())","v":{"$error":"#REF!"}},{"$f":"IF(#REF!=\"SI\",'OBLIGACIONES APLICABLES'!G36,NA())","v":{"$error":"#REF!"}}]
[{"$f":"IF(#REF!=\"SI\",#REF!,NA())","v":{"$error":"#REF!"}},{"$f":"IF(#REF!=\"SI\",#REF!,NA())","v":{"$error":"#REF!"}},{"$f":"IF(#REF!=\"SI\",'OBLIGACIONES APLICABLES'!#REF!,NA())","v":{"$error":"#REF!"}},{"$f":"IF(#REF!=\"SI\",'OBLIGACIONES APLICABLES'!#REF!,NA())","v":{"$error":"#REF!"}}]
[{"$f":"IF(#REF!=\"SI\",#REF!,NA())","v":{"$error":"#REF!"}},{"$f":"IF(#REF!=\"SI\",#REF!,NA())","v":{"$error":"#REF!"}},{"$f":"IF(#REF!=\"SI\",'OBLIGACIONES APLICABLES'!F37,NA())","v":{"$error":"#REF!"}},{"$f":"IF(#REF!=\"SI\",'OBLIGACIONES APLICABLES'!G37,NA())","v":{"$error":"#REF!"}}]
[{"$f":"IF(#REF!=\"SI\",#REF!,NA())","v":{"$error":"#REF!"}},{"$f":"IF(#REF!=\"SI\",#REF!,NA())","v":{"$error":"#REF!"}},{"$f":"IF(#REF!=\"SI\",'OBLIGACIONES APLICABLES'!#REF!,NA())","v":{"$error":"#REF!"}},{"$f":"IF(#REF!=\"SI\",'OBLIGACIONES APLICABLES'!#REF!,NA())","v":{"$error":"#REF!"}}]
[{"$f":"IF(#REF!=\"SI\",#REF!,NA())","v":{"$error":"#REF!"}},{"$f":"IF(#REF!=\"SI\",#REF!,NA())","v":{"$error":"#REF!"}},{"$f":"IF(#REF!=\"SI\",'OBLIGACIONES APLICABLES'!F38,NA())","v":{"$error":"#REF!"}},{"$f":"IF(#REF!=\"SI\",'OBLIGACIONES APLICABLES'!G38,NA())","v":{"$error":"#REF!"}}]
[{"$f":"IF(#REF!=\"SI\",#REF!,NA())","v":{"$error":"#REF!"}},{"$f":"IF(#REF!=\"SI\",#REF!,NA())","v":{"$error":"#REF!"}},{"$f":"IF(#REF!=\"SI\",'OBLIGACIONES APLICABLES'!F39,NA())","v":{"$error":"#REF!"}},{"$f":"IF(#REF!=\"SI\",'OBLIGACIONES APLICABLES'!G39,NA())","v":{"$error":"#REF!"}}]
[{"$f":"IF(#REF!=\"SI\",#REF!,NA())","v":{"$error":"#REF!"}},{"$f":"IF(#REF!=\"SI\",#REF!,NA())","v":{"$error":"#REF!"}},{"$f":"IF(#REF!=\"SI\",'OBLIGACIONES APLICABLES'!F40,NA())","v":{"$error":"#REF!"}},{"$f":"IF(#REF!=\"SI\",'OBLIGACIONES APLICABLES'!G40,NA())","v":{"$error":"#REF!"}}]
[{"$f":"IF(#REF!=\"SI\",#REF!,NA())","v":{"$error":"#REF!"}},{"$f":"IF(#REF!=\"SI\",#REF!,NA())","v":{"$error":"#REF!"}},{"$f":"IF(#REF!=\"SI\",'OBLIGACIONES APLICABLES'!#REF!,NA())","v":{"$error":"#REF!"}},{"$f":"IF(#REF!=\"SI\",'OBLIGACIONES APLICABLES'!#REF!,NA())","v":{"$error":"#REF!"}}]
[{"$f":"IF(#REF!=\"SI\",#REF!,NA())","v":{"$error":"#REF!"}},{"$f":"IF(#REF!=\"SI\",#REF!,NA())","v":{"$error":"#REF!"}},{"$f":"IF(#REF!=\"SI\",'OBLIGACIONES APLICABLES'!F41,NA())","v":{"$error":"#REF!"}},{"$f":"IF(#REF!=\"SI\",'OBLIGACIONES APLICABLES'!G41,NA())","v":{"$error":"#REF!"}}]
[{"$f":"IF(#REF!=\"SI\",#REF!,NA())","v":{"$error":"#REF!"}},{"$f":"IF(#REF!=\"SI\",#REF!,NA())","v":{"$error":"#REF!"}},{"$f":"IF(#REF!=\"SI\",'OBLIGACIONES APLICABLES'!F42,NA())","v":{"$error":"#REF!"}},{"$f":"IF(#REF!=\"SI\",'OBLIGACIONES APLICABLES'!G42,NA())","v":{"$error":"#REF!"}}]
[{"$f":"IF(#REF!=\"SI\",#REF!,NA())","v":{"$error":"#REF!"}},{"$f":"IF(#REF!=\"SI\",#REF!,NA())","v":{"$error":"#REF!"}},{"$f":"IF(#REF!=\"SI\",'OBLIGACIONES APLICABLES'!#REF!,NA())","v":{"$error":"#REF!"}},{"$f":"IF(#REF!=\"SI\",'OBLIGACIONES APLICABLES'!#REF!,NA())","v":{"$error":"#REF!"}}]
[{"$f":"IF(#REF!=\"SI\",#REF!,NA())","v":{"$error":"#REF!"}},{"$f":"IF(#REF!=\"SI\",#REF!,NA())","v":{"$error":"#REF!"}},{"$f":"IF(#REF!=\"SI\",'OBLIGACIONES APLICABLES'!#REF!,NA())","v":{"$error":"#REF!"}},{"$f":"IF(#REF!=\"SI\",'OBLIGACIONES APLICABLES'!#REF!,NA())","v":{"$error":"#REF!"}}]
[{"$f":"IF(#REF!=\"SI\",#REF!,NA())","v":{"$error":"#REF!"}},{"$f":"IF(#REF!=\"SI\",#REF!,NA())","v":{"$error":"#REF!"}},{"$f":"IF(#REF!=\"SI\",'OBLIGACIONES APLICABLES'!#REF!,NA())","v":{"$error":"#REF!"}},{"$f":"IF(#REF!=\"SI\",'OBLIGACIONES APLICABLES'!#REF!,NA())","v":{"$error":"#REF!"}}]
[{"$f":"IF(#REF!=\"SI\",#REF!,NA())","v":{"$error":"#REF!"}},{"$f":"IF(#REF!=\"SI\",#REF!,NA())","v":{"$error":"#REF!"}},{"$f":"IF(#REF!=\"SI\",'OBLIGACIONES APLICABLES'!#REF!,NA())","v":{"$error":"#REF!"}},{"$f":"IF(#REF!=\"SI\",'OBLIGACIONES APLICABLES'!#REF!,NA())","v":{"$error":"#REF!"}}]
[{"$f":"IF(#REF!=\"SI\",#REF!,NA())","v":{"$error":"#REF!"}},{"$f":"IF(#REF!=\"SI\",#REF!,NA())","v":{"$error":"#REF!"}},{"$f":"IF(#REF!=\"SI\",'OBLIGACIONES APLICABLES'!F59,NA())","v":{"$error":"#REF!"}},{"$f":"IF(#REF!=\"SI\",'OBLIGACIONES APLICABLES'!G59,NA())","v":{"$error":"#REF!"}}]
[{"$f":"IF(#REF!=\"SI\",#REF!,NA())","v":{"$error":"#REF!"}},{"$f":"IF(#REF!=\"SI\",#REF!,NA())","v":{"$error":"#REF!"}},{"$f":"IF(#REF!=\"SI\",'OBLIGACIONES APLICABLES'!F61,NA())","v":{"$error":"#REF!"}},{"$f":"IF(#REF!=\"SI\",'OBLIGACIONES APLICABLES'!G61,NA())","v":{"$error":"#REF!"}}]
[{"$f":"IF(#REF!=\"SI\",#REF!,NA())","v":{"$error":"#REF!"}},{"$f":"IF(#REF!=\"SI\",#REF!,NA())","v":{"$error":"#REF!"}},{"$f":"IF(#REF!=\"SI\",'OBLIGACIONES APLICABLES'!#REF!,NA())","v":{"$error":"#REF!"}},{"$f":"IF(#REF!=\"SI\",'OBLIGACIONES APLICABLES'!#REF!,NA())","v":{"$error":"#REF!"}}]
[{"$f":"IF(#REF!=\"SI\",#REF!,NA())","v":{"$error":"#REF!"}},{"$f":"IF(#REF!=\"SI\",#REF!,NA())","v":{"$error":"#REF!"}},{"$f":"IF(#REF!=\"SI\",'OBLIGACIONES APLICABLES'!F62,NA())","v":{"$error":"#REF!"}},{"$f":"IF(#REF!=\"SI\",'OBLIGACIONES APLICABLES'!G62,NA())","v":{"$error":"#REF!"}}]
[{"$f":"IF(#REF!=\"SI\",#REF!,NA())","v":{"$error":"#REF!"}},{"$f":"IF(#REF!=\"SI\",#REF!,NA())","v":{"$error":"#REF!"}},{"$f":"IF(#REF!=\"SI\",'OBLIGACIONES APLICABLES'!F63,NA())","v":{"$error":"#REF!"}},{"$f":"IF(#REF!=\"SI\",'OBLIGACIONES APLICABLES'!G63,NA())","v":{"$error":"#REF!"}}]
[{"$f":"IF(#REF!=\"SI\",#REF!,NA())","v":{"$error":"#REF!"}},{"$f":"IF(#REF!=\"SI\",#REF!,NA())","v":{"$error":"#REF!"}},{"$f":"IF(#REF!=\"SI\",'OBLIGACIONES APLICABLES'!F64,NA())","v":{"$error":"#REF!"}},{"$f":"IF(#REF!=\"SI\",'OBLIGACIONES APLICABLES'!G64,NA())","v":{"$error":"#REF!"}}]
[{"$f":"IF(#REF!=\"SI\",#REF!,NA())","v":{"$error":"#REF!"}},{"$f":"IF(#REF!=\"SI\",#REF!,NA())","v":{"$error":"#REF!"}},{"$f":"IF(#REF!=\"SI\",'OBLIGACIONES APLICABLES'!#REF!,NA())","v":{"$error":"#REF!"}},{"$f":"IF(#REF!=\"SI\",'OBLIGACIONES APLICABLES'!#REF!,NA())","v":{"$error":"#REF!"}}]
[{"$f":"IF(#REF!=\"SI\",#REF!,NA())","v":{"$error":"#REF!"}},{"$f":"IF(#REF!=\"SI\",#REF!,NA())","v":{"$error":"#REF!"}},{"$f":"IF(#REF!=\"SI\",'OBLIGACIONES APLICABLES'!#REF!,NA())","v":{"$error":"#REF!"}},{"$f":"IF(#REF!=\"SI\",'OBLIGACIONES APLICABLES'!#REF!,NA())","v":{"$error":"#REF!"}}]
[{"$f":"IF(#REF!=\"SI\",#REF!,NA())","v":{"$error":"#REF!"}},{"$f":"IF(#REF!=\"SI\",#REF!,NA())","v":{"$error":"#REF!"}},{"$f":"IF(#REF!=\"SI\",'OBLIGACIONES APLICABLES'!F65,NA())","v":{"$error":"#REF!"}},{"$f":"IF(#REF!=\"SI\",'OBLIGACIONES APLICABLES'!G65,NA())","v":{"$error":"#REF!"}}]
[{"$f":"IF(#REF!=\"SI\",#REF!,NA())","v":{"$error":"#REF!"}},{"$f":"IF(#REF!=\"SI\",#REF!,NA())","v":{"$error":"#REF!"}},{"$f":"IF(#REF!=\"SI\",'OBLIGACIONES APLICABLES'!F66,NA())","v":{"$error":"#REF!"}},{"$f":"IF(#REF!=\"SI\",'OBLIGACIONES APLICABLES'!G66,NA())","v":{"$error":"#REF!"}}]
[{"$f":"IF(#REF!=\"SI\",#REF!,NA())","v":{"$error":"#REF!"}},{"$f":"IF(#REF!=\"SI\",#REF!,NA())","v":{"$error":"#REF!"}},{"$f":"IF(#REF!=\"SI\",'OBLIGACIONES APLICABLES'!F67,NA())","v":{"$error":"#REF!"}},{"$f":"IF(#REF!=\"SI\",'OBLIGACIONES APLICABLES'!G67,NA())","v":{"$error":"#REF!"}}]
[{"$f":"IF(#REF!=\"SI\",#REF!,NA())","v":{"$error":"#REF!"}},{"$f":"IF(#REF!=\"SI\",#REF!,NA())","v":{"$error":"#REF!"}},{"$f":"IF(#REF!=\"SI\",'OBLIGACIONES APLICABLES'!#REF!,NA())","v":{"$error":"#REF!"}},{"$f":"IF(#REF!=\"SI\",'OBLIGACIONES APLICABLES'!#REF!,NA())","v":{"$error":"#REF!"}}]
[{"$f":"IF(#REF!=\"SI\",#REF!,NA())","v":{"$error":"#REF!"}},{"$f":"IF(#REF!=\"SI\",#REF!,NA())","v":{"$error":"#REF!"}},{"$f":"IF(#REF!=\"SI\",'OBLIGACIONES APLICABLES'!#REF!,NA())","v":{"$error":"#REF!"}},{"$f":"IF(#REF!=\"SI\",'OBLIGACIONES APLICABLES'!#REF!,NA())","v":{"$error":"#REF!"}}]
[{"$f":"IF(#REF!=\"SI\",#REF!,NA())","v":{"$error":"#REF!"}},{"$f":"IF(#REF!=\"SI\",#REF!,NA())","v":{"$error":"#REF!"}},{"$f":"IF(#REF!=\"SI\",'OBLIGACIONES APLICABLES'!#REF!,NA())","v":{"$error":"#REF!"}},{"$f":"IF(#REF!=\"SI\",'OBLIGACIONES APLICABLES'!#REF!,NA())","v":{"$error":"#REF!"}}]
[{"$f":"IF(#REF!=\"SI\",#REF!,NA())","v":{"$error":"#REF!"}},{"$f":"IF(#REF!=\"SI\",#REF!,NA())","v":{"$error":"#REF!"}},{"$f":"IF(#REF!=\"SI\",'OBLIGACIONES APLICABLES'!#REF!,NA())","v":{"$error":"#REF!"}},{"$f":"IF(#REF!=\"SI\",'OBLIGACIONES APLICABLES'!#REF!,NA())","v":{"$error":"#REF!"}}]
[{"$f":"IF(#REF!=\"SI\",#REF!,NA())","v":{"$error":"#REF!"}},{"$f":"IF(#REF!=\"SI\",#REF!,NA())","v":{"$error":"#REF!"}},{"$f":"IF(#REF!=\"SI\",'OBLIGACIONES APLICABLES'!F68,NA())","v":{"$error":"#REF!"}},{"$f":"IF(#REF!=\"SI\",'OBLIGACIONES APLICABLES'!G68,NA())","v":{"$error":"#REF!"}}]
[{"$f":"IF(#REF!=\"SI\",#REF!,NA())","v":{"$error":"#REF!"}},{"$f":"IF(#REF!=\"SI\",#REF!,NA())","v":{"$error":"#REF!"}},{"$f":"IF(#REF!=\"SI\",'OBLIGACIONES APLICABLES'!F69,NA())","v":{"$error":"#REF!"}},{"$f":"IF(#REF!=\"SI\",'OBLIGACIONES APLICABLES'!G69,NA())","v":{"$error":"#REF!"}}]
[{"$f":"IF(#REF!=\"SI\",#REF!,NA())","v":{"$error":"#REF!"}},{"$f":"IF(#REF!=\"SI\",#REF!,NA())","v":{"$error":"#REF!"}},{"$f":"IF(#REF!=\"SI\",'OBLIGACIONES APLICABLES'!#REF!,NA())","v":{"$error":"#REF!"}},{"$f":"IF(#REF!=\"SI\",'OBLIGACIONES APLICABLES'!#REF!,NA())","v":{"$error":"#REF!"}}]
[{"$f":"IF(#REF!=\"SI\",#REF!,NA())","v":{"$error":"#REF!"}},{"$f":"IF(#REF!=\"SI\",#REF!,NA())","v":{"$error":"#REF!"}},{"$f":"IF(#REF!=\"SI\",'OBLIGACIONES APLICABLES'!F70,NA())","v":{"$error":"#REF!"}},{"$f":"IF(#REF!=\"SI\",'OBLIGACIONES APLICABLES'!G70,NA())","v":{"$error":"#REF!"}}]
[{"$f":"IF(#REF!=\"SI\",#REF!,NA())","v":{"$error":"#REF!"}},{"$f":"IF(#REF!=\"SI\",#REF!,NA())","v":{"$error":"#REF!"}},{"$f":"IF(#REF!=\"SI\",'OBLIGACIONES APLICABLES'!#REF!,NA())","v":{"$error":"#REF!"}},{"$f":"IF(#REF!=\"SI\",'OBLIGACIONES APLICABLES'!#REF!,NA())","v":{"$error":"#REF!"}}]
[{"$f":"IF(#REF!=\"SI\",#REF!,NA())","v":{"$error":"#REF!"}},{"$f":"IF(#REF!=\"SI\",#REF!,NA())","v":{"$error":"#REF!"}},{"$f":"IF(#REF!=\"SI\",'OBLIGACIONES APLICABLES'!#REF!,NA())","v":{"$error":"#REF!"}},{"$f":"IF(#REF!=\"SI\",'OBLIGACIONES APLICABLES'!#REF!,NA())","v":{"$error":"#REF!"}}]
[{"$f":"IF(#REF!=\"SI\",#REF!,NA())","v":{"$error":"#REF!"}},{"$f":"IF(#REF!=\"SI\",#REF!,NA())","v":{"$error":"#REF!"}},{"$f":"IF(#REF!=\"SI\",'OBLIGACIONES APLICABLES'!F71,NA())","v":{"$error":"#REF!"}},{"$f":"IF(#REF!=\"SI\",'OBLIGACIONES APLICABLES'!G71,NA())","v":{"$error":"#REF!"}}]
[{"$f":"IF(#REF!=\"SI\",#REF!,NA())","v":{"$error":"#REF!"}},{"$f":"IF(#REF!=\"SI\",#REF!,NA())","v":{"$error":"#REF!"}},{"$f":"IF(#REF!=\"SI\",'OBLIGACIONES APLICABLES'!#REF!,NA())","v":{"$error":"#REF!"}},{"$f":"IF(#REF!=\"SI\",'OBLIGACIONES APLICABLES'!#REF!,NA())","v":{"$error":"#REF!"}}]
[{"$f":"IF(#REF!=\"SI\",#REF!,NA())","v":{"$error":"#REF!"}},{"$f":"IF(#REF!=\"SI\",#REF!,NA())","v":{"$error":"#REF!"}},{"$f":"IF(#REF!=\"SI\",'OBLIGACIONES APLICABLES'!#REF!,NA())","v":{"$error":"#REF!"}},{"$f":"IF(#REF!=\"SI\",'OBLIGACIONES APLICABLES'!#REF!,NA())","v":{"$error":"#REF!"}}]
[{"$f":"IF(#REF!=\"SI\",#REF!,NA())","v":{"$error":"#REF!"}},{"$f":"IF(#REF!=\"SI\",#REF!,NA())","v":{"$error":"#REF!"}},{"$f":"IF(#REF!=\"SI\",'OBLIGACIONES APLICABLES'!#REF!,NA())","v":{"$error":"#REF!"}},{"$f":"IF(#REF!=\"SI\",'OBLIGACIONES APLICABLES'!#REF!,NA())","v":{"$error":"#REF!"}}]
[{"$f":"IF(#REF!=\"SI\",#REF!,NA())","v":{"$error":"#REF!"}},{"$f":"IF(#REF!=\"SI\",#REF!,NA())","v":{"$error":"#REF!"}},{"$f":"IF(#REF!=\"SI\",'OBLIGACIONES APLICABLES'!#REF!,NA())","v":{"$error":"#REF!"}},{"$f":"IF(#REF!=\"SI\",'OBLIGACIONES APLICABLES'!#REF!,NA())","v":{"$error":"#REF!"}}]
[{"$f":"IF(#REF!=\"SI\",#REF!,NA())","v":{"$error":"#REF!"}},{"$f":"IF(#REF!=\"SI\",#REF!,NA())","v":{"$error":"#REF!"}},{"$f":"IF(#REF!=\"SI\",'OBLIGACIONES APLICABLES'!#REF!,NA())","v":{"$error":"#REF!"}},{"$f":"IF(#REF!=\"SI\",'OBLIGACIONES APLICABLES'!#REF!,NA())","v":{"$error":"#REF!"}}]
[{"$f":"IF(#REF!=\"SI\",#REF!,NA())","v":{"$error":"#REF!"}},{"$f":"IF(#REF!=\"SI\",#REF!,NA())","v":{"$error":"#REF!"}},{"$f":"IF(#REF!=\"SI\",'OBLIGACIONES APLICABLES'!F73,NA())","v":{"$error":"#REF!"}},{"$f":"IF(#REF!=\"SI\",'OBLIGACIONES APLICABLES'!G73,NA())","v":{"$error":"#REF!"}}]
[{"$f":"IF(#REF!=\"SI\",#REF!,NA())","v":{"$error":"#REF!"}},{"$f":"IF(#REF!=\"SI\",#REF!,NA())","v":{"$error":"#REF!"}},{"$f":"IF(#REF!=\"SI\",'OBLIGACIONES APLICABLES'!#REF!,NA())","v":{"$error":"#REF!"}},{"$f":"IF(#REF!=\"SI\",'OBLIGACIONES APLICABLES'!#REF!,NA())","v":{"$error":"#REF!"}}]
[{"$f":"IF(#REF!=\"SI\",#REF!,NA())","v":{"$error":"#REF!"}},{"$f":"IF(#REF!=\"SI\",#REF!,NA())","v":{"$error":"#REF!"}},{"$f":"IF(#REF!=\"SI\",'OBLIGACIONES APLICABLES'!#REF!,NA())","v":{"$error":"#REF!"}},{"$f":"IF(#REF!=\"SI\",'OBLIGACIONES APLICABLES'!#REF!,NA())","v":{"$error":"#REF!"}}]
[{"$f":"IF(#REF!=\"SI\",#REF!,NA())","v":{"$error":"#REF!"}},{"$f":"IF(#REF!=\"SI\",#REF!,NA())","v":{"$error":"#REF!"}},{"$f":"IF(#REF!=\"SI\",'OBLIGACIONES APLICABLES'!#REF!,NA())","v":{"$error":"#REF!"}},{"$f":"IF(#REF!=\"SI\",'OBLIGACIONES APLICABLES'!#REF!,NA())","v":{"$error":"#REF!"}}]
[{"$f":"IF(#REF!=\"SI\",#REF!,NA())","v":{"$error":"#REF!"}},{"$f":"IF(#REF!=\"SI\",#REF!,NA())","v":{"$error":"#REF!"}},{"$f":"IF(#REF!=\"SI\",'OBLIGACIONES APLICABLES'!#REF!,NA())","v":{"$error":"#REF!"}},{"$f":"IF(#REF!=\"SI\",'OBLIGACIONES APLICABLES'!#REF!,NA())","v":{"$error":"#REF!"}}]
[{"$f":"IF(#REF!=\"SI\",#REF!,NA())","v":{"$error":"#REF!"}},{"$f":"IF(#REF!=\"SI\",#REF!,NA())","v":{"$error":"#REF!"}},{"$f":"IF(#REF!=\"SI\",'OBLIGACIONES APLICABLES'!#REF!,NA())","v":{"$error":"#REF!"}},{"$f":"IF(#REF!=\"SI\",'OBLIGACIONES APLICABLES'!#REF!,NA())","v":{"$error":"#REF!"}}]
[{"$f":"IF(#REF!=\"SI\",#REF!,NA())","v":{"$error":"#REF!"}},{"$f":"IF(#REF!=\"SI\",#REF!,NA())","v":{"$error":"#REF!"}},{"$f":"IF(#REF!=\"SI\",'OBLIGACIONES APLICABLES'!#REF!,NA())","v":{"$error":"#REF!"}},{"$f":"IF(#REF!=\"SI\",'OBLIGACIONES APLICABLES'!#REF!,NA())","v":{"$error":"#REF!"}}]
[{"$f":"IF(#REF!=\"SI\",#REF!,NA())","v":{"$error":"#REF!"}},{"$f":"IF(#REF!=\"SI\",#REF!,NA())","v":{"$error":"#REF!"}},{"$f":"IF(#REF!=\"SI\",'OBLIGACIONES APLICABLES'!#REF!,NA())","v":{"$error":"#REF!"}},{"$f":"IF(#REF!=\"SI\",'OBLIGACIONES APLICABLES'!#REF!,NA())","v":{"$error":"#REF!"}}]
[{"$f":"IF(#REF!=\"SI\",#REF!,NA())","v":{"$error":"#REF!"}},{"$f":"IF(#REF!=\"SI\",#REF!,NA())","v":{"$error":"#REF!"}},{"$f":"IF(#REF!=\"SI\",'OBLIGACIONES APLICABLES'!F81,NA())","v":{"$error":"#REF!"}},{"$f":"IF(#REF!=\"SI\",'OBLIGACIONES APLICABLES'!G81,NA())","v":{"$error":"#REF!"}}]
[{"$f":"IF(#REF!=\"SI\",#REF!,NA())","v":{"$error":"#REF!"}},{"$f":"IF(#REF!=\"SI\",#REF!,NA())","v":{"$error":"#REF!"}},{"$f":"IF(#REF!=\"SI\",'OBLIGACIONES APLICABLES'!F82,NA())","v":{"$error":"#REF!"}},{"$f":"IF(#REF!=\"SI\",'OBLIGACIONES APLICABLES'!G82,NA())","v":{"$error":"#REF!"}}]
[{"$f":"IF(#REF!=\"SI\",#REF!,NA())","v":{"$error":"#REF!"}},{"$f":"IF(#REF!=\"SI\",#REF!,NA())","v":{"$error":"#REF!"}},{"$f":"IF(#REF!=\"SI\",'OBLIGACIONES APLICABLES'!#REF!,NA())","v":{"$error":"#REF!"}},{"$f":"IF(#REF!=\"SI\",'OBLIGACIONES APLICABLES'!#REF!,NA())","v":{"$error":"#REF!"}}]
[{"$f":"IF(#REF!=\"SI\",#REF!,NA())","v":{"$error":"#REF!"}},{"$f":"IF(#REF!=\"SI\",#REF!,NA())","v":{"$error":"#REF!"}},{"$f":"IF(#REF!=\"SI\",'OBLIGACIONES APLICABLES'!F87,NA())","v":{"$error":"#REF!"}},{"$f":"IF(#REF!=\"SI\",'OBLIGACIONES APLICABLES'!G87,NA())","v":{"$error":"#REF!"}}]
[{"$f":"IF(#REF!=\"SI\",#REF!,NA())","v":{"$error":"#REF!"}},{"$f":"IF(#REF!=\"SI\",#REF!,NA())","v":{"$error":"#REF!"}},{"$f":"IF(#REF!=\"SI\",'OBLIGACIONES APLICABLES'!F88,NA())","v":{"$error":"#REF!"}},{"$f":"IF(#REF!=\"SI\",'OBLIGACIONES APLICABLES'!G88,NA())","v":{"$error":"#REF!"}}]
[{"$f":"IF(#REF!=\"SI\",#REF!,NA())","v":{"$error":"#REF!"}},{"$f":"IF(#REF!=\"SI\",#REF!,NA())","v":{"$error":"#REF!"}},{"$f":"IF(#REF!=\"SI\",'OBLIGACIONES APLICABLES'!F89,NA())","v":{"$error":"#REF!"}},{"$f":"IF(#REF!=\"SI\",'OBLIGACIONES APLICABLES'!G89,NA())","v":{"$error":"#REF!"}}]
[{"$f":"IF(#REF!=\"SI\",#REF!,NA())","v":{"$error":"#REF!"}},{"$f":"IF(#REF!=\"SI\",#REF!,NA())","v":{"$error":"#REF!"}},{"$f":"IF(#REF!=\"SI\",'OBLIGACIONES APLICABLES'!F90,NA())","v":{"$error":"#REF!"}},{"$f":"IF(#REF!=\"SI\",'OBLIGACIONES APLICABLES'!G90,NA())","v":{"$error":"#REF!"}}]
[{"$f":"IF(#REF!=\"SI\",#REF!,NA())","v":{"$error":"#REF!"}},{"$f":"IF(#REF!=\"SI\",#REF!,NA())","v":{"$error":"#REF!"}},{"$f":"IF(#REF!=\"SI\",'OBLIGACIONES APLICABLES'!F93,NA())","v":{"$error":"#REF!"}},{"$f":"IF(#REF!=\"SI\",'OBLIGACIONES APLICABLES'!G93,NA())","v":{"$error":"#REF!"}}]
[{"$f":"IF(#REF!=\"SI\",#REF!,NA())","v":{"$error":"#REF!"}},{"$f":"IF(#REF!=\"SI\",#REF!,NA())","v":{"$error":"#REF!"}},{"$f":"IF(#REF!=\"SI\",'OBLIGACIONES APLICABLES'!F94,NA())","v":{"$error":"#REF!"}},{"$f":"IF(#REF!=\"SI\",'OBLIGACIONES APLICABLES'!G94,NA())","v":{"$error":"#REF!"}}]
[{"$f":"IF(#REF!=\"SI\",#REF!,NA())","v":{"$error":"#REF!"}},{"$f":"IF(#REF!=\"SI\",#REF!,NA())","v":{"$error":"#REF!"}},{"$f":"IF(#REF!=\"SI\",'OBLIGACIONES APLICABLES'!F100,NA())","v":{"$error":"#REF!"}},{"$f":"IF(#REF!=\"SI\",'OBLIGACIONES APLICABLES'!G100,NA())","v":{"$error":"#REF!"}}]
[{"$f":"IF(#REF!=\"SI\",#REF!,NA())","v":{"$error":"#REF!"}},{"$f":"IF(#REF!=\"SI\",#REF!,NA())","v":{"$error":"#REF!"}},{"$f":"IF(#REF!=\"SI\",'OBLIGACIONES APLICABLES'!#REF!,NA())","v":{"$error":"#REF!"}},{"$f":"IF(#REF!=\"SI\",'OBLIGACIONES APLICABLES'!#REF!,NA())","v":{"$error":"#REF!"}}]
[{"$f":"IF(#REF!=\"SI\",#REF!,NA())","v":{"$error":"#REF!"}},{"$f":"IF(#REF!=\"SI\",#REF!,NA())","v":{"$error":"#REF!"}},{"$f":"IF(#REF!=\"SI\",'OBLIGACIONES APLICABLES'!#REF!,NA())","v":{"$error":"#REF!"}},{"$f":"IF(#REF!=\"SI\",'OBLIGACIONES APLICABLES'!#REF!,NA())","v":{"$error":"#REF!"}}]
[{"$f":"IF(#REF!=\"SI\",#REF!,NA())","v":{"$error":"#REF!"}},{"$f":"IF(#REF!=\"SI\",#REF!,NA())","v":{"$error":"#REF!"}},{"$f":"IF(#REF!=\"SI\",'OBLIGACIONES APLICABLES'!F101,NA())","v":{"$error":"#REF!"}},{"$f":"IF(#REF!=\"SI\",'OBLIGACIONES APLICABLES'!G101,NA())","v":{"$error":"#REF!"}}]
[{"$f":"IF(#REF!=\"SI\",#REF!,NA())","v":{"$error":"#REF!"}},{"$f":"IF(#REF!=\"SI\",#REF!,NA())","v":{"$error":"#REF!"}},{"$f":"IF(#REF!=\"SI\",'OBLIGACIONES APLICABLES'!F102,NA())","v":{"$error":"#REF!"}},{"$f":"IF(#REF!=\"SI\",'OBLIGACIONES APLICABLES'!G102,NA())","v":{"$error":"#REF!"}}]
[{"$f":"IF(#REF!=\"SI\",#REF!,NA())","v":{"$error":"#REF!"}},{"$f":"IF(#REF!=\"SI\",#REF!,NA())","v":{"$error":"#REF!"}},{"$f":"IF(#REF!=\"SI\",'OBLIGACIONES APLICABLES'!#REF!,NA())","v":{"$error":"#REF!"}},{"$f":"IF(#REF!=\"SI\",'OBLIGACIONES APLICABLES'!#REF!,NA())","v":{"$error":"#REF!"}}]
[{"$f":"IF(#REF!=\"SI\",#REF!,NA())","v":{"$error":"#REF!"}},{"$f":"IF(#REF!=\"SI\",#REF!,NA())","v":{"$error":"#REF!"}},{"$f":"IF(#REF!=\"SI\",'OBLIGACIONES APLICABLES'!F103,NA())","v":{"$error":"#REF!"}},{"$f":"IF(#REF!=\"SI\",'OBLIGACIONES APLICABLES'!G103,NA())","v":{"$error":"#REF!"}}]
[{"$f":"IF(#REF!=\"SI\",#REF!,NA())","v":{"$error":"#REF!"}},{"$f":"IF(#REF!=\"SI\",#REF!,NA())","v":{"$error":"#REF!"}},{"$f":"IF(#REF!=\"SI\",'OBLIGACIONES APLICABLES'!F104,NA())","v":{"$error":"#REF!"}},{"$f":"IF(#REF!=\"SI\",'OBLIGACIONES APLICABLES'!G104,NA())","v":{"$error":"#REF!"}}]
[{"$f":"IF(#REF!=\"SI\",#REF!,NA())","v":{"$error":"#REF!"}},{"$f":"IF(#REF!=\"SI\",#REF!,NA())","v":{"$error":"#REF!"}},{"$f":"IF(#REF!=\"SI\",'OBLIGACIONES APLICABLES'!F107,NA())","v":{"$error":"#REF!"}},{"$f":"IF(#REF!=\"SI\",'OBLIGACIONES APLICABLES'!G107,NA())","v":{"$error":"#REF!"}}]
[{"$f":"IF(#REF!=\"SI\",#REF!,NA())","v":{"$error":"#REF!"}},{"$f":"IF(#REF!=\"SI\",#REF!,NA())","v":{"$error":"#REF!"}},{"$f":"IF(#REF!=\"SI\",'OBLIGACIONES APLICABLES'!F108,NA())","v":{"$error":"#REF!"}},{"$f":"IF(#REF!=\"SI\",'OBLIGACIONES APLICABLES'!G108,NA())","v":{"$error":"#REF!"}}]
[{"$f":"IF(#REF!=\"SI\",#REF!,NA())","v":{"$error":"#REF!"}},{"$f":"IF(#REF!=\"SI\",#REF!,NA())","v":{"$error":"#REF!"}},{"$f":"IF(#REF!=\"SI\",'OBLIGACIONES APLICABLES'!F109,NA())","v":{"$error":"#REF!"}},{"$f":"IF(#REF!=\"SI\",'OBLIGACIONES APLICABLES'!G109,NA())","v":{"$error":"#REF!"}}]
[{"$f":"IF(#REF!=\"SI\",#REF!,NA())","v":{"$error":"#REF!"}},{"$f":"IF(#REF!=\"SI\",#REF!,NA())","v":{"$error":"#REF!"}},{"$f":"IF(#REF!=\"SI\",'OBLIGACIONES APLICABLES'!F110,NA())","v":{"$error":"#REF!"}},{"$f":"IF(#REF!=\"SI\",'OBLIGACIONES APLICABLES'!G110,NA())","v":{"$error":"#REF!"}}]
[{"$f":"IF(#REF!=\"SI\",#REF!,NA())","v":{"$error":"#REF!"}},{"$f":"IF(#REF!=\"SI\",#REF!,NA())","v":{"$error":"#REF!"}},{"$f":"IF(#REF!=\"SI\",'OBLIGACIONES APLICABLES'!F111,NA())","v":{"$error":"#REF!"}},{"$f":"IF(#REF!=\"SI\",'OBLIGACIONES APLICABLES'!G111,NA())","v":{"$error":"#REF!"}}]
[{"$f":"IF(#REF!=\"SI\",#REF!,NA())","v":{"$error":"#REF!"}},{"$f":"IF(#REF!=\"SI\",#REF!,NA())","v":{"$error":"#REF!"}},{"$f":"IF(#REF!=\"SI\",'OBLIGACIONES APLICABLES'!#REF!,NA())","v":{"$error":"#REF!"}},{"$f":"IF(#REF!=\"SI\",'OBLIGACIONES APLICABLES'!#REF!,NA())","v":{"$error":"#REF!"}}]
[{"$f":"IF(#REF!=\"SI\",#REF!,NA())","v":{"$error":"#REF!"}},{"$f":"IF(#REF!=\"SI\",#REF!,NA())","v":{"$error":"#REF!"}},{"$f":"IF(#REF!=\"SI\",'OBLIGACIONES APLICABLES'!#REF!,NA())","v":{"$error":"#REF!"}},{"$f":"IF(#REF!=\"SI\",'OBLIGACIONES APLICABLES'!#REF!,NA())","v":{"$error":"#REF!"}}]
[{"$f":"IF(#REF!=\"SI\",#REF!,NA())","v":{"$error":"#REF!"}},{"$f":"IF(#REF!=\"SI\",#REF!,NA())","v":{"$error":"#REF!"}},{"$f":"IF(#REF!=\"SI\",'OBLIGACIONES APLICABLES'!#REF!,NA())","v":{"$error":"#REF!"}},{"$f":"IF(#REF!=\"SI\",'OBLIGACIONES APLICABLES'!#REF!,NA())","v":{"$error":"#REF!"}}]
[{"$f":"IF(#REF!=\"SI\",#REF!,NA())","v":{"$error":"#REF!"}},{"$f":"IF(#REF!=\"SI\",#REF!,NA())","v":{"$error":"#REF!"}},{"$f":"IF(#REF!=\"SI\",'OBLIGACIONES APLICABLES'!#REF!,NA())","v":{"$error":"#REF!"}},{"$f":"IF(#REF!=\"SI\",'OBLIGACIONES APLICABLES'!#REF!,NA())","v":{"$error":"#REF!"}}]
[{"$f":"IF(#REF!=\"SI\",#REF!,NA())","v":{"$error":"#REF!"}},{"$f":"IF(#REF!=\"SI\",#REF!,NA())","v":{"$error":"#REF!"}},{"$f":"IF(#REF!=\"SI\",'OBLIGACIONES APLICABLES'!#REF!,NA())","v":{"$error":"#REF!"}},{"$f":"IF(#REF!=\"SI\",'OBLIGACIONES APLICABLES'!#REF!,NA())","v":{"$error":"#REF!"}}]
[{"$f":"IF(#REF!=\"SI\",#REF!,NA())","v":{"$error":"#REF!"}},{"$f":"IF(#REF!=\"SI\",#REF!,NA())","v":{"$error":"#REF!"}},{"$f":"IF(#REF!=\"SI\",'OBLIGACIONES APLICABLES'!#REF!,NA())","v":{"$error":"#REF!"}},{"$f":"IF(#REF!=\"SI\",'OBLIGACIONES APLICABLES'!#REF!,NA())","v":{"$error":"#REF!"}}]
[{"$f":"IF(#REF!=\"SI\",#REF!,NA())","v":{"$error":"#REF!"}},{"$f":"IF(#REF!=\"SI\",#REF!,NA())","v":{"$error":"#REF!"}},{"$f":"IF(#REF!=\"SI\",'OBLIGACIONES APLICABLES'!#REF!,NA())","v":{"$error":"#REF!"}},{"$f":"IF(#REF!=\"SI\",'OBLIGACIONES APLICABLES'!#REF!,NA())","v":{"$error":"#REF!"}}]
[{"$f":"IF(#REF!=\"SI\",#REF!,NA())","v":{"$error":"#REF!"}},{"$f":"IF(#REF!=\"SI\",#REF!,NA())","v":{"$error":"#REF!"}},{"$f":"IF(#REF!=\"SI\",'OBLIGACIONES APLICABLES'!#REF!,NA())","v":{"$error":"#REF!"}},{"$f":"IF(#REF!=\"SI\",'OBLIGACIONES APLICABLES'!#REF!,NA())","v":{"$error":"#REF!"}}]
[{"$f":"IF(#REF!=\"SI\",#REF!,NA())","v":{"$error":"#REF!"}},{"$f":"IF(#REF!=\"SI\",#REF!,NA())","v":{"$error":"#REF!"}},{"$f":"IF(#REF!=\"SI\",'OBLIGACIONES APLICABLES'!#REF!,NA())","v":{"$error":"#REF!"}},{"$f":"IF(#REF!=\"SI\",'OBLIGACIONES APLICABLES'!#REF!,NA())","v":{"$error":"#REF!"}}]
[{"$f":"IF(#REF!=\"SI\",#REF!,NA())","v":{"$error":"#REF!"}},{"$f":"IF(#REF!=\"SI\",#REF!,NA())","v":{"$error":"#REF!"}},{"$f":"IF(#REF!=\"SI\",'OBLIGACIONES APLICABLES'!#REF!,NA())","v":{"$error":"#REF!"}},{"$f":"IF(#REF!=\"SI\",'OBLIGACIONES APLICABLES'!#REF!,NA())","v":{"$error":"#REF!"}}]
[{"$f":"IF(#REF!=\"SI\",#REF!,NA())","v":{"$error":"#REF!"}},{"$f":"IF(#REF!=\"SI\",#REF!,NA())","v":{"$error":"#REF!"}},{"$f":"IF(#REF!=\"SI\",'OBLIGACIONES APLICABLES'!#REF!,NA())","v":{"$error":"#REF!"}},{"$f":"IF(#REF!=\"SI\",'OBLIGACIONES APLICABLES'!#REF!,NA())","v":{"$error":"#REF!"}}]
[{"$f":"IF(#REF!=\"SI\",#REF!,NA())","v":{"$error":"#REF!"}},{"$f":"IF(#REF!=\"SI\",#REF!,NA())","v":{"$error":"#REF!"}},{"$f":"IF(#REF!=\"SI\",'OBLIGACIONES APLICABLES'!#REF!,NA())","v":{"$error":"#REF!"}},{"$f":"IF(#REF!=\"SI\",'OBLIGACIONES APLICABLES'!#REF!,NA())","v":{"$error":"#REF!"}}]
[{"$f":"IF(#REF!=\"SI\",#REF!,NA())","v":{"$error":"#REF!"}},{"$f":"IF(#REF!=\"SI\",#REF!,NA())","v":{"$error":"#REF!"}},{"$f":"IF(#REF!=\"SI\",'OBLIGACIONES APLICABLES'!#REF!,NA())","v":{"$error":"#REF!"}},{"$f":"IF(#REF!=\"SI\",'OBLIGACIONES APLICABLES'!#REF!,NA())","v":{"$error":"#REF!"}}]
[{"$f":"IF(#REF!=\"SI\",#REF!,NA())","v":{"$error":"#REF!"}},{"$f":"IF(#REF!=\"SI\",#REF!,NA())","v":{"$error":"#REF!"}},{"$f":"IF(#REF!=\"SI\",'OBLIGACIONES APLICABLES'!#REF!,NA())","v":{"$error":"#REF!"}},{"$f":"IF(#REF!=\"SI\",'OBLIGACIONES APLICABLES'!#REF!,NA())","v":{"$error":"#REF!"}}]
[{"$f":"IF(#REF!=\"SI\",#REF!,NA())","v":{"$error":"#REF!"}},{"$f":"IF(#REF!=\"SI\",#REF!,NA())","v":{"$error":"#REF!"}},{"$f":"IF(#REF!=\"SI\",'OBLIGACIONES APLICABLES'!#REF!,NA())","v":{"$error":"#REF!"}},{"$f":"IF(#REF!=\"SI\",'OBLIGACIONES APLICABLES'!#REF!,NA())","v":{"$error":"#REF!"}}]
[{"$f":"IF(#REF!=\"SI\",#REF!,NA())","v":{"$error":"#REF!"}},{"$f":"IF(#REF!=\"SI\",#REF!,NA())","v":{"$error":"#REF!"}},{"$f":"IF(#REF!=\"SI\",'OBLIGACIONES APLICABLES'!#REF!,NA())","v":{"$error":"#REF!"}},{"$f":"IF(#REF!=\"SI\",'OBLIGACIONES APLICABLES'!#REF!,NA())","v":{"$error":"#REF!"}}]
[{"$f":"IF(#REF!=\"SI\",#REF!,NA())","v":{"$error":"#REF!"}},{"$f":"IF(#REF!=\"SI\",#REF!,NA())","v":{"$error":"#REF!"}},{"$f":"IF(#REF!=\"SI\",'OBLIGACIONES APLICABLES'!#REF!,NA())","v":{"$error":"#REF!"}},{"$f":"IF(#REF!=\"SI\",'OBLIGACIONES APLICABLES'!#REF!,NA())","v":{"$error":"#REF!"}}]
[{"$f":"IF(#REF!=\"SI\",#REF!,NA())","v":{"$error":"#REF!"}},{"$f":"IF(#REF!=\"SI\",#REF!,NA())","v":{"$error":"#REF!"}},{"$f":"IF(#REF!=\"SI\",'OBLIGACIONES APLICABLES'!#REF!,NA())","v":{"$error":"#REF!"}},{"$f":"IF(#REF!=\"SI\",'OBLIGACIONES APLICABLES'!#REF!,NA())","v":{"$error":"#REF!"}}]
[{"$f":"IF(#REF!=\"SI\",#REF!,NA())","v":{"$error":"#REF!"}},{"$f":"IF(#REF!=\"SI\",#REF!,NA())","v":{"$error":"#REF!"}},{"$f":"IF(#REF!=\"SI\",'OBLIGACIONES APLICABLES'!#REF!,NA())","v":{"$error":"#REF!"}},{"$f":"IF(#REF!=\"SI\",'OBLIGACIONES APLICABLES'!#REF!,NA())","v":{"$error":"#REF!"}}]
[{"$f":"IF(#REF!=\"SI\",#REF!,NA())","v":{"$error":"#REF!"}},{"$f":"IF(#REF!=\"SI\",#REF!,NA())","v":{"$error":"#REF!"}},{"$f":"IF(#REF!=\"SI\",'OBLIGACIONES APLICABLES'!#REF!,NA())","v":{"$error":"#REF!"}},{"$f":"IF(#REF!=\"SI\",'OBLIGACIONES APLICABLES'!#REF!,NA())","v":{"$error":"#REF!"}}]
[{"$f":"IF(#REF!=\"SI\",#REF!,NA())","v":{"$error":"#REF!"}},{"$f":"IF(#REF!=\"SI\",#REF!,NA())","v":{"$error":"#REF!"}},{"$f":"IF(#REF!=\"SI\",'OBLIGACIONES APLICABLES'!#REF!,NA())","v":{"$error":"#REF!"}},{"$f":"IF(#REF!=\"SI\",'OBLIGACIONES APLICABLES'!#REF!,NA())","v":{"$error":"#REF!"}}]
[{"$f":"IF(#REF!=\"SI\",#REF!,NA())","v":{"$error":"#REF!"}},{"$f":"IF(#REF!=\"SI\",#REF!,NA())","v":{"$error":"#REF!"}},{"$f":"IF(#REF!=\"SI\",'OBLIGACIONES APLICABLES'!#REF!,NA())","v":{"$error":"#REF!"}},{"$f":"IF(#REF!=\"SI\",'OBLIGACIONES APLICABLES'!#REF!,NA())","v":{"$error":"#REF!"}}]
[{"$f":"IF(#REF!=\"SI\",#REF!,NA())","v":{"$error":"#REF!"}},{"$f":"IF(#REF!=\"SI\",#REF!,NA())","v":{"$error":"#REF!"}},{"$f":"IF(#REF!=\"SI\",'OBLIGACIONES APLICABLES'!#REF!,NA())","v":{"$error":"#REF!"}},{"$f":"IF(#REF!=\"SI\",'OBLIGACIONES APLICABLES'!#REF!,NA())","v":{"$error":"#REF!"}}]
[{"$f":"IF(#REF!=\"SI\",#REF!,NA())","v":{"$error":"#REF!"}},{"$f":"IF(#REF!=\"SI\",#REF!,NA())","v":{"$error":"#REF!"}},{"$f":"IF(#REF!=\"SI\",'OBLIGACIONES APLICABLES'!#REF!,NA())","v":{"$error":"#REF!"}},{"$f":"IF(#REF!=\"SI\",'OBLIGACIONES APLICABLES'!#REF!,NA())","v":{"$error":"#REF!"}}]
[{"$f":"IF(#REF!=\"SI\",#REF!,NA())","v":{"$error":"#REF!"}},{"$f":"IF(#REF!=\"SI\",#REF!,NA())","v":{"$error":"#REF!"}},{"$f":"IF(#REF!=\"SI\",'OBLIGACIONES APLICABLES'!#REF!,NA())","v":{"$error":"#REF!"}},{"$f":"IF(#REF!=\"SI\",'OBLIGACIONES APLICABLES'!#REF!,NA())","v":{"$error":"#REF!"}}]
[{"$f":"IF(#REF!=\"SI\",#REF!,NA())","v":{"$error":"#REF!"}},{"$f":"IF(#REF!=\"SI\",#REF!,NA())","v":{"$error":"#REF!"}},{"$f":"IF(#REF!=\"SI\",'OBLIGACIONES APLICABLES'!#REF!,NA())","v":{"$error":"#REF!"}},{"$f":"IF(#REF!=\"SI\",'OBLIGACIONES APLICABLES'!#REF!,NA())","v":{"$error":"#REF!"}}]
[{"$f":"IF(#REF!=\"SI\",#REF!,NA())","v":{"$error":"#REF!"}},{"$f":"IF(#REF!=\"SI\",#REF!,NA())","v":{"$error":"#REF!"}},{"$f":"IF(#REF!=\"SI\",'OBLIGACIONES APLICABLES'!#REF!,NA())","v":{"$error":"#REF!"}},{"$f":"IF(#REF!=\"SI\",'OBLIGACIONES APLICABLES'!#REF!,NA())","v":{"$error":"#REF!"}}]
[{"$f":"IF(#REF!=\"SI\",#REF!,NA())","v":{"$error":"#REF!"}},{"$f":"IF(#REF!=\"SI\",#REF!,NA())","v":{"$error":"#REF!"}},{"$f":"IF(#REF!=\"SI\",'OBLIGACIONES APLICABLES'!#REF!,NA())","v":{"$error":"#REF!"}},{"$f":"IF(#REF!=\"SI\",'OBLIGACIONES APLICABLES'!#REF!,NA())","v":{"$error":"#REF!"}}]
[{"$f":"IF(#REF!=\"SI\",#REF!,NA())","v":{"$error":"#REF!"}},{"$f":"IF(#REF!=\"SI\",#REF!,NA())","v":{"$error":"#REF!"}},{"$f":"IF(#REF!=\"SI\",'OBLIGACIONES APLICABLES'!#REF!,NA())","v":{"$error":"#REF!"}},{"$f":"IF(#REF!=\"SI\",'OBLIGACIONES APLICABLES'!#REF!,NA())","v":{"$error":"#REF!"}}]
[{"$f":"IF(#REF!=\"SI\",#REF!,NA())","v":{"$error":"#REF!"}},{"$f":"IF(#REF!=\"SI\",#REF!,NA())","v":{"$error":"#REF!"}},{"$f":"IF(#REF!=\"SI\",'OBLIGACIONES APLICABLES'!#REF!,NA())","v":{"$error":"#REF!"}},{"$f":"IF(#REF!=\"SI\",'OBLIGACIONES APLICABLES'!#REF!,NA())","v":{"$error":"#REF!"}}]
[{"$f":"IF(#REF!=\"SI\",#REF!,NA())","v":{"$error":"#REF!"}},{"$f":"IF(#REF!=\"SI\",#REF!,NA())","v":{"$error":"#REF!"}},{"$f":"IF(#REF!=\"SI\",'OBLIGACIONES APLICABLES'!#REF!,NA())","v":{"$error":"#REF!"}},{"$f":"IF(#REF!=\"SI\",'OBLIGACIONES APLICABLES'!#REF!,NA())","v":{"$error":"#REF!"}}]
[{"$f":"IF(#REF!=\"SI\",#REF!,NA())","v":{"$error":"#REF!"}},{"$f":"IF(#REF!=\"SI\",#REF!,NA())","v":{"$error":"#REF!"}},{"$f":"IF(#REF!=\"SI\",'OBLIGACIONES APLICABLES'!#REF!,NA())","v":{"$error":"#REF!"}},{"$f":"IF(#REF!=\"SI\",'OBLIGACIONES APLICABLES'!#REF!,NA())","v":{"$error":"#REF!"}}]
[{"$f":"IF(#REF!=\"SI\",#REF!,NA())","v":{"$error":"#REF!"}},{"$f":"IF(#REF!=\"SI\",#REF!,NA())","v":{"$error":"#REF!"}},{"$f":"IF(#REF!=\"SI\",'OBLIGACIONES APLICABLES'!#REF!,NA())","v":{"$error":"#REF!"}},{"$f":"IF(#REF!=\"SI\",'OBLIGACIONES APLICABLES'!#REF!,NA())","v":{"$error":"#REF!"}}]
[{"$f":"IF(#REF!=\"SI\",#REF!,NA())","v":{"$error":"#REF!"}},{"$f":"IF(#REF!=\"SI\",#REF!,NA())","v":{"$error":"#REF!"}},{"$f":"IF(#REF!=\"SI\",'OBLIGACIONES APLICABLES'!#REF!,NA())","v":{"$error":"#REF!"}},{"$f":"IF(#REF!=\"SI\",'OBLIGACIONES APLICABLES'!#REF!,NA())","v":{"$error":"#REF!"}}]
[{"$f":"IF(#REF!=\"SI\",#REF!,NA())","v":{"$error":"#REF!"}},{"$f":"IF(#REF!=\"SI\",#REF!,NA())","v":{"$error":"#REF!"}},{"$f":"IF(#REF!=\"SI\",'OBLIGACIONES APLICABLES'!#REF!,NA())","v":{"$error":"#REF!"}},{"$f":"IF(#REF!=\"SI\",'OBLIGACIONES APLICABLES'!#REF!,NA())","v":{"$error":"#REF!"}}]
[{"$f":"IF(#REF!=\"SI\",#REF!,NA())","v":{"$error":"#REF!"}},{"$f":"IF(#REF!=\"SI\",#REF!,NA())","v":{"$error":"#REF!"}},{"$f":"IF(#REF!=\"SI\",'OBLIGACIONES APLICABLES'!#REF!,NA())","v":{"$error":"#REF!"}},{"$f":"IF(#REF!=\"SI\",'OBLIGACIONES APLICABLES'!#REF!,NA())","v":{"$error":"#REF!"}}]
[{"$f":"IF(#REF!=\"SI\",#REF!,NA())","v":{"$error":"#REF!"}},{"$f":"IF(#REF!=\"SI\",#REF!,NA())","v":{"$error":"#REF!"}},{"$f":"IF(#REF!=\"SI\",'OBLIGACIONES APLICABLES'!#REF!,NA())","v":{"$error":"#REF!"}},{"$f":"IF(#REF!=\"SI\",'OBLIGACIONES APLICABLES'!#REF!,NA())","v":{"$error":"#REF!"}}]
[{"$f":"IF(#REF!=\"SI\",#REF!,NA())","v":{"$error":"#REF!"}},{"$f":"IF(#REF!=\"SI\",#REF!,NA())","v":{"$error":"#REF!"}},{"$f":"IF(#REF!=\"SI\",'OBLIGACIONES APLICABLES'!#REF!,NA())","v":{"$error":"#REF!"}},{"$f":"IF(#REF!=\"SI\",'OBLIGACIONES APLICABLES'!#REF!,NA())","v":{"$error":"#REF!"}}]
[{"$f":"IF(#REF!=\"SI\",#REF!,NA())","v":{"$error":"#REF!"}},{"$f":"IF(#REF!=\"SI\",#REF!,NA())","v":{"$error":"#REF!"}},{"$f":"IF(#REF!=\"SI\",'OBLIGACIONES APLICABLES'!#REF!,NA())","v":{"$error":"#REF!"}},{"$f":"IF(#REF!=\"SI\",'OBLIGACIONES APLICABLES'!#REF!,NA())","v":{"$error":"#REF!"}}]
[{"$f":"IF(#REF!=\"SI\",#REF!,NA())","v":{"$error":"#REF!"}},{"$f":"IF(#REF!=\"SI\",#REF!,NA())","v":{"$error":"#REF!"}},{"$f":"IF(#REF!=\"SI\",'OBLIGACIONES APLICABLES'!#REF!,NA())","v":{"$error":"#REF!"}},{"$f":"IF(#REF!=\"SI\",'OBLIGACIONES APLICABLES'!#REF!,NA())","v":{"$error":"#REF!"}}]
[{"$f":"IF(#REF!=\"SI\",#REF!,NA())","v":{"$error":"#REF!"}},{"$f":"IF(#REF!=\"SI\",#REF!,NA())","v":{"$error":"#REF!"}},{"$f":"IF(#REF!=\"SI\",'OBLIGACIONES APLICABLES'!#REF!,NA())","v":{"$error":"#REF!"}},{"$f":"IF(#REF!=\"SI\",'OBLIGACIONES APLICABLES'!#REF!,NA())","v":{"$error":"#REF!"}}]
[{"$f":"IF(#REF!=\"SI\",#REF!,NA())","v":{"$error":"#REF!"}},{"$f":"IF(#REF!=\"SI\",#REF!,NA())","v":{"$error":"#REF!"}},{"$f":"IF(#REF!=\"SI\",'OBLIGACIONES APLICABLES'!#REF!,NA())","v":{"$error":"#REF!"}},{"$f":"IF(#REF!=\"SI\",'OBLIGACIONES APLICABLES'!#REF!,NA())","v":{"$error":"#REF!"}}]
[{"$f":"IF(#REF!=\"SI\",#REF!,NA())","v":{"$error":"#REF!"}},{"$f":"IF(#REF!=\"SI\",#REF!,NA())","v":{"$error":"#REF!"}},{"$f":"IF(#REF!=\"SI\",'OBLIGACIONES APLICABLES'!#REF!,NA())","v":{"$error":"#REF!"}},{"$f":"IF(#REF!=\"SI\",'OBLIGACIONES APLICABLES'!#REF!,NA())","v":{"$error":"#REF!"}}]
[{"$f":"IF(#REF!=\"SI\",#REF!,NA())","v":{"$error":"#REF!"}},{"$f":"IF(#REF!=\"SI\",#REF!,NA())","v":{"$error":"#REF!"}},{"$f":"IF(#REF!=\"SI\",'OBLIGACIONES APLICABLES'!#REF!,NA())","v":{"$error":"#REF!"}},{"$f":"IF(#REF!=\"SI\",'OBLIGACIONES APLICABLES'!#REF!,NA())","v":{"$error":"#REF!"}}]
[{"$f":"IF(#REF!=\"SI\",#REF!,NA())","v":{"$error":"#REF!"}},{"$f":"IF(#REF!=\"SI\",#REF!,NA())","v":{"$error":"#REF!"}},{"$f":"IF(#REF!=\"SI\",'OBLIGACIONES APLICABLES'!#REF!,NA())","v":{"$error":"#REF!"}},{"$f":"IF(#REF!=\"SI\",'OBLIGACIONES APLICABLES'!#REF!,NA())","v":{"$error":"#REF!"}}]
[{"$f":"IF(#REF!=\"SI\",#REF!,NA())","v":{"$error":"#REF!"}},{"$f":"IF(#REF!=\"SI\",#REF!,NA())","v":{"$error":"#REF!"}},{"$f":"IF(#REF!=\"SI\",'OBLIGACIONES APLICABLES'!#REF!,NA())","v":{"$error":"#REF!"}},{"$f":"IF(#REF!=\"SI\",'OBLIGACIONES APLICABLES'!#REF!,NA())","v":{"$error":"#REF!"}}]
[{"$f":"IF(#REF!=\"SI\",#REF!,NA())","v":{"$error":"#REF!"}},{"$f":"IF(#REF!=\"SI\",#REF!,NA())","v":{"$error":"#REF!"}},{"$f":"IF(#REF!=\"SI\",'OBLIGACIONES APLICABLES'!#REF!,NA())","v":{"$error":"#REF!"}},{"$f":"IF(#REF!=\"SI\",'OBLIGACIONES APLICABLES'!#REF!,NA())","v":{"$error":"#REF!"}}]
[{"$f":"IF(#REF!=\"SI\",#REF!,NA())","v":{"$error":"#REF!"}},{"$f":"IF(#REF!=\"SI\",#REF!,NA())","v":{"$error":"#REF!"}},{"$f":"IF(#REF!=\"SI\",'OBLIGACIONES APLICABLES'!#REF!,NA())","v":{"$error":"#REF!"}},{"$f":"IF(#REF!=\"SI\",'OBLIGACIONES APLICABLES'!#REF!,NA())","v":{"$error":"#REF!"}}]
[{"$f":"IF(#REF!=\"SI\",#REF!,NA())","v":{"$error":"#REF!"}},{"$f":"IF(#REF!=\"SI\",#REF!,NA())","v":{"$error":"#REF!"}},{"$f":"IF(#REF!=\"SI\",'OBLIGACIONES APLICABLES'!#REF!,NA())","v":{"$error":"#REF!"}},{"$f":"IF(#REF!=\"SI\",'OBLIGACIONES APLICABLES'!#REF!,NA())","v":{"$error":"#REF!"}}]
[{"$f":"IF(#REF!=\"SI\",#REF!,NA())","v":{"$error":"#REF!"}},{"$f":"IF(#REF!=\"SI\",#REF!,NA())","v":{"$error":"#REF!"}},{"$f":"IF(#REF!=\"SI\",'OBLIGACIONES APLICABLES'!#REF!,NA())","v":{"$error":"#REF!"}},{"$f":"IF(#REF!=\"SI\",'OBLIGACIONES APLICABLES'!#REF!,NA())","v":{"$error":"#REF!"}}]
[{"$f":"IF(#REF!=\"SI\",#REF!,NA())","v":{"$error":"#REF!"}},{"$f":"IF(#REF!=\"SI\",#REF!,NA())","v":{"$error":"#REF!"}},{"$f":"IF(#REF!=\"SI\",'OBLIGACIONES APLICABLES'!#REF!,NA())","v":{"$error":"#REF!"}},{"$f":"IF(#REF!=\"SI\",'OBLIGACIONES APLICABLES'!#REF!,NA())","v":{"$error":"#REF!"}}]
[{"$f":"IF(#REF!=\"SI\",#REF!,NA())","v":{"$error":"#REF!"}},{"$f":"IF(#REF!=\"SI\",#REF!,NA())","v":{"$error":"#REF!"}},{"$f":"IF(#REF!=\"SI\",'OBLIGACIONES APLICABLES'!#REF!,NA())","v":{"$error":"#REF!"}},{"$f":"IF(#REF!=\"SI\",'OBLIGACIONES APLICABLES'!#REF!,NA())","v":{"$error":"#REF!"}}]
[{"$f":"IF(#REF!=\"SI\",#REF!,NA())","v":{"$error":"#REF!"}},{"$f":"IF(#REF!=\"SI\",#REF!,NA())","v":{"$error":"#REF!"}},{"$f":"IF(#REF!=\"SI\",'OBLIGACIONES APLICABLES'!#REF!,NA())","v":{"$error":"#REF!"}},{"$f":"IF(#REF!=\"SI\",'OBLIGACIONES APLICABLES'!#REF!,NA())","v":{"$error":"#REF!"}}]
[{"$f":"IF(#REF!=\"SI\",#REF!,NA())","v":{"$error":"#REF!"}},{"$f":"IF(#REF!=\"SI\",#REF!,NA())","v":{"$error":"#REF!"}},{"$f":"IF(#REF!=\"SI\",'OBLIGACIONES APLICABLES'!#REF!,NA())","v":{"$error":"#REF!"}},{"$f":"IF(#REF!=\"SI\",'OBLIGACIONES APLICABLES'!#REF!,NA())","v":{"$error":"#REF!"}}]
[{"$f":"IF(#REF!=\"SI\",#REF!,NA())","v":{"$error":"#REF!"}},{"$f":"IF(#REF!=\"SI\",#REF!,NA())","v":{"$error":"#REF!"}},{"$f":"IF(#REF!=\"SI\",'OBLIGACIONES APLICABLES'!#REF!,NA())","v":{"$error":"#REF!"}},{"$f":"IF(#REF!=\"SI\",'OBLIGACIONES APLICABLES'!#REF!,NA())","v":{"$error":"#REF!"}}]
[{"$f":"IF(#REF!=\"SI\",#REF!,NA())","v":{"$error":"#REF!"}},{"$f":"IF(#REF!=\"SI\",#REF!,NA())","v":{"$error":"#REF!"}},{"$f":"IF(#REF!=\"SI\",'OBLIGACIONES APLICABLES'!#REF!,NA())","v":{"$error":"#REF!"}},{"$f":"IF(#REF!=\"SI\",'OBLIGACIONES APLICABLES'!#REF!,NA())","v":{"$error":"#REF!"}}]
[{"$f":"IF(#REF!=\"SI\",#REF!,NA())","v":{"$error":"#REF!"}},{"$f":"IF(#REF!=\"SI\",#REF!,NA())","v":{"$error":"#REF!"}},{"$f":"IF(#REF!=\"SI\",'OBLIGACIONES APLICABLES'!#REF!,NA())","v":{"$error":"#REF!"}},{"$f":"IF(#REF!=\"SI\",'OBLIGACIONES APLICABLES'!#REF!,NA())","v":{"$error":"#REF!"}}]
[{"$f":"IF(#REF!=\"SI\",#REF!,NA())","v":{"$error":"#REF!"}},{"$f":"IF(#REF!=\"SI\",#REF!,NA())","v":{"$error":"#REF!"}},{"$f":"IF(#REF!=\"SI\",'OBLIGACIONES APLICABLES'!#REF!,NA())","v":{"$error":"#REF!"}},{"$f":"IF(#REF!=\"SI\",'OBLIGACIONES APLICABLES'!#REF!,NA())","v":{"$error":"#REF!"}}]
[{"$f":"IF(#REF!=\"SI\",#REF!,NA())","v":{"$error":"#REF!"}},{"$f":"IF(#REF!=\"SI\",#REF!,NA())","v":{"$error":"#REF!"}},{"$f":"IF(#REF!=\"SI\",'OBLIGACIONES APLICABLES'!#REF!,NA())","v":{"$error":"#REF!"}},{"$f":"IF(#REF!=\"SI\",'OBLIGACIONES APLICABLES'!#REF!,NA())","v":{"$error":"#REF!"}}]
[{"$f":"IF(#REF!=\"SI\",#REF!,NA())","v":{"$error":"#REF!"}},{"$f":"IF(#REF!=\"SI\",#REF!,NA())","v":{"$error":"#REF!"}},{"$f":"IF(#REF!=\"SI\",'OBLIGACIONES APLICABLES'!#REF!,NA())","v":{"$error":"#REF!"}},{"$f":"IF(#REF!=\"SI\",'OBLIGACIONES APLICABLES'!#REF!,NA())","v":{"$error":"#REF!"}}]
[{"$f":"IF(#REF!=\"SI\",#REF!,NA())","v":{"$error":"#REF!"}},{"$f":"IF(#REF!=\"SI\",#REF!,NA())","v":{"$error":"#REF!"}},{"$f":"IF(#REF!=\"SI\",'OBLIGACIONES APLICABLES'!#REF!,NA())","v":{"$error":"#REF!"}},{"$f":"IF(#REF!=\"SI\",'OBLIGACIONES APLICABLES'!#REF!,NA())","v":{"$error":"#REF!"}}]

{"sheet":"Hoja2","index":5,"n_rows":74,"n_cols":4,"rows_kept":74,"cut":false,"hidden":true,"merged":[]}
["COMPONENTE","Fase de construcción","Fase de operación y mantenimiento","Fase de desmantelamiento y abandono"]
[{"$f":"IFERROR(INDEX(Temp!A$3:A$170, SMALL(IF(ISERROR(Temp!A$3:A$170), \"\", ROW(Temp!A$3:A$170)-MIN(ROW(Temp!A$3:A$170))+1), ROW(1:1))),\"\")","v":""},{"$f":"IFERROR(INDEX(Temp!B$3:B$170, SMALL(IF(ISERROR(Temp!B$3:B$170), \"\", ROW(Temp!B$3:B$170)-MIN(ROW(Temp!B$3:B$170))+1), ROW(1:1))),\"\")","v":""},{"$f":"IFERROR(INDEX(Temp!C$3:C$170, SMALL(IF(ISERROR(Temp!C$3:C$170), \"\", ROW(Temp!C$3:C$170)-MIN(ROW(Temp!C$3:C$170))+1), ROW(1:1))),\"\")","v":""},{"$f":"IFERROR(INDEX(Temp!D$3:D$170, SMALL(IF(ISERROR(Temp!D$3:D$170), \"\", ROW(Temp!D$3:D$170)-MIN(ROW(Temp!D$3:D$170))+1), ROW(1:1))),\"\")","v":""}]
[{"$f":"IFERROR(INDEX(Temp!A$3:A$170, SMALL(IF(ISERROR(Temp!A$3:A$170), \"\", ROW(Temp!A$3:A$170)-MIN(ROW(Temp!A$3:A$170))+1), ROW(2:2))),\"\")","v":""},{"$f":"IFERROR(INDEX(Temp!B$3:B$170, SMALL(IF(ISERROR(Temp!B$3:B$170), \"\", ROW(Temp!B$3:B$170)-MIN(ROW(Temp!B$3:B$170))+1), ROW(2:2))),\"\")","v":""},{"$f":"IFERROR(INDEX(Temp!C$3:C$170, SMALL(IF(ISERROR(Temp!C$3:C$170), \"\", ROW(Temp!C$3:C$170)-MIN(ROW(Temp!C$3:C$170))+1), ROW(2:2))),\"\")","v":""},{"$f":"IFERROR(INDEX(Temp!D$3:D$170, SMALL(IF(ISERROR(Temp!D$3:D$170), \"\", ROW(Temp!D$3:D$170)-MIN(ROW(Temp!D$3:D$170))+1), ROW(2:2))),\"\")","v":""}]
[{"$f":"IFERROR(INDEX(Temp!A$3:A$170, SMALL(IF(ISERROR(Temp!A$3:A$170), \"\", ROW(Temp!A$3:A$170)-MIN(ROW(Temp!A$3:A$170))+1), ROW(3:3))),\"\")","v":""},{"$f":"IFERROR(INDEX(Temp!B$3:B$170, SMALL(IF(ISERROR(Temp!B$3:B$170), \"\", ROW(Temp!B$3:B$170)-MIN(ROW(Temp!B$3:B$170))+1), ROW(3:3))),\"\")","v":""},{"$f":"IFERROR(INDEX(Temp!C$3:C$170, SMALL(IF(ISERROR(Temp!C$3:C$170), \"\", ROW(Temp!C$3:C$170)-MIN(ROW(Temp!C$3:C$170))+1), ROW(3:3))),\"\")","v":""},{"$f":"IFERROR(INDEX(Temp!D$3:D$170, SMALL(IF(ISERROR(Temp!D$3:D$170), \"\", ROW(Temp!D$3:D$170)-MIN(ROW(Temp!D$3:D$170))+1), ROW(3:3))),\"\")","v":""}]
[{"$f":"IFERROR(INDEX(Temp!A$3:A$170, SMALL(IF(ISERROR(Temp!A$3:A$170), \"\", ROW(Temp!A$3:A$170)-MIN(ROW(Temp!A$3:A$170))+1), ROW(4:4))),\"\")","v":""},{"$f":"IFERROR(INDEX(Temp!B$3:B$170, SMALL(IF(ISERROR(Temp!B$3:B$170), \"\", ROW(Temp!B$3:B$170)-MIN(ROW(Temp!B$3:B$170))+1), ROW(4:4))),\"\")","v":""},{"$f":"IFERROR(INDEX(Temp!C$3:C$170, SMALL(IF(ISERROR(Temp!C$3:C$170), \"\", ROW(Temp!C$3:C$170)-MIN(ROW(Temp!C$3:C$170))+1), ROW(4:4))),\"\")","v":""},{"$f":"IFERROR(INDEX(Temp!D$3:D$170, SMALL(IF(ISERROR(Temp!D$3:D$170), \"\", ROW(Temp!D$3:D$170)-MIN(ROW(Temp!D$3:D$170))+1), ROW(4:4))),\"\")","v":""}]
[{"$f":"IFERROR(INDEX(Temp!A$3:A$170, SMALL(IF(ISERROR(Temp!A$3:A$170), \"\", ROW(Temp!A$3:A$170)-MIN(ROW(Temp!A$3:A$170))+1), ROW(5:5))),\"\")","v":""},{"$f":"IFERROR(INDEX(Temp!B$3:B$170, SMALL(IF(ISERROR(Temp!B$3:B$170), \"\", ROW(Temp!B$3:B$170)-MIN(ROW(Temp!B$3:B$170))+1), ROW(5:5))),\"\")","v":""},{"$f":"IFERROR(INDEX(Temp!C$3:C$170, SMALL(IF(ISERROR(Temp!C$3:C$170), \"\", ROW(Temp!C$3:C$170)-MIN(ROW(Temp!C$3:C$170))+1), ROW(5:5))),\"\")","v":""},{"$f":"IFERROR(INDEX(Temp!D$3:D$170, SMALL(IF(ISERROR(Temp!D$3:D$170), \"\", ROW(Temp!D$3:D$170)-MIN(ROW(Temp!D$3:D$170))+1), ROW(5:5))),\"\")","v":""}]
[{"$f":"IFERROR(INDEX(Temp!A$3:A$170, SMALL(IF(ISERROR(Temp!A$3:A$170), \"\", ROW(Temp!A$3:A$170)-MIN(ROW(Temp!A$3:A$170))+1), ROW(6:6))),\"\")","v":""},{"$f":"IFERROR(INDEX(Temp!B$3:B$170, SMALL(IF(ISERROR(Temp!B$3:B$170), \"\", ROW(Temp!B$3:B$170)-MIN(ROW(Temp!B$3:B$170))+1), ROW(6:6))),\"\")","v":""},{"$f":"IFERROR(INDEX(Temp!C$3:C$170, SMALL(IF(ISERROR(Temp!C$3:C$170), \"\", ROW(Temp!C$3:C$170)-MIN(ROW(Temp!C$3:C$170))+1), ROW(6:6))),\"\")","v":""},{"$f":"IFERROR(INDEX(Temp!D$3:D$170, SMALL(IF(ISERROR(Temp!D$3:D$170), \"\", ROW(Temp!D$3:D$170)-MIN(ROW(Temp!D$3:D$170))+1), ROW(6:6))),\"\")","v":""}]
[{"$f":"IFERROR(INDEX(Temp!A$3:A$170, SMALL(IF(ISERROR(Temp!A$3:A$170), \"\", ROW(Temp!A$3:A$170)-MIN(ROW(Temp!A$3:A$170))+1), ROW(7:7))),\"\")","v":""},{"$f":"IFERROR(INDEX(Temp!B$3:B$170, SMALL(IF(ISERROR(Temp!B$3:B$170), \"\", ROW(Temp!B$3:B$170)-MIN(ROW(Temp!B$3:B$170))+1), ROW(7:7))),\"\")","v":""},{"$f":"IFERROR(INDEX(Temp!C$3:C$170, SMALL(IF(ISERROR(Temp!C$3:C$170), \"\", ROW(Temp!C$3:C$170)-MIN(ROW(Temp!C$3:C$170))+1), ROW(7:7))),\"\")","v":""},{"$f":"IFERROR(INDEX(Temp!D$3:D$170, SMALL(IF(ISERROR(Temp!D$3:D$170), \"\", ROW(Temp!D$3:D$170)-MIN(ROW(Temp!D$3:D$170))+1), ROW(7:7))),\"\")","v":""}]
[{"$f":"IFERROR(INDEX(Temp!A$3:A$170, SMALL(IF(ISERROR(Temp!A$3:A$170), \"\", ROW(Temp!A$3:A$170)-MIN(ROW(Temp!A$3:A$170))+1), ROW(8:8))),\"\")","v":""},{"$f":"IFERROR(INDEX(Temp!B$3:B$170, SMALL(IF(ISERROR(Temp!B$3:B$170), \"\", ROW(Temp!B$3:B$170)-MIN(ROW(Temp!B$3:B$170))+1), ROW(8:8))),\"\")","v":""},{"$f":"IFERROR(INDEX(Temp!C$3:C$170, SMALL(IF(ISERROR(Temp!C$3:C$170), \"\", ROW(Temp!C$3:C$170)-MIN(ROW(Temp!C$3:C$170))+1), ROW(8:8))),\"\")","v":""},{"$f":"IFERROR(INDEX(Temp!D$3:D$170, SMALL(IF(ISERROR(Temp!D$3:D$170), \"\", ROW(Temp!D$3:D$170)-MIN(ROW(Temp!D$3:D$170))+1), ROW(8:8))),\"\")","v":""}]
[{"$f":"IFERROR(INDEX(Temp!A$3:A$170, SMALL(IF(ISERROR(Temp!A$3:A$170), \"\", ROW(Temp!A$3:A$170)-MIN(ROW(Temp!A$3:A$170))+1), ROW(9:9))),\"\")","v":""},{"$f":"IFERROR(INDEX(Temp!B$3:B$170, SMALL(IF(ISERROR(Temp!B$3:B$170), \"\", ROW(Temp!B$3:B$170)-MIN(ROW(Temp!B$3:B$170))+1), ROW(9:9))),\"\")","v":""},{"$f":"IFERROR(INDEX(Temp!C$3:C$170, SMALL(IF(ISERROR(Temp!C$3:C$170), \"\", ROW(Temp!C$3:C$170)-MIN(ROW(Temp!C$3:C$170))+1), ROW(9:9))),\"\")","v":""},{"$f":"IFERROR(INDEX(Temp!D$3:D$170, SMALL(IF(ISERROR(Temp!D$3:D$170), \"\", ROW(Temp!D$3:D$170)-MIN(ROW(Temp!D$3:D$170))+1), ROW(9:9))),\"\")","v":""}]
[{"$f":"IFERROR(INDEX(Temp!A$3:A$170, SMALL(IF(ISERROR(Temp!A$3:A$170), \"\", ROW(Temp!A$3:A$170)-MIN(ROW(Temp!A$3:A$170))+1), ROW(10:10))),\"\")","v":""},{"$f":"IFERROR(INDEX(Temp!B$3:B$170, SMALL(IF(ISERROR(Temp!B$3:B$170), \"\", ROW(Temp!B$3:B$170)-MIN(ROW(Temp!B$3:B$170))+1), ROW(10:10))),\"\")","v":""},{"$f":"IFERROR(INDEX(Temp!C$3:C$170, SMALL(IF(ISERROR(Temp!C$3:C$170), \"\", ROW(Temp!C$3:C$170)-MIN(ROW(Temp!C$3:C$170))+1), ROW(10:10))),\"\")","v":""},{"$f":"IFERROR(INDEX(Temp!D$3:D$170, SMALL(IF(ISERROR(Temp!D$3:D$170), \"\", ROW(Temp!D$3:D$170)-MIN(ROW(Temp!D$3:D$170))+1), ROW(10:10))),\"\")","v":""}]
[{"$f":"IFERROR(INDEX(Temp!A$3:A$170, SMALL(IF(ISERROR(Temp!A$3:A$170), \"\", ROW(Temp!A$3:A$170)-MIN(ROW(Temp!A$3:A$170))+1), ROW(11:11))),\"\")","v":""},{"$f":"IFERROR(INDEX(Temp!B$3:B$170, SMALL(IF(ISERROR(Temp!B$3:B$170), \"\", ROW(Temp!B$3:B$170)-MIN(ROW(Temp!B$3:B$170))+1), ROW(11:11))),\"\")","v":""},{"$f":"IFERROR(INDEX(Temp!C$3:C$170, SMALL(IF(ISERROR(Temp!C$3:C$170), \"\", ROW(Temp!C$3:C$170)-MIN(ROW(Temp!C$3:C$170))+1), ROW(11:11))),\"\")","v":""},{"$f":"IFERROR(INDEX(Temp!D$3:D$170, SMALL(IF(ISERROR(Temp!D$3:D$170), \"\", ROW(Temp!D$3:D$170)-MIN(ROW(Temp!D$3:D$170))+1), ROW(11:11))),\"\")","v":""}]
[{"$f":"IFERROR(INDEX(Temp!A$3:A$170, SMALL(IF(ISERROR(Temp!A$3:A$170), \"\", ROW(Temp!A$3:A$170)-MIN(ROW(Temp!A$3:A$170))+1), ROW(12:12))),\"\")","v":""},{"$f":"IFERROR(INDEX(Temp!B$3:B$170, SMALL(IF(ISERROR(Temp!B$3:B$170), \"\", ROW(Temp!B$3:B$170)-MIN(ROW(Temp!B$3:B$170))+1), ROW(12:12))),\"\")","v":""},{"$f":"IFERROR(INDEX(Temp!C$3:C$170, SMALL(IF(ISERROR(Temp!C$3:C$170), \"\", ROW(Temp!C$3:C$170)-MIN(ROW(Temp!C$3:C$170))+1), ROW(12:12))),\"\")","v":""},{"$f":"IFERROR(INDEX(Temp!D$3:D$170, SMALL(IF(ISERROR(Temp!D$3:D$170), \"\", ROW(Temp!D$3:D$170)-MIN(ROW(Temp!D$3:D$170))+1), ROW(12:12))),\"\")","v":""}]
[{"$f":"IFERROR(INDEX(Temp!A$3:A$170, SMALL(IF(ISERROR(Temp!A$3:A$170), \"\", ROW(Temp!A$3:A$170)-MIN(ROW(Temp!A$3:A$170))+1), ROW(13:13))),\"\")","v":""},{"$f":"IFERROR(INDEX(Temp!B$3:B$170, SMALL(IF(ISERROR(Temp!B$3:B$170), \"\", ROW(Temp!B$3:B$170)-MIN(ROW(Temp!B$3:B$170))+1), ROW(13:13))),\"\")","v":""},{"$f":"IFERROR(INDEX(Temp!C$3:C$170, SMALL(IF(ISERROR(Temp!C$3:C$170), \"\", ROW(Temp!C$3:C$170)-MIN(ROW(Temp!C$3:C$170))+1), ROW(13:13))),\"\")","v":""},{"$f":"IFERROR(INDEX(Temp!D$3:D$170, SMALL(IF(ISERROR(Temp!D$3:D$170), \"\", ROW(Temp!D$3:D$170)-MIN(ROW(Temp!D$3:D$170))+1), ROW(13:13))),\"\")","v":""}]
[{"$f":"IFERROR(INDEX(Temp!A$3:A$170, SMALL(IF(ISERROR(Temp!A$3:A$170), \"\", ROW(Temp!A$3:A$170)-MIN(ROW(Temp!A$3:A$170))+1), ROW(14:14))),\"\")","v":""},{"$f":"IFERROR(INDEX(Temp!B$3:B$170, SMALL(IF(ISERROR(Temp!B$3:B$170), \"\", ROW(Temp!B$3:B$170)-MIN(ROW(Temp!B$3:B$170))+1), ROW(14:14))),\"\")","v":""},{"$f":"IFERROR(INDEX(Temp!C$3:C$170, SMALL(IF(ISERROR(Temp!C$3:C$170), \"\", ROW(Temp!C$3:C$170)-MIN(ROW(Temp!C$3:C$170))+1), ROW(14:14))),\"\")","v":""},{"$f":"IFERROR(INDEX(Temp!D$3:D$170, SMALL(IF(ISERROR(Temp!D$3:D$170), \"\", ROW(Temp!D$3:D$170)-MIN(ROW(Temp!D$3:D$170))+1), ROW(14:14))),\"\")","v":""}]
[{"$f":"IFERROR(INDEX(Temp!A$3:A$170, SMALL(IF(ISERROR(Temp!A$3:A$170), \"\", ROW(Temp!A$3:A$170)-MIN(ROW(Temp!A$3:A$170))+1), ROW(15:15))),\"\")","v":""},{"$f":"IFERROR(INDEX(Temp!B$3:B$170, SMALL(IF(ISERROR(Temp!B$3:B$170), \"\", ROW(Temp!B$3:B$170)-MIN(ROW(Temp!B$3:B$170))+1), ROW(15:15))),\"\")","v":""},{"$f":"IFERROR(INDEX(Temp!C$3:C$170, SMALL(IF(ISERROR(Temp!C$3:C$170), \"\", ROW(Temp!C$3:C$170)-MIN(ROW(Temp!C$3:C$170))+1), ROW(15:15))),\"\")","v":""},{"$f":"IFERROR(INDEX(Temp!D$3:D$170, SMALL(IF(ISERROR(Temp!D$3:D$170), \"\", ROW(Temp!D$3:D$170)-MIN(ROW(Temp!D$3:D$170))+1), ROW(15:15))),\"\")","v":""}]
[{"$f":"IFERROR(INDEX(Temp!A$3:A$170, SMALL(IF(ISERROR(Temp!A$3:A$170), \"\", ROW(Temp!A$3:A$170)-MIN(ROW(Temp!A$3:A$170))+1), ROW(16:16))),\"\")","v":""},{"$f":"IFERROR(INDEX(Temp!B$3:B$170, SMALL(IF(ISERROR(Temp!B$3:B$170), \"\", ROW(Temp!B$3:B$170)-MIN(ROW(Temp!B$3:B$170))+1), ROW(16:16))),\"\")","v":""},{"$f":"IFERROR(INDEX(Temp!C$3:C$170, SMALL(IF(ISERROR(Temp!C$3:C$170), \"\", ROW(Temp!C$3:C$170)-MIN(ROW(Temp!C$3:C$170))+1), ROW(16:16))),\"\")","v":""},{"$f":"IFERROR(INDEX(Temp!D$3:D$170, SMALL(IF(ISERROR(Temp!D$3:D$170), \"\", ROW(Temp!D$3:D$170)-MIN(ROW(Temp!D$3:D$170))+1), ROW(16:16))),\"\")","v":""}]
[{"$f":"IFERROR(INDEX(Temp!A$3:A$170, SMALL(IF(ISERROR(Temp!A$3:A$170), \"\", ROW(Temp!A$3:A$170)-MIN(ROW(Temp!A$3:A$170))+1), ROW(17:17))),\"\")","v":""},{"$f":"IFERROR(INDEX(Temp!B$3:B$170, SMALL(IF(ISERROR(Temp!B$3:B$170), \"\", ROW(Temp!B$3:B$170)-MIN(ROW(Temp!B$3:B$170))+1), ROW(17:17))),\"\")","v":""},{"$f":"IFERROR(INDEX(Temp!C$3:C$170, SMALL(IF(ISERROR(Temp!C$3:C$170), \"\", ROW(Temp!C$3:C$170)-MIN(ROW(Temp!C$3:C$170))+1), ROW(17:17))),\"\")","v":""},{"$f":"IFERROR(INDEX(Temp!D$3:D$170, SMALL(IF(ISERROR(Temp!D$3:D$170), \"\", ROW(Temp!D$3:D$170)-MIN(ROW(Temp!D$3:D$170))+1), ROW(17:17))),\"\")","v":""}]
[{"$f":"IFERROR(INDEX(Temp!A$3:A$170, SMALL(IF(ISERROR(Temp!A$3:A$170), \"\", ROW(Temp!A$3:A$170)-MIN(ROW(Temp!A$3:A$170))+1), ROW(18:18))),\"\")","v":""},{"$f":"IFERROR(INDEX(Temp!B$3:B$170, SMALL(IF(ISERROR(Temp!B$3:B$170), \"\", ROW(Temp!B$3:B$170)-MIN(ROW(Temp!B$3:B$170))+1), ROW(18:18))),\"\")","v":""},{"$f":"IFERROR(INDEX(Temp!C$3:C$170, SMALL(IF(ISERROR(Temp!C$3:C$170), \"\", ROW(Temp!C$3:C$170)-MIN(ROW(Temp!C$3:C$170))+1), ROW(18:18))),\"\")","v":""},{"$f":"IFERROR(INDEX(Temp!D$3:D$170, SMALL(IF(ISERROR(Temp!D$3:D$170), \"\", ROW(Temp!D$3:D$170)-MIN(ROW(Temp!D$3:D$170))+1), ROW(18:18))),\"\")","v":""}]
[{"$f":"IFERROR(INDEX(Temp!A$3:A$170, SMALL(IF(ISERROR(Temp!A$3:A$170), \"\", ROW(Temp!A$3:A$170)-MIN(ROW(Temp!A$3:A$170))+1), ROW(19:19))),\"\")","v":""},{"$f":"IFERROR(INDEX(Temp!B$3:B$170, SMALL(IF(ISERROR(Temp!B$3:B$170), \"\", ROW(Temp!B$3:B$170)-MIN(ROW(Temp!B$3:B$170))+1), ROW(19:19))),\"\")","v":""},{"$f":"IFERROR(INDEX(Temp!C$3:C$170, SMALL(IF(ISERROR(Temp!C$3:C$170), \"\", ROW(Temp!C$3:C$170)-MIN(ROW(Temp!C$3:C$170))+1), ROW(19:19))),\"\")","v":""},{"$f":"IFERROR(INDEX(Temp!D$3:D$170, SMALL(IF(ISERROR(Temp!D$3:D$170), \"\", ROW(Temp!D$3:D$170)-MIN(ROW(Temp!D$3:D$170))+1), ROW(19:19))),\"\")","v":""}]
[{"$f":"IFERROR(INDEX(Temp!A$3:A$170, SMALL(IF(ISERROR(Temp!A$3:A$170), \"\", ROW(Temp!A$3:A$170)-MIN(ROW(Temp!A$3:A$170))+1), ROW(20:20))),\"\")","v":""},{"$f":"IFERROR(INDEX(Temp!B$3:B$170, SMALL(IF(ISERROR(Temp!B$3:B$170), \"\", ROW(Temp!B$3:B$170)-MIN(ROW(Temp!B$3:B$170))+1), ROW(20:20))),\"\")","v":""},{"$f":"IFERROR(INDEX(Temp!C$3:C$170, SMALL(IF(ISERROR(Temp!C$3:C$170), \"\", ROW(Temp!C$3:C$170)-MIN(ROW(Temp!C$3:C$170))+1), ROW(20:20))),\"\")","v":""},{"$f":"IFERROR(INDEX(Temp!D$3:D$170, SMALL(IF(ISERROR(Temp!D$3:D$170), \"\", ROW(Temp!D$3:D$170)-MIN(ROW(Temp!D$3:D$170))+1), ROW(20:20))),\"\")","v":""}]
[{"$f":"IFERROR(INDEX(Temp!A$3:A$170, SMALL(IF(ISERROR(Temp!A$3:A$170), \"\", ROW(Temp!A$3:A$170)-MIN(ROW(Temp!A$3:A$170))+1), ROW(21:21))),\"\")","v":""},{"$f":"IFERROR(INDEX(Temp!B$3:B$170, SMALL(IF(ISERROR(Temp!B$3:B$170), \"\", ROW(Temp!B$3:B$170)-MIN(ROW(Temp!B$3:B$170))+1), ROW(21:21))),\"\")","v":""},{"$f":"IFERROR(INDEX(Temp!C$3:C$170, SMALL(IF(ISERROR(Temp!C$3:C$170), \"\", ROW(Temp!C$3:C$170)-MIN(ROW(Temp!C$3:C$170))+1), ROW(21:21))),\"\")","v":""},{"$f":"IFERROR(INDEX(Temp!D$3:D$170, SMALL(IF(ISERROR(Temp!D$3:D$170), \"\", ROW(Temp!D$3:D$170)-MIN(ROW(Temp!D$3:D$170))+1), ROW(21:21))),\"\")","v":""}]
[{"$f":"IFERROR(INDEX(Temp!A$3:A$170, SMALL(IF(ISERROR(Temp!A$3:A$170), \"\", ROW(Temp!A$3:A$170)-MIN(ROW(Temp!A$3:A$170))+1), ROW(22:22))),\"\")","v":""},{"$f":"IFERROR(INDEX(Temp!B$3:B$170, SMALL(IF(ISERROR(Temp!B$3:B$170), \"\", ROW(Temp!B$3:B$170)-MIN(ROW(Temp!B$3:B$170))+1), ROW(22:22))),\"\")","v":""},{"$f":"IFERROR(INDEX(Temp!C$3:C$170, SMALL(IF(ISERROR(Temp!C$3:C$170), \"\", ROW(Temp!C$3:C$170)-MIN(ROW(Temp!C$3:C$170))+1), ROW(22:22))),\"\")","v":""},{"$f":"IFERROR(INDEX(Temp!D$3:D$170, SMALL(IF(ISERROR(Temp!D$3:D$170), \"\", ROW(Temp!D$3:D$170)-MIN(ROW(Temp!D$3:D$170))+1), ROW(22:22))),\"\")","v":""}]
[{"$f":"IFERROR(INDEX(Temp!A$3:A$170, SMALL(IF(ISERROR(Temp!A$3:A$170), \"\", ROW(Temp!A$3:A$170)-MIN(ROW(Temp!A$3:A$170))+1), ROW(23:23))),\"\")","v":""},{"$f":"IFERROR(INDEX(Temp!B$3:B$170, SMALL(IF(ISERROR(Temp!B$3:B$170), \"\", ROW(Temp!B$3:B$170)-MIN(ROW(Temp!B$3:B$170))+1), ROW(23:23))),\"\")","v":""},{"$f":"IFERROR(INDEX(Temp!C$3:C$170, SMALL(IF(ISERROR(Temp!C$3:C$170), \"\", ROW(Temp!C$3:C$170)-MIN(ROW(Temp!C$3:C$170))+1), ROW(23:23))),\"\")","v":""},{"$f":"IFERROR(INDEX(Temp!D$3:D$170, SMALL(IF(ISERROR(Temp!D$3:D$170), \"\", ROW(Temp!D$3:D$170)-MIN(ROW(Temp!D$3:D$170))+1), ROW(23:23))),\"\")","v":""}]
[{"$f":"IFERROR(INDEX(Temp!A$3:A$170, SMALL(IF(ISERROR(Temp!A$3:A$170), \"\", ROW(Temp!A$3:A$170)-MIN(ROW(Temp!A$3:A$170))+1), ROW(24:24))),\"\")","v":""},{"$f":"IFERROR(INDEX(Temp!B$3:B$170, SMALL(IF(ISERROR(Temp!B$3:B$170), \"\", ROW(Temp!B$3:B$170)-MIN(ROW(Temp!B$3:B$170))+1), ROW(24:24))),\"\")","v":""},{"$f":"IFERROR(INDEX(Temp!C$3:C$170, SMALL(IF(ISERROR(Temp!C$3:C$170), \"\", ROW(Temp!C$3:C$170)-MIN(ROW(Temp!C$3:C$170))+1), ROW(24:24))),\"\")","v":""},{"$f":"IFERROR(INDEX(Temp!D$3:D$170, SMALL(IF(ISERROR(Temp!D$3:D$170), \"\", ROW(Temp!D$3:D$170)-MIN(ROW(Temp!D$3:D$170))+1), ROW(24:24))),\"\")","v":""}]
[{"$f":"IFERROR(INDEX(Temp!A$3:A$170, SMALL(IF(ISERROR(Temp!A$3:A$170), \"\", ROW(Temp!A$3:A$170)-MIN(ROW(Temp!A$3:A$170))+1), ROW(25:25))),\"\")","v":""},{"$f":"IFERROR(INDEX(Temp!B$3:B$170, SMALL(IF(ISERROR(Temp!B$3:B$170), \"\", ROW(Temp!B$3:B$170)-MIN(ROW(Temp!B$3:B$170))+1), ROW(25:25))),\"\")","v":""},{"$f":"IFERROR(INDEX(Temp!C$3:C$170, SMALL(IF(ISERROR(Temp!C$3:C$170), \"\", ROW(Temp!C$3:C$170)-MIN(ROW(Temp!C$3:C$170))+1), ROW(25:25))),\"\")","v":""},{"$f":"IFERROR(INDEX(Temp!D$3:D$170, SMALL(IF(ISERROR(Temp!D$3:D$170), \"\", ROW(Temp!D$3:D$170)-MIN(ROW(Temp!D$3:D$170))+1), ROW(25:25))),\"\")","v":""}]
[{"$f":"IFERROR(INDEX(Temp!A$3:A$170, SMALL(IF(ISERROR(Temp!A$3:A$170), \"\", ROW(Temp!A$3:A$170)-MIN(ROW(Temp!A$3:A$170))+1), ROW(26:26))),\"\")","v":""},{"$f":"IFERROR(INDEX(Temp!B$3:B$170, SMALL(IF(ISERROR(Temp!B$3:B$170), \"\", ROW(Temp!B$3:B$170)-MIN(ROW(Temp!B$3:B$170))+1), ROW(26:26))),\"\")","v":""},{"$f":"IFERROR(INDEX(Temp!C$3:C$170, SMALL(IF(ISERROR(Temp!C$3:C$170), \"\", ROW(Temp!C$3:C$170)-MIN(ROW(Temp!C$3:C$170))+1), ROW(26:26))),\"\")","v":""},{"$f":"IFERROR(INDEX(Temp!D$3:D$170, SMALL(IF(ISERROR(Temp!D$3:D$170), \"\", ROW(Temp!D$3:D$170)-MIN(ROW(Temp!D$3:D$170))+1), ROW(26:26))),\"\")","v":""}]
[{"$f":"IFERROR(INDEX(Temp!A$3:A$170, SMALL(IF(ISERROR(Temp!A$3:A$170), \"\", ROW(Temp!A$3:A$170)-MIN(ROW(Temp!A$3:A$170))+1), ROW(27:27))),\"\")","v":""},{"$f":"IFERROR(INDEX(Temp!B$3:B$170, SMALL(IF(ISERROR(Temp!B$3:B$170), \"\", ROW(Temp!B$3:B$170)-MIN(ROW(Temp!B$3:B$170))+1), ROW(27:27))),\"\")","v":""},{"$f":"IFERROR(INDEX(Temp!C$3:C$170, SMALL(IF(ISERROR(Temp!C$3:C$170), \"\", ROW(Temp!C$3:C$170)-MIN(ROW(Temp!C$3:C$170))+1), ROW(27:27))),\"\")","v":""},{"$f":"IFERROR(INDEX(Temp!D$3:D$170, SMALL(IF(ISERROR(Temp!D$3:D$170), \"\", ROW(Temp!D$3:D$170)-MIN(ROW(Temp!D$3:D$170))+1), ROW(27:27))),\"\")","v":""}]
[{"$f":"IFERROR(INDEX(Temp!A$3:A$170, SMALL(IF(ISERROR(Temp!A$3:A$170), \"\", ROW(Temp!A$3:A$170)-MIN(ROW(Temp!A$3:A$170))+1), ROW(28:28))),\"\")","v":""},{"$f":"IFERROR(INDEX(Temp!B$3:B$170, SMALL(IF(ISERROR(Temp!B$3:B$170), \"\", ROW(Temp!B$3:B$170)-MIN(ROW(Temp!B$3:B$170))+1), ROW(28:28))),\"\")","v":""},{"$f":"IFERROR(INDEX(Temp!C$3:C$170, SMALL(IF(ISERROR(Temp!C$3:C$170), \"\", ROW(Temp!C$3:C$170)-MIN(ROW(Temp!C$3:C$170))+1), ROW(28:28))),\"\")","v":""},{"$f":"IFERROR(INDEX(Temp!D$3:D$170, SMALL(IF(ISERROR(Temp!D$3:D$170), \"\", ROW(Temp!D$3:D$170)-MIN(ROW(Temp!D$3:D$170))+1), ROW(28:28))),\"\")","v":""}]
[{"$f":"IFERROR(INDEX(Temp!A$3:A$170, SMALL(IF(ISERROR(Temp!A$3:A$170), \"\", ROW(Temp!A$3:A$170)-MIN(ROW(Temp!A$3:A$170))+1), ROW(29:29))),\"\")","v":""},{"$f":"IFERROR(INDEX(Temp!B$3:B$170, SMALL(IF(ISERROR(Temp!B$3:B$170), \"\", ROW(Temp!B$3:B$170)-MIN(ROW(Temp!B$3:B$170))+1), ROW(29:29))),\"\")","v":""},{"$f":"IFERROR(INDEX(Temp!C$3:C$170, SMALL(IF(ISERROR(Temp!C$3:C$170), \"\", ROW(Temp!C$3:C$170)-MIN(ROW(Temp!C$3:C$170))+1), ROW(29:29))),\"\")","v":""},{"$f":"IFERROR(INDEX(Temp!D$3:D$170, SMALL(IF(ISERROR(Temp!D$3:D$170), \"\", ROW(Temp!D$3:D$170)-MIN(ROW(Temp!D$3:D$170))+1), ROW(29:29))),\"\")","v":""}]
[{"$f":"IFERROR(INDEX(Temp!A$3:A$170, SMALL(IF(ISERROR(Temp!A$3:A$170), \"\", ROW(Temp!A$3:A$170)-MIN(ROW(Temp!A$3:A$170))+1), ROW(30:30))),\"\")","v":""},{"$f":"IFERROR(INDEX(Temp!B$3:B$170, SMALL(IF(ISERROR(Temp!B$3:B$170), \"\", ROW(Temp!B$3:B$170)-MIN(ROW(Temp!B$3:B$170))+1), ROW(30:30))),\"\")","v":""},{"$f":"IFERROR(INDEX(Temp!C$3:C$170, SMALL(IF(ISERROR(Temp!C$3:C$170), \"\", ROW(Temp!C$3:C$170)-MIN(ROW(Temp!C$3:C$170))+1), ROW(30:30))),\"\")","v":""},{"$f":"IFERROR(INDEX(Temp!D$3:D$170, SMALL(IF(ISERROR(Temp!D$3:D$170), \"\", ROW(Temp!D$3:D$170)-MIN(ROW(Temp!D$3:D$170))+1), ROW(30:30))),\"\")","v":""}]
[{"$f":"IFERROR(INDEX(Temp!A$3:A$170, SMALL(IF(ISERROR(Temp!A$3:A$170), \"\", ROW(Temp!A$3:A$170)-MIN(ROW(Temp!A$3:A$170))+1), ROW(31:31))),\"\")","v":""},{"$f":"IFERROR(INDEX(Temp!B$3:B$170, SMALL(IF(ISERROR(Temp!B$3:B$170), \"\", ROW(Temp!B$3:B$170)-MIN(ROW(Temp!B$3:B$170))+1), ROW(31:31))),\"\")","v":""},{"$f":"IFERROR(INDEX(Temp!C$3:C$170, SMALL(IF(ISERROR(Temp!C$3:C$170), \"\", ROW(Temp!C$3:C$170)-MIN(ROW(Temp!C$3:C$170))+1), ROW(31:31))),\"\")","v":""},{"$f":"IFERROR(INDEX(Temp!D$3:D$170, SMALL(IF(ISERROR(Temp!D$3:D$170), \"\", ROW(Temp!D$3:D$170)-MIN(ROW(Temp!D$3:D$170))+1), ROW(31:31))),\"\")","v":""}]
[{"$f":"IFERROR(INDEX(Temp!A$3:A$170, SMALL(IF(ISERROR(Temp!A$3:A$170), \"\", ROW(Temp!A$3:A$170)-MIN(ROW(Temp!A$3:A$170))+1), ROW(32:32))),\"\")","v":""},{"$f":"IFERROR(INDEX(Temp!B$3:B$170, SMALL(IF(ISERROR(Temp!B$3:B$170), \"\", ROW(Temp!B$3:B$170)-MIN(ROW(Temp!B$3:B$170))+1), ROW(32:32))),\"\")","v":""},{"$f":"IFERROR(INDEX(Temp!C$3:C$170, SMALL(IF(ISERROR(Temp!C$3:C$170), \"\", ROW(Temp!C$3:C$170)-MIN(ROW(Temp!C$3:C$170))+1), ROW(32:32))),\"\")","v":""},{"$f":"IFERROR(INDEX(Temp!D$3:D$170, SMALL(IF(ISERROR(Temp!D$3:D$170), \"\", ROW(Temp!D$3:D$170)-MIN(ROW(Temp!D$3:D$170))+1), ROW(32:32))),\"\")","v":""}]
[{"$f":"IFERROR(INDEX(Temp!A$3:A$170, SMALL(IF(ISERROR(Temp!A$3:A$170), \"\", ROW(Temp!A$3:A$170)-MIN(ROW(Temp!A$3:A$170))+1), ROW(33:33))),\"\")","v":""},{"$f":"IFERROR(INDEX(Temp!B$3:B$170, SMALL(IF(ISERROR(Temp!B$3:B$170), \"\", ROW(Temp!B$3:B$170)-MIN(ROW(Temp!B$3:B$170))+1), ROW(33:33))),\"\")","v":""},{"$f":"IFERROR(INDEX(Temp!C$3:C$170, SMALL(IF(ISERROR(Temp!C$3:C$170), \"\", ROW(Temp!C$3:C$170)-MIN(ROW(Temp!C$3:C$170))+1), ROW(33:33))),\"\")","v":""},{"$f":"IFERROR(INDEX(Temp!D$3:D$170, SMALL(IF(ISERROR(Temp!D$3:D$170), \"\", ROW(Temp!D$3:D$170)-MIN(ROW(Temp!D$3:D$170))+1), ROW(33:33))),\"\")","v":""}]
[{"$f":"IFERROR(INDEX(Temp!A$3:A$170, SMALL(IF(ISERROR(Temp!A$3:A$170), \"\", ROW(Temp!A$3:A$170)-MIN(ROW(Temp!A$3:A$170))+1), ROW(34:34))),\"\")","v":""},{"$f":"IFERROR(INDEX(Temp!B$3:B$170, SMALL(IF(ISERROR(Temp!B$3:B$170), \"\", ROW(Temp!B$3:B$170)-MIN(ROW(Temp!B$3:B$170))+1), ROW(34:34))),\"\")","v":""},{"$f":"IFERROR(INDEX(Temp!C$3:C$170, SMALL(IF(ISERROR(Temp!C$3:C$170), \"\", ROW(Temp!C$3:C$170)-MIN(ROW(Temp!C$3:C$170))+1), ROW(34:34))),\"\")","v":""},{"$f":"IFERROR(INDEX(Temp!D$3:D$170, SMALL(IF(ISERROR(Temp!D$3:D$170), \"\", ROW(Temp!D$3:D$170)-MIN(ROW(Temp!D$3:D$170))+1), ROW(34:34))),\"\")","v":""}]
[{"$f":"IFERROR(INDEX(Temp!A$3:A$170, SMALL(IF(ISERROR(Temp!A$3:A$170), \"\", ROW(Temp!A$3:A$170)-MIN(ROW(Temp!A$3:A$170))+1), ROW(35:35))),\"\")","v":""},{"$f":"IFERROR(INDEX(Temp!B$3:B$170, SMALL(IF(ISERROR(Temp!B$3:B$170), \"\", ROW(Temp!B$3:B$170)-MIN(ROW(Temp!B$3:B$170))+1), ROW(35:35))),\"\")","v":""},{"$f":"IFERROR(INDEX(Temp!C$3:C$170, SMALL(IF(ISERROR(Temp!C$3:C$170), \"\", ROW(Temp!C$3:C$170)-MIN(ROW(Temp!C$3:C$170))+1), ROW(35:35))),\"\")","v":""},{"$f":"IFERROR(INDEX(Temp!D$3:D$170, SMALL(IF(ISERROR(Temp!D$3:D$170), \"\", ROW(Temp!D$3:D$170)-MIN(ROW(Temp!D$3:D$170))+1), ROW(35:35))),\"\")","v":""}]
[{"$f":"IFERROR(INDEX(Temp!A$3:A$170, SMALL(IF(ISERROR(Temp!A$3:A$170), \"\", ROW(Temp!A$3:A$170)-MIN(ROW(Temp!A$3:A$170))+1), ROW(36:36))),\"\")","v":""},{"$f":"IFERROR(INDEX(Temp!B$3:B$170, SMALL(IF(ISERROR(Temp!B$3:B$170), \"\", ROW(Temp!B$3:B$170)-MIN(ROW(Temp!B$3:B$170))+1), ROW(36:36))),\"\")","v":""},{"$f":"IFERROR(INDEX(Temp!C$3:C$170, SMALL(IF(ISERROR(Temp!C$3:C$170), \"\", ROW(Temp!C$3:C$170)-MIN(ROW(Temp!C$3:C$170))+1), ROW(36:36))),\"\")","v":""},{"$f":"IFERROR(INDEX(Temp!D$3:D$170, SMALL(IF(ISERROR(Temp!D$3:D$170), \"\", ROW(Temp!D$3:D$170)-MIN(ROW(Temp!D$3:D$170))+1), ROW(36:36))),\"\")","v":""}]
[{"$f":"IFERROR(INDEX(Temp!A$3:A$170, SMALL(IF(ISERROR(Temp!A$3:A$170), \"\", ROW(Temp!A$3:A$170)-MIN(ROW(Temp!A$3:A$170))+1), ROW(37:37))),\"\")","v":""},{"$f":"IFERROR(INDEX(Temp!B$3:B$170, SMALL(IF(ISERROR(Temp!B$3:B$170), \"\", ROW(Temp!B$3:B$170)-MIN(ROW(Temp!B$3:B$170))+1), ROW(37:37))),\"\")","v":""},{"$f":"IFERROR(INDEX(Temp!C$3:C$170, SMALL(IF(ISERROR(Temp!C$3:C$170), \"\", ROW(Temp!C$3:C$170)-MIN(ROW(Temp!C$3:C$170))+1), ROW(37:37))),\"\")","v":""},{"$f":"IFERROR(INDEX(Temp!D$3:D$170, SMALL(IF(ISERROR(Temp!D$3:D$170), \"\", ROW(Temp!D$3:D$170)-MIN(ROW(Temp!D$3:D$170))+1), ROW(37:37))),\"\")","v":""}]
[{"$f":"IFERROR(INDEX(Temp!A$3:A$170, SMALL(IF(ISERROR(Temp!A$3:A$170), \"\", ROW(Temp!A$3:A$170)-MIN(ROW(Temp!A$3:A$170))+1), ROW(38:38))),\"\")","v":""},{"$f":"IFERROR(INDEX(Temp!B$3:B$170, SMALL(IF(ISERROR(Temp!B$3:B$170), \"\", ROW(Temp!B$3:B$170)-MIN(ROW(Temp!B$3:B$170))+1), ROW(38:38))),\"\")","v":""},{"$f":"IFERROR(INDEX(Temp!C$3:C$170, SMALL(IF(ISERROR(Temp!C$3:C$170), \"\", ROW(Temp!C$3:C$170)-MIN(ROW(Temp!C$3:C$170))+1), ROW(38:38))),\"\")","v":""},{"$f":"IFERROR(INDEX(Temp!D$3:D$170, SMALL(IF(ISERROR(Temp!D$3:D$170), \"\", ROW(Temp!D$3:D$170)-MIN(ROW(Temp!D$3:D$170))+1), ROW(38:38))),\"\")","v":""}]
[{"$f":"IFERROR(INDEX(Temp!A$3:A$170, SMALL(IF(ISERROR(Temp!A$3:A$170), \"\", ROW(Temp!A$3:A$170)-MIN(ROW(Temp!A$3:A$170))+1), ROW(39:39))),\"\")","v":""},{"$f":"IFERROR(INDEX(Temp!B$3:B$170, SMALL(IF(ISERROR(Temp!B$3:B$170), \"\", ROW(Temp!B$3:B$170)-MIN(ROW(Temp!B$3:B$170))+1), ROW(39:39))),\"\")","v":""},{"$f":"IFERROR(INDEX(Temp!C$3:C$170, SMALL(IF(ISERROR(Temp!C$3:C$170), \"\", ROW(Temp!C$3:C$170)-MIN(ROW(Temp!C$3:C$170))+1), ROW(39:39))),\"\")","v":""},{"$f":"IFERROR(INDEX(Temp!D$3:D$170, SMALL(IF(ISERROR(Temp!D$3:D$170), \"\", ROW(Temp!D$3:D$170)-MIN(ROW(Temp!D$3:D$170))+1), ROW(39:39))),\"\")","v":""}]
[{"$f":"IFERROR(INDEX(Temp!A$3:A$170, SMALL(IF(ISERROR(Temp!A$3:A$170), \"\", ROW(Temp!A$3:A$170)-MIN(ROW(Temp!A$3:A$170))+1), ROW(40:40))),\"\")","v":""},{"$f":"IFERROR(INDEX(Temp!B$3:B$170, SMALL(IF(ISERROR(Temp!B$3:B$170), \"\", ROW(Temp!B$3:B$170)-MIN(ROW(Temp!B$3:B$170))+1), ROW(40:40))),\"\")","v":""},{"$f":"IFERROR(INDEX(Temp!C$3:C$170, SMALL(IF(ISERROR(Temp!C$3:C$170), \"\", ROW(Temp!C$3:C$170)-MIN(ROW(Temp!C$3:C$170))+1), ROW(40:40))),\"\")","v":""},{"$f":"IFERROR(INDEX(Temp!D$3:D$170, SMALL(IF(ISERROR(Temp!D$3:D$170), \"\", ROW(Temp!D$3:D$170)-MIN(ROW(Temp!D$3:D$170))+1), ROW(40:40))),\"\")","v":""}]
[{"$f":"IFERROR(INDEX(Temp!A$3:A$170, SMALL(IF(ISERROR(Temp!A$3:A$170), \"\", ROW(Temp!A$3:A$170)-MIN(ROW(Temp!A$3:A$170))+1), ROW(41:41))),\"\")","v":""},{"$f":"IFERROR(INDEX(Temp!B$3:B$170, SMALL(IF(ISERROR(Temp!B$3:B$170), \"\", ROW(Temp!B$3:B$170)-MIN(ROW(Temp!B$3:B$170))+1), ROW(41:41))),\"\")","v":""},{"$f":"IFERROR(INDEX(Temp!C$3:C$170, SMALL(IF(ISERROR(Temp!C$3:C$170), \"\", ROW(Temp!C$3:C$170)-MIN(ROW(Temp!C$3:C$170))+1), ROW(41:41))),\"\")","v":""},{"$f":"IFERROR(INDEX(Temp!D$3:D$170, SMALL(IF(ISERROR(Temp!D$3:D$170), \"\", ROW(Temp!D$3:D$170)-MIN(ROW(Temp!D$3:D$170))+1), ROW(41:41))),\"\")","v":""}]
[{"$f":"IFERROR(INDEX(Temp!A$3:A$170, SMALL(IF(ISERROR(Temp!A$3:A$170), \"\", ROW(Temp!A$3:A$170)-MIN(ROW(Temp!A$3:A$170))+1), ROW(42:42))),\"\")","v":""},{"$f":"IFERROR(INDEX(Temp!B$3:B$170, SMALL(IF(ISERROR(Temp!B$3:B$170), \"\", ROW(Temp!B$3:B$170)-MIN(ROW(Temp!B$3:B$170))+1), ROW(42:42))),\"\")","v":""},{"$f":"IFERROR(INDEX(Temp!C$3:C$170, SMALL(IF(ISERROR(Temp!C$3:C$170), \"\", ROW(Temp!C$3:C$170)-MIN(ROW(Temp!C$3:C$170))+1), ROW(42:42))),\"\")","v":""},{"$f":"IFERROR(INDEX(Temp!D$3:D$170, SMALL(IF(ISERROR(Temp!D$3:D$170), \"\", ROW(Temp!D$3:D$170)-MIN(ROW(Temp!D$3:D$170))+1), ROW(42:42))),\"\")","v":""}]
[{"$f":"IFERROR(INDEX(Temp!A$3:A$170, SMALL(IF(ISERROR(Temp!A$3:A$170), \"\", ROW(Temp!A$3:A$170)-MIN(ROW(Temp!A$3:A$170))+1), ROW(43:43))),\"\")","v":""},{"$f":"IFERROR(INDEX(Temp!B$3:B$170, SMALL(IF(ISERROR(Temp!B$3:B$170), \"\", ROW(Temp!B$3:B$170)-MIN(ROW(Temp!B$3:B$170))+1), ROW(43:43))),\"\")","v":""},{"$f":"IFERROR(INDEX(Temp!C$3:C$170, SMALL(IF(ISERROR(Temp!C$3:C$170), \"\", ROW(Temp!C$3:C$170)-MIN(ROW(Temp!C$3:C$170))+1), ROW(43:43))),\"\")","v":""},{"$f":"IFERROR(INDEX(Temp!D$3:D$170, SMALL(IF(ISERROR(Temp!D$3:D$170), \"\", ROW(Temp!D$3:D$170)-MIN(ROW(Temp!D$3:D$170))+1), ROW(43:43))),\"\")","v":""}]
[{"$f":"IFERROR(INDEX(Temp!A$3:A$170, SMALL(IF(ISERROR(Temp!A$3:A$170), \"\", ROW(Temp!A$3:A$170)-MIN(ROW(Temp!A$3:A$170))+1), ROW(44:44))),\"\")","v":""},{"$f":"IFERROR(INDEX(Temp!B$3:B$170, SMALL(IF(ISERROR(Temp!B$3:B$170), \"\", ROW(Temp!B$3:B$170)-MIN(ROW(Temp!B$3:B$170))+1), ROW(44:44))),\"\")","v":""},{"$f":"IFERROR(INDEX(Temp!C$3:C$170, SMALL(IF(ISERROR(Temp!C$3:C$170), \"\", ROW(Temp!C$3:C$170)-MIN(ROW(Temp!C$3:C$170))+1), ROW(44:44))),\"\")","v":""},{"$f":"IFERROR(INDEX(Temp!D$3:D$170, SMALL(IF(ISERROR(Temp!D$3:D$170), \"\", ROW(Temp!D$3:D$170)-MIN(ROW(Temp!D$3:D$170))+1), ROW(44:44))),\"\")","v":""}]
[{"$f":"IFERROR(INDEX(Temp!A$3:A$170, SMALL(IF(ISERROR(Temp!A$3:A$170), \"\", ROW(Temp!A$3:A$170)-MIN(ROW(Temp!A$3:A$170))+1), ROW(45:45))),\"\")","v":""},{"$f":"IFERROR(INDEX(Temp!B$3:B$170, SMALL(IF(ISERROR(Temp!B$3:B$170), \"\", ROW(Temp!B$3:B$170)-MIN(ROW(Temp!B$3:B$170))+1), ROW(45:45))),\"\")","v":""},{"$f":"IFERROR(INDEX(Temp!C$3:C$170, SMALL(IF(ISERROR(Temp!C$3:C$170), \"\", ROW(Temp!C$3:C$170)-MIN(ROW(Temp!C$3:C$170))+1), ROW(45:45))),\"\")","v":""},{"$f":"IFERROR(INDEX(Temp!D$3:D$170, SMALL(IF(ISERROR(Temp!D$3:D$170), \"\", ROW(Temp!D$3:D$170)-MIN(ROW(Temp!D$3:D$170))+1), ROW(45:45))),\"\")","v":""}]
[{"$f":"IFERROR(INDEX(Temp!A$3:A$170, SMALL(IF(ISERROR(Temp!A$3:A$170), \"\", ROW(Temp!A$3:A$170)-MIN(ROW(Temp!A$3:A$170))+1), ROW(46:46))),\"\")","v":""},{"$f":"IFERROR(INDEX(Temp!B$3:B$170, SMALL(IF(ISERROR(Temp!B$3:B$170), \"\", ROW(Temp!B$3:B$170)-MIN(ROW(Temp!B$3:B$170))+1), ROW(46:46))),\"\")","v":""},{"$f":"IFERROR(INDEX(Temp!C$3:C$170, SMALL(IF(ISERROR(Temp!C$3:C$170), \"\", ROW(Temp!C$3:C$170)-MIN(ROW(Temp!C$3:C$170))+1), ROW(46:46))),\"\")","v":""},{"$f":"IFERROR(INDEX(Temp!D$3:D$170, SMALL(IF(ISERROR(Temp!D$3:D$170), \"\", ROW(Temp!D$3:D$170)-MIN(ROW(Temp!D$3:D$170))+1), ROW(46:46))),\"\")","v":""}]
[{"$f":"IFERROR(INDEX(Temp!A$3:A$170, SMALL(IF(ISERROR(Temp!A$3:A$170), \"\", ROW(Temp!A$3:A$170)-MIN(ROW(Temp!A$3:A$170))+1), ROW(47:47))),\"\")","v":""},{"$f":"IFERROR(INDEX(Temp!B$3:B$170, SMALL(IF(ISERROR(Temp!B$3:B$170), \"\", ROW(Temp!B$3:B$170)-MIN(ROW(Temp!B$3:B$170))+1), ROW(47:47))),\"\")","v":""},{"$f":"IFERROR(INDEX(Temp!C$3:C$170, SMALL(IF(ISERROR(Temp!C$3:C$170), \"\", ROW(Temp!C$3:C$170)-MIN(ROW(Temp!C$3:C$170))+1), ROW(47:47))),\"\")","v":""},{"$f":"IFERROR(INDEX(Temp!D$3:D$170, SMALL(IF(ISERROR(Temp!D$3:D$170), \"\", ROW(Temp!D$3:D$170)-MIN(ROW(Temp!D$3:D$170))+1), ROW(47:47))),\"\")","v":""}]
[{"$f":"IFERROR(INDEX(Temp!A$3:A$170, SMALL(IF(ISERROR(Temp!A$3:A$170), \"\", ROW(Temp!A$3:A$170)-MIN(ROW(Temp!A$3:A$170))+1), ROW(48:48))),\"\")","v":""},{"$f":"IFERROR(INDEX(Temp!B$3:B$170, SMALL(IF(ISERROR(Temp!B$3:B$170), \"\", ROW(Temp!B$3:B$170)-MIN(ROW(Temp!B$3:B$170))+1), ROW(48:48))),\"\")","v":""},{"$f":"IFERROR(INDEX(Temp!C$3:C$170, SMALL(IF(ISERROR(Temp!C$3:C$170), \"\", ROW(Temp!C$3:C$170)-MIN(ROW(Temp!C$3:C$170))+1), ROW(48:48))),\"\")","v":""},{"$f":"IFERROR(INDEX(Temp!D$3:D$170, SMALL(IF(ISERROR(Temp!D$3:D$170), \"\", ROW(Temp!D$3:D$170)-MIN(ROW(Temp!D$3:D$170))+1), ROW(48:48))),\"\")","v":""}]
[{"$f":"IFERROR(INDEX(Temp!A$3:A$170, SMALL(IF(ISERROR(Temp!A$3:A$170), \"\", ROW(Temp!A$3:A$170)-MIN(ROW(Temp!A$3:A$170))+1), ROW(49:49))),\"\")","v":""},{"$f":"IFERROR(INDEX(Temp!B$3:B$170, SMALL(IF(ISERROR(Temp!B$3:B$170), \"\", ROW(Temp!B$3:B$170)-MIN(ROW(Temp!B$3:B$170))+1), ROW(49:49))),\"\")","v":""},{"$f":"IFERROR(INDEX(Temp!C$3:C$170, SMALL(IF(ISERROR(Temp!C$3:C$170), \"\", ROW(Temp!C$3:C$170)-MIN(ROW(Temp!C$3:C$170))+1), ROW(49:49))),\"\")","v":""},{"$f":"IFERROR(INDEX(Temp!D$3:D$170, SMALL(IF(ISERROR(Temp!D$3:D$170), \"\", ROW(Temp!D$3:D$170)-MIN(ROW(Temp!D$3:D$170))+1), ROW(49:49))),\"\")","v":""}]
[{"$f":"IFERROR(INDEX(Temp!A$3:A$170, SMALL(IF(ISERROR(Temp!A$3:A$170), \"\", ROW(Temp!A$3:A$170)-MIN(ROW(Temp!A$3:A$170))+1), ROW(50:50))),\"\")","v":""},{"$f":"IFERROR(INDEX(Temp!B$3:B$170, SMALL(IF(ISERROR(Temp!B$3:B$170), \"\", ROW(Temp!B$3:B$170)-MIN(ROW(Temp!B$3:B$170))+1), ROW(50:50))),\"\")","v":""},{"$f":"IFERROR(INDEX(Temp!C$3:C$170, SMALL(IF(ISERROR(Temp!C$3:C$170), \"\", ROW(Temp!C$3:C$170)-MIN(ROW(Temp!C$3:C$170))+1), ROW(50:50))),\"\")","v":""},{"$f":"IFERROR(INDEX(Temp!D$3:D$170, SMALL(IF(ISERROR(Temp!D$3:D$170), \"\", ROW(Temp!D$3:D$170)-MIN(ROW(Temp!D$3:D$170))+1), ROW(50:50))),\"\")","v":""}]
[{"$f":"IFERROR(INDEX(Temp!A$3:A$170, SMALL(IF(ISERROR(Temp!A$3:A$170), \"\", ROW(Temp!A$3:A$170)-MIN(ROW(Temp!A$3:A$170))+1), ROW(51:51))),\"\")","v":""},{"$f":"IFERROR(INDEX(Temp!B$3:B$170, SMALL(IF(ISERROR(Temp!B$3:B$170), \"\", ROW(Temp!B$3:B$170)-MIN(ROW(Temp!B$3:B$170))+1), ROW(51:51))),\"\")","v":""},{"$f":"IFERROR(INDEX(Temp!C$3:C$170, SMALL(IF(ISERROR(Temp!C$3:C$170), \"\", ROW(Temp!C$3:C$170)-MIN(ROW(Temp!C$3:C$170))+1), ROW(51:51))),\"\")","v":""},{"$f":"IFERROR(INDEX(Temp!D$3:D$170, SMALL(IF(ISERROR(Temp!D$3:D$170), \"\", ROW(Temp!D$3:D$170)-MIN(ROW(Temp!D$3:D$170))+1), ROW(51:51))),\"\")","v":""}]
[{"$f":"IFERROR(INDEX(Temp!A$3:A$170, SMALL(IF(ISERROR(Temp!A$3:A$170), \"\", ROW(Temp!A$3:A$170)-MIN(ROW(Temp!A$3:A$170))+1), ROW(52:52))),\"\")","v":""},{"$f":"IFERROR(INDEX(Temp!B$3:B$170, SMALL(IF(ISERROR(Temp!B$3:B$170), \"\", ROW(Temp!B$3:B$170)-MIN(ROW(Temp!B$3:B$170))+1), ROW(52:52))),\"\")","v":""},{"$f":"IFERROR(INDEX(Temp!C$3:C$170, SMALL(IF(ISERROR(Temp!C$3:C$170), \"\", ROW(Temp!C$3:C$170)-MIN(ROW(Temp!C$3:C$170))+1), ROW(52:52))),\"\")","v":""},{"$f":"IFERROR(INDEX(Temp!D$3:D$170, SMALL(IF(ISERROR(Temp!D$3:D$170), \"\", ROW(Temp!D$3:D$170)-MIN(ROW(Temp!D$3:D$170))+1), ROW(52:52))),\"\")","v":""}]
[{"$f":"IFERROR(INDEX(Temp!A$3:A$170, SMALL(IF(ISERROR(Temp!A$3:A$170), \"\", ROW(Temp!A$3:A$170)-MIN(ROW(Temp!A$3:A$170))+1), ROW(53:53))),\"\")","v":""},{"$f":"IFERROR(INDEX(Temp!B$3:B$170, SMALL(IF(ISERROR(Temp!B$3:B$170), \"\", ROW(Temp!B$3:B$170)-MIN(ROW(Temp!B$3:B$170))+1), ROW(53:53))),\"\")","v":""},{"$f":"IFERROR(INDEX(Temp!C$3:C$170, SMALL(IF(ISERROR(Temp!C$3:C$170), \"\", ROW(Temp!C$3:C$170)-MIN(ROW(Temp!C$3:C$170))+1), ROW(53:53))),\"\")","v":""},{"$f":"IFERROR(INDEX(Temp!D$3:D$170, SMALL(IF(ISERROR(Temp!D$3:D$170), \"\", ROW(Temp!D$3:D$170)-MIN(ROW(Temp!D$3:D$170))+1), ROW(53:53))),\"\")","v":""}]
[{"$f":"IFERROR(INDEX(Temp!A$3:A$170, SMALL(IF(ISERROR(Temp!A$3:A$170), \"\", ROW(Temp!A$3:A$170)-MIN(ROW(Temp!A$3:A$170))+1), ROW(54:54))),\"\")","v":""},{"$f":"IFERROR(INDEX(Temp!B$3:B$170, SMALL(IF(ISERROR(Temp!B$3:B$170), \"\", ROW(Temp!B$3:B$170)-MIN(ROW(Temp!B$3:B$170))+1), ROW(54:54))),\"\")","v":""},{"$f":"IFERROR(INDEX(Temp!C$3:C$170, SMALL(IF(ISERROR(Temp!C$3:C$170), \"\", ROW(Temp!C$3:C$170)-MIN(ROW(Temp!C$3:C$170))+1), ROW(54:54))),\"\")","v":""},{"$f":"IFERROR(INDEX(Temp!D$3:D$170, SMALL(IF(ISERROR(Temp!D$3:D$170), \"\", ROW(Temp!D$3:D$170)-MIN(ROW(Temp!D$3:D$170))+1), ROW(54:54))),\"\")","v":""}]
[{"$f":"IFERROR(INDEX(Temp!A$3:A$170, SMALL(IF(ISERROR(Temp!A$3:A$170), \"\", ROW(Temp!A$3:A$170)-MIN(ROW(Temp!A$3:A$170))+1), ROW(55:55))),\"\")","v":""},{"$f":"IFERROR(INDEX(Temp!B$3:B$170, SMALL(IF(ISERROR(Temp!B$3:B$170), \"\", ROW(Temp!B$3:B$170)-MIN(ROW(Temp!B$3:B$170))+1), ROW(55:55))),\"\")","v":""},{"$f":"IFERROR(INDEX(Temp!C$3:C$170, SMALL(IF(ISERROR(Temp!C$3:C$170), \"\", ROW(Temp!C$3:C$170)-MIN(ROW(Temp!C$3:C$170))+1), ROW(55:55))),\"\")","v":""},{"$f":"IFERROR(INDEX(Temp!D$3:D$170, SMALL(IF(ISERROR(Temp!D$3:D$170), \"\", ROW(Temp!D$3:D$170)-MIN(ROW(Temp!D$3:D$170))+1), ROW(55:55))),\"\")","v":""}]
[{"$f":"IFERROR(INDEX(Temp!A$3:A$170, SMALL(IF(ISERROR(Temp!A$3:A$170), \"\", ROW(Temp!A$3:A$170)-MIN(ROW(Temp!A$3:A$170))+1), ROW(56:56))),\"\")","v":""},{"$f":"IFERROR(INDEX(Temp!B$3:B$170, SMALL(IF(ISERROR(Temp!B$3:B$170), \"\", ROW(Temp!B$3:B$170)-MIN(ROW(Temp!B$3:B$170))+1), ROW(56:56))),\"\")","v":""},{"$f":"IFERROR(INDEX(Temp!C$3:C$170, SMALL(IF(ISERROR(Temp!C$3:C$170), \"\", ROW(Temp!C$3:C$170)-MIN(ROW(Temp!C$3:C$170))+1), ROW(56:56))),\"\")","v":""},{"$f":"IFERROR(INDEX(Temp!D$3:D$170, SMALL(IF(ISERROR(Temp!D$3:D$170), \"\", ROW(Temp!D$3:D$170)-MIN(ROW(Temp!D$3:D$170))+1), ROW(56:56))),\"\")","v":""}]
[{"$f":"IFERROR(INDEX(Temp!A$3:A$170, SMALL(IF(ISERROR(Temp!A$3:A$170), \"\", ROW(Temp!A$3:A$170)-MIN(ROW(Temp!A$3:A$170))+1), ROW(57:57))),\"\")","v":""},{"$f":"IFERROR(INDEX(Temp!B$3:B$170, SMALL(IF(ISERROR(Temp!B$3:B$170), \"\", ROW(Temp!B$3:B$170)-MIN(ROW(Temp!B$3:B$170))+1), ROW(57:57))),\"\")","v":""},{"$f":"IFERROR(INDEX(Temp!C$3:C$170, SMALL(IF(ISERROR(Temp!C$3:C$170), \"\", ROW(Temp!C$3:C$170)-MIN(ROW(Temp!C$3:C$170))+1), ROW(57:57))),\"\")","v":""},{"$f":"IFERROR(INDEX(Temp!D$3:D$170, SMALL(IF(ISERROR(Temp!D$3:D$170), \"\", ROW(Temp!D$3:D$170)-MIN(ROW(Temp!D$3:D$170))+1), ROW(57:57))),\"\")","v":""}]
[{"$f":"IFERROR(INDEX(Temp!A$3:A$170, SMALL(IF(ISERROR(Temp!A$3:A$170), \"\", ROW(Temp!A$3:A$170)-MIN(ROW(Temp!A$3:A$170))+1), ROW(58:58))),\"\")","v":""},{"$f":"IFERROR(INDEX(Temp!B$3:B$170, SMALL(IF(ISERROR(Temp!B$3:B$170), \"\", ROW(Temp!B$3:B$170)-MIN(ROW(Temp!B$3:B$170))+1), ROW(58:58))),\"\")","v":""},{"$f":"IFERROR(INDEX(Temp!C$3:C$170, SMALL(IF(ISERROR(Temp!C$3:C$170), \"\", ROW(Temp!C$3:C$170)-MIN(ROW(Temp!C$3:C$170))+1), ROW(58:58))),\"\")","v":""},{"$f":"IFERROR(INDEX(Temp!D$3:D$170, SMALL(IF(ISERROR(Temp!D$3:D$170), \"\", ROW(Temp!D$3:D$170)-MIN(ROW(Temp!D$3:D$170))+1), ROW(58:58))),\"\")","v":""}]
[{"$f":"IFERROR(INDEX(Temp!A$3:A$170, SMALL(IF(ISERROR(Temp!A$3:A$170), \"\", ROW(Temp!A$3:A$170)-MIN(ROW(Temp!A$3:A$170))+1), ROW(59:59))),\"\")","v":""},{"$f":"IFERROR(INDEX(Temp!B$3:B$170, SMALL(IF(ISERROR(Temp!B$3:B$170), \"\", ROW(Temp!B$3:B$170)-MIN(ROW(Temp!B$3:B$170))+1), ROW(59:59))),\"\")","v":""},{"$f":"IFERROR(INDEX(Temp!C$3:C$170, SMALL(IF(ISERROR(Temp!C$3:C$170), \"\", ROW(Temp!C$3:C$170)-MIN(ROW(Temp!C$3:C$170))+1), ROW(59:59))),\"\")","v":""},{"$f":"IFERROR(INDEX(Temp!D$3:D$170, SMALL(IF(ISERROR(Temp!D$3:D$170), \"\", ROW(Temp!D$3:D$170)-MIN(ROW(Temp!D$3:D$170))+1), ROW(59:59))),\"\")","v":""}]
[{"$f":"IFERROR(INDEX(Temp!A$3:A$170, SMALL(IF(ISERROR(Temp!A$3:A$170), \"\", ROW(Temp!A$3:A$170)-MIN(ROW(Temp!A$3:A$170))+1), ROW(60:60))),\"\")","v":""},{"$f":"IFERROR(INDEX(Temp!B$3:B$170, SMALL(IF(ISERROR(Temp!B$3:B$170), \"\", ROW(Temp!B$3:B$170)-MIN(ROW(Temp!B$3:B$170))+1), ROW(60:60))),\"\")","v":""},{"$f":"IFERROR(INDEX(Temp!C$3:C$170, SMALL(IF(ISERROR(Temp!C$3:C$170), \"\", ROW(Temp!C$3:C$170)-MIN(ROW(Temp!C$3:C$170))+1), ROW(60:60))),\"\")","v":""},{"$f":"IFERROR(INDEX(Temp!D$3:D$170, SMALL(IF(ISERROR(Temp!D$3:D$170), \"\", ROW(Temp!D$3:D$170)-MIN(ROW(Temp!D$3:D$170))+1), ROW(60:60))),\"\")","v":""}]
[{"$f":"IFERROR(INDEX(Temp!A$3:A$170, SMALL(IF(ISERROR(Temp!A$3:A$170), \"\", ROW(Temp!A$3:A$170)-MIN(ROW(Temp!A$3:A$170))+1), ROW(61:61))),\"\")","v":""},{"$f":"IFERROR(INDEX(Temp!B$3:B$170, SMALL(IF(ISERROR(Temp!B$3:B$170), \"\", ROW(Temp!B$3:B$170)-MIN(ROW(Temp!B$3:B$170))+1), ROW(61:61))),\"\")","v":""},{"$f":"IFERROR(INDEX(Temp!C$3:C$170, SMALL(IF(ISERROR(Temp!C$3:C$170), \"\", ROW(Temp!C$3:C$170)-MIN(ROW(Temp!C$3:C$170))+1), ROW(61:61))),\"\")","v":""},{"$f":"IFERROR(INDEX(Temp!D$3:D$170, SMALL(IF(ISERROR(Temp!D$3:D$170), \"\", ROW(Temp!D$3:D$170)-MIN(ROW(Temp!D$3:D$170))+1), ROW(61:61))),\"\")","v":""}]
[{"$f":"IFERROR(INDEX(Temp!A$3:A$170, SMALL(IF(ISERROR(Temp!A$3:A$170), \"\", ROW(Temp!A$3:A$170)-MIN(ROW(Temp!A$3:A$170))+1), ROW(62:62))),\"\")","v":""},{"$f":"IFERROR(INDEX(Temp!B$3:B$170, SMALL(IF(ISERROR(Temp!B$3:B$170), \"\", ROW(Temp!B$3:B$170)-MIN(ROW(Temp!B$3:B$170))+1), ROW(62:62))),\"\")","v":""},{"$f":"IFERROR(INDEX(Temp!C$3:C$170, SMALL(IF(ISERROR(Temp!C$3:C$170), \"\", ROW(Temp!C$3:C$170)-MIN(ROW(Temp!C$3:C$170))+1), ROW(62:62))),\"\")","v":""},{"$f":"IFERROR(INDEX(Temp!D$3:D$170, SMALL(IF(ISERROR(Temp!D$3:D$170), \"\", ROW(Temp!D$3:D$170)-MIN(ROW(Temp!D$3:D$170))+1), ROW(62:62))),\"\")","v":""}]
[{"$f":"IFERROR(INDEX(Temp!A$3:A$170, SMALL(IF(ISERROR(Temp!A$3:A$170), \"\", ROW(Temp!A$3:A$170)-MIN(ROW(Temp!A$3:A$170))+1), ROW(63:63))),\"\")","v":""},{"$f":"IFERROR(INDEX(Temp!B$3:B$170, SMALL(IF(ISERROR(Temp!B$3:B$170), \"\", ROW(Temp!B$3:B$170)-MIN(ROW(Temp!B$3:B$170))+1), ROW(63:63))),\"\")","v":""},{"$f":"IFERROR(INDEX(Temp!C$3:C$170, SMALL(IF(ISERROR(Temp!C$3:C$170), \"\", ROW(Temp!C$3:C$170)-MIN(ROW(Temp!C$3:C$170))+1), ROW(63:63))),\"\")","v":""},{"$f":"IFERROR(INDEX(Temp!D$3:D$170, SMALL(IF(ISERROR(Temp!D$3:D$170), \"\", ROW(Temp!D$3:D$170)-MIN(ROW(Temp!D$3:D$170))+1), ROW(63:63))),\"\")","v":""}]
[{"$f":"IFERROR(INDEX(Temp!A$3:A$170, SMALL(IF(ISERROR(Temp!A$3:A$170), \"\", ROW(Temp!A$3:A$170)-MIN(ROW(Temp!A$3:A$170))+1), ROW(64:64))),\"\")","v":""},{"$f":"IFERROR(INDEX(Temp!B$3:B$170, SMALL(IF(ISERROR(Temp!B$3:B$170), \"\", ROW(Temp!B$3:B$170)-MIN(ROW(Temp!B$3:B$170))+1), ROW(64:64))),\"\")","v":""},{"$f":"IFERROR(INDEX(Temp!C$3:C$170, SMALL(IF(ISERROR(Temp!C$3:C$170), \"\", ROW(Temp!C$3:C$170)-MIN(ROW(Temp!C$3:C$170))+1), ROW(64:64))),\"\")","v":""},{"$f":"IFERROR(INDEX(Temp!D$3:D$170, SMALL(IF(ISERROR(Temp!D$3:D$170), \"\", ROW(Temp!D$3:D$170)-MIN(ROW(Temp!D$3:D$170))+1), ROW(64:64))),\"\")","v":""}]
[{"$f":"IFERROR(INDEX(Temp!A$3:A$170, SMALL(IF(ISERROR(Temp!A$3:A$170), \"\", ROW(Temp!A$3:A$170)-MIN(ROW(Temp!A$3:A$170))+1), ROW(65:65))),\"\")","v":""},{"$f":"IFERROR(INDEX(Temp!B$3:B$170, SMALL(IF(ISERROR(Temp!B$3:B$170), \"\", ROW(Temp!B$3:B$170)-MIN(ROW(Temp!B$3:B$170))+1), ROW(65:65))),\"\")","v":""},{"$f":"IFERROR(INDEX(Temp!C$3:C$170, SMALL(IF(ISERROR(Temp!C$3:C$170), \"\", ROW(Temp!C$3:C$170)-MIN(ROW(Temp!C$3:C$170))+1), ROW(65:65))),\"\")","v":""},{"$f":"IFERROR(INDEX(Temp!D$3:D$170, SMALL(IF(ISERROR(Temp!D$3:D$170), \"\", ROW(Temp!D$3:D$170)-MIN(ROW(Temp!D$3:D$170))+1), ROW(65:65))),\"\")","v":""}]
[{"$f":"IFERROR(INDEX(Temp!A$3:A$170, SMALL(IF(ISERROR(Temp!A$3:A$170), \"\", ROW(Temp!A$3:A$170)-MIN(ROW(Temp!A$3:A$170))+1), ROW(66:66))),\"\")","v":""},{"$f":"IFERROR(INDEX(Temp!B$3:B$170, SMALL(IF(ISERROR(Temp!B$3:B$170), \"\", ROW(Temp!B$3:B$170)-MIN(ROW(Temp!B$3:B$170))+1), ROW(66:66))),\"\")","v":""},{"$f":"IFERROR(INDEX(Temp!C$3:C$170, SMALL(IF(ISERROR(Temp!C$3:C$170), \"\", ROW(Temp!C$3:C$170)-MIN(ROW(Temp!C$3:C$170))+1), ROW(66:66))),\"\")","v":""},{"$f":"IFERROR(INDEX(Temp!D$3:D$170, SMALL(IF(ISERROR(Temp!D$3:D$170), \"\", ROW(Temp!D$3:D$170)-MIN(ROW(Temp!D$3:D$170))+1), ROW(66:66))),\"\")","v":""}]
[{"$f":"IFERROR(INDEX(Temp!A$3:A$170, SMALL(IF(ISERROR(Temp!A$3:A$170), \"\", ROW(Temp!A$3:A$170)-MIN(ROW(Temp!A$3:A$170))+1), ROW(67:67))),\"\")","v":""},{"$f":"IFERROR(INDEX(Temp!B$3:B$170, SMALL(IF(ISERROR(Temp!B$3:B$170), \"\", ROW(Temp!B$3:B$170)-MIN(ROW(Temp!B$3:B$170))+1), ROW(67:67))),\"\")","v":""},{"$f":"IFERROR(INDEX(Temp!C$3:C$170, SMALL(IF(ISERROR(Temp!C$3:C$170), \"\", ROW(Temp!C$3:C$170)-MIN(ROW(Temp!C$3:C$170))+1), ROW(67:67))),\"\")","v":""},{"$f":"IFERROR(INDEX(Temp!D$3:D$170, SMALL(IF(ISERROR(Temp!D$3:D$170), \"\", ROW(Temp!D$3:D$170)-MIN(ROW(Temp!D$3:D$170))+1), ROW(67:67))),\"\")","v":""}]
[{"$f":"IFERROR(INDEX(Temp!A$3:A$170, SMALL(IF(ISERROR(Temp!A$3:A$170), \"\", ROW(Temp!A$3:A$170)-MIN(ROW(Temp!A$3:A$170))+1), ROW(68:68))),\"\")","v":""},{"$f":"IFERROR(INDEX(Temp!B$3:B$170, SMALL(IF(ISERROR(Temp!B$3:B$170), \"\", ROW(Temp!B$3:B$170)-MIN(ROW(Temp!B$3:B$170))+1), ROW(68:68))),\"\")","v":""},{"$f":"IFERROR(INDEX(Temp!C$3:C$170, SMALL(IF(ISERROR(Temp!C$3:C$170), \"\", ROW(Temp!C$3:C$170)-MIN(ROW(Temp!C$3:C$170))+1), ROW(68:68))),\"\")","v":""},{"$f":"IFERROR(INDEX(Temp!D$3:D$170, SMALL(IF(ISERROR(Temp!D$3:D$170), \"\", ROW(Temp!D$3:D$170)-MIN(ROW(Temp!D$3:D$170))+1), ROW(68:68))),\"\")","v":""}]
[{"$f":"IFERROR(INDEX(Temp!A$3:A$170, SMALL(IF(ISERROR(Temp!A$3:A$170), \"\", ROW(Temp!A$3:A$170)-MIN(ROW(Temp!A$3:A$170))+1), ROW(69:69))),\"\")","v":""},{"$f":"IFERROR(INDEX(Temp!B$3:B$170, SMALL(IF(ISERROR(Temp!B$3:B$170), \"\", ROW(Temp!B$3:B$170)-MIN(ROW(Temp!B$3:B$170))+1), ROW(69:69))),\"\")","v":""},{"$f":"IFERROR(INDEX(Temp!C$3:C$170, SMALL(IF(ISERROR(Temp!C$3:C$170), \"\", ROW(Temp!C$3:C$170)-MIN(ROW(Temp!C$3:C$170))+1), ROW(69:69))),\"\")","v":""},{"$f":"IFERROR(INDEX(Temp!D$3:D$170, SMALL(IF(ISERROR(Temp!D$3:D$170), \"\", ROW(Temp!D$3:D$170)-MIN(ROW(Temp!D$3:D$170))+1), ROW(69:69))),\"\")","v":""}]
[{"$f":"IFERROR(INDEX(Temp!A$3:A$170, SMALL(IF(ISERROR(Temp!A$3:A$170), \"\", ROW(Temp!A$3:A$170)-MIN(ROW(Temp!A$3:A$170))+1), ROW(70:70))),\"\")","v":""},{"$f":"IFERROR(INDEX(Temp!B$3:B$170, SMALL(IF(ISERROR(Temp!B$3:B$170), \"\", ROW(Temp!B$3:B$170)-MIN(ROW(Temp!B$3:B$170))+1), ROW(70:70))),\"\")","v":""},{"$f":"IFERROR(INDEX(Temp!C$3:C$170, SMALL(IF(ISERROR(Temp!C$3:C$170), \"\", ROW(Temp!C$3:C$170)-MIN(ROW(Temp!C$3:C$170))+1), ROW(70:70))),\"\")","v":""},{"$f":"IFERROR(INDEX(Temp!D$3:D$170, SMALL(IF(ISERROR(Temp!D$3:D$170), \"\", ROW(Temp!D$3:D$170)-MIN(ROW(Temp!D$3:D$170))+1), ROW(70:70))),\"\")","v":""}]
[{"$f":"IFERROR(INDEX(Temp!A$3:A$170, SMALL(IF(ISERROR(Temp!A$3:A$170), \"\", ROW(Temp!A$3:A$170)-MIN(ROW(Temp!A$3:A$170))+1), ROW(71:71))),\"\")","v":""},{"$f":"IFERROR(INDEX(Temp!B$3:B$170, SMALL(IF(ISERROR(Temp!B$3:B$170), \"\", ROW(Temp!B$3:B$170)-MIN(ROW(Temp!B$3:B$170))+1), ROW(71:71))),\"\")","v":""},{"$f":"IFERROR(INDEX(Temp!C$3:C$170, SMALL(IF(ISERROR(Temp!C$3:C$170), \"\", ROW(Temp!C$3:C$170)-MIN(ROW(Temp!C$3:C$170))+1), ROW(71:71))),\"\")","v":""},{"$f":"IFERROR(INDEX(Temp!D$3:D$170, SMALL(IF(ISERROR(Temp!D$3:D$170), \"\", ROW(Temp!D$3:D$170)-MIN(ROW(Temp!D$3:D$170))+1), ROW(71:71))),\"\")","v":""}]
[{"$f":"IFERROR(INDEX(Temp!A$3:A$170, SMALL(IF(ISERROR(Temp!A$3:A$170), \"\", ROW(Temp!A$3:A$170)-MIN(ROW(Temp!A$3:A$170))+1), ROW(72:72))),\"\")","v":""},{"$f":"IFERROR(INDEX(Temp!B$3:B$170, SMALL(IF(ISERROR(Temp!B$3:B$170), \"\", ROW(Temp!B$3:B$170)-MIN(ROW(Temp!B$3:B$170))+1), ROW(72:72))),\"\")","v":""},{"$f":"IFERROR(INDEX(Temp!C$3:C$170, SMALL(IF(ISERROR(Temp!C$3:C$170), \"\", ROW(Temp!C$3:C$170)-MIN(ROW(Temp!C$3:C$170))+1), ROW(72:72))),\"\")","v":""},{"$f":"IFERROR(INDEX(Temp!D$3:D$170, SMALL(IF(ISERROR(Temp!D$3:D$170), \"\", ROW(Temp!D$3:D$170)-MIN(ROW(Temp!D$3:D$170))+1), ROW(72:72))),\"\")","v":""}]
[{"$f":"IFERROR(INDEX(Temp!A$3:A$170, SMALL(IF(ISERROR(Temp!A$3:A$170), \"\", ROW(Temp!A$3:A$170)-MIN(ROW(Temp!A$3:A$170))+1), ROW(73:73))),\"\")","v":""},{"$f":"IFERROR(INDEX(Temp!B$3:B$170, SMALL(IF(ISERROR(Temp!B$3:B$170), \"\", ROW(Temp!B$3:B$170)-MIN(ROW(Temp!B$3:B$170))+1), ROW(73:73))),\"\")","v":""},{"$f":"IFERROR(INDEX(Temp!C$3:C$170, SMALL(IF(ISERROR(Temp!C$3:C$170), \"\", ROW(Temp!C$3:C$170)-MIN(ROW(Temp!C$3:C$170))+1), ROW(73:73))),\"\")","v":""},{"$f":"IFERROR(INDEX(Temp!D$3:D$170, SMALL(IF(ISERROR(Temp!D$3:D$170), \"\", ROW(Temp!D$3:D$170)-MIN(ROW(Temp!D$3:D$170))+1), ROW(73:73))),\"\")","v":""}]